Workbook

Sheet LDC Info
Z3: 1 | AA3: Algoma Power Inc.
Z4: 2 | AA4: Atikokan Hydro Inc.
Z5: 3 | AA5: Attawapiskat Power Corporation
Z6: 4 | AA6: Bluewater Power Distribution Corporation
Z7: 5 | AA7: Brantford Power Inc.
Z8: 6 | AA8: Burlington Hydro Inc.
Z9: 7 | AA9: Canadian Niagara Power Inc.
Z10: 8 | AA10: Centre Wellington Hydro Ltd.
Z11: 9 | AA11: Chapleau Public Utilities Corporation
Z12: 10 | AA12: COLLUS PowerStream Corp.
Z13: 11 | AA13: Cooperative Hydro Embrun Inc.
D14: Utility Name | E14: London Hydro Inc. | Z14: 12 | AA14: E.L.K. Energy Inc.
Z15: 13 | AA15: Energy + Inc.
D16: Assigned EB Number | E16: EB-2016-0091 | Z16: 14 | AA16: Enersource Hydro Mississauga Inc.
Z17: 15 | AA17: Entegrus Powerlines Inc.
D18: Name of Contact and Title | E18: Martin Benum | Z18: 16 | AA18: ENWIN Utilities Ltd.
Z19: 17 | AA19: Erie Thames Powerlines Corporation
D20: Phone Number | E20: 519-661-5800 X 5750 | Z20: 18 | AA20: Espanola Regional Hydro Distribution Corporation
Z21: 19 | AA21: Essex Powerlines Corporation
D22: Email Address | E22: benumm@londonhydro.com | Z22: 20 | AA22: Festival Hydro Inc.
Z23: 21 | AA23: Fort Albany Power Corporation
D24: Test Year | E24: 2017 | Z24: 22 | AA24: Fort Frances Power Corporation
Z25: 23 | AA25: Greater Sudbury Hydro Inc.
D26: Bridge Year | E26: =IF(ISBLANK(E24), "", E24-1) -> 2016 | Z26: 24 | AA26: Grimsby Power Inc.
Z27: 25 | AA27: Guelph Hydro Electric Systems Inc.
D28: Last Rebasing Year | E28: 2013 | Z28: 26 | AA28: Haldimand County Hydro Inc.
Z29: 27 | AA29: Halton Hills Hydro Inc.
A30: Identify the accounting standard used for the test year | Z30: 28 | AA30: Hearst Power Distribution Company Limited
E31: MIFRS | Z31: 29 | AA31: Horizon Utilities Corporation
Z32: 30 | AA32: Hydro 2000 Inc.
A33: Did you update your depreciation and capitalization policies and reflect the changes in policies in a prior rebasing application? | Z33: 31 | AA33: Hydro Hawkesbury Inc.
E34: Yes | Z34: 32 | AA34: Hydro One Brampton Networks Inc.
Z35: 33 | AA35: Hydro One Networks Inc.
A36: When did you update your actual depreciation and capitalization policies? | Z36: 34 | AA36: Hydro One Networks Inc. - Norfolk
E37: 2001-01-01 | F37: 2013 | Z37: 35 | AA37: Hydro One Remote Communities Inc.
Z38: 36 | AA38: Hydro Ottawa Limited
A39: Identify the year the applicant adopted IFRS for financial reporting purposes | Z39: 37 | AA39: Innpower Corporation
E40: 2015 | Z40: 38 | AA40: Kashechewan Power Corporation
Z41: 39 | AA41: Kenora Hydro Electric Corporation Ltd.
Z42: 40 | AA42: Kingston Hydro Corporation
A43: Are you applying for cost recovery for the test and/or future year(s) for Green Energy initiatives? | Z43: 41 | AA43: Kitchener-Wilmot Hydro Inc.
E44: Yes | Z44: 42 | AA44: Lakefront Utilities Inc.
Z45: 43 | AA45: Lakeland Power Distribution Ltd.
A46: ="Is " & E14 & " an embedded distributor?" -> Is London Hydro Inc. an embedded distributor? | E46: No | Z46: 44 | AA46: London Hydro Inc.
Z47: 45 | AA47: Midland Power Utility Corporation
Z48: 46 | AA48: Milton Hydro Distribution Inc.
B49: Notes | Z49: 47 | AA49: Newmarket-Tay Power Distribution Ltd.
Z50: 48 | AA50: Niagara Peninsula Energy Inc.
C51: Pale green cells represent input cells. | Z51: 49 | AA51: Niagara-on-the-Lake Hydro Inc.
Z52: 50 | AA52: North Bay Hydro Distribution Limited
C53: Pale blue cells represent drop-down lists. The applicant should select the appropriate item from the drop-down list. | Z53: 51 | AA53: Northern Ontario Wires Inc.
Z54: 52 | AA54: Oakville Hydro Electricity Distribution Inc.
C55: White cells contain fixed values, automatically generated values or formulae. | N55: =IF(LEN($G55)>1, (SUMPRODUCT(--($C$78:$C$1000=$C55),--($A$78:$A$1000=$D55), --($B$78:$B$1000=$B55&"_TOTAL"), $L$78:$L$1000)), "") ->  | O55: =IF(LEN($G55)>1, (SUMPRODUCT(--($C$78:$C$1000=$C55),--($A$78:$A$1000=$D55), --($B$78:$B$1000=$B55&"_TOTAL"), $M$78:$M$1000)), "") ->  | Z55: 53 | AA55: Orangeville Hydro Limited
N56: =IF(LEN($G56)>1, (SUMPRODUCT(--($C$78:$C$1000=$C56),--($A$78:$A$1000=$D56), --($B$78:$B$1000=$B56&"_TOTAL"), $L$78:$L$1000)), "") ->  | O56: =IF(LEN($G56)>1, (SUMPRODUCT(--($C$78:$C$1000=$C56),--($A$78:$A$1000=$D56), --($B$78:$B$1000=$B56&"_TOTAL"), $M$78:$M$1000)), "") ->  | Z56: 54 | AA56: Orillia Power Distribution Corporation
Z57: 55 | AA57: Oshawa PUC Networks Inc.
Z58: 56 | AA58: Ottawa River Power Corporation
Z59: 57 | AA59: Peterborough Distribution Inc.
Z60: 58 | AA60: PowerStream Inc.
Z61: 59 | AA61: PUC Distribution Inc.
Z62: 60 | AA62: Renfrew Hydro Inc.
Z63: 61 | AA63: Rideau St. Lawrence Distribution Inc.
Z64: 62 | AA64: Sioux Lookout Hydro Inc.
Z65: 63 | AA65: St. Thomas Energy Inc.
Z66: 64 | AA66: Thunder Bay Hydro Electricity Distribution Inc.
Z67: 65 | AA67: Tillsonburg Hydro Inc.
Z68: 66 | AA68: Toronto Hydro-Electric System Limited
Z69: 67 | AA69: Veridian Connections Inc.
Z70: 68 | AA70: Wasaga Distribution Inc.
Z71: 69 | AA71: Waterloo North Hydro Inc.
Z72: 70 | AA72: Welland Hydro-Electric System Corp.
Z73: 71 | AA73: Wellington North Power Inc.
Z74: 72 | AA74: West Coast Huron Energy Inc.
Z75: 73 | AA75: Westario Power Inc.
Z76: 74 | AA76: Whitby Hydro Electric Corporation
Z77: 75 | AA77: Woodstock Hydro Services Inc.

Sheet Index
A15: 1 | B15: LDC Information Sheet | E15: 27 | F15: App.2-G: Service Reliability Indicators
A16: 2 | B16: Index | E16: 28 | F16: App.2-H: Other Operating Revenue
A17: 3 | B17: Cost of Service Application Flowchart | E17: 29 | F17: App.2-I: Load Forecast CDM Adjustment Workform
A18: 4 | B18: List of Key References | E18: 30 | F18: App.2-IA: Load Forecast Data Instructions
A19: 5 | B19: App.2-A: List of Requested Approvals | E19: 31 | F19: App.2-IB: Actual and Forecast Load and Customer Data
A20: 6 | B20: App.2-AA: Capital Projects Table | E20: 32 | F20: App.2-JA: OM&A Summary Analysis
A21: 7 | B21: App.2-AB: Capital Expenditures | E21: 33 | F21: App.2-JB: Recoverable OM&A Cost Driver Table
A22: 8 | B22: App. 2-AC: Customer Engagement Worksheet | E22: 34 | F22: App.2-JC: OM&A Programs Table
A23: 9 | B23: App.2-B: General Accounting Instructions | E23: 35 | F23: App.2-K: Employee Costs
A24: 10 | B24: App.2-BA: Fixed Asset Continuity Schedule | E24: 36 | F24: App.2-KA: OPEBs (Other Post-Employment Benefits) Costs
A25: 11 | B25: Appendix 2-BB: Service Life Comparison | E25: 37 | F25: App.2-L: Recoverable OM&A Cost per Customer and per FTE
A26: 12 | B26: App.2-CA: Year 1 Depreciation and Amortization Expense (Old CGAAP) | E26: 38 | F26: App.2-M: Regulatory Costs Schedule
A27: 13 | B27: App.2-CB: Year 1 Depreciation and Amortization Expense (New CGAAP) | E27: 39 | F27: App.2-N: Shared Services and Corporate Cost Allocation
A28: 14 | B28: App.2-CC: Year 2 Depreciation and Amortization Expense (New CGAAP) | E28: 40 | F28: App.2-OA: Capital Structure and Cost of Capital
A29: 15 | B29: App.2-CD: Year 3 Depreciation and Amortization Expense (New CGAAP or MIFRS) | E29: 41 | F29: App.2-OB: Debt Instruments
A30: 16 | B30: App.2-CE: Year 4 Depreciation and Amortization Expense (MIFRS) | E30: 42 | F30: App.2-Q: Cost of Serving Embedded Distributor(s)
A31: 17 | B31: App.2-CF: Year 5 Depreciation and Amortization Expense (MIFRS) | E31: 43 | F31: App.2-R: Loss Factors
A32: 18 | B32: App.2-CG: Year 6 Depreciation and Amortization Expense (Old CGAAP) | E32: 44 | F32: App.2-S: Stranded Meter Treatment
A33: 19 | B33: App.2-CH: Depreciation and Amortization Expense (MIFRS) | E33: 45 | F33: App.2-Y: Transition to MIFRS Summary Impact
A34: 20 | B34: App.2-D: Overhead Expenses | E34: 46 | F34: App.2-YA: One-Time Incremental IFRS Transition Costs
A35: 21 | B35: App.2-EA: Account 1575 PP&E Deferral Account (2015 IFRS Adopters)
A36: 22 | B36: App.2-EB: Account 1576 - Accounting Changes Under CGAAP (2012 Changes)
A37: 23 | B37: App.2-EC: Account 1576 - Accounting Changes Under CGAAP (2013 Changes)
A38: 24 | B38: App.2-FA: Renewable Generation Connection Investment Summary
A39: 25 | B39: App.2-FB: Calculation of Renewable Generation Connection Direct Benefits/Provincial Amount: Renewable Enabling Improvement Investments
A40: 26 | B40: App.2-FC: Calculation of Renewable Generation Connection Direct Benefits/Provincial Amount: Renewable Expansion Investments
A42: Note: | B42: Appendices for the Tariff of Rates and Charges at Current and Proposed Rates, and for the Bill Impacts are now in a separate spreadsheet model. These appendices were formerly 2-Z and 2-W.

Sheet COS Flowchart
B4: Cost of Service Rate Application Schematic
B6: The Cost of Service Rate Application Schematic is a flowchart that is included as a guide for the components of an application. The schematic demonstrates how demand and costs interrelate to derive the revenue requirement and how the revenue requirement is allocated between classes and through fixed/variable splits to derive rates that will be compensatory for the annual revenue requirement, based on the the forecasted demand. There is no form to be filled out; therefore, this Schedule is not required to be filed.

Sheet List of Key References
B3: List of Key References
A5: A list of key references for understanding the Filing Requirements has been embedded in the document below. To access the list of references and associated hyperlinks double-click the icon below.

Sheet App.2-A_Requested_Approvals
G1: File Number: | H1: =EBNUMBER -> EB-2016-0091
G2: Exhibit: | H2: 1
G3: Tab: | H3: 3
G4: Schedule: | H4: 17
G5: Page:
G7: Date: | H7: 2016-08-26
B9: Appendix 2-A
B10: List of Requested Approvals
B12: The distributor must fill out the following sheet with the complete list of specific approvals requested and relevant section(s) of the legislation must be provided. All approvals, including accounting orders (deferral and variance accounts) new rate classes, revised specific service charges or retail service charges which the applicant is seeking, must be separately identified, as well being clearly documented in the appropriate sections of the application.
B14: Additional requests may be added by copying and pasting blank input rows, as needed.
B16: If additional requests arise, or requested approvals are removed, during the processing of the application, the distributor should update this list.
B18: London Hydro Inc. is seeking the following approvals in this application:
B20: 1 | F20: Approval to charge distribution rates effective May 1, 2017 to recover a service revenue requirement of $69,004,127 which includes a Revenue Deficiency of $3,471,451 as detailed in Exhibit 6. The schedule of proposed rates is set out in Exhibit 8.
B22: 2 | F22: Approval of the DSP as outlined in Exhibit 2, Appendix 2-6.
B24: 3 | F24: Approval to adjust the Retail Transmission Rates – Network and Connection as detailed in Exhibit 8.
B26: 4 | F26: Approval to continue to charge Wholesale Market and Rural Rate Protection Charges approved in the Board Decision and Order in the matter of London Hydro’s 2016 Distribution Rates (EB-2015-0087)
B28: 5 | F28: Approval to continue the Specific Service Charges, Retail Service Charges and Transformer Allowance approved in the Board Decision and Order in the matter of London Hydro’s 2016 Distribution Rates (EB-2015-0087).
B30: 6 | F30: Approval of the proposed loss factors as detailed in Exhibit 8.
B32: 7 | F32: Approval of the rate riders for a one year disposition of the Group 1 and Group 2 and Other Deferral and Variance Accounts as detailed in Exhibit 9.
B34: 8 | F34: Approval of the rate riders for a one year disposition of the Lost Revenue Adjustment Mechanism Variance Account ("LRAMVA") and Lost Revenue Adjustment Mechanism (“LRAM”) for lost revenue. Previous LRAMVA and LRAM claims, up to an including December 31, 2012, have been claimed in previous applications. For additional information, please refer to Exhibit 4.
B36: 9 | F36: Approval to dissolve the microFIT rate class and re-class microFIT customers to GS<50 kW rate class for application of monthly service charge as detailed in Exhibit 8
B38: 10 | F38: Approval to classify FIT and other IESO contracted generators based on boilerplate capacity for application rate classification as detailed in Exhibit 8.
B40: 11 | F40: Approvals to classify net metered generators based on boilerplate capacity for application rate classification, and apply the Distribution Volumetric Rate on “Gross Absolute” as detailed in Exhibit 8
B42: 12 | F42: Approval to change Street Lights and Sentinel Lights application of monthly Service Charge to read “per device” from “per connection” as detailed in Exhibit 8.
B44: 13 | F44: Approval to establish new specific service charge “Cellular Meter Read Charge” of $30.00 per month as detailed in Exhibit 8.
B46: 14 | F46: Approval to declare Standby Rates Final as detailed in Exhibit 8.
B48: 15 | F48: Approval to establish a new deferral accounts for Retiree Life Insurance
B50: 16 | F50: Approval to establish a new deferral accounts for Pension & Other Post-Employment Benefits (“P&OPEB”)
B52: 17 | F52: Approval to establish a new deferral accounts for Cap and Trade Deferral Account
B54: 18 | F54: Approval to establish a new deferral accounts for Climate Change Action Plan Deferral Account. In addition the related expenditures are to be considered final and the accounting recognition of the investments included in fixed assets.
B56: 19 | F56: Approval to establish a new deferral accounts for Burden Reduction Bill Deferral Account

Sheet App.2-AA_Capital Projects
G1: File Number: | H1: =EBNUMBER -> EB-2016-0091
G2: Exhibit: | H2: 2
G3: Tab: | H3: 2
G4: Schedule: | H4: 8
G5: Page:
G7: Date: | H7: 2016-08-26
A9: Appendix 2-AA
A10: Capital Projects Table
A13: Projects | B13: =C13-1 -> 2012 | C13: =D13-1 -> 2013 | D13: =E13-1 -> 2014 | E13: =BridgeYear - 1 -> 2015 | F13: =BridgeYear & " Bridge Year" -> 2016 Bridge Year | G13: =TestYear & " Test Year" -> 2017 Test Year
A14: Reporting Basis | B14: CGAAP | C14: MIFRS | D14: MIFRS | E14: MIFRS | F14: MIFRS | G14: MIFRS
A15: System Access
A16: City Road Authority Relocates | B16: 1446613.45 | C16: 543034.19 | D16: 1542379.66 | E16: 1968292.92 | F16: 1640899.11 | G16: 2241200
A17: Developer Expansions & Relocations | B17: 400272.1 | C17: 531757.8 | D17: 254200.08 | E17: 269751.52 | F17: 335003.86 | G17: 340900
A18: Residential Secondary Service Upgrade | B18: 305886.31 | C18: 306803.31 | D18: 307721.48 | E18: 369830.56 | F18: 392984.55 | G18: 355000
A19: Single Family Residential Underground | B19: 1333826.35 | C19: 900487.1 | D19: 1868778.34 | E19: 1388375.72 | F19: 1780852.55 | G19: 1090200
A20: Multi-Family Residential Underground | B20: 393578.36 | C20: 744736.06 | D20: 616065.48 | E20: 1400040.85 | F20: 812312.37 | G20: 783000
A21: Commercial Distribution Services | B21: 2457653.09 | C21: 2267497.63 | D21: 2037915.09 | E21: 2589328.92 | F21: 2821849.65 | G21: 1935900
A22: Metering and installations | B22: 680001.83 | C22: 633936.72 | D22: 680197.47 | E22: 895391.41 | F22: 1285228.31 | G22: 663200
A23: Primary metering | B23: 56614.11 | C23: 109785.05 | D23: 112549.05 | E23: 85368.18 | F23: 128014.06 | G23: 354000
A24: AMI Communications Renewal | B24: 0 | C24: 0 | D24: 0 | E24: 0 | F24: 872768.27 | G24: 649000
A25: Wholesale metering upgrades | B25: 3219.52 | C25: 0 | D25: 0 | E25: 0 | F25: 0 | G25: 0
A26: Sub-Total | B26: =SUM(B16:B25) -> 7077665.12 | C26: =SUM(C16:C25) -> 6038037.86 | D26: 7419806.65 | E26: 8966380.08 | F26: 10069912.73 | G26: 8412400
A27: System Renewal
A28: Substation installations/refurbishments | B28: 524.83 | C28: 183850 | D28: -10000 | E28: 0 | F28: 0 | G28: 0
A29: Battery bank replacements | B29: 15435.18 | C29: 11427.13 | D29: 11018.33 | E29: 12064.73 | F29: 13518.33 | G29: 15000
A30: Switchgear modifications | B30: 32635.62 | C30: 107589.47 | D30: 81590.47 | E30: 179346.39 | F30: 38050.03 | G30: 0
A31: Switch replacements | B31: 76361.81 | C31: 976.07 | D31: 56975.22 | E31: 57918.04 | F31: 61.14 | G31: 0
A32: Voltage conversion | B32: 82302.99 | C32: 53577.98 | D32: 89880 | E32: 0 | F32: 0 | G32: 0
A33: Vault Renewal and RTU Standardization | B33: 0 | C33: 23721.78 | D33: 125.65 | E33: 42598.17 | F33: 32089.87 | G33: 30000
A34: Silicone Injection of Underground Cable | B34: 792459.59 | C34: 1856759.5 | D34: 2332404.33 | E34: 2529545.82 | F34: 2542760.41 | G34: 2697900
A35: Conversions and Rebuilds with Silicone Injection | B35: 3051900.65 | C35: 1821492.19 | D35: 979680.25 | E35: 709545.72 | F35: 878875.63 | G35: 75000
A36: Air Insulated Sectionalized Enclosures | B36: 492254.91 | C36: 512103.45 | D36: 341100.72 | E36: 219587.96 | F36: 258756.94 | G36: 293000
A37: Replace leaking transformer | B37: 1115182.72 | C37: 1091723.56 | D37: 570359.5 | E37: 1492999.71 | F37: 1161331.76 | G37: 700000
A38: Rebuild or Convert Vault Areas | B38: 152397.47 | C38: 264152.26 | D38: 91029.32 | E38: 170696.16 | F38: 69352.08 | G38: 144000
A39: Underground Conversions | B39: 85743.67 | C39: 370752.81 | D39: 329212.57 | E39: 730342.45 | F39: 860136.66 | G39: 556000
A40: Miscellaneous Subdivision Projects | B40: 33610.06 | C40: 20456.08 | D40: 22014.62 | E40: 26321.57 | F40: 41718.81 | G40: 20000
A41: Transformer Returns | B41: 0 | C41: -444050.58 | D41: -236087.38 | E41: -667306.37 | F41: -458744.02 | G41: -200000
A42: Conversions | B42: 2628.17 | C42: 1545.31 | D42: 35414.62 | E42: 1549899.44 | F42: 2154777.99 | G42: 815000
A43: Backup Supply & Civil Structure Installations | B43: 0 | C43: 13447 | D43: 663894.93 | E43: 992791.86 | F43: 1741749.09 | G43: 2550400
A44: Replacement of Network Vaults, Maintenance Holes and Transformers | B44: 839431.35 | C44: 616922.81 | D44: 1324019.05 | E44: 1537231.12 | F44: 984175.32 | G44: 1014100
A45: Replacement of Primary/Second Cable | B45: 484417.4 | C45: 199081.56 | D45: 384082.03 | E45: 50059.25 | F45: 148648.5 | G45: 750000
A46: Maintenance Hole Cable Rebuilds & Fuse Installs | B46: 40343.66 | C46: 243550.19 | D46: 142460.19 | E46: 539.4 | F46: 733566.46 | G46: 300000
A47: Replacement of Fully Depreciated/Deteriorated Poles and Poles Susceptible to Fire | B47: 948910.9 | C47: 509558.36 | D47: 668104.83 | E47: 495464.97 | F47: 476351.72 | G47: 410000
A48: Arrestor/Insulator/Other | B48: 4948.9 | C48: 80747.86 | D48: 796857.57 | E48: 950244.24 | F48: 829142.74 | G48: 580000
A49: Rebuild Fully Depreciated Overhead Areas | B49: 2514411.26 | C49: 814382.75 | D49: 228609.76 | E49: 316130.65 | F49: 430654.91 | G49: 260000
A50: Overhead Voltage Conversions | B50: 101091.74 | C50: 2515522.27 | D50: 2837900.91 | E50: 2388036.32 | F50: 2397179.31 | G50: 3267100
A51: Sub-Total | B51: =SUM(B28:B50) -> 10866992.88 | C51: 10869289.81 | D51: 11740647.49 | E51: 13784057.6 | F51: 15334153.68 | G51: 14277500
A52: System Service
A53: Downtown network supply reinforcement | B53: 10360.87 | C53: 0 | D53: 0 | E53: 0 | F53: 0 | G53: 0
A54: Relay replacements | B54: 25277.88 | C54: 32039.64 | D54: 110032.8 | E54: 63786.65 | F54: 66474.35 | G54: 79600
A55: Other | B55: 0 | C55: 7569.55 | D55: 0 | E55: 0 | F55: 0 | G55: 0
A56: Backup Supply and Fault Indicator Installations | B56: 109325.53 | C56: 61637.88 | D56: 52886.36 | E56: 183252.68 | F56: 55108.05 | G56: 90000
A57: Reinforcements | B57: 456904.29 | C57: 575177.34 | D57: 344508.73 | E57: 153938.79 | F57: 1138.92 | G57: 0
A58: Extensions & Installations | B58: 639989.23 | C58: 447868.74 | D58: 2182.35 | E58: 0 | F58: 0 | G58: 0
A59: East End Network | B59: 425361.4 | C59: 55299 | D59: 0 | E59: 0 | F59: 0 | G59: 0
A60: Maintenance Hole Cable Protection | B60: 0 | C60: 0 | D60: 0 | E60: 387411.81 | F60: 197679.98 | G60: 0
A61: Reliability/Outage Mitigation | B61: 450.29 | C61: 127350.27 | D61: 296880.15 | E61: 1655 | F61: 0 | G61: 0
A62: Recloser Installation | B62: 173245.29 | C62: 183676.93 | D62: 212822.47 | E62: 186310.9 | F62: 156325.1 | G62: 195000
A63: Remote Terminal Unit Replacements | B63: 46451.1 | C63: 66788.67 | D63: 199051.07 | E63: 189866.51 | F63: 140085.86 | G63: 130000
A64: Miscellaneous Automation | B64: 54793.32 | C64: 41661.32 | D64: 59431.41 | E64: 0 | F64: 18485.98 | G64: 247900
A65: SCADA | B65: 6475.84 | C65: 26481.13 | D65: 163357 | E65: 81114.82 | F65: 74443.8 | G65: 100000
A66: Power Quality | B66: 0 | C66: 0 | D66: 34990.65 | E66: 4008.66 | F66: 75028.84 | G66: 50000
A67: Sub-Total | B67: =SUM(B53:B66) -> 1948635.04 | C67: 1625550.47 | D67: 1476142.99 | E67: 1251345.82 | F67: 784770.88 | G67: 892500
A68: General Plant
A69: Capital Contribution to Transformer Station | B69: 0 | C69: 0 | D69: 0 | E69: 1616589.93 | F69: 1826921.13 | G69: 1882000
A70: Miscellaneous Automation | B70: 0 | C70: 0 | D70: 0 | E70: 30190.85 | F70: 0 | G70: 0
A71: Miscellaneous Control Room General Plant | B71: 11458 | C71: 0 | D71: 33244.23 | E71: 3467.66 | F71: 0 | G71: 0
A72: Testing and validation equipment | B72: 0 | C72: 0 | D72: 44865.02 | E72: 293279.99 | F72: 40.12 | G72: 0
A73: Small/Large Vehicles | B73: 1588517.05 | C73: 1145378.77 | D73: 671500.47 | E73: 1033856.75 | F73: 966856.18 | G73: 849900
A74: Trailers | B74: 55361.67 | C74: 111227.63 | D74: 0 | E74: 14351 | F74: 35147 | G74: 51000
A75: Major Equipment | B75: 31525.9 | C75: 53630 | D75: 100000 | E75: 147000 | F75: 116778.03 | G75: 195000
A76: Stores Equipment | B76: 119.28 | C76: 5499 | D76: 3348.27 | E76: 65706.73 | F76: 83680.47 | G76: 40000
A77: Miscellaneous Operating Equipment | B77: 168717.61 | C77: 130516.83 | D77: 192160.7 | E77: 146758.8 | F77: 229296.65 | G77: 279100
A78: Office Furniture/Equipment | B78: 84535.68 | C78: 101295.9 | D78: 121040.92 | E78: 79805.08 | F78: 264806.16 | G78: 196400
A79: Heating/Venting & A/C | B79: 39930.76 | C79: 0 | D79: 24452.52 | E79: 73409.6 | F79: 130250.83 | G79: 154000
A80: Paving | B80: 440753.34 | C80: 230555.34 | D80: 140550.15 | E80: 66750 | F80: -1228.83 | G80: 343400
A81: Improvements/Renovations | B81: 247547.68 | C81: 138559.91 | D81: 896314.05 | E81: 464798.46 | F81: 1043204.44 | G81: 360000
A82: Garage Fixtures | B82: 0 | C82: 0 | D82: 0 | E82: 127519.9 | F82: 32309.59 | G82: 0
A83: Roofing | B83: 10153.13 | C83: 0 | D83: 0 | E83: 0 | F83: 0 | G83: 0
A84: Yard Environmental Controls | B84: 0 | C84: 0 | D84: 0 | E84: 0 | F84: 0 | G84: 0
A85: Standby Generator | B85: 293762.25 | C85: 75648.67 | D85: 0 | E85: 10951.75 | F85: 108209.63 | G85: 52000
A86: Uninterrupted Power Supply & Battery Banks | B86: 21274.86 | C86: 67403.08 | D86: 110085.6 | E86: 3228.75 | F86: 0 | G86: 0
A87: Computer Hardware and Software | B87: 1343575.03 | C87: 1747355.87 | D87: 1126198.51 | E87: 1417956.17 | F87: 780206.01 | G87: 732900
A88: Customer Information System (CIS) | B88: 383120.68 | C88: 874095.55 | D88: 601952.4 | E88: 406743.3 | F88: 814091.76 | G88: 300000
A89: CIS retailer requirements | B89: 767733.77 | C89: 0 | D89: 0 | E89: 0 | F89: 0 | G89: 0
A90: CIS Customer Relations Management upgrade | B90: 0 | C90: 726037.96 | D90: 417043.96 | E90: 0 | F90: 0 | G90: 0
A91: Cyber Security | B91: 0 | C91: 0 | D91: 0 | E91: 266759.62 | F91: 155940.83 | G91: 50000
A92: System Foundations | B92: 0 | C92: 0 | D92: 0 | E92: 250242.29 | F92: 21598.11 | G92: 150000
A93: Customer Engagement - Residential | B93: 0 | C93: 0 | D93: 539464.86 | E93: 648647.08 | F93: 866834.18 | G93: 814200
A94: Customer Engagement - Commercial & Industrial | B94: 0 | C94: 0 | D94: 0 | E94: 8121.26 | F94: 801225.6 | G94: 400000
A95: CIS regulatory requirements | B95: 260601.67 | C95: 266879.26 | D95: 9016.87 | E95: 304582.56 | F95: 200881.65 | G95: 250000
A96: Geographic Information System (GIS) | B96: 453661.92 | C96: 0 | D96: 0 | E96: 158736.02 | F96: 17364.82 | G96: 0
A97: Outage Management System (OMS) | B97: 707426.82 | C97: 1194717.88 | D97: 514795.67 | E97: 107613.76 | F97: 528241.18 | G97: 0
A98: Customer Engagement / Web Presentment & TOU | B98: 208782.38 | C98: 1524585.28 | D98: 45313.56 | E98: 0 | F98: 145444.26 | G98: 0
A99: Meter data | B99: 1548040.58 | C99: 4695.9 | D99: 229752.8 | E99: 314117.4 | F99: 188053.1 | G99: 400000
A100: Mobile Workforce (MWFM) | B100: 0 | C100: 518018.61 | D100: 489532.77 | E100: 781324.26 | F100: 539483.51 | G100: 300000
A101: Business intelligence | B101: 0 | C101: 19249.14 | D101: 1912.32 | E101: 150813.7 | F101: 112410.12 | G101: 250000
A102: Enterprise Resource Planning (ERP) | B102: 0 | C102: 0 | D102: 450607.29 | E102: 748319.4 | F102: 229907.56 | G102: 850000
A103: Sub-Total | B103: =SUM(B69:B102) -> 8666600.06 | C103: 8935350.58 | D103: 6763152.94 | E103: 9741642.07 | F103: 10237954.09 | G103: 8899900
A104: Other
A105: Inventory Held for Capital Projects | B105: -250719.37 | C105: 241807.48 | D105: -450497.32 | E105: 757661.06 | F105: 1040718.92 | G105: 0
A106: CGAAP to MIFRS Burden Adjustment | B106: -536620.2 | C106: 0 | D106: 0 | E106: 0 | F106: 0 | G106: 0
A107: Sub-Total | B107: =SUM(B105:B106) -> -787339.57 | C107: =SUM(C105:C106) -> 241807.48 | D107: -450497.32 | E107: 757661.06 | F107: 1040718.92 | G107: 0
A108: Miscellaneous
A109: Total | B109: =SUMPRODUCT(--($A15:$A108="Sub-Total"), B$15:B$108)+B108 -> 27772553.53 | C109: 27710036.2 | D109: 26949252.75 | E109: 34501086.63 | F109: 37467510.3 | G109: 32482300
A110: Less Renewable Generation Facility Assets and Other Non-Rate-Regulated Utility Assets (input as negative)
A111: Total | B111: =B109+B110 -> 27772553.53 | C111: 27710036.2 | D111: 26949252.75 | E111: 34501086.63 | F111: 37467510.3 | G111: 32482300
A113: Notes:
A115: 1 Please provide a breakdown of the major components of each capital project undertaken in each year. Please ensure that all projects below the materiality threshold are included in the miscellaneous line. Add more projects as required.
A116: 2 The applicant should group projects appropriately and avoid presentations that result in classification of significant components of the capital budget in the miscellaneous category.

Sheet App.2-AB_Capital Expenditures
S1: File Number: | U1: =EBNUMBER -> EB-2016-0091
S2: Exhibit: | U2: 2
S3: Tab: | U3: 2
S4: Schedule: | U4: 9
S5: Page:
S7: Date: | U7: 2016-08-26
A9: Appendix 2-AB
A10: Table 2 - Capital Expenditure Summary from Chapter 5 Consolidated Distribution System Plan Filing Requirements
A12: First year of Forecast Period: | B12: =TestYear -> 2017
A13: CATEGORY | B13: Historical Period (previous plan1 & actual) | Q13: Forecast Period (planned)
B14: =E14-1 -> 2012 | E14: =H14-1 -> 2013 | H14: =K14-1 -> 2014 | K14: =N14-1 -> 2015 | N14: =Q14-1 -> 2016 | Q14: =B12 -> 2017 | R14: =Q14+1 -> 2018 | S14: =R14+1 -> 2019 | T14: 2020 | U14: 2021
B15: Plan | C15: Actual | D15: Var | E15: Plan | F15: Actual | G15: Var | H15: Plan | I15: Actual | J15: Var | K15: Plan | L15: Actual | M15: Var | N15: Plan | O15: Actual2 | P15: Var
B16: $ '000 | D16: % | E16: $ '000 | G16: % | H16: $ '000 | J16: % | K16: $ '000 | M16: % | N16: $ '000 | P16: % | Q16: $ '000
A17: System Access | B17: 6623 | C17: 7078 | D17: =IF(ISERROR((C17-B17)/B17),"--",(C17-B17)/B17) -> 0.0686999849 | E17: 6111 | F17: 6038 | G17: =IF(ISERROR((F17-E17)/E17),"--",(F17-E17)/E17) -> -0.01194567174 | H17: 6430 | I17: 7420 | J17: =IF(ISERROR((I17-H17)/H17),"--",(I17-H17)/H17) -> 0.1539657854 | K17: 6105 | L17: 8966 | M17: =IF(ISERROR((L17-K17)/K17),"--",(L17-K17)/K17) -> 0.4686322686 | N17: 7893 | O17: 10070 | P17: =IF(ISERROR((O17-N17)/N17),"--",(O17-N17)/N17) -> 0.2758140124 | Q17: 8412 | R17: 7716 | S17: 8220 | T17: 8617 | U17: 7080
A18: System Renewal | B18: 11800 | C18: 10867 | D18: =IF(ISERROR((C18-B18)/B18),"--",(C18-B18)/B18) -> -0.07906779661 | E18: 11673 | F18: 10869 | G18: =IF(ISERROR((F18-E18)/E18),"--",(F18-E18)/E18) -> -0.0688768954 | H18: 12649 | I18: 11741 | J18: =IF(ISERROR((I18-H18)/H18),"--",(I18-H18)/H18) -> -0.07178433078 | K18: 14535 | L18: 13787 | M18: =IF(ISERROR((L18-K18)/K18),"--",(L18-K18)/K18) -> -0.0514619883 | N18: 14849 | O18: 15334 | P18: =IF(ISERROR((O18-N18)/N18),"--",(O18-N18)/N18) -> 0.03266213213 | Q18: 14278 | R18: 16702 | S18: 16757 | T18: 16213 | U18: 16384
A19: System Service | B19: 1505 | C19: 1949 | D19: 0.2950166113 | E19: 1774 | F19: 1626 | G19: -0.08342728298 | H19: 1683 | I19: 1476 | J19: -0.1229946524 | K19: 1357 | L19: 1249 | M19: -0.07958732498 | N19: 975 | O19: 785 | P19: -0.1948717949 | Q19: 893 | R19: 715 | S19: 545 | T19: 545 | U19: 546
A20: General Plant | B20: 8343 | C20: 8667 | D20: 0.03883495146 | E20: 8295 | F20: 8935 | G20: 0.0771549126 | H20: 7643 | I20: 6763 | J20: -0.1151380348 | K20: 7921 | L20: 9742 | M20: =IF(ISERROR((L20-K20)/K20),"--",(L20-K20)/K20) -> 0.2298952153 | N20: 10002 | O20: 10238 | P20: 0.02359528094 | Q20: 8900 | R20: 10584 | S20: 7437 | T20: 8518 | U20: 9797
A21: Other | B21: 0 | C21: -788 | D21: -- | E21: 0 | F21: 242 | G21: -- | H21: 0 | I21: -451 | J21: -- | K21: -1 | L21: 757 | M21: =IF(ISERROR((L21-K21)/K21),"--",(L21-K21)/K21) -> -758 | N21: 0 | O21: 1040 | P21: -- | Q21: 0 | R21: 0 | S21: 0 | T21: 0 | U21: 0
A22: TOTAL EXPENDITURE | B22: =SUM(B17:B21) -> 28271 | C22: =SUM(C17:C21) -> 27773 | D22: =IF(ISERROR((C22-B22)/B22),"--",(C22-B22)/B22) -> -0.01761522408 | E22: =SUM(E17:E21) -> 27853 | F22: =SUM(F17:F21) -> 27710 | G22: -0.005134096866 | H22: =SUM(H17:H21) -> 28405 | I22: =SUM(I17:I21) -> 26949 | J22: -0.05125858124 | K22: =SUM(K17:K21) -> 29917 | L22: =SUM(L17:L21) -> 34501 | M22: 0.1532239195 | N22: =SUM(N17:N21) -> 33719 | O22: =SUM(O17:O21) -> 37467 | P22: 0.1111539488 | Q22: =SUM(Q17:Q21) -> 32483 | R22: =SUM(R17:R21) -> 35717 | S22: =SUM(S17:S21) -> 32959 | T22: =SUM(T17:T21) -> 33893 | U22: =SUM(U17:U21) -> 33807
A23: System O&M | B23: 16193 | C23: 14677 | D23: -0.0936207003 | E23: 16603.74152 | F23: 15635.35054 | G23: -0.05832366019 | H23: n/a | I23: 15877.57054 | J23: -- | K23: n/a | L23: 17070.29707 | M23: -- | N23: 17562.60373 | O23: n/a | P23: -- | Q23: 18238.94704 | R23: 18604 | S23: 18976 | T23: 19355 | U23: 19742
A25: Notes to the Table:
A26: 1. Historical “previous plan” data is not required unless a plan has previously been filed. However, use the last Board-approved, at least on a Total (Capital) Expenditure basis for the last cost of service rebasing year, and the applicant should include their planned budget in each subsequent historical year up to and including the Bridge Year.
A27: 2. Indicate the number of months of 'actual' data included in the last year of the Historical Period (normally a 'bridge' year): | J27: 0
A29: Explanatory Notes on Variances (complete only if applicable)
A30: Notes on shifts in forecast vs. historical budgets by category
A31: The overall capital spending trend for the Forecast Period is expected to be stable, with only minor shifts between categories. System Access work (relocations to accommodate City road projects) is expected to decline as the City has forecasted much of their work related to the London Plan will be complete by 2020. System Renewal spending is expected to continue to increase as the infrastructure ages and more and more assets reach end of life (for example, investment in replacing or silicone cable injection of primary underground cable will increase by 20% to keep pace with the quantity of cables exceeding their expected useful life). System Service and General Plant spending will remain consistent.
A33: Notes on year over year Plan vs. Actual variances for Total Expenditures
A34: Refer to Exhibit 2, Appendix 2-6 of DSP section 3.4 Capital Expenditure Summary (5.4.4) for Historical Variance Analysis by Year
A36: Notes on Plan vs. Actual variance trends for individual expenditure categories
A37: Refer to Exhibit 2, Appendix 2-6 of DSP section 3.4 Capital Expenditure Summary (5.4.4) for Historical Variance Analysis by Year

Sheet App.2-AC_Customer Engagement
B1: File Number: | C1: =EBNUMBER -> EB-2016-0091
B2: Exhibit: | C2: 1
B3: Tab: | C3: 4
B4: Schedule: | C4: 1
B5: Page:
B7: Date: | C7: 2016-08-26
A9: Appendix 2-AC
A10: Customer Engagement Activities Summary
A12: Provide a list of customer engagement activities | B12: Provide a list of customer needs and preferences identified through each engagement activity | C12: Actions taken to respond to identified needs and preferences. If no action was taken, explain why.
A13: Continuous Website Enhancements | B13: Through emails, phone calls and surveys customers expressed the need for website enhancements to enable them to find the information they needed at any time 24/7 through our website | C13: London Hydro developed and continues to develop online services that allow customers to manage their account and energy usage whenever and wherever they have access to email 24/7
A14: Development of New Technology and Apps (Commercial and Industrial Customers) | B14: The need to have tools available to help them understand and manage their electricity usage in real time, not waiting until after their received their bills | C14: In collaboration with commmercial and industrial customers, two Apps were developed, the first Event Assist to help manage energy usage and cost by using historical data to forecast energy costs for previous events such as concerts, sports events etc. The second App for commercial allow customers to access their energy data in close to real time and assess the need to make immediate changes to their processes to reduce their usage and costs during peak periods.
A15: Property Management Portal | B15: Property managers requested an online tool to help them manage the rental activity in their properties to ensure billing was accurate and correct for each tenant | C15: A password secured property management tool was designed to allow rental property owners to manage their move in/ move outs online, to also assign delegates to have access to specific properties or account information (bulding superintendents etc)This also reduced the call time in the call centre in trying to determine timelines for bills, between tenants and reduced landlord -tenant disputes
A16: MyLondonHydro | B16: Through survey and emails and phone calls, customers emphasized the need for more online - self-service functions | C16: MyLondonHydro was designed to provide customers with online services that allowed them to understand and monitor their energy usage. Customers can view their usage hourly, daily, weekly or monthly and also view or print their bills.
A17: Online Payment Notification/Arrangements | B17: Through calls to our call centre - customers requesting the ability to notify us of a payment through our website | C17: Customers may report a payment or make payment arrangements online to avoid collection activity on their account
A18: Outage Notification | B18: Through surveys and phone calls customer requested notifications on outages - concerns about children going home after school if there is an outage affecting their home - also for elderly parents - notice will help them make arrangements for caregiver if necessary | C18: A notification system was built that includes a outage map on the homepage of the website that shows the areas that are affected by an outage. Through the phone number registered with their account customers will receive a message telling them about the outage affecting their property and where possible the estimated restoration time. Customers may also register their preferred method of communcation, cell phone, email or text through MyLondonHydro.
A19: Customer Satisfaction Surveys | B19: Annual customer satisfaction surveys are conducted that will identify areas that customers feel London Hydro is performing well and will also identify problem areas or areas that could be improved | C19: London Hydro closely monitors the results of the surveys and takes immediate action to correct any problem areas and with areas of improvement we investigate and implement solutions to resolve the issues. We also use the survey to determine the customers desire for new ideas and technology that will improve their service experience with us.
A20: Participation in Home Shows | B20: As part of our outreach programs to customers we go out into the community to meet with customers that may not call into the call centre or have an opportunity to review new services | C20: The Home Shows allow us the opportunity to meet face to face with our customers, introduce them to Energy Conservation Programs that will help them reduce their energy consumption, learn about online services that will help them manage their bills, understand of Capital Project and how they impact their neighbourhood and the benefits to the distribution system, customers may also register for programs or services right at the events.
A21: Exhibits and presentations at community events | B21: Customers request London Hydro's presence at some events and others we attend as outreach opportunities | C21: These events allow us to help provide more education on the electricity system, rates, energy usage and conservation as well as career opportunities
A22: Electricity School Education Program | B22: School boards expressed the need for children to understand electricity from generation to end use (1996) | C22: In collaboration with the Thames Valley District School Board , London Hydro developed the Power of Electicity program that is taught in grades 5 and 6
A23: Energy Conservation Program | B23: To teach school children about energy conservation - become ambassadors in their homes to promote conservation | C23: London Hydro in collaborations with the teachers developed - an energy conservation program as a companion program to the Power of Electricity Program
A24: Electricity School Safety Program | B24: Requested by the School Boards and Community Groups | C24: The safety program teaches children and members of the public of the dangers of electricity, how to use electricity safely and when they should contact London Hydro for help
A25: Community Support - LEAP financial support increase | B25: The popularity of the LEAP program showed the need for additional financial support for local families | C25: London Hydro strengthened its commitment to the Housing Stability Bank by increasing its funding by 33% from $150,000 to $200,000 per year in 2015 to provide assistance to additional customers.
A26: London Children's Museum World of Difference Exhibit | B26: Through survey, customers showed interest in public education programs regarding electrical safety and energy conservation | C26: Working with the Ontario Science Centre, London Hydro has developed a 3 phase exhibit at the London Children's Museum. Two of three phases have already been launched, with the third scheduled for opening in 2016. The You'll Make a World of Difference exhibit teaches visitors how much energy can be saved by using energy efficient devices, the flow of electricity through circuits, and the importance of energy conservation.
A27: Environmental Awareness - Sustainability Program & Report to Londoners | B27: Survey results show it is important to customers that London Hydro be conscious of our impact to the environment and our community | C27: To educate customers on the steps taken to reduce its ecological footprint, London Hydro released the 2014 Sustainability Report and is activiely running various sustainability program internally. London Hydro has also participated in the Global Reporting Inititive for the past two years.
A28: Paperless Billing | B28: Through survey, phone calls and emails, customers have shown great interest in registering for paperless billing and simplify their billing experience | C28: Paperless billing is available to all customers. Customers are required to register for an online MyLondonHydro account and paperless billing to receive emails when their bill is ready. These emails have a short breakdown of the amount owning and date required. This allows customers to conveniently pay their bill, or if they require further details, they are able to log into their online account and download their complete monthly bill. Customers are also able to register their Aeroplan numbers and recieve Aeroplan rewards for each bill their receive electronically.
A29: Customer Loyalty Incentive Program | B29: Customers showed interest in London Hydro offering a customer loyalty program where they are rewarded for utilizing various online features | C29: London Hydro developed an innovative customer loyalty rewards program by offering Aeroplan Rewards to customers who register for paperless billing. This program has increased registrations for both online accounts and paperless billing. This allows London Hydro to save paper reduce the carbon footprint and reduce the operating costs.The program has already paid for itself and these results would translate to a cumulative net savings of over $80,000 by the end of 2017.
A30: Billing Inserts | B30: Through calls to our call centre and emails, customers are eager to be provided with information and details regarding new developments of programs and offerings from London Hydro. IESO and the OEB. Additionally, customers would like to be informed of any other changes that may affect their energy usage or billing | C30: Billing inserts are continuously created and delivered along with bills to share important information with customers. Inserts are also available online through the London Hydro website and are located at the reception area for customers to take with them after visiting the office. Currently, billing inserts are delivered to over 153,000 customers.
A31: Radio Advertisements | B31: Customers have showen through survey and emails that they are interested in getting information about various programs that are offered | C31: Radio advertisements are aired in monthly cycles on various stations throughout London. These advertisements communicate to customers current programs, such as outage notifications and paperless billing.
A32: Media Interviews | B32: Through survey and calls to the contact centre, customers want information about current events affecting their energy usage and billing | C32: Media interviews are done with local media are ae arranged through the Corporate Communications Department. These interviews are typically held with London Hydro's CEO, Vinay Sharma, or the Director of Public Relations and Corporate Communication, Nancy Hutton. Topics that are covered are relevant to any current topics, issues or campaigns.
A33: Support of Salvation Army Christmas Hamper Program | B33: There is a recognized need in the community for families struggling during the holiday season | C33: London Hydro employees rasie money through raffles and other fundraising initiatives during the holiday season to purchase toys for the Chirstmas Hamper Program. Employees also bring in additional toys to add to the collection that is donated to the program each year. This fundraising initiative is fully funded by London Hydro employees. Additionally, London Hydro staff members volunteer at the event and help package and hand out the hampers.
A34: Support of the London Food Bank Christmas Food Drive | B34: Customer and community feedback has shown the importance of London Hydro's participation with the local food bank | C34: Annually, London Hydro employees collect funds to purchase goods to donate to the London Food Bank to help families in need during the holiday season. Employees are also encouraged to bring in additional food donations. London Hydro donates an additional $5,000 to the Food Bank for the purchase of perishable items that are required. London Hydro and its employees also donate their time and the use of a truck in the annual Santa Claus Parade to collect food donations along the parade route.
A35: Employee volunteering for community events | B35: Through customer comments there is a belief it is important that London Hydro is committed to our community | C35: London Hydro employees volunteer their time for various community events including the annual Salvation Army Chirstmas Hamper Program and with the London Food Bank. Employees also volunteer for an annual Earth Day cleanup and other events throughout the year.
A36: Employee fundraising for charities | B36: Customer comments show that they support London Hydro's employees donation initiatives | C36: In 2015, London Hydro employees dontated over $28,000 through the Employee Community Charity Organization to over 35 charities, many of which are local. This program alows employees to donate to a registered charity of their choice through payroll deductions.
A37: Interval Data Centre | B37: Commercial customers requested easier access to their usage information | C37: London Hydro worked with local commerial customers and held a focus group to find out what information they are interested in having access to. Use cases were developed to showcase how various commercial customers are able to use IDC to their benefit.
A45: Note: Use "ALT-ENTER" to go to the next line within a cell

Sheet App.2-B_Acctg Instructions
A1: General Instructions to MIFRS Appendices
A2: Types of Schedules to File
A4: The purpose of this tab is to provide general instructions. The specific instructions to each appendix are listed in footnotes of each appendix.
A6: The typical applicant is expected to have made capitalization and depreciation policy changes under CGAAP as permitted by the Board on January 1, 2012 or mandated by the Board by January 1, 2013, and adopted IFRS for reporting purposes on January 1, 2015 (transition date January 1, 2014). Some distributors filing for 2017 rates have rebased with these accounting changes reflected in a prior rebasing application. If that is the case, information relating to pre-accounting policy changes is not generally required. The information to be provided by applicants will depend on when the accounting policy changes were made and when they last rebased. In general, applicants should provide the following information in the appendices:
E9: Reflecting Accounting Policy Changes in Current Application | G9: Reflected Accounting Policy Changes in Prior Application3
E10: Accounting Policy Changes in 2012 and Adopted IFRS in 2015 | F10: Accounting Policy Changes in 2013 and Adopted IFRS in 2015 | G10: Adopted IFRS in 2015
A11: Information to be filed in 2017 CoS Application | B11: 2017 | C11: Test | E11: MIFRS | F11: MIFRS | G11: MIFRS
B12: 2016 | C12: Bridge | E12: MIFRS | F12: MIFRS | G12: MIFRS
B13: 2015 | C13: Historical | E13: MIFRS | F13: MIFRS | G13: MIFRS
B14: 2014 | C14: Historical | E14: MIFRS and Revised CGAAP1 | F14: MIFRS and Revised CGAAP1 | G14: MIFRS and Revised CGAAP1
B15: 2013 | C15: Historical | E15: Revised CGAAP | F15: CGAAP and Revised CGAAP2 | G15: Rebased under Revised CGAAP
B16: 2012 | C16: Historical | E16: CGAAP and Revised CGAAP2 | F16: CGAAP | G16: Rebased under Revised CGAAP
B17: Prior | C17: Historicals | E17: Rebased under CGAAP | F17: Rebased under CGAAP | G17: N/A
A19: 1) For the transition year (2014), the applicant may file two appendices, one under Revised CGAAP and one under MIFRS, depending on the materiality of impacts. See the specific instructions under each appendix below for further details.
A20: 2) For applicants that are reflecting accounting policy changes for the first time in a rebasing application, the applicant must file two appendices in the year that the applicant implemented changes to its capitalization and depreciation policies (2012 or 2013), one before and one after the policy changes.
A21: 3) Applicants should provide CGGAP and Revised CGAAP schedules (i.e. as indicated in the first two columns of the above table) to support balances in Account 1576 if the account has yet to be disposed of.
A23: Appendix 2-BA - Fixed Asset Schedule
A25: Applicants are to provide Appendix 2-BA in accordance with the years and corresponding accounting standards noted in the above table to provide a year over year continuity in fixed assets.
A26: For the transition year (2014), the applicant should file two appendices, one under Revised CGAAP and one under MIFRS if the change between Revised CGAAP and MIFRS is material. If the change from the accounting standards is not material, the applicant may choose to only provide one appendix under MIFRS. However, the applicant must also indicate the fixed asset net book value balance under Revised CGAAP, the total dollar value of the change and explain why it is not material.
A30: Regulatory Gross Assets of Property, Plant and Equipment
A32: For an applicant that adopted IFRS on January 1, 2015 for financial reporting purposes, the applicant must establish the continuity of historic cost by using the December 31, 2013 regulatory gross assets of property, plant and equipment as the opening January 1, 2014 regulatory gross assets. The applicant must provide schedules (including Appendix 2-BA, Fixed Asset Continuity Schedule) which must identify the following details to substantiate the continuity of historic cost for regulatory purposes:
A35: · December 31, 2013 regulatory gross assets of property, plant and equipment, by asset class; and
A36: · January 1, 2014 regulatory gross assets of property, plant and equipment, by asset class.
A38: Accumulated Depreciation
A40: For an applicant that adopted IFRS on January 1, 2015 for financial reporting purposes, the applicant must establish the continuity of historic cost by using the December 31, 2013 regulatory accumulated depreciation as the opening January 1, 2014 regulatory accumulated depreciation. The applicant must provide schedules (including Appendix 2-BA, Fixed Asset Continuity Schedule) which must identify the following details to substantiate the continuity of historic cost for regulatory purposes:
A43: · December 31, 2013 regulatory accumulated depreciation, by asset class; and
A44: · January 1, 2014 regulatory accumulated depreciation, by asset class.
A46: Appendix 2-Cx - Depreciation and Amortization
A48: Applicants are to provide Appendix 2-Cx in accordance with the years and corresponding accounting standards listed in the above table.
A49: · | B49: If an applicant is reflecting changes to its depreciation policies for the first time in a rebasing application, the applicant should complete Appendix 2-CA to 2-CG (changes made in 2012) or Appendix 2-CA to 2-CF (changes made in 2013). In this set of appendices, the applicant will need to indicate the year it made the accounting policy changes. The applicant must provide data starting from the year it made changes to its capitalization and depreciation policies.
B52: *Depreciation accounting policy changes were mandated by the Board by January 1, 2013. In general, no further changes to an applicant's depreciation policy (i.e. assets' service lives) are expected after the Board mandated changes by January 1, 2013. The set of Appendix 2-CA to 2-CG assumes this to be the case. If the applicant has made any changes to its depreciation policy subsequent to the Board mandated changes, applicants must identify the change, explain the nature of the change, the reason for the change, quantify the impact of the change, and quantify the depreciation expense before and after the change.
A53: · | B53: If an applicant changed depreciation policies and reflected these changes in a prior rebasing application, the applicant should complete Appendix 2-CH. The applicant must provide data starting from the earlier of 1) all historical years back to its last rebasing; or 2) at least three years of historical actuals, in addition to Bridge Year and Test Year forecasts.
A56: Appendix 2-E - Account 1575, IFRS-CGAAP Transitional PP&E Amounts (2-EA), Account 1576, Accounting Changes Under CGAAP (2-EB, 2-EC)
A58: 1) For an applicant that has a balance in Account 1576 to dispose:
A59: · | B59: If an applicant changed capitalization and depreciation policies effective January 1, 2012, the applicant must complete Appendix 2-EB
A60: · | B60: If an applicant changed capitalization and depreciation policies effective January 1, 2013, the applicant must complete Appendix 2-EC
A62: 2) For an applicant that has a balance in Account 1575 to dispose:
A63: · | B63: The applicant must complete 2-EA
A64: If the applicant did not make any further PP&E accounting policy changes beyond the capitalization and depreciation policy changes as mandated by the Board by January 1, 2013 (i.e. no further changes made on transition to IFRS), the applicant must indicate this and does not need to complete Appendix 2-EA.
A69: Please refer to section 2.12.4 and 2.12.5 of the Filing Requirements for further details.
A71: Appendix 2-Y - Summary of Impacts to Revenue Requirement from Transition to MIFRS
A73: An applicant must provide a summary of the dollar impacts of MIFRS to each component of the revenue requirement (e.g. rate base, operating costs, etc.), including the overall impact on the proposed revenue requirement. Accordingly, the applicant must identify financial differences and resulting revenue requirement impacts arising from the adoption of MIFRS as compared to CGAAP. If the applicant is reflecting the changes in capitalization and depreciation policies for the first time in a rebasing application, then a comparison between MIFRS and CGAAP before the change in accounting policies should be completed. If the applicant changed capitalization and depreciation policies and reflected these changes in a prior rebasing application, then a comparison between MIFRS and CGAAP after the change in accounting policies should be completed.

Sheet App.2-BA_Fixed Asset Cont
N1: File Number: | O1: =EBNUMBER -> EB-2016-0091
N2: Exhibit:
N3: Tab:
N4: Schedule:
N5: Page:
M7: 2016-08-26 | N7: Date: | O7: 2016-08-26
A9: Appendix 2-BA
A10: Fixed Asset Continuity Schedule 1
F12: Accounting Standard | G12: MIFRS
F13: Year | G13: 2013
D15: Cost | L15: Accumulated Depreciation
A16: CCA Class 2 | B16: OEB Account 3 | C16: Description 3 | D16: Opening Balance | E16: Transfers from Reg Deferrals | F16: Additions 4 | G16: Disposals 6 | H16: Closing Balance | J16: Opening Balance | K16: Transfers from Reg Deferrals | L16: Additions | M16: Disposals 6 | N16: Closing Balance | O16: Net Book Value
A17: CEC | B17: 1610 | C17: Intangible Wholesale Meters | D17: 1293406.49 | F17: 0 | G17: 0 | H17: =D17+F17+G17 -> 1293406.49 | J17: -164817.15 | L17: -43095.89 | M17: 0 | N17: =J17+L17+M17 -> -207913.04 | O17: =H17+N17 -> 1085493.45
A18: 12 | B18: 1611 | C18: Computer Software (Formally known as Account 1925) | D18: 25594825.7 | F18: 4770970.58 | G18: -2124421.36 | H18: =D18+F18+G18 -> 28241374.92 | J18: -11306524.96 | L18: -4867906.64 | M18: 2124421.36 | N18: =J18+L18+M18 -> -14050010.24 | O18: =H18+N18 -> 14191364.68
A19: CEC | B19: 1612 | C19: Land Rights (Formally known as Account 1906) | D19: 364044.5 | F19: 2188.85 | G19: 0 | H19: =D19+F19+G19 -> 366233.35 | J19: -164137.41 | L19: -16759.32 | M19: 0 | N19: =J19+L19+M19 -> -180896.73 | O19: =H19+N19 -> 185336.62
A20: n/a | B20: 1805 | C20: Land | D20: 385689.89 | F20: 0 | G20: 0 | H20: =D20+F20+G20 -> 385689.89 | J20: 0 | L20: 0 | M20: 0 | N20: =J20+L20+M20 -> 0 | O20: =H20+N20 -> 385689.89
A21: 47 | B21: 1808 | C21: Buildings | D21: 1128335.98 | F21: 0 | G21: 0 | H21: =D21+F21+G21 -> 1128335.98 | J21: -702365.19 | L21: -11093.3 | M21: 0 | N21: -713458.49 | O21: 414877.49
A22: n/a | B22: 1810 | C22: Leasehold Improvements | D22: 0 | F22: 0 | G22: 0 | H22: 0 | J22: 0 | L22: 0 | M22: 0 | N22: 0 | O22: 0
A23: n/a | B23: 1815 | C23: Transformer Station Equipment >50 kV | D23: 0 | F23: 0 | G23: 0 | H23: 0 | J23: 0 | L23: 0 | M23: 0 | N23: 0 | O23: 0
A24: 47 | B24: 1820 | C24: Distribution Station Equipment <50 kV | D24: 15737887.95 | F24: 127415.46 | G24: -34820.07 | H24: 15830483.34 | J24: -6300333.71 | L24: -279177.08 | M24: 34820.07 | N24: -6544690.72 | O24: 9285792.62
A25: n/a | B25: 1825 | C25: Storage Battery Equipment | D25: 0 | F25: 0 | G25: 0 | H25: 0 | J25: 0 | L25: 0 | M25: 0 | N25: 0 | O25: 0
A26: 47 | B26: 1830 | C26: Poles, Towers & Fixtures | D26: 38369731.39 | F26: 1368435.43 | G26: 0 | H26: 39738166.82 | J26: -18561593.11 | L26: -571116.91 | M26: 0 | N26: -19132710.02 | O26: 20605456.8
A27: 47 | B27: 1835 | C27: Overhead Conductors & Devices | D27: 53161202.45 | F27: 1975643.24 | G27: 0 | H27: 55136845.69 | J27: -21596620.77 | L27: -790092.38 | M27: 0 | N27: -22386713.15 | O27: 32750132.54
A28: 47 | B28: 1840 | C28: Underground Conduit | D28: 33594419.19 | F28: 2158405.42 | G28: -54461.42 | H28: 35698363.19 | J28: -9032303.66 | L28: -505991.72 | M28: 54461.42 | N28: -9483833.96 | O28: 26214529.23
A29: 47 | B29: 1845 | C29: Underground Conductors & Devices | D29: 110187257.5 | F29: 3367052.5 | G29: -11978154.54 | H29: 101576155.5 | J29: -62817472.07 | L29: -3895647.71 | M29: 11978154.54 | N29: -54734965.24 | O29: 46841190.22
A30: 47 | B30: 1850 | C30: Line Transformers | D30: 75704253.75 | F30: 3928408.51 | G30: 0 | H30: 79632662.26 | J30: -29214448.93 | L30: -1768803.39 | M30: 3578.27 | N30: -30979674.05 | O30: 48652988.21
A31: 47 | B31: 1855 | C31: Services (Overhead & Underground) | D31: 22721711.98 | F31: 1999222.24 | G31: 0 | H31: 24720934.22 | J31: -7563949.93 | L31: -485325.25 | M31: 0 | N31: -8049275.18 | O31: 16671659.04
A32: 8 | B32: 1860 | C32: Meters | D32: 24670246.36 | F32: 832302.8 | G32: -421068.01 | H32: 25081481.15 | J32: -6991957.99 | L32: -1397373.96 | M32: 402821.53 | N32: -7986510.42 | O32: 17094970.73
A33: n/a | B33: 1905 | C33: Land | D33: 0 | F33: 0 | G33: 0 | H33: 0 | J33: 0 | L33: 0 | M33: 0 | N33: 0 | O33: 0
A34: 1 | B34: 1908 | C34: Buildings & Fixtures | D34: 23890272.78 | F34: 434951.61 | G34: -2233572.05 | H34: 22091652.34 | J34: -11726201.02 | L34: -866805.82 | M34: 2233572.05 | N34: -10359434.79 | O34: 11732217.55
A35: n/a | B35: 1910 | C35: Leasehold Improvements | D35: 0 | F35: 0 | G35: 0 | H35: 0 | J35: 0 | L35: 0 | M35: 0 | N35: 0 | O35: 0
A36: 8 | B36: 1915 | C36: Office Furniture & Equipment (5 years) | D36: 1084564.92 | F36: 101295.9 | G36: -454002.01 | H36: 731858.81 | J36: -716112.75 | L36: -158789.29 | M36: 454002.01 | N36: -420900.03 | O36: 310958.78
A37: 50 | B37: 1920 | C37: Computer Equipment - Hardware | D37: 3301188.92 | F37: 1427607.83 | G37: -1528471.45 | H37: 3200325.3 | J37: -2030212.71 | L37: -734873.17 | M37: 1528471.45 | N37: -1236614.43 | O37: 1963710.87
A38: 10 & 38 | B38: 1930 | C38: Transportation Equipment | D38: 10845192.46 | F38: 1140047.4 | G38: -512333.14 | H38: 11472906.72 | J38: -6140524.54 | L38: -620729.67 | M38: 470923.84 | N38: -6290330.37 | O38: 5182576.35
A39: 8 | B39: 1935 | C39: Stores Equipment | D39: 276016.84 | F39: 5499 | G39: -3378.07 | H39: 278137.77 | J39: -256820.94 | L39: -7599.56 | M39: 3378.07 | N39: -261042.43 | O39: 17095.34
A40: 8 | B40: 1940 | C40: Tools, Shop & Garage Equipment | D40: 1247265.07 | F40: 112143.02 | G40: -335999.32 | H40: 1023408.77 | J40: -729159.69 | L40: -129400.68 | M40: 335999.32 | N40: -522561.05 | O40: 500847.72
A41: 8 | B41: 1945 | C41: Measurement & Testing Equipment | D41: 131798.45 | F41: 18373.81 | G41: -30558.63 | H41: 119613.63 | J41: -42102.4 | L41: -13719.86 | M41: 30558.63 | N41: -25263.63 | O41: 94350
A42: 38 | B42: 1950 | C42: Power Operated Equipment | D42: 877841.02 | F42: 53630 | G42: 0 | H42: 931471.02 | J42: -328312.09 | L42: -106170.73 | M42: 0 | N42: -434482.82 | O42: 496988.2
A43: 8 | B43: 1955 | C43: Communications Equipment | D43: 3627553.91 | F43: 128543.7 | G43: 0 | H43: 3756097.61 | J43: -659790.24 | L43: -215390.42 | M43: 0 | N43: -875180.66 | O43: 2880916.95
A44: 8 | B44: 1960 | C44: Miscellaneous Equipment | D44: 0 | F44: 0 | G44: 0 | H44: 0 | J44: 0 | L44: 0 | M44: 0 | N44: 0 | O44: 0
A45: n/a | B45: 1970 | C45: Load Management Controls Customer Premises | D45: 0 | F45: 0 | G45: 0 | H45: 0 | J45: 0 | L45: 0 | M45: 0 | N45: 0 | O45: 0
A46: n/a | B46: 1975 | C46: Load Management Controls Utility Premises | D46: 0 | F46: 0 | G46: 0 | H46: 0 | J46: 0 | L46: 0 | M46: 0 | N46: 0 | O46: 0
A47: 47 | B47: 1980 | C47: System Supervisor Equipment | D47: 3465859.29 | F47: 239273.85 | G47: -1550636.54 | H47: 2154496.6 | J47: -2089938.74 | L47: -124593.38 | M47: 1550636.54 | N47: -663895.58 | O47: 1490601.02
A48: n/a | B48: 1985 | C48: Miscellaneous Fixed Assets | D48: 0 | F48: 0 | G48: 0 | H48: 0 | J48: 0 | L48: 0 | M48: 0 | N48: 0 | O48: 0
A49: n/a | B49: 1990 | C49: Other Tangible Property | D49: 0 | F49: 0 | G49: 0 | H49: 0 | J49: 0 | L49: 0 | M49: 0 | N49: 0 | O49: 0
A50: 47 | B50: 1995 | C50: Contributions & Grants | D50: -36843370.74 | F50: -2418671.95 | G50: 0 | H50: -39262042.69 | J50: 7752231.07 | L50: 864118.04 | M50: 0 | N50: 8616349.11 | O50: -30645693.58
A51: 43.2 | B51: 2075 | C51: Renewable Generation | D51: 2249572.54 | F51: 14412.24 | G51: 0 | H51: 2263984.78 | J51: -88860.29 | L51: -112586.92 | M51: 0 | N51: -201447.21 | O51: 2062537.57
A52: n/a | B52: 2440 | C52: Deferred Revenue5 | D52: 0 | F52: 0 | G52: 0 | H52: 0 | J52: 0 | L52: 0 | M52: 0 | N52: 0 | O52: 0
C54: Sub-Total | D54: =SUM(D17:D52) -> 417066768.6 | E54: =SUM(E17:E52) -> 0 | F54: =SUM(F17:F52) -> 21787151.44 | G54: =SUM(G17:G52) -> -21261876.61 | H54: =SUM(H17:H52) -> 417592043.4 | J54: =SUM(J17:J52) -> -191472329.2 | K54: 0 | L54: -16858925.01 | M54: 21205799.1 | N54: -187125455.1 | O54: 230466588.3
C55: Less Socialized Renewable Energy Generation Investments (input as negative) | D55: 0 | F55: 0 | G55: 0 | H55: =D55+F55+G55 -> 0 | J55: 0 | L55: 0 | M55: 0 | N55: =J55+L55+M55 -> 0 | O55: =H55+N55 -> 0
A56: 43.2 | B56: 2075 | C56: Less Other Non Rate-Regulated Utility Assets (input as negative) | D56: -2249572.54 | F56: -14412.24 | G56: 0 | H56: -2263984.78 | J56: 88860.29 | L56: 112586.92 | M56: 0 | N56: 201447.21 | O56: -2062537.57
C57: Total PP&E | D57: =SUM(D54:D56) -> 414817196.1 | E57: =SUM(E54:E56) -> 0 | F57: =SUM(F54:F56) -> 21772739.2 | G57: -21261876.61 | H57: 415328058.6 | J57: =SUM(J54:J56) -> -191383468.9 | K57: =SUM(K54:K56) -> 0 | L57: -16746338.09 | M57: 21205799.1 | N57: -186924007.9 | O57: 228404050.7
C58: Depreciation Expense adj. from gain or loss on the retirement of assets (pool of like assets), if applicable6
C59: Total | L59: =L57+L58 -> -16746338.09
J61: Less: Fully Allocated Depreciation
A62: 10 | B62: 1930 | C62: Transportation | J62: Transportation | M62: -620729.67
A63: 38 | B63: 1950 | C63: Power Operated Equipment | J63: Power Operated Equipment | M63: -106170.73
A64: 47 | B64: 2440 | C64: Deferred Revenue | J64: Deferred Revenue | M64: 0
B65: 1576 | C65: IFRS-GAAP PP&E Transitional Amounts | J65: CGAAP -IFRS Amortization | M65: 78653.68
J66: Net Depreciation | M66: =L59-M62-M65-M63-M64 -> -16098091.37
A68: Notes:
A70: 1 | B70: Tables in the format outlined above covering all fixed asset accounts should be submitted for the Test Year, Bridge Year and all relevant historical years. At a minimum , the applicant must provide data for the earlier of: 1) all historical years back to its last rebasing; or 2) at least three years of historical actuals, in addition to Bridge Year and Test Year forecasts.
A73: 2 | B73: The "CCA Class" for fixed assets should agree with the CCA Class used for tax purposes in Tax Returns. Fixed Assets sub-components may be used where the underlying asset components are classified under multiple CCA Classes for tax purposes. If an applicant uses any different classes from those shown in the table, an explanation should be provided. (also see note 3).
A76: 3 | B76: The table may need to be customized for a utility's asset categories or for any new asset accounts announced or authorized by the Board.
A78: 4 | B78: The additions in column (E) must not include construction work in progress (CWIP).
A80: 5 | B80: Effective on the date of IFRS adoption, customer contributions will no longer be recorded in Account 1995 Contributions & Grants, but will be recorded in Account 2440, Deferred Revenues.
A82: 6 | B82: The applicant must ensure that all asset disposals have been clearly identified in the Chapter 2 Appendices for all historic, bridge and test years. Where a distributor for general financial reporting purposes under IFRS has accounted for the amount of gain or loss on the retirement of assets in a pool of like assets as a charge or credit to income, for reporting and rate application filings, the distributor shall reclassify such gains and losses as depreciation expense, and disclose the amount separately.
N88: File Number: | O88: =EBNUMBER -> EB-2016-0091
N89: Exhibit:
N90: Tab:
N91: Schedule:
N92: Page:
N94: Date: | O94: 2016-08-26
A96: Appendix 2-BA
A97: Fixed Asset Continuity Schedule 1
F99: Accounting Standard | G99: MIFRS
F100: Year | G100: 2013 Board Approved
D102: Cost | L102: Accumulated Depreciation
A103: CCA Class 2 | B103: OEB Account 3 | C103: Description 3 | D103: Opening Balance | E103: Transfers from Reg Deferrals | F103: Additions 4 | G103: Disposals 6 | H103: Closing Balance | J103: Opening Balance | K103: Transfers from Reg Deferrals | L103: Additions | M103: Disposals 6 | N103: Closing Balance | O103: Net Book Value
A104: CEC | B104: 1610 | C104: Intangible Wholesale Meters | D104: 1293150 | E104: 0 | F104: 0 | G104: 0 | H104: =D104+F104+G104 -> 1293150 | J104: -164776 | K104: 0 | L104: -43055 | M104: 0 | N104: =J104+L104+M104 -> -207831 | O104: =H104+N104 -> 1085319
A105: 12 | B105: 1611 | C105: Computer Software (Formally known as Account 1925) | D105: 25307892 | E105: 0 | F105: 5520000 | G105: -526223.93 | H105: =D105+F105+G105 -> 30301668.07 | J105: -11562937 | K105: 0 | L105: -5217665 | M105: 526223.93 | N105: =J105+L105+M105 -> -16254378.07 | O105: =H105+N105 -> 14047290
A106: CEC | B106: 1612 | C106: Land Rights (Formally known as Account 1906) | D106: 322234 | E106: 0 | F106: 0 | G106: 0 | H106: =D106+F106+G106 -> 322234 | J106: -163575 | K106: 0 | L106: -15009 | M106: 0 | N106: =J106+L106+M106 -> -178584 | O106: =H106+N106 -> 143650
A107: n/a | B107: 1805 | C107: Land | D107: 385690 | E107: 0 | F107: 0 | G107: 0 | H107: =D107+F107+G107 -> 385690 | J107: 0 | K107: 0 | L107: 0 | M107: 0 | N107: =J107+L107+M107 -> 0 | O107: =H107+N107 -> 385690
A108: 47 | B108: 1808 | C108: Buildings | D108: 1203336 | E108: 0 | F108: 75000 | G108: 0 | H108: =D108+F108+G108 -> 1278336 | J108: -702864 | K108: 0 | L108: -12592 | M108: 0 | N108: -715456 | O108: 562880
A109: n/a | B109: 1810 | C109: Leasehold Improvements | D109: 0 | E109: 0 | F109: 0 | G109: 0 | H109: =D109+F109+G109 -> 0 | J109: 0 | K109: 0 | L109: 0 | M109: 0 | N109: 0 | O109: 0
A110: n/a | B110: 1815 | C110: Transformer Station Equipment >50 kV | D110: 0 | E110: 0 | F110: 0 | G110: 0 | H110: 0 | J110: 0 | K110: 0 | L110: 0 | M110: 0 | N110: 0 | O110: 0
A111: 47 | B111: 1820 | C111: Distribution Station Equipment <50 kV | D111: 15277786 | E111: 0 | F111: 168600 | G111: 0 | H111: 15446386 | J111: -6293857 | K111: 0 | L111: -267507 | M111: 0 | N111: -6561364 | O111: 8885022
A112: n/a | B112: 1825 | C112: Storage Battery Equipment | D112: 0 | E112: 0 | F112: 0 | G112: 0 | H112: 0 | J112: 0 | K112: 0 | L112: 0 | M112: 0 | N112: 0 | O112: 0
A113: 47 | B113: 1830 | C113: Poles, Towers & Fixtures | D113: 39466930 | E113: 0 | F113: 2823800 | G113: -797263 | H113: 41493467 | J113: -19366333 | K113: 0 | L113: -594985 | M113: 797263 | N113: -19164055 | O113: 22329412
A114: 47 | B114: 1835 | C114: Overhead Conductors & Devices | D114: 52816943 | E114: 0 | F114: 3692600 | G114: -829804.21 | H114: 55679738.79 | J114: -20565014 | K114: 0 | L114: -822496 | M114: 829804.21 | N114: -20557705.79 | O114: 35122033
A115: 47 | B115: 1840 | C115: Underground Conduit | D115: 33513552 | E115: 0 | F115: 2084200 | G115: -278304.34 | H115: 35319447.66 | J115: -9312823 | K115: 0 | L115: -503296 | M115: 278304.34 | N115: -9537814.66 | O115: 25781633
A116: 47 | B116: 1845 | C116: Underground Conductors & Devices | D116: 110747019 | E116: 0 | F116: 4009500 | G116: -5232553.77 | H116: 109523965.2 | J116: -62572089 | K116: 0 | L116: -3383304 | M116: 5232553.77 | N116: -60722839.23 | O116: 48801126
A117: 47 | B117: 1850 | C117: Line Transformers | D117: 74927416 | E117: 0 | F117: 4733400 | G117: -2415477.83 | H117: 77245338.17 | J117: -29217302 | K117: 0 | L117: -1786062 | M117: 2415477.83 | N117: -28587886.17 | O117: 48657452
A118: 47 | B118: 1855 | C118: Services (Overhead & Underground) | D118: 21194415 | E118: 0 | F118: 1186600 | G118: 0 | H118: 22381015 | J118: -7783648 | K118: 0 | L118: -423138 | M118: 0 | N118: -8206786 | O118: 14174229
A119: 8 | B119: 1860 | C119: Meters | D119: 24815667 | E119: 0 | F119: 741200 | G119: -238854.15 | H119: 25318012.85 | J119: -7022919 | K119: 0 | L119: -1384164 | M119: 238319.15 | N119: -8168763.85 | O119: 17149249
A120: n/a | B120: 1905 | C120: Land | D120: 0 | E120: 0 | F120: 0 | G120: 0 | H120: 0 | J120: 0 | K120: 0 | L120: 0 | M120: 0 | N120: 0 | O120: 0
A121: 1 | B121: 1908 | C121: Buildings & Fixtures | D121: 23174979 | E121: 0 | F121: 575000 | G121: 0 | H121: 23749979 | J121: -11607325 | K121: 0 | L121: -832892 | M121: 0 | N121: -12440217 | O121: 11309762
A122: n/a | B122: 1910 | C122: Leasehold Improvements | D122: 0 | E122: 0 | F122: 0 | G122: 0 | H122: 0 | J122: 0 | K122: 0 | L122: 0 | M122: 0 | N122: 0 | O122: 0
A123: 8 | B123: 1915 | C123: Office Furniture & Equipment (5 years) | D123: 1080029 | E123: 0 | F123: 80000 | G123: -237722.2 | H123: 922306.8 | J123: -714038 | K123: 0 | L123: -156331 | M123: 237722.2 | N123: -632646.8 | O123: 289660
A124: 50 | B124: 1920 | C124: Computer Equipment - Hardware | D124: 2664219 | E124: 0 | F124: 480000 | G124: -504124.64 | H124: 2640094.36 | J124: -1878446 | K124: 0 | L124: -510931 | M124: 504124.64 | N124: -1885252.36 | O124: 754842
A125: 10 & 38 | B125: 1930 | C125: Transportation Equipment | D125: 10866358 | E125: 0 | F125: 1300000 | G125: -563696 | H125: 11602662 | J125: -6285958 | K125: 0 | L125: -614059 | M125: 563317 | N125: -6336700 | O125: 5265962
A126: 8 | B126: 1935 | C126: Stores Equipment | D126: 280898 | E126: 0 | F126: 5000 | G126: -19122 | H126: 266776 | J126: -257118 | K126: 0 | L126: -8118 | M126: 19122 | N126: -246114 | O126: 20662
A127: 8 | B127: 1940 | C127: Tools, Shop & Garage Equipment | D127: 1296482 | E127: 0 | F127: 130000 | G127: -222330 | H127: 1204152 | J127: -732576 | K127: 0 | L127: -139334 | M127: 163138 | N127: -708772 | O127: 495380
A128: 8 | B128: 1945 | C128: Measurement & Testing Equipment | D128: 136864 | E128: 0 | F128: 20000 | G128: 0 | H128: 156864 | J128: -42866 | K128: 0 | L128: -14809 | M128: 59192 | N128: 1517 | O128: 158381
A129: 38 | B129: 1950 | C129: Power Operated Equipment | D129: 1104137 | E129: 0 | F129: 110000 | G129: 0 | H129: 1214137 | J129: -514010 | K129: 0 | L129: -112741 | M129: 0 | N129: -626751 | O129: 587386
A130: 8 | B130: 1955 | C130: Communications Equipment | D130: 3788534 | E130: 0 | F130: 0 | G130: 0 | H130: 3788534 | J130: -678058 | K130: 0 | L130: -230598 | M130: 0 | N130: -908656 | O130: 2879878
A131: 8 | B131: 1960 | C131: Miscellaneous Equipment | D131: 0 | E131: 0 | F131: 0 | G131: 0 | H131: 0 | J131: 0 | K131: 0 | L131: 0 | M131: 0 | N131: 0 | O131: 0
A132: n/a | B132: 1970 | C132: Load Management Controls Customer Premises | D132: 0 | E132: 0 | F132: 0 | G132: 0 | H132: 0 | J132: 0 | K132: 0 | L132: 0 | M132: 0 | N132: 0 | O132: 0
A133: n/a | B133: 1975 | C133: Load Management Controls Utility Premises | D133: 0 | E133: 0 | F133: 0 | G133: 0 | H133: 0 | J133: 0 | K133: 0 | L133: 0 | M133: 0 | N133: 0 | O133: 0
A134: 47 | B134: 1980 | C134: System Supervisor Equipment | D134: 3349112 | E134: 0 | F134: 118500 | G134: -167389 | H134: 3300223 | J134: -2083048 | K134: 0 | L134: -120557 | M134: 167389 | N134: -2036216 | O134: 1264007
A135: n/a | B135: 1985 | C135: Miscellaneous Fixed Assets | D135: 0 | E135: 0 | F135: 0 | G135: 0 | H135: 0 | J135: 0 | K135: 0 | L135: 0 | M135: 0 | N135: 0 | O135: 0
A136: n/a | B136: 1990 | C136: Other Tangible Property | D136: 0 | E136: 0 | F136: 0 | G136: 0 | H136: 0 | J136: 0 | K136: 0 | L136: 0 | M136: 0 | N136: 0 | O136: 0
A137: 47 | B137: 1995 | C137: Contributions & Grants | D137: -35073374 | E137: 0 | F137: -2700000 | G137: 10850 | H137: -37762524 | J137: 7737364 | K137: 0 | L137: 828474 | M137: 0 | N137: 8565838 | O137: -29196686
A138: 43.2 | B138: 2075 | C138: Renewable Generation | D138: 3785237 | E138: 0 | F138: 1060000 | G138: 0 | H138: 4845237 | J138: -149639 | K138: 0 | L138: -215568 | M138: 0 | N138: -365207 | O138: 4480030
A139: 47 | B139: 2440 | C139: Deferred Revenue5 | D139: 0 | E139: 0 | F139: 0 | G139: 0 | H139: 0 | J139: 0 | K139: 0 | L139: 0 | M139: 0 | N139: 0 | O139: 0
C141: Sub-Total | D141: =SUM(D104:D139) -> 417725505 | E141: 0 | F141: 26213400 | G141: -12022015.07 | H141: =SUM(H104:H139) -> 431916889.9 | J141: =SUM(J104:J139) -> -191933855 | K141: 0 | L141: -16580737 | M141: 12031951.07 | N141: -196482640.9 | O141: 235434249
C142: Less Socialized Renewable Energy Generation Investments (input as negative) | D142: 0 | E142: 0 | F142: 0 | G142: 0 | H142: =D142+F142+G142 -> 0 | J142: 0 | K142: 0 | L142: 0 | M142: 0 | N142: =J142+L142+M142 -> 0 | O142: =H142+N142 -> 0
A143: 43.2 | B143: 2075 | C143: Less Other Non Rate-Regulated Utility Assets (input as negative) | D143: -3785237 | E143: 0 | F143: -1060000 | G143: 0 | H143: -4845237 | J143: 149639 | K143: 0 | L143: 215568 | M143: 0 | N143: 365207 | O143: -4480030
C144: Total PP&E | D144: =SUM(D141:D143) -> 413940268 | E144: =SUM(E141:E143) -> 0 | F144: =SUM(F141:F143) -> 25153400 | G144: -12022015.07 | H144: 427071652.9 | J144: =SUM(J141:J143) -> -191784216 | K144: 0 | L144: -16365169 | M144: 12031951.07 | N144: -196117433.9 | O144: 230954219
C145: Depreciation Expense adj. from gain or loss on the retirement of assets (pool of like assets), if applicable6
C146: Total | L146: =L144+L145 -> -16365169
J148: Less: Fully Allocated Depreciation
A149: 10 | B149: 1930 | C149: Transportation | J149: Transportation | M149: -614059
A150: 38 | B150: 1950 | C150: Power Operated Equipment | J150: Power Operated Equipment | M150: -112741
A151: 47 | B151: 2440 | C151: Deferred Revenue | J151: Deferred Revenue | M151: 0
B152: 1576 | C152: IFRS-GAAP PP&E Transitional Amounts | J152: CGAAP -IFRS Amortization | M152: 117981
J153: Net Depreciation | M153: =L146-M149-M152-M150-M151 -> -15756350
A155: Notes:
A157: 1 | B157: Tables in the format outlined above covering all fixed asset accounts should be submitted for the Test Year, Bridge Year and all relevant historical years. At a minimum , the applicant must provide data for the earlier of: 1) all historical years back to its last rebasing; or 2) at least three years of historical actuals, in addition to Bridge Year and Test Year forecasts.
A160: 2 | B160: The "CCA Class" for fixed assets should agree with the CCA Class used for tax purposes in Tax Returns. Fixed Assets sub-components may be used where the underlying asset components are classified under multiple CCA Classes for tax purposes. If an applicant uses any different classes from those shown in the table, an explanation should be provided. (also see note 3).
A163: 3 | B163: The table may need to be customized for a utility's asset categories or for any new asset accounts announced or authorized by the Board.
A165: 4 | B165: The additions in column (E) must not include construction work in progress (CWIP).
A167: 5 | B167: Effective on the date of IFRS adoption, customer contributions will no longer be recorded in Account 1995 Contributions & Grants, but will be recorded in Account 2440, Deferred Revenues.
A169: 6 | B169: The applicant must ensure that all asset disposals have been clearly identified in the Chapter 2 Appendices for all historic, bridge and test years. Where a distributor for general financial reporting purposes under IFRS has accounted for the amount of gain or loss on the retirement of assets in a pool of like assets as a charge or credit to income, for reporting and rate application filings, the distributor shall reclassify such gains and losses as depreciation expense, and disclose the amount separately.
N175: File Number: | O175: =EBNUMBER -> EB-2016-0091
N176: Exhibit:
N177: Tab:
N178: Schedule:
N179: Page:
N181: Date: | O181: 2016-08-26
A183: Appendix 2-BA
A184: Fixed Asset Continuity Schedule 1
F186: Accounting Standard | G186: MIFRS
F187: Year | G187: 2014
D189: Cost | L189: Accumulated Depreciation
A190: CCA Class 2 | B190: OEB Account 3 | C190: Description 3 | D190: Opening Balance | E190: Transfers from Reg Deferrals | F190: Additions 4 | G190: Disposals 6 | H190: Closing Balance | J190: Opening Balance | K190: Transfers from Reg Deferrals | L190: Additions | M190: Disposals 6 | N190: Closing Balance | O190: Net Book Value
A191: CEC | B191: 1610 | C191: Intangible Wholesale Meters | D191: 1293406.49 | E191: 0 | F191: 0 | G191: 0 | H191: =D191+F191+G191 -> 1293406.49 | J191: -207913.04 | K191: 0 | L191: -43095.9 | M191: 0 | N191: =J191+L191+M191 -> -251008.94 | O191: =H191+N191 -> 1042397.55
A192: 12 | B192: 1611 | C192: Computer Software (Formally known as Account 1925) | D192: 28241374.92 | E192: 0 | F192: 4120230.27 | G192: -228904.54 | H192: =D192+F192+G192 -> 32132700.65 | J192: -14050010.24 | K192: 0 | L192: -5217828.31 | M192: 228904.54 | N192: =J192+L192+M192 -> -19038934.01 | O192: =H192+N192 -> 13093766.64
A193: CEC | B193: 1612 | C193: Land Rights (Formally known as Account 1906) | D193: 366233.35 | E193: 0 | F193: 17280.64 | G193: 0 | H193: =D193+F193+G193 -> 383513.99 | J193: -180896.73 | K193: 0 | L193: -17263.92 | M193: 0 | N193: =J193+L193+M193 -> -198160.65 | O193: =H193+N193 -> 185353.34
A194: n/a | B194: 1805 | C194: Land | D194: 385689.89 | E194: 0 | F194: 0 | G194: 0 | H194: =D194+F194+G194 -> 385689.89 | J194: 0 | K194: 0 | L194: 0 | M194: 0 | N194: =J194+L194+M194 -> 0 | O194: =H194+N194 -> 385689.89
A195: 47 | B195: 1808 | C195: Buildings | D195: 1128335.98 | E195: 0 | F195: 0 | G195: 0 | H195: =D195+F195+G195 -> 1128335.98 | J195: -713458.49 | K195: 0 | L195: -11093.26 | M195: 0 | N195: -724551.75 | O195: 403784.23
A196: n/a | B196: 1810 | C196: Leasehold Improvements | D196: 0 | E196: 0 | F196: 0 | G196: 0 | H196: =D196+F196+G196 -> 0 | J196: 0 | K196: 0 | L196: 0 | M196: 0 | N196: 0 | O196: 0
A197: n/a | B197: 1815 | C197: Transformer Station Equipment >50 kV | D197: 0 | E197: 0 | F197: 0 | G197: 0 | H197: 0 | J197: 0 | K197: 0 | L197: 0 | M197: 0 | N197: 0 | O197: 0
A198: 47 | B198: 1820 | C198: Distribution Station Equipment <50 kV | D198: 15830483.34 | E198: 0 | F198: 272871.29 | G198: 0 | H198: 16103354.63 | J198: -6544690.72 | K198: 0 | L198: -273317.29 | M198: 0 | N198: -6818008.01 | O198: 9285346.62
A199: n/a | B199: 1825 | C199: Storage Battery Equipment | D199: 0 | E199: 0 | F199: 0 | G199: 0 | H199: 0 | J199: 0 | K199: 0 | L199: 0 | M199: 0 | N199: 0 | O199: 0
A200: 47 | B200: 1830 | C200: Poles, Towers & Fixtures | D200: 39738166.82 | E200: 0 | F200: 1924767.2 | G200: 0 | H200: 41662934.02 | J200: -19132710.02 | K200: 0 | L200: -602359.54 | M200: 0 | N200: -19735069.56 | O200: 21927864.46
A201: 47 | B201: 1835 | C201: Overhead Conductors & Devices | D201: 55136845.69 | E201: 0 | F201: 3330253.97 | G201: 0 | H201: 58467099.66 | J201: -22386713.15 | K201: 0 | L201: -832596.57 | M201: 0 | N201: -23219309.72 | O201: 35247789.94
A202: 47 | B202: 1840 | C202: Underground Conduit | D202: 35698363.19 | E202: 0 | F202: 2527011.98 | G202: -14267.5 | H202: 38211107.67 | J202: -9483833.96 | K202: 0 | L202: -540572.35 | M202: 14267.5 | N202: -10010138.81 | O202: 28200968.86
A203: 47 | B203: 1845 | C203: Underground Conductors & Devices | D203: 101576155.5 | E203: 0 | F203: 3944184.77 | G203: -8793671.51 | H203: 96726668.72 | J203: -54734965.24 | K203: 0 | L203: -3637492.97 | M203: 8793671.51 | N203: -49578786.7 | O203: 47147882.02
A204: 47 | B204: 1850 | C204: Line Transformers | D204: 79632662.26 | E204: 0 | F204: 3907875.89 | G204: 0 | H204: 83540538.15 | J204: -30979674.05 | K204: 0 | L204: -1874691.14 | M204: 59.01 | N204: -32854306.18 | O204: 50686231.97
A205: 47 | B205: 1855 | C205: Services (Overhead & Underground) | D205: 24720934.22 | E205: 0 | F205: 2287366.88 | G205: 0 | H205: 27008301.1 | J205: -8049275.18 | K205: 0 | L205: -540781.72 | M205: 0 | N205: -8590056.9 | O205: 18418244.2
A206: 8 | B206: 1860 | C206: Meters | D206: 25081481.15 | E206: 0 | F206: 955008.05 | G206: -261930.76 | H206: 25774558.44 | J206: -7986510.42 | K206: 0 | L206: -1422492.41 | M206: 261930.76 | N206: -9147072.07 | O206: 16627486.37
A207: n/a | B207: 1905 | C207: Land | D207: 0 | E207: 0 | F207: 0 | G207: 0 | H207: 0 | J207: 0 | K207: 0 | L207: 0 | M207: 0 | N207: 0 | O207: 0
A208: 1 | B208: 1908 | C208: Buildings & Fixtures | D208: 22091652.34 | E208: 0 | F208: 1123129.66 | G208: -434691.76 | H208: 22780090.24 | J208: -10359434.79 | K208: 0 | L208: -892356.28 | M208: 434691.76 | N208: -10817099.31 | O208: 11962990.93
A209: n/a | B209: 1910 | C209: Leasehold Improvements | D209: 0 | E209: 0 | F209: 0 | G209: 0 | H209: 0 | J209: 0 | K209: 0 | L209: 0 | M209: 0 | N209: 0 | O209: 0
A210: 8 | B210: 1915 | C210: Office Furniture & Equipment (5 years) | D210: 731858.81 | E210: 0 | F210: 121040.92 | G210: -120051.37 | H210: 732848.36 | J210: -420900.03 | K210: 0 | L210: -129718.64 | M210: 120051.37 | N210: -430567.3 | O210: 302281.06
A211: 50 | B211: 1920 | C211: Computer Equipment - Hardware | D211: 3200325.3 | E211: 0 | F211: 464181.36 | G211: -283350.28 | H211: 3381156.38 | J211: -1236614.43 | K211: 0 | L211: -975771.34 | M211: 283350.28 | N211: -1929035.49 | O211: 1452120.89
A212: 10 & 38 | B212: 1930 | C212: Transportation Equipment | D212: 11472906.72 | E212: 0 | F212: 686041.47 | G212: -332449.3 | H212: 11826498.89 | J212: -6290330.37 | K212: 0 | L212: -705621.93 | M212: 332449.3 | N212: -6663503 | O212: 5162995.89
A213: 8 | B213: 1935 | C213: Stores Equipment | D213: 278137.77 | E213: 0 | F213: 3348.27 | G213: -7726.77 | H213: 273759.27 | J213: -261042.43 | K213: 0 | L213: -6493.32 | M213: 7726.77 | N213: -259808.98 | O213: 13950.29
A214: 8 | B214: 1940 | C214: Tools, Shop & Garage Equipment | D214: 1023408.77 | E214: 0 | F214: 133093.97 | G214: -116498.89 | H214: 1040003.85 | J214: -522561.05 | K214: 0 | L214: -126202.06 | M214: 116498.89 | N214: -532264.22 | O214: 507739.63
A215: 8 | B215: 1945 | C215: Measurement & Testing Equipment | D215: 119613.63 | E215: 0 | F215: 82862.29 | G215: 0 | H215: 202475.92 | J215: -25263.63 | K215: 0 | L215: -17163.82 | M215: 0 | N215: -42427.45 | O215: 160048.47
A216: 38 | B216: 1950 | C216: Power Operated Equipment | D216: 931471.02 | E216: 0 | F216: 100000 | G216: -80190 | H216: 951281.02 | J216: -434482.82 | K216: 0 | L216: -109351.59 | M216: 57636.56 | N216: -486197.85 | O216: 465083.17
A217: 8 | B217: 1955 | C217: Communications Equipment | D217: 3756097.61 | E217: 0 | F217: 236693.03 | G217: 0 | H217: 3992790.64 | J217: -875180.66 | K217: 0 | L217: -230548.35 | M217: 0 | N217: -1105729.01 | O217: 2887061.63
A218: 8 | B218: 1960 | C218: Miscellaneous Equipment | D218: 0 | E218: 0 | F218: 0 | G218: 0 | H218: 0 | J218: 0 | K218: 0 | L218: 0 | M218: 0 | N218: 0 | O218: 0
A219: n/a | B219: 1970 | C219: Load Management Controls Customer Premises | D219: 0 | E219: 0 | F219: 0 | G219: 0 | H219: 0 | J219: 0 | K219: 0 | L219: 0 | M219: 0 | N219: 0 | O219: 0
A220: n/a | B220: 1975 | C220: Load Management Controls Utility Premises | D220: 0 | E220: 0 | F220: 0 | G220: 0 | H220: 0 | J220: 0 | K220: 0 | L220: 0 | M220: 0 | N220: 0 | O220: 0
A221: 47 | B221: 1980 | C221: System Supervisor Equipment | D221: 2154496.6 | E221: 0 | F221: 284577.38 | G221: 0 | H221: 2439073.98 | J221: -663895.58 | K221: 0 | L221: -137338.22 | M221: 0 | N221: -801233.8 | O221: 1637840.18
A222: n/a | B222: 1985 | C222: Miscellaneous Fixed Assets | D222: 0 | E222: 0 | F222: 0 | G222: 0 | H222: 0 | J222: 0 | K222: 0 | L222: 0 | M222: 0 | N222: 0 | O222: 0
A223: n/a | B223: 1990 | C223: Other Tangible Property | D223: 0 | E223: 0 | F223: 0 | G223: 0 | H223: 0 | J223: 0 | K223: 0 | L223: 0 | M223: 0 | N223: 0 | O223: 0
A224: 47 | B224: 1995 | C224: Contributions & Grants | D224: -39262042.69 | E224: 0 | F224: 0 | G224: 0 | H224: -39262042.69 | J224: 8616349.11 | K224: 0 | L224: 899701.21 | M224: 0 | N224: 9516050.32 | O224: -29745992.37
A225: 43.2 | B225: 2075 | C225: Renewable Generation | D225: 2263984.78 | E225: 0 | F225: 0 | G225: 0 | H225: 2263984.78 | J225: -201447.21 | K225: 0 | L225: -113202.76 | M225: 0 | N225: -314649.97 | O225: 1949334.81
A226: 47 | B226: 2440 | C226: Deferred Revenue5 | D226: 0 | E226: 0 | F226: -1870692.02 | G226: 0 | H226: -1870692.02 | J226: 0 | K226: 0 | L226: 20810.84 | M226: 0 | N226: 20810.84 | O226: -1849881.18
C228: Sub-Total | D228: =SUM(D191:D226) -> 417592043.4 | E228: =SUM(E191:E226) -> 0 | F228: =SUM(F191:F226) -> 24651127.27 | G228: =SUM(G191:G226) -> -10673732.68 | H228: =SUM(H191:H226) -> 431569438 | J228: =SUM(J191:J226) -> -187125455.1 | K228: 0 | L228: -17536841.64 | M228: 10651238.25 | N228: -194011058.5 | O228: 237558379.5
C229: Less Socialized Renewable Energy Generation Investments (input as negative) | D229: 0 | E229: 0 | F229: 0 | G229: 0 | H229: =D229+F229+G229 -> 0 | J229: 0 | K229: 0 | L229: 0 | M229: 0 | N229: =J229+L229+M229 -> 0 | O229: =H229+N229 -> 0
A230: 43.2 | B230: 2075 | C230: Less Other Non Rate-Regulated Utility Assets (input as negative) | D230: -2263984.78 | E230: 0 | F230: 0 | G230: 0 | H230: -2263984.78 | J230: 201447.21 | K230: 0 | L230: 113202.76 | M230: 0 | N230: 314649.97 | O230: -1949334.81
C231: Total PP&E | D231: =SUM(D228:D230) -> 415328058.6 | E231: =SUM(E228:E230) -> 0 | F231: =SUM(F228:F230) -> 24651127.27 | G231: -10673732.68 | H231: 429305453.2 | J231: =SUM(J228:J230) -> -186924007.9 | K231: 0 | L231: -17423638.88 | M231: 10651238.25 | N231: -193696408.6 | O231: 235609044.7
C232: Depreciation Expense adj. from gain or loss on the retirement of assets (pool of like assets), if applicable6
C233: Total | L233: =L231+L232 -> -17423638.88
J235: Less: Fully Allocated Depreciation
A236: 10 | B236: 1930 | C236: Transportation | J236: Transportation | M236: -705621.93
A237: 38 | B237: 1950 | C237: Power Operated Equipment | J237: Power Operated Equipment | M237: -109351.59
A238: 47 | B238: 2440 | C238: Deferred Revenue | J238: Deferred Revenue | M238: 20810.84
B239: 1576 | C239: IFRS-GAAP PP&E Transitional Amounts | J239: CGAAP -IFRS Amortization | M239: 117980.52
J240: Net Depreciation | M240: =L233-M236-M239-M237-M238 -> -16747456.72
A242: Notes:
A244: 1 | B244: Tables in the format outlined above covering all fixed asset accounts should be submitted for the Test Year, Bridge Year and all relevant historical years. At a minimum , the applicant must provide data for the earlier of: 1) all historical years back to its last rebasing; or 2) at least three years of historical actuals, in addition to Bridge Year and Test Year forecasts.
A247: 2 | B247: The "CCA Class" for fixed assets should agree with the CCA Class used for tax purposes in Tax Returns. Fixed Assets sub-components may be used where the underlying asset components are classified under multiple CCA Classes for tax purposes. If an applicant uses any different classes from those shown in the table, an explanation should be provided. (also see note 3).
A250: 3 | B250: The table may need to be customized for a utility's asset categories or for any new asset accounts announced or authorized by the Board.
A252: 4 | B252: The additions in column (E) must not include construction work in progress (CWIP).
A254: 5 | B254: Effective on the date of IFRS adoption, customer contributions will no longer be recorded in Account 1995 Contributions & Grants, but will be recorded in Account 2440, Deferred Revenues.
... 202 more rows

Sheet Appendix 2-BB Service Life
N1: File Number: | P1: 0
N2: Exhibit:
N3: Tab:
N4: Schedule:
N5: Page:
N7: Date: | P7: 2016-08-26
A9: Appendix 2-BB
A10: Service Life Comparison
A11: Table F-1 from Kinetrics Report1
C15: Asset Details | F15: Useful Life | J15: USoA Account Number | K15: USoA Account Description | L15: Current | N15: Proposed | P15: Outside Range of Min, Max TUL?
A16: Parent* | B16: # | C16: Category| Component | Type | F16: MIN UL | G16: TUL | H16: MAX UL | L16: Years | M16: Rate | N16: Years | O16: Rate | P16: Below Min TUL | Q16: Above Max TUL
A17: OH | B17: 1 | C17: Fully Dressed Wood Poles | D17: Overall | F17: 35 | G17: 45 | H17: 75 | M17: =IF(ISERROR(1/L17), "", 1/L17) ->  | O17: =IF(ISERROR(1/N17), "", 1/N17) ->  | P17: =IF(ISBLANK(N17),"",IF(N17<F17,"Yes","No")) ->  | Q17: =IF(ISBLANK(N17),"",IF(N17>H17,"Yes","No")) -> 
D18: Cross Arm | E18: Wood | F18: 20 | G18: 40 | H18: 55 | M18: =IF(ISERROR(1/L18), "", 1/L18) ->  | O18: =IF(ISERROR(1/N18), "", 1/N18) ->  | P18: =IF(ISBLANK(N18),"",IF(N18<F18,"Yes","No")) ->  | Q18: =IF(ISBLANK(N18),"",IF(N18>H18,"Yes","No")) -> 
E19: Steel | F19: 30 | G19: 70 | H19: 95
B20: 2 | C20: Fully Dressed Concrete Poles | D20: Overall | F20: 50 | G20: 60 | H20: 80
D21: Cross Arm | E21: Wood | F21: 20 | G21: 40 | H21: 55
E22: Steel | F22: 30 | G22: 70 | H22: 95
B23: 3 | C23: Fully Dressed Steel Poles | D23: Overall | F23: 60 | G23: 60 | H23: 80
D24: Cross Arm | E24: Wood | F24: 20 | G24: 40 | H24: 55
E25: Steel | F25: 30 | G25: 70 | H25: 95
B26: 4 | C26: OH Line Switch | F26: 30 | G26: 45 | H26: 55
B27: 5 | C27: OH Line Switch Motor | F27: 15 | G27: 25 | H27: 25
B28: 6 | C28: OH Line Switch RTU | F28: 15 | G28: 20 | H28: 20
B29: 7 | C29: OH Integral Switches | F29: 35 | G29: 45 | H29: 60
B30: 8 | C30: OH Conductors | F30: 50 | G30: 60 | H30: 75
B31: 9 | C31: OH Transformers & Voltage Regulators | F31: 30 | G31: 40 | H31: 60
B32: 10 | C32: OH Shunt Capacitor Banks | F32: 25 | G32: 30 | H32: 40
B33: 11 | C33: Reclosers | F33: 25 | G33: 40 | H33: 55
A34: TS & MS | B34: 12 | C34: Power Transformers | D34: Overall | F34: 30 | G34: 45 | H34: 60
D35: Bushing | F35: 10 | G35: 20 | H35: 30
D36: Tap Changer | F36: 20 | G36: 30 | H36: 60
B37: 13 | C37: Station Service Transformer | F37: 30 | G37: 45 | H37: 55
B38: 14 | C38: Station Grounding Transformer | F38: 30 | G38: 40 | H38: 40
B39: 15 | C39: Station DC System | D39: Overall | F39: 10 | G39: 20 | H39: 30
D40: Battery Bank | F40: 10 | G40: 15 | H40: 15
D41: Charger | F41: 20 | G41: 20 | H41: 30
B42: 16 | C42: Station Metal Clad Switchgear | D42: Overall | F42: 30 | G42: 40 | H42: 60
D43: Removable Breaker | F43: 25 | G43: 40 | H43: 60
B44: 17 | C44: Station Independent Breakers | F44: 35 | G44: 45 | H44: 65
B45: 18 | C45: Station Switch | F45: 30 | G45: 50 | H45: 60
B46: 19 | C46: Electromechanical Relays | F46: 25 | G46: 35 | H46: 50
B47: 20 | C47: Solid State Relays | F47: 10 | G47: 30 | H47: 45
B48: 21 | C48: Digital & Numeric Relays | F48: 15 | G48: 20 | H48: 20
B49: 22 | C49: Rigid Busbars | F49: 30 | G49: 55 | H49: 60
B50: 23 | C50: Steel Structure | F50: 35 | G50: 50 | H50: 90
A51: UG | B51: 24 | C51: Primary Paper Insulated Lead Covered (PILC) Cables | F51: 60 | G51: 65 | H51: 75
B52: 25 | C52: Primary Ethylene-Propylene Rubber (EPR) Cables | F52: 20 | G52: 25 | H52: 25
B53: 26 | C53: Primary Non-Tree Retardant (TR) Cross Linked Polyethylene (XLPE) Cables Direct Buried | F53: 20 | G53: 25 | H53: 30
B54: 27 | C54: Primary Non-TR XLPE Cables in Duct | F54: 20 | G54: 25 | H54: 30
B55: 30 | C55: Secondary PILC Cables | F55: 70 | G55: 75 | H55: 80
B56: 31 | C56: Secondary Cables Direct Buried | F56: 25 | G56: 35 | H56: 40
B57: 32 | C57: Secondary Cables in Duct | F57: 35 | G57: 40 | H57: 60
B58: 33 | C58: Network Tranformers | D58: Overall | F58: 20 | G58: 35 | H58: 50
D59: Protector | F59: 20 | G59: 35 | H59: 40
B60: 34 | C60: Pad-Mounted Transformers | F60: 25 | G60: 40 | H60: 45
B61: 35 | C61: Submersible/Vault Transformers | F61: 25 | G61: 35 | H61: 45
B62: 36 | C62: UG Foundation | F62: 35 | G62: 55 | H62: 70
B63: 37 | C63: UG Vaults | D63: Overall | F63: 40 | G63: 60 | H63: 80
D64: Roof | F64: 20 | G64: 30 | H64: 45
B65: 38 | C65: UG Vault Switches | F65: 20 | G65: 35 | H65: 50
B66: 39 | C66: Pad-Mounted Switchgear | F66: 20 | G66: 30 | H66: 45
B67: 40 | C67: Ducts | F67: 30 | G67: 50 | H67: 85
B68: 41 | C68: Concrete Encased Duct Banks | F68: 35 | G68: 55 | H68: 80
B69: 42 | C69: Cable Chambers | F69: 50 | G69: 60 | H69: 80
A70: S | B70: 43 | C70: Remote SCADA | F70: 15 | G70: 20 | H70: 30
A73: Table F-2 from Kinetrics Report1
C75: Asset Details | F75: Useful Life Range | J75: USoA Account Number | K75: USoA Account Description | L75: Current | N75: Proposed | P75: Outside Range of Min, Max TUL?
B76: # | C76: Category| Component | Type | L76: Years | M76: Rate | N76: Years | O76: Rate | P76: Below Min Range | Q76: Above Max Range
B77: 1 | C77: Office Equipment | F77: 5 | G77: 15 | M77: =IF(ISERROR(1/L77), "", 1/L77) ->  | O77: =IF(ISERROR(1/N77), "", 1/N77) ->  | P77: =IF(ISBLANK(N77),"",IF(N77<F77,"Yes","No")) ->  | Q77: =IF(ISBLANK(N77),"",IF(N77>G77,"Yes","No")) -> 
B78: 2 | C78: Vehicles | D78: Trucks & Buckets | F78: 5 | G78: 15 | M78: =IF(ISERROR(1/L78), "", 1/L78) ->  | O78: =IF(ISERROR(1/N78), "", 1/N78) ->  | P78: =IF(ISBLANK(N78),"",IF(N78<F78,"Yes","No")) ->  | Q78: =IF(ISBLANK(N78),"",IF(N78>G78,"Yes","No")) -> 
D79: Trailers | F79: 5 | G79: 20
D80: Vans | F80: 5 | G80: 10
B81: 3 | C81: Administrative Buildings | F81: 50 | G81: 75
B82: 4 | C82: Leasehold Improvements | F82: Lease dependent
B83: 5 | C83: Station Buildings | D83: Station Buildings | F83: 50 | G83: 75
D84: Parking | F84: 25 | G84: 30
D85: Fence | F85: 25 | G85: 60
D86: Roof | F86: 20 | G86: 30
B87: 6 | C87: Computer Equipment | D87: Hardware | F87: 3 | G87: 5
D88: Software | F88: 2 | G88: 5
B89: 7 | C89: Equipment | D89: Power Operated | F89: 5 | G89: 10
D90: Stores | F90: 5 | G90: 10
D91: Tools, Shop, Garage Equipment | F91: 5 | G91: 10
D92: Measurement & Testing Equipment | F92: 5 | G92: 10
B93: 8 | C93: Communication | D93: Towers | F93: 60 | G93: 70
D94: Wireless | F94: 2 | G94: 10
B95: 9 | C95: Residential Energy Meters | F95: 25 | G95: 35
B96: 10 | C96: Industrial/Commercial Energy Meters | F96: 25 | G96: 35
B97: 11 | C97: Wholesale Energy Meters | F97: 15 | G97: 30
B98: 12 | C98: Current & Potential Transformer (CT & PT) | F98: 35 | G98: 50
B99: 13 | C99: Smart Meters | F99: 5 | G99: 15
B100: 14 | C100: Repeaters - Smart Metering | F100: 10 | G100: 15
B101: 15 | C101: Data Collectors - Smart Metering | F101: 15 | G101: 20
A104: * TS & MS = Transformer and Municipal Stations UG = Underground Systems S = Monitoring and Control Systems
A106: Note 1: | B106: Tables F-1 and F-2 above are to be used as a reference in order to complete columns J, K, L and N.
B107: See pages 17-19 of Kinetrics Report

Sheet App.2-CA_OldCGAAPDepExp_Yr1
K1: File Number: | L1: =EBNUMBER -> EB-2016-0091
K2: Exhibit:
K3: Tab:
K4: Schedule:
K5: Page:
K7: Date: | L7: 42608
A9: Appendix 2-CA
A10: Depreciation and Amortization Expense
B11: Former CGAAP (Year 1)
A13: Select the set of appendices that apply | K13: Year Reflected in Schedule Below | L13: Accounting Standard
A14: 2012 Set of Appendices (2-CA to 2-CG) | C14: Assumes the applicant made capitalization and depreciation expense accounting policy changes under CGAAP effective January 1, 2012 and has adopted IFRS for financial reporting purposes effective January 1, 2015. Assumes that the applicant is reflecting these changes in a rebasing application for the first time. | K14: 2012 | L14: Former CGAAP
A15: 2013 Set of Appendices (2-CA to 2-CF) | C15: Assumes the applicant made capitalization and depreciation expense accounting policy changes under CGAAP effective January 1, 2013 and has adopted IFRS for financial reporting purposes effective January 1, 2015. Assumes that the applicant is reflecting these changes in a rebasing application for the first time. | K15: 2013 | L15: Former CGAAP
A18: Account | B18: Description | C18: Opening Regulatory Gross PP&E as at Jan. 1 | D18: Less Fully Depreciated | E18: Net for Depreciation | F18: Additions | G18: Total for Depreciation 1 | H18: Years | I18: Depreciation Rate | J18: Current Year Depreciation Expense | K18: Depreciation Expense per Appendix 2-BA Fixed Assets, Column J (l) | L18: Variance 2
C19: (a) | D19: (b) | E19: (c) | F19: (d) | G19: (e) = (c) + ½ x (d) | H19: (f) | I19: (g) = 1 / (f) | J19: (h) = (e) / (f) | L19: (m) = (h) - (l)
A20: 1611 | B20: Computer Software (Formally known as Account 1925) | E20: =C20-D20 -> 0 | G20: =E20+0.5*F20 -> 0 | I20: =IF(H20=0,0,1/H20) -> 0 | J20: =IF(H20=0,0,G20/H20) -> 0 | L20: =IF(ISERROR(+J20-K20), 0, +J20-K20) -> 0
A21: 1612 | B21: Land Rights (Formally known as Account 1906) | E21: =C21-D21 -> 0 | G21: =E21+0.5*F21 -> 0 | I21: 0 | J21: 0 | L21: 0
A22: 1805 | B22: Land | E22: 0 | G22: 0 | I22: 0 | J22: 0 | L22: 0
A23: 1808 | B23: Buildings | E23: 0 | G23: 0 | I23: 0 | J23: 0 | L23: 0
A24: 1810 | B24: Leasehold Improvements | E24: 0 | G24: 0 | I24: 0 | J24: 0 | L24: 0
A25: 1815 | B25: Transformer Station Equipment >50 kV | E25: 0 | G25: 0 | I25: 0 | J25: 0 | L25: 0
A26: 1820 | B26: Distribution Station Equipment <50 kV | E26: 0 | G26: 0 | I26: 0 | J26: 0 | L26: 0
A27: 1825 | B27: Storage Battery Equipment | E27: 0 | G27: 0 | I27: 0 | J27: 0 | L27: 0
A28: 1830 | B28: Poles, Towers & Fixtures | E28: 0 | G28: 0 | I28: 0 | J28: 0 | L28: 0
A29: 1835 | B29: Overhead Conductors & Devices | E29: 0 | G29: 0 | I29: 0 | J29: 0 | L29: 0
A30: 1840 | B30: Underground Conduit | E30: 0 | G30: 0 | I30: 0 | J30: 0 | L30: 0
A31: 1845 | B31: Underground Conductors & Devices | E31: 0 | G31: 0 | I31: 0 | J31: 0 | L31: 0
A32: 1850 | B32: Line Transformers | E32: 0 | G32: 0 | I32: 0 | J32: 0 | L32: 0
A33: 1855 | B33: Services (Overhead & Underground) | E33: 0 | G33: 0 | I33: 0 | J33: 0 | L33: 0
A34: 1860 | B34: Meters | E34: 0 | G34: 0 | I34: 0 | J34: 0 | L34: 0
A35: 1860 | B35: Meters (Smart Meters) | E35: 0 | G35: 0 | I35: 0 | J35: 0 | L35: 0
A36: 1905 | B36: Land | E36: 0 | G36: 0 | I36: 0 | J36: 0 | L36: 0
A37: 1908 | B37: Buildings & Fixtures | E37: 0 | G37: 0 | I37: 0 | J37: 0 | L37: 0
A38: 1910 | B38: Leasehold Improvements | E38: 0 | G38: 0 | I38: 0 | J38: 0 | L38: 0
A39: 1915 | B39: Office Furniture & Equipment (10 years) | E39: 0 | G39: 0 | I39: 0 | J39: 0 | L39: 0
A40: 1915 | B40: Office Furniture & Equipment (5 years) | E40: 0 | G40: 0 | I40: 0 | J40: 0 | L40: 0
A41: 1920 | B41: Computer Equipment - Hardware | E41: 0 | G41: 0 | I41: 0 | J41: 0 | L41: 0
A42: 1920 | B42: Computer Equip.-Hardware(Post Mar. 22/04) | E42: 0 | G42: 0 | I42: 0 | J42: 0 | L42: 0
A43: 1920 | B43: Computer Equip.-Hardware(Post Mar. 19/07) | E43: 0 | G43: 0 | I43: 0 | J43: 0 | L43: 0
A44: 1930 | B44: Transportation Equipment | E44: 0 | G44: 0 | I44: 0 | J44: 0 | L44: 0
A45: 1935 | B45: Stores Equipment | E45: 0 | G45: 0 | I45: 0 | J45: 0 | L45: 0
A46: 1940 | B46: Tools, Shop & Garage Equipment | E46: 0 | G46: 0 | I46: 0 | J46: 0 | L46: 0
A47: 1945 | B47: Measurement & Testing Equipment | E47: 0 | G47: 0 | I47: 0 | J47: 0 | L47: 0
A48: 1950 | B48: Power Operated Equipment | E48: 0 | G48: 0 | I48: 0 | J48: 0 | L48: 0
A49: 1955 | B49: Communications Equipment | E49: 0 | G49: 0 | I49: 0 | J49: 0 | L49: 0
A50: 1955 | B50: Communication Equipment (Smart Meters) | E50: 0 | G50: 0 | I50: 0 | J50: 0 | L50: 0
A51: 1960 | B51: Miscellaneous Equipment | E51: 0 | G51: 0 | I51: 0 | J51: 0 | L51: 0
A52: 1970 | B52: Load Management Controls Customer Premises | E52: 0 | G52: 0 | I52: 0 | J52: 0 | L52: 0
A53: 1975 | B53: Load Management Controls Utility Premises | E53: 0 | G53: 0 | I53: 0 | J53: 0 | L53: 0
A54: 1980 | B54: System Supervisor Equipment | E54: 0 | G54: 0 | I54: 0 | J54: 0 | L54: 0
A55: 1985 | B55: Miscellaneous Fixed Assets | E55: 0 | G55: 0 | I55: 0 | J55: 0 | L55: 0
A56: 1990 | B56: Other Tangible Property | E56: 0 | G56: 0 | I56: 0 | J56: 0 | L56: 0
A57: 1995 | B57: Contributions & Grants | E57: 0 | G57: 0 | I57: 0 | J57: 0 | L57: 0
B58: Total | C58: =SUM(C20:C57) -> 0 | D58: =SUM(D20:D57) -> 0 | E58: =SUM(E20:E57) -> 0 | F58: =SUM(F20:F57) -> 0 | G58: =SUM(G20:G57) -> 0 | J58: =SUM(J20:J57) -> 0 | K58: =SUM(K20:K57) -> 0 | L58: =SUM(L20:L57) -> 0
A60: Notes:
A62: 1 | B62: Board policy of the "half-year" rule - the applicant must ensure that additions in the year attract a half-year depreciation expense in the first year. Deviations from this standard practice must be supported in the application.
A63: 2 | B63: The applicant must provide an explanation of material variances.
A65: General | B65: Applicants must provide a breakdown of depreciation and amortization expense in the above format for all relevant accounts. Asset Retirement Obligations (AROs), depreciation and accretion expense should be disclosed separately consistent with the Notes of historical Audited Financial Statements.

Sheet App.2-CB_NewCGAAP_DepExp_Yr1
P1: File Number: | Q1: =EBNUMBER -> EB-2016-0091
P2: Exhibit:
P3: Tab:
P4: Schedule:
P5: Page:
O7: 2016-08-26 | P7: Date: | Q7: 2016-08-26
A9: Appendix 2-CB
A10: Depreciation and Amortization Expense
A11: MIFRS (Year 1)
A13: Select the set of appendices that apply | N13: Year Reflected in Schedule Below | P13: Accounting Standard
A14: 2012 Set of Appendices (2-CA to 2-CG) | C14: Assumes the applicant made capitalization and depreciation expense accounting policy changes under CGAAP effective January 1, 2012 and has adopted IFRS for financial reporting purposes effective January 1, 2015. Assumes that the applicant is reflecting these changes in a rebasing application for the first time. | N14: 2012 | P14: Revised CGAAP
A15: 2013 Set of Appendices (2-CA to 2-CF) | C15: Assumes the applicant made capitalization and depreciation expense accounting policy changes under CGAAP effective January 1, 2013 and has adopted IFRS for financial reporting purposes effective January 1, 2015. Assumes that the applicant is reflecting these changes in a rebasing application for the first time. | N15: 2013 | P15: Revised CGAAP
A18: Account | B18: Description | C18: Subsidiary | D18: Subsidiary Description | E18: Opening NBV as at Jan 15 | F18: Additions | G18: Average Remaining Life of Opening NBV 4 | H18: Years (new additions only) 3 | I18: Depreciation Rate on New Additions | J18: Depreciation Expense on Opening NBV | K18: Depreciation Expense on Additions 1 | L18: Current Year Depreciation Expense | M18: Depreciation Expense per Appendix 2-BA Fixed Assets, Column J (l) | N18: Variance 2 | O18: Depreciation Expense on Current Full Year Additions | P18: Less Depreciation Expense on Assets Fully Depreciated During the Year (o) | Q18: Current Full Year Depreciation 6
E19: (a) | F19: (d) | G19: (i) | H19: (f) | I19: (g) = 1 / (f) | J19: (j) = (a) / (i) | K19: (h)=((d)*0.5)/(f) | L19: (k) = (j) + (h) | N19: (m) = (k) - (l) | O19: (n) = (d)/(f) | Q19: (p) = (j) + (n) - (o)
A20: 1611 | B20: Computer Software (Formally known as Account 1925) | C20: 720 | D20: Computer Equip-Software | E20: 14077453.33 | F20: 4531758.59 | G20: 3.056778658 | H20: 5 | I20: =IF(H20=0,0,1/H20) -> 0.2 | J20: =IF(G20=0,0,+E20/G20) -> 4605323.089 | K20: =IF(H20=0,0,+(F20*0.5)/H20) -> 453175.859 | L20: =IF(ISERROR(+J20+K20), 0, +J20+K20) -> 5058498.948 | M20: 4745615.31 | N20: =IF(ISERROR(+L20-M20), 0, +L20-M20) -> 312883.6381 | O20: =IF(H20=0,0,+(F20)/H20) -> 906351.718 | P20: 755669.1438 | Q20: =IF(ISERROR(+O20+J20-P20), 0, +O20+J20-P20) -> 4756005.663
A21: 1611 | B21: Computer Software (Formally known as Account 1925) | C21: 721 | D21: Computer Equip-Software - 3 yr | E21: 210847.41 | F21: 239211.99 | G21: 2.46266413 | H21: 3 | I21: 0.3333333333 | J21: 85617.60714 | K21: 39868.665 | L21: 125486.2721 | M21: 122291.33 | N21: 3194.942141 | O21: 79737.33 | P21: 6205.103228 | Q21: =IF(ISERROR(+O21+J21-P21), 0, +O21+J21-P21) -> 159149.8339
A22: 1612 | B22: Land Rights (Formally known as Account 1906) | C22: 410 | D22: Land Rights | E22: 199907.09 | F22: 2188.85 | G22: 11.98029417 | H22: 25 | I22: 0.04 | J22: 16686.32565 | K22: 43.777 | L22: 16730.10265 | M22: 16759.32 | N22: -29.21734566 | O22: 87.554 | P22: 0 | Q22: 16773.87965
A23: 1805 | B23: Land | C23: 1800 | D23: Land | E23: 385689.89 | F23: 0 | G23: 0 | H23: 0 | I23: 0 | J23: 0 | K23: 0 | L23: 0 | M23: 0 | N23: 0 | O23: 0 | P23: 0 | Q23: 0
A24: 1808 | B24: Buildings | C24: 340 | D24: SS Building Overall | E24: 311966.28 | F24: 0 | G24: 54.01602494 | H24: 75 | I24: 0.01333333333 | J24: 5775.439424 | K24: 0 | L24: 5775.439424 | M24: 5775.43 | N24: 0.00942439456 | O24: 0 | P24: 0 | Q24: 5775.439424
A25: 1808 | B25: Buildings | C25: 341 | D25: SS Roof | E25: 114004.51 | F25: 0 | G25: 21.43804529 | H25: 30 | I25: 0.03333333333 | J25: 5317.859368 | K25: 0 | L25: 5317.859368 | M25: 5317.87 | N25: -0.01063199614 | O25: 0 | P25: 0 | Q25: 5317.859368
A26: 1820 | B26: Distribution Station Equipment <50 kV | C26: 310 | D26: Distr Stn Equip | E26: 9039456.9 | F26: 89265.07 | G26: 38.30012809 | H26: 45 | I26: 0.02222222222 | J26: 236016.3621 | K26: 991.8341111 | L26: 237008.1962 | M26: 237462.74 | N26: -454.5438085 | O26: 1983.668222 | P26: 0 | Q26: 238000.0303
A27: 1820 | B27: Distribution Station Equipment <50 kV | C27: 311 | D27: Battery Banks & Charges | E27: 151859.06 | F27: 11427.19 | G27: 5.810843374 | H27: 15 | I27: 0.06666666667 | J27: 26133.73829 | K27: 380.9063333 | L27: 26514.64463 | M27: 26578.13 | N27: -63.48537415 | O27: 761.8126667 | P27: 10198.15 | Q27: 16697.40096
A28: 1820 | B28: Distribution Station Equipment <50 kV | C28: 312 | D28: Digital Relays | E28: 246238.28 | F28: 26723.2 | G28: 16.76137294 | H28: 20 | I28: 0.05 | J28: 14690.81804 | K28: 668.08 | L28: 15358.89804 | M28: 15136.21 | N28: 222.6880396 | O28: 1336.16 | P28: 0 | Q28: 16026.97804
A29: 1610 | B29: Intangible - wholesale meter | C29: 313 | D29: Intangible - wholesale meter | E29: 1128589.34 | F29: 0 | G29: 26.18786041 | H29: 30 | I29: 0.03333333333 | J29: 43095.89719 | K29: 0 | L29: 43095.89719 | M29: 43095.89 | N29: 0.007193643934 | O29: 0 | P29: 0 | Q29: 43095.89719
A30: 1830 | B30: Poles, Towers & Fixtures | C30: 210 | D30: Poles, and Fixtures | E30: 19808138.28 | F30: 1368435.43 | G30: 35.55421041 | H30: 45 | I30: 0.02222222222 | J30: 557124.9664 | K30: 15204.83811 | L30: 572329.8045 | M30: 571116.91 | N30: 1212.894485 | O30: 30409.67622 | P30: 0 | Q30: 587534.6426
A31: 1835 | B31: Overhead Conductors & Devices | C31: 220 | D31: OH Primary Conductor | E31: 25144483.21 | F31: 1512787.73 | G31: 42.02637504 | H31: 50 | I31: 0.02 | J31: 598302.4514 | K31: 15127.8773 | L31: 613430.3287 | M31: 611294.05 | N31: 2136.27874 | O31: 30255.7546 | P31: 0 | Q31: 628558.206
A32: 1835 | B32: Overhead Conductors & Devices | C32: 221 | D32: Switches & Reclosers | E32: 6420098.47 | F32: 462855.51 | G32: 37.03183523 | H32: 45 | I32: 0.02222222222 | J32: 173367.0079 | K32: 5142.839 | L32: 178509.8469 | M32: 178798.33 | N32: -288.483108 | O32: 10285.678 | P32: 0 | Q32: 183652.6859
A33: 1840 | B33: Underground Conduit | C33: 110 | D33: Vaults & Manholes | E33: 23366761.14 | F33: 2020212.73 | G33: 53.81958714 | H33: 60 | I33: 0.01666666667 | J33: 434168.3462 | K33: 16835.10608 | L33: 451003.4523 | M33: 448989.84 | N33: 2013.612278 | O33: 33670.21217 | P33: 0 | Q33: 467838.5584
A34: 1840 | B34: Underground Conduit | C34: 111 | D34: Vault & Manhole Roofs | E34: 1195354.39 | F34: 138192.69 | G34: 21.47270237 | H34: 30 | I34: 0.03333333333 | J34: 55668.55859 | K34: 2303.2115 | L34: 57971.77009 | M34: 57001.88 | N34: 969.890086 | O34: 4606.423 | P34: 2132.09 | Q34: 58142.89159
A35: 1845 | B35: Underground Conductors & Devices | C35: 120 | D35: Direct Buried Cable | E35: 35233361 | F35: 62354.02 | G35: 10.29778797 | H35: 25 | I35: 0.04 | J35: 3421449.45 | K35: 1247.0804 | L35: 3422696.53 | M35: 2964533.29 | N35: 458163.2404 | O35: 2494.1608 | P35: 351450.8 | Q35: 3072492.811
A36: 1845 | B36: Underground Conductors & Devices | C36: 130 | D36: TRXLPE Cable - in duct | E36: 7681835.79 | F36: 2922009.02 | G36: 38.96765955 | H36: 40 | I36: =IF(H36=0,0,1/H36) -> 0.025 | J36: =IF(G36=0,0,+E36/G36) -> 197133.62 | K36: =IF(H36=0,0,+(F36*0.5)/H36) -> 36525.11275 | L36: =IF(ISERROR(+J36+K36), 0, +J36+K36) -> 233658.7327 | M36: 684498.65 | N36: =IF(ISERROR(+L36-M36), 0, +L36-M36) -> -450839.9173 | O36: =IF(H36=0,0,+(F36)/H36) -> 73050.2255 | P36: 0 | Q36: =IF(ISERROR(+O36+J36-P36), 0, +O36+J36-P36) -> 270183.8455
A37: 1845 | B37: Underground Conductors & Devices | C37: 131 | D37: SF6 & Vacuum Switchgear | E37: 1803655.74 | F37: 154113.25 | G37: 25.99904905 | H37: 30 | I37: 0.03333333333 | J37: 69373.91197 | K37: 2568.554167 | L37: 71942.46614 | M37: 71124.38 | N37: 818.0861397 | O37: 5137.108333 | P37: 0 | Q37: 74511.02031
A38: 1845 | B38: Underground Conductors & Devices | C38: 132 | D38: PILC Primary Cable | E38: 2318302.65 | F38: 228576.21 | G38: 17.80271133 | H38: 30 | I38: 0.03333333333 | J38: 130221.8862 | K38: 3809.6035 | L38: 134031.4897 | M38: 133136.82 | N38: 894.669743 | O38: 7619.207 | P38: 3411.34 | Q38: 134429.7532
A39: 1845 | B39: Underground Conductors & Devices | C39: 133 | D39: Air Insulated Switchgear | E39: 332630.25 | F39: 0 | G39: 7.853472527 | H39: 25 | I39: 0.04 | J39: 42354.5443 | K39: 0 | L39: 42354.5443 | M39: 42354.57 | N39: -0.02570415494 | O39: 0 | P39: 7159.54 | Q39: 35195.0043
A40: 1850 | B40: Line Transformers | C40: 150 | D40: Pad Mount Transformers | E40: 28751170.64 | F40: 2643482.83 | G40: 27.02795853 | H40: 35 | I40: 0.02857142857 | J40: 1063756.651 | K40: 37764.04043 | L40: 1101520.691 | M40: 1086115.99 | N40: 15404.70106 | O40: 75528.08086 | P40: 0 | Q40: 1139284.731
A41: 1850 | B41: Line Transformers | C41: 151 | D41: Network Transformers | E41: 4644622.6 | F41: 30714.02 | G41: 26.62644404 | H41: 35 | I41: 0.02857142857 | J41: 174436.4585 | K41: 438.7717143 | L41: 174875.2302 | M41: 174836.6 | N41: 38.63021532 | O41: 877.5434286 | P41: 0 | Q41: 175314.0019
A42: 1850 | B42: Line Transformers | C42: 230 | D42: Overhead Transformers | E42: 13094011.58 | F42: 1254211.66 | G42: 26.48338407 | H42: 35 | I42: 0.02857142857 | J42: 494423.6561 | K42: 17917.30943 | L42: 512340.9655 | M42: 507850.8 | N42: 4490.165549 | O42: 35834.61886 | P42: 0 | Q42: 530258.275
A43: 1855 | B43: Services (Overhead & Underground) | C43: 160 | D43: UG Secondary Services | E43: 8499310.32 | F43: 1231607.33 | G43: 25.51580989 | H43: 30 | I43: 0.03333333333 | J43: 333099.7666 | K43: 20526.78883 | L43: 353626.5555 | M43: 351007.55 | N43: 2619.005475 | O43: 41053.57767 | P43: 0 | Q43: 374153.3443
A44: 1855 | B44: Services (Overhead & Underground) | C44: 240 | D44: OH Secondary Services | E44: 6658451.73 | F44: 767614.91 | G44: 51.43147704 | H44: 60 | I44: 0.01666666667 | J44: 129462.5804 | K44: 6396.790917 | L44: 135859.3713 | M44: 134317.7 | N44: 1541.671287 | O44: 12793.58183 | P44: 0 | Q44: 142256.1622
A45: 1860 | B45: Meters | C45: 600 | D45: Regular Meters | E45: 1826105.29 | F45: 10457.25 | G45: 15.08826467 | H45: 30 | I45: 0.03333333333 | J45: 121028.1852 | K45: 174.2875 | L45: 121202.4727 | M45: 121232.38 | N45: -29.90733294 | O45: 348.575 | P45: 24210.99 | Q45: 97165.77017
A46: 1860 | B46: Meters (Smart Meters) | C46: 601 | D46: Smart Meters | E46: 14409537.59 | F46: 689125.25 | G46: 12.25201633 | H46: 15 | I46: 0.06666666667 | J46: 1176095.199 | K46: 22970.84167 | L46: 1199066.041 | M46: 1196053.94 | N46: 3012.100761 | O46: 45941.68333 | P46: 0 | Q46: 1222036.882
A47: 1860 | B47: Meters (Smart Meters) | C47: 602 | D47: CT's and PT's | E47: 1442645.49 | F47: 132720.3 | G47: 18.42186928 | H47: 30 | I47: 0.03333333333 | J47: 78311.56914 | K47: 2212.005 | L47: 80523.57414 | M47: 80087.64 | N47: 435.9341376 | O47: 4424.01 | P47: 1978.96 | Q47: 80756.61914
A48: 1908 | B48: Buildings & Fixtures | C48: 350 | D48: Buildings - Civil | E48: 4480987.31 | F48: 0 | G48: 38.94833791 | H48: 65 | I48: 0.01538461538 | J48: 115049.513 | K48: 0 | L48: 115049.513 | M48: 115049.51 | N48: 0.003047958569 | O48: 0 | P48: 0 | Q48: 115049.513
A49: 1908 | B49: Buildings & Fixtures | C49: 351 | D49: Buildings - Roof | E49: 961864.22 | F49: 0 | G49: 21.62185705 | H49: 25 | I49: 0.04 | J49: 44485.7358 | K49: 0 | L49: 44485.7358 | M49: 44485.73 | N49: 0.005798130718 | O49: 0 | P49: 0 | Q49: 44485.7358
A50: 1908 | B50: Buildings & Fixtures | C50: 352 | D50: Buildings - Parking | E50: 658721.41 | F50: 220743.03 | G50: 29.32299952 | H50: 30 | I50: 0.03333333333 | J50: 22464.32564 | K50: 3679.0505 | L50: 26143.37614 | M50: 29905.11 | N50: -3761.733857 | O50: 7358.101 | P50: 0 | Q50: 29822.42664
A51: 1908 | B51: Buildings & Fixtures | C51: 353 | D51: Buildings - Fences | E51: 5202.02 | F51: 0 | G51: 11 | H51: 60 | I51: 0.01666666667 | J51: 472.9109091 | K51: 0 | L51: 472.9109091 | M51: 472.91 | N51: 0.0009090909087 | O51: 0 | P51: 0 | Q51: 472.9109091
A52: 1908 | B52: Buildings & Fixtures | C52: 354 | D52: Electronic/Mechanical Systems | E52: 2338994.89 | F52: 100528.04 | G52: 8.278647005 | H52: 12 | I52: 0.08333333333 | J52: 282533.473 | K52: 4188.668333 | L52: 286722.1413 | M52: 286847.77 | N52: -125.6286756 | O52: 8377.336667 | P52: 3735.9 | Q52: 287174.9097
A53: 1908 | B53: Buildings & Fixtures | C53: 355 | D53: Electric / Mechanical Systems | E53: 3718301.91 | F53: 113680.54 | G53: 9.57380532 | H53: 30 | I53: 0.03333333333 | J53: 388382.8619 | K53: 1894.675667 | L53: 390277.5376 | M53: 390044.79 | N53: 232.7476104 | O53: 3789.351333 | P53: 0 | Q53: 392172.2133
A54: 1908 | B54: Buildings & Fixtures | C54: 356 | D54: Buildings - Improvements | E54: 0 | F54: 0 | G54: 0 | H54: 15 | I54: 0.06666666667 | J54: 0 | K54: 0 | L54: 0 | M54: 0 | N54: 0 | O54: 0 | P54: 0 | Q54: 0
A55: 1915 | B55: Office Furniture & Equipment | C55: 700 | D55: Office Furn & Equip | E55: 368452.17 | F55: 101295.9 | G55: 2.445264195 | H55: 5 | I55: 0.2 | J55: 150679.9023 | K55: 10129.59 | L55: 160809.4923 | M55: 158789.29 | N55: 2020.202314 | O55: 20259.18 | P55: 50639.06275 | Q55: 120300.0196
A56: 1920 | B56: Computer Equipment - Hardware | C56: 710 | D56: Computer Equip-Hardware | E56: 1270976.21 | F56: 1427607.83 | G56: 2.161520261 | H56: 3 | I56: 0.3333333333 | J56: 588001.0625 | K56: 237934.6383 | L56: 825935.7009 | M56: 734873.17 | N56: 91062.53086 | O56: 475869.2767 | P56: 137480.929 | Q56: 926389.4102
A57: 1930 | B57: Transportation Equipment | C57: 730 | D57: Transportation-Cars, Vans | E57: 1431409.59 | F57: 368509.09 | G57: 5.929477378 | H57: 8 | I57: 0.125 | J57: 241405.6921 | K57: 23031.81813 | L57: 264437.5102 | M57: 272008.73 | N57: -7571.219801 | O57: 46063.63625 | P57: 0 | Q57: 287469.3283
A58: 1930 | B58: Transportation Equipment | C58: 740 | D58: Transportation-Large Vehicles | E58: 3124581.22 | F58: 660310.68 | G58: 9.90235008 | H58: 12 | I58: 0.08333333333 | J58: 315539.3613 | K58: 27512.945 | L58: 343052.3063 | M58: 323806.56 | N58: 19245.74634 | O58: 55025.89 | P58: 0 | Q58: 370565.2513
A59: 1930 | B59: Transportation Equipment | C59: 750 | D59: Trailers | E59: 148677.11 | F59: 111227.63 | G59: 7.010816588 | H59: 10 | I59: 0.1 | J59: 21206.8178 | K59: 5561.3815 | L59: 26768.1993 | M59: 24914.38 | N59: 1853.819297 | O59: 11122.763 | P59: 2513.53 | Q59: 29816.0508
A60: 1935 | B60: Stores Equipment | C60: 760 | D60: Stores Equipment | E60: 19195.9 | F60: 5499 | G60: 2.666615458 | H60: 8 | I60: 0.125 | J60: 7198.600737 | K60: 343.6875 | L60: 7542.288237 | M60: 7599.56 | N60: -57.27176278 | O60: 687.375 | P60: 1686.77 | Q60: 6199.205737
A61: 1940 | B61: Tools, Shop & Garage Equipment | C61: 770 | D61: Tools,Shop & Garage Equi | E61: 518105.38 | F61: 112143.02 | G61: 4.128595308 | H61: 8 | I61: 0.125 | J61: 125491.9267 | K61: 7008.93875 | L61: 132500.8655 | M61: 129400.68 | N61: 3100.185498 | O61: 14017.8775 | P61: 21214.05147 | Q61: 118295.7528
A62: 1945 | B62: Measurement & Testing Equipment | C62: 780 | D62: Measurement & Test Equip | E62: 89696.05 | F62: 18373.81 | G62: 6.938405068 | H62: 8 | I62: 0.125 | J62: 12927.47384 | K62: 1148.363125 | L62: 14075.83696 | M62: 13719.86 | N62: 355.9769635 | O62: 2296.72625 | P62: 32.17130435 | Q62: 15192.02878
A63: 1950 | B63: Power Operated Equipment | C63: 790 | D63: Power Operated Equipment | E63: 549528.93 | F63: 53630 | G63: 5.463367586 | H63: 8 | I63: 0.125 | J63: 100584.2864 | K63: 3351.875 | L63: 103936.1614 | M63: 106170.73 | N63: -2234.568604 | O63: 6703.75 | P63: 0 | Q63: 107288.0364
A64: 1955 | B64: Communications Equipment | C64: 330 | D64: Communication Towers | E64: 658620.4 | F64: 0 | G64: 32.70332187 | H64: 35 | I64: 0.02857142857 | J64: 20139.25077 | K64: 0 | L64: 20139.25077 | M64: 20139.26 | N64: -0.009233102617 | O64: 0 | P64: 0 | Q64: 20139.25077
A65: 1955 | B65: Communications Equipment | C65: 331 | D65: Communication -wireless | E65: 2309143.27 | F65: 128543.7 | G65: 11.96798185 | H65: 15 | I65: 0.06666666667 | J65: 192943.4134 | K65: 4284.79 | L65: 197228.2034 | M65: 195251.16 | N65: 1977.04341 | O65: 8569.58 | P65: 0 | Q65: 201512.9934
A66: 1955 | B66: Communications Equipment | C66: 332 | D66: Communication -equipment | E66: 0 | F66: 0 | H66: 8 | I66: 0.125 | J66: 0 | K66: 0 | L66: 0 | M66: 0 | N66: 0 | O66: 0 | P66: 0 | Q66: 0
A67: 1960 | B67: Miscellaneous Equipment | C67: 795 | D67: Miscellaneous Equipment | E67: 0 | F67: 0 | H67: 8 | I67: 0.125 | J67: 0 | K67: 0 | L67: 0 | M67: 0 | N67: 0 | O67: 0 | P67: 0 | Q67: 0
A68: 1980 | B68: System Supervisor Equipment | C68: 320 | D68: Scada RTU's | E68: 1000975.01 | F68: 239273.85 | G68: 16.15122416 | H68: 20 | I68: 0.05 | J68: 61975.17909 | K68: 5981.84625 | L68: 67957.02534 | M68: 64998.48 | N68: 2958.545345 | O68: 11963.6925 | P68: 0 | Q68: 73938.87159
A69: 1980 | B69: System Supervisor Equipment | C69: 321 | D69: Scada Master Station | E69: 374945.54 | F69: 0 | G69: 6.291569842 | H69: 10 | I69: 0.1 | J69: 59594.91024 | K69: 0 | L69: 59594.91024 | M69: 59594.9 | N69: 0.01023806531 | O69: 0 | P69: 0 | Q69: 59594.91024
A70: 1995 | B70: Contributions & Grants | C70: 1995 | D70: Contribution & Grants Credit | E70: -29091139.67 | F70: -2418671.95 | G70: 34.66390392 | H70: 40 | I70: 0.025 | J70: -839234.3729 | K70: -30233.39938 | L70: -869467.7722 | M70: -864118.04 | N70: -5349.732227 | O70: -60466.79875 | P70: 0 | Q70: -899701.1716
A71: 2440 | B71: Deferred Revenue | C71: 1996 | D71: Deferred Revenue | E71: 0 | F71: 0 | G71: 0 | H71: 40 | I71: 0.025 | J71: 0 | K71: 0 | L71: 0 | M71: 0 | N71: 0 | O71: 0 | P71: 0 | Q71: 0
B72: Total | E72: =SUM(E20:E71) -> 223433727.1 | F72: =SUM(F20:F71) -> 21772739.2 | J72: =SUM(J20:J71) -> 16200278.27 | K72: 1008113.048 | L72: 17208391.32 | M72: 16746338.09 | N72: 462053.2281 | O72: 2016226.097 | P72: 1379718.532 | Q72: 16836785.83
B74: Actual depreciation expense on additions is calculated based on when the asset is put into service. London Hydro does not apply half-year depreciation expense on actual additions in the year. This is the reason for the variance in the above schedule.
A77: Notes:
A79: 1 | B79: Board policy of the "half-year" rule - the applicant must ensure that additions in the year attract a half-year depreciation expense in the first year. Deviations from this standard practice must be supported in the application.
A80: 2 | B80: The applicant must provide an explanation of material variances in evidence.
A81: 3 | B81: The applicant should ensure that the years for new additions of assets are the asset useful lives determined by management in accordance with the Board's regulatory accounting policies. The capitalization and depreciation expense accounting changes should be implemented consistent with the Board’s regulatory accounting policies as set out for modified IFRS as contained in the Report of the Board, Transition to International Financial Reporting Standards, EB-2008-0408, the Kinectrics Report, and the Revised 2012 Accounting Procedures Handbook for Electricity Distributors (“APH”).
A82: 4 | B82: A recalculation should be performed to determine the average remaining life of opening balance of assets (i.e. excluding current year's additions) under the change in policies under CGAAP. For example, Asset A had a useful life of 20 years under CGAAP without the change in policies. On January 1 of the year of policy changes, Asset A was 3 years depreciated. As a result, Asset A would have a remaining service life of 17 years (20 years less 3 years) as at January 1 of the year of policy changes. Due to making the change in policies under CGAAP, management re-assessed the asset useful lives and concluded that the revised useful life of Asset A is now 30 years. Therefore, the average remaining useful life of the opening balance of Asset A is determined to be 27 years (30 years less 3 years) under the revised CGAAP as at January 1 of the year of policy changes.
A83: 5 | B83: NBV must exclude assets still on the books but which have been fully amortized or depreciated.
A84: 6 | B84: This column refers to the calculated full year depreciation but excludes the depreciation expense on assets fully depreciated during the year. This column is used for the purpose of calculating depreciation expense in the following year on the next worksheet.
A86: General: | B86: Applicants must provide a breakdown of depreciation and amortization expense in the above format for all relevant accounts. Asset Retirement Obligations (AROs), depreciation and accretion expense should be disclosed separately consistent with the Notes of historical Audited Financial Statements.

Sheet App.2-CC_DepExp_Yr2
L1: File Number: | M1: =EBNUMBER -> EB-2016-0091
L2: Exhibit:
L3: Tab:
L4: Schedule:
L5: Page:
K7: 2016-08-26 | L7: Date: | M7: 2016-08-26
A9: Appendix 2-CC
A10: Depreciation and Amortization Expense
A11: MIFRS (Year 2)
A13: Select the set of appendices that apply | L13: Year Reflected in Schedule Below | M13: Accounting Standard
A14: 2012 Set of Appendices (2-CA to 2-CG) | C14: Assumes the applicant made capitalization and depreciation expense accounting policy changes under CGAAP effective January 1, 2012 and has adopted IFRS for financial reporting purposes effective January 1, 2015. Assumes that the applicant is reflecting these changes in a rebasing application for the first time. | L14: 2013 | M14: Revised CGAAP
A15: 2013 Set of Appendices (2-CA to 2-CF) | C15: Assumes the applicant made capitalization and depreciation expense accounting policy changes under CGAAP effective January 1, 2013 and has adopted IFRS for financial reporting purposes effective January 1, 2015. Assumes that the applicant is reflecting these changes in a rebasing application for the first time. | L15: 2014 | M15: MIFRS
A18: Account | B18: Description | C18: Subsidiary | D18: Subsidiary Description | E18: Additions | F18: Years (new additions only) | G18: Depreciation Rate on New Additions | H18: Current Year Depreciation Expense 1 | I18: Depreciation Expense per Apppendix 2-BA Fixed Assets, Column J (l) | J18: Variance 2 | K18: Depreciation Expense on Current Full Year Additions | L18: Less Depreciation Expense on Assets Fully Depreciated During the Year (o) | M18: Current Full Year Depreciation 3
E19: (d) | F19: (f) | G19: (g) = 1 / (f) | H19: (h)= Prior Full Year Deprecation + ((d)*0.5)/(f) | J19: (m) = (h) - (l) | K19: (n)=((d))/(f) | M19: (p) = Prior Full Year Depreciation + (n) - (o)
A20: 1611 | B20: Computer Software (Formally known as Account 1925) | C20: 720 | D20: Computer Equip-Software | E20: 3514450.8 | F20: 5 | G20: =IF(F20=0,0,1/F20) -> 0.2 | H20: =IF(F20=0,+'App.2-CB_NewCGAAP_DepExp_Yr1'!Q20,+'App.2-CB_NewCGAAP_DepExp_Yr1'!Q20+((E20*0.5)/F20)) -> 5107450.743 | I20: 4996952.95 | J20: =IF(ISERROR(+H20-I20), 0, +H20-I20) -> 110497.7932 | K20: =IF(F20=0,0,+(E20)/F20) -> 702890.16 | L20: 1067766.15 | M20: =IF(ISERROR(+K20+'App.2-CB_NewCGAAP_DepExp_Yr1'!Q20-L20), 0, +K20+'App.2-CB_NewCGAAP_DepExp_Yr1'!Q20-L20) -> 4391129.674
A21: 1611 | B21: Computer Software (Formally known as Account 1925) | C21: 721 | D21: Computer Equip-Software - 3 yr | E21: 605779.47 | F21: 3 | G21: 0.3333333333 | H21: =IF(F21=0,+'App.2-CB_NewCGAAP_DepExp_Yr1'!Q21,+'App.2-CB_NewCGAAP_DepExp_Yr1'!Q21+((E21*0.5)/F21)) -> 260113.0789 | I21: 220875.36 | J21: 39237.71891 | K21: 201926.49 | L21: 33595.20497 | M21: =IF(ISERROR(+K21+'App.2-CB_NewCGAAP_DepExp_Yr1'!Q21-L21), 0, +K21+'App.2-CB_NewCGAAP_DepExp_Yr1'!Q21-L21) -> 327481.1189
A22: 1612 | B22: Land Rights (Formally known as Account 1906) | C22: 410 | D22: Land Rights | E22: 17280.64 | F22: 25 | G22: 0.04 | H22: =IF(F22=0,+'App.2-CB_NewCGAAP_DepExp_Yr1'!Q22,+'App.2-CB_NewCGAAP_DepExp_Yr1'!Q22+((E22*0.5)/F22)) -> 17119.49245 | I22: 17263.92 | J22: -144.4275457 | K22: 691.2256 | L22: 0 | M22: =IF(ISERROR(+K22+'App.2-CB_NewCGAAP_DepExp_Yr1'!Q22-L22), 0, +K22+'App.2-CB_NewCGAAP_DepExp_Yr1'!Q22-L22) -> 17465.10525
A23: 1805 | B23: Land | C23: 1800 | D23: Land | E23: 0 | F23: 0 | G23: 0 | H23: =IF(F23=0,+'App.2-CB_NewCGAAP_DepExp_Yr1'!Q23,+'App.2-CB_NewCGAAP_DepExp_Yr1'!Q23+((E23*0.5)/F23)) -> 0 | I23: 0 | J23: 0 | K23: 0 | L23: 0 | M23: =IF(ISERROR(+K23+'App.2-CB_NewCGAAP_DepExp_Yr1'!Q23-L23), 0, +K23+'App.2-CB_NewCGAAP_DepExp_Yr1'!Q23-L23) -> 0
A24: 1808 | B24: Buildings | C24: 340 | D24: SS Building Overall | E24: 0 | F24: 75 | G24: 0.01333333333 | H24: =IF(F24=0,+'App.2-CB_NewCGAAP_DepExp_Yr1'!Q24,+'App.2-CB_NewCGAAP_DepExp_Yr1'!Q24+((E24*0.5)/F24)) -> 5775.439424 | I24: 5775.41 | J24: 0.02942439456 | K24: 0 | L24: 0 | M24: =IF(ISERROR(+K24+'App.2-CB_NewCGAAP_DepExp_Yr1'!Q24-L24), 0, +K24+'App.2-CB_NewCGAAP_DepExp_Yr1'!Q24-L24) -> 5775.439424
A25: 1808 | B25: Buildings | C25: 341 | D25: SS Roof | E25: 0 | F25: 30 | G25: 0.03333333333 | H25: =IF(F25=0,+'App.2-CB_NewCGAAP_DepExp_Yr1'!Q25,+'App.2-CB_NewCGAAP_DepExp_Yr1'!Q25+((E25*0.5)/F25)) -> 5317.859368 | I25: 5317.85 | J25: 0.009368003863 | K25: 0 | L25: 0 | M25: =IF(ISERROR(+K25+'App.2-CB_NewCGAAP_DepExp_Yr1'!Q25-L25), 0, +K25+'App.2-CB_NewCGAAP_DepExp_Yr1'!Q25-L25) -> 5317.859368
A26: 1820 | B26: Distribution Station Equipment <50 kV | C26: 310 | D26: Distr Stn Equip | E26: 195539.76 | F26: 45 | G26: 0.02222222222 | H26: =IF(F26=0,+'App.2-CB_NewCGAAP_DepExp_Yr1'!Q26,+'App.2-CB_NewCGAAP_DepExp_Yr1'!Q26+((E26*0.5)/F26)) -> 240172.6943 | I26: 240255.61 | J26: -82.91569742 | K26: 4345.328 | L26: 0 | M26: =IF(ISERROR(+K26+'App.2-CB_NewCGAAP_DepExp_Yr1'!Q26-L26), 0, +K26+'App.2-CB_NewCGAAP_DepExp_Yr1'!Q26-L26) -> 242345.3583
A27: 1820 | B27: Distribution Station Equipment <50 kV | C27: 311 | D27: Battery Banks & Charges | E27: 10888.3 | F27: 15 | G27: 0.06666666667 | H27: =IF(F27=0,+'App.2-CB_NewCGAAP_DepExp_Yr1'!Q27,+'App.2-CB_NewCGAAP_DepExp_Yr1'!Q27+((E27*0.5)/F27)) -> 17060.34429 | I27: 16757.87 | J27: 302.4742925 | K27: 725.8866667 | L27: 955.3685714 | M27: =IF(ISERROR(+K27+'App.2-CB_NewCGAAP_DepExp_Yr1'!Q27-L27), 0, +K27+'App.2-CB_NewCGAAP_DepExp_Yr1'!Q27-L27) -> 16467.91905
A28: 1820 | B28: Distribution Station Equipment <50 kV | C28: 312 | D28: Digital Relays | E28: 66443.23 | F28: 20 | G28: 0.05 | H28: =IF(F28=0,+'App.2-CB_NewCGAAP_DepExp_Yr1'!Q28,+'App.2-CB_NewCGAAP_DepExp_Yr1'!Q28+((E28*0.5)/F28)) -> 17688.05879 | I28: 16303.81 | J28: 1384.24879 | K28: 3322.1615 | L28: 0 | M28: =IF(ISERROR(+K28+'App.2-CB_NewCGAAP_DepExp_Yr1'!Q28-L28), 0, +K28+'App.2-CB_NewCGAAP_DepExp_Yr1'!Q28-L28) -> 19349.13954
A29: 1610 | B29: Intangible - wholesale meter | C29: 313 | D29: Intangible - wholesale meter | E29: 0 | F29: 30 | G29: 0.03333333333 | H29: =IF(F29=0,+'App.2-CB_NewCGAAP_DepExp_Yr1'!Q29,+'App.2-CB_NewCGAAP_DepExp_Yr1'!Q29+((E29*0.5)/F29)) -> 43095.89719 | I29: 43095.9 | J29: -0.002806356068 | K29: 0 | L29: 0 | M29: =IF(ISERROR(+K29+'App.2-CB_NewCGAAP_DepExp_Yr1'!Q29-L29), 0, +K29+'App.2-CB_NewCGAAP_DepExp_Yr1'!Q29-L29) -> 43095.89719
A30: 1830 | B30: Poles, Towers & Fixtures | C30: 210 | D30: Poles, and Fixtures | E30: 1924767.2 | F30: 45 | G30: 0.02222222222 | H30: =IF(F30=0,+'App.2-CB_NewCGAAP_DepExp_Yr1'!Q30,+'App.2-CB_NewCGAAP_DepExp_Yr1'!Q30+((E30*0.5)/F30)) -> 608920.9448 | I30: 602359.54 | J30: 6561.404819 | K30: 42772.60444 | L30: 0 | M30: =IF(ISERROR(+K30+'App.2-CB_NewCGAAP_DepExp_Yr1'!Q30-L30), 0, +K30+'App.2-CB_NewCGAAP_DepExp_Yr1'!Q30-L30) -> 630307.247
A31: 1835 | B31: Overhead Conductors & Devices | C31: 220 | D31: OH Primary Conductor | E31: 2979063.72 | F31: 50 | G31: =IF(F31=0,0,1/F31) -> 0.02 | H31: =IF(F31=0,+'App.2-CB_NewCGAAP_DepExp_Yr1'!Q31,+'App.2-CB_NewCGAAP_DepExp_Yr1'!Q31+((E31*0.5)/F31)) -> 658348.8432 | I31: 647888.03 | J31: =IF(ISERROR(+H31-I31), 0, +H31-I31) -> 10460.81324 | K31: =IF(F31=0,0,+(E31)/F31) -> 59581.2744 | L31: 0 | M31: =IF(ISERROR(+K31+'App.2-CB_NewCGAAP_DepExp_Yr1'!Q31-L31), 0, +K31+'App.2-CB_NewCGAAP_DepExp_Yr1'!Q31-L31) -> 688139.4804
A32: 1835 | B32: Overhead Conductors & Devices | C32: 221 | D32: Switches & Reclosers | E32: 351190.25 | F32: 45 | G32: 0.02222222222 | H32: =IF(F32=0,+'App.2-CB_NewCGAAP_DepExp_Yr1'!Q32,+'App.2-CB_NewCGAAP_DepExp_Yr1'!Q32+((E32*0.5)/F32)) -> 187554.7998 | I32: 184708.54 | J32: 2846.259781 | K32: 7804.227778 | L32: 0 | M32: =IF(ISERROR(+K32+'App.2-CB_NewCGAAP_DepExp_Yr1'!Q32-L32), 0, +K32+'App.2-CB_NewCGAAP_DepExp_Yr1'!Q32-L32) -> 191456.9137
A33: 1840 | B33: Underground Conduit | C33: 110 | D33: Vaults & Manholes | E33: 2334880.84 | F33: 60 | G33: 0.01666666667 | H33: =IF(F33=0,+'App.2-CB_NewCGAAP_DepExp_Yr1'!Q33,+'App.2-CB_NewCGAAP_DepExp_Yr1'!Q33+((E33*0.5)/F33)) -> 487295.8987 | I33: 481817.59 | J33: 5478.308694 | K33: 38914.68067 | L33: 0 | M33: =IF(ISERROR(+K33+'App.2-CB_NewCGAAP_DepExp_Yr1'!Q33-L33), 0, +K33+'App.2-CB_NewCGAAP_DepExp_Yr1'!Q33-L33) -> 506753.239
A34: 1840 | B34: Underground Conduit | C34: 111 | D34: Vault & Manhole Roofs | E34: 192131.14 | F34: 30 | G34: 0.03333333333 | H34: =IF(F34=0,+'App.2-CB_NewCGAAP_DepExp_Yr1'!Q34,+'App.2-CB_NewCGAAP_DepExp_Yr1'!Q34+((E34*0.5)/F34)) -> 61345.07725 | I34: 58754.76 | J34: 2590.317253 | K34: 6404.371333 | L34: 849.61 | M34: =IF(ISERROR(+K34+'App.2-CB_NewCGAAP_DepExp_Yr1'!Q34-L34), 0, +K34+'App.2-CB_NewCGAAP_DepExp_Yr1'!Q34-L34) -> 63697.65292
A35: 1845 | B35: Underground Conductors & Devices | C35: 120 | D35: Direct Buried Cable | E35: 242431.08 | F35: 25 | G35: 0.04 | H35: =IF(F35=0,+'App.2-CB_NewCGAAP_DepExp_Yr1'!Q35,+'App.2-CB_NewCGAAP_DepExp_Yr1'!Q35+((E35*0.5)/F35)) -> 3077341.432 | I35: 3075430.69 | J35: 1910.7424 | K35: 9697.2432 | L35: 210060.185 | M35: =IF(ISERROR(+K35+'App.2-CB_NewCGAAP_DepExp_Yr1'!Q35-L35), 0, +K35+'App.2-CB_NewCGAAP_DepExp_Yr1'!Q35-L35) -> 2872129.869
A36: 1845 | B36: Underground Conductors & Devices | C36: 130 | D36: TRXLPE Cable - in duct | E36: 3442040.32 | F36: 40 | G36: 0.025 | H36: =IF(F36=0,+'App.2-CB_NewCGAAP_DepExp_Yr1'!Q36,+'App.2-CB_NewCGAAP_DepExp_Yr1'!Q36+((E36*0.5)/F36)) -> 313209.3495 | I36: 313194.96 | J36: 14.3895 | K36: 86051.008 | L36: 0 | M36: =IF(ISERROR(+K36+'App.2-CB_NewCGAAP_DepExp_Yr1'!Q36-L36), 0, +K36+'App.2-CB_NewCGAAP_DepExp_Yr1'!Q36-L36) -> 356234.8535
A37: 1845 | B37: Underground Conductors & Devices | C37: 131 | D37: SF6 & Vacuum Switchgear | E37: 102182.18 | F37: 30 | G37: 0.03333333333 | H37: =IF(F37=0,+'App.2-CB_NewCGAAP_DepExp_Yr1'!Q37,+'App.2-CB_NewCGAAP_DepExp_Yr1'!Q37+((E37*0.5)/F37)) -> 76214.05664 | I37: 76968.96 | J37: -754.9033603 | K37: 3406.072667 | L37: 0 | M37: =IF(ISERROR(+K37+'App.2-CB_NewCGAAP_DepExp_Yr1'!Q37-L37), 0, +K37+'App.2-CB_NewCGAAP_DepExp_Yr1'!Q37-L37) -> 77917.09297
A38: 1845 | B38: Underground Conductors & Devices | C38: 132 | D38: PILC Primary Cable | E38: 157191.77 | F38: 30 | G38: 0.03333333333 | H38: =IF(F38=0,+'App.2-CB_NewCGAAP_DepExp_Yr1'!Q38,+'App.2-CB_NewCGAAP_DepExp_Yr1'!Q38+((E38*0.5)/F38)) -> 137049.6161 | I38: 136692.06 | J38: 357.5560763 | K38: 5239.725667 | L38: 22976.395 | M38: =IF(ISERROR(+K38+'App.2-CB_NewCGAAP_DepExp_Yr1'!Q38-L38), 0, +K38+'App.2-CB_NewCGAAP_DepExp_Yr1'!Q38-L38) -> 116693.0839
A39: 1845 | B39: Underground Conductors & Devices | C39: 133 | D39: Air Insulated Switchgear | E39: 339.42 | F39: 25 | G39: 0.04 | H39: =IF(F39=0,+'App.2-CB_NewCGAAP_DepExp_Yr1'!Q39,+'App.2-CB_NewCGAAP_DepExp_Yr1'!Q39+((E39*0.5)/F39)) -> 35201.7927 | I39: 35206.3 | J39: -4.507304155 | K39: 13.5768 | L39: 1141.76 | M39: =IF(ISERROR(+K39+'App.2-CB_NewCGAAP_DepExp_Yr1'!Q39-L39), 0, +K39+'App.2-CB_NewCGAAP_DepExp_Yr1'!Q39-L39) -> 34066.8211
A40: 1850 | B40: Line Transformers | C40: 150 | D40: Pad Mount Transformers | E40: 1975511.04 | F40: 35 | G40: 0.02857142857 | H40: =IF(F40=0,+'App.2-CB_NewCGAAP_DepExp_Yr1'!Q40,+'App.2-CB_NewCGAAP_DepExp_Yr1'!Q40+((E40*0.5)/F40)) -> 1167506.318 | I40: 1149677.08 | J40: 17829.23777 | K40: 56443.17257 | L40: 0 | M40: =IF(ISERROR(+K40+'App.2-CB_NewCGAAP_DepExp_Yr1'!Q40-L40), 0, +K40+'App.2-CB_NewCGAAP_DepExp_Yr1'!Q40-L40) -> 1195727.904
A41: 1850 | B41: Line Transformers | C41: 151 | D41: Network Transformers | E41: 157169.14 | F41: 35 | G41: 0.02857142857 | H41: =IF(F41=0,+'App.2-CB_NewCGAAP_DepExp_Yr1'!Q41,+'App.2-CB_NewCGAAP_DepExp_Yr1'!Q41+((E41*0.5)/F41)) -> 177559.2754 | I41: 176519.42 | J41: 1039.855358 | K41: 4490.546857 | L41: 0 | M41: =IF(ISERROR(+K41+'App.2-CB_NewCGAAP_DepExp_Yr1'!Q41-L41), 0, +K41+'App.2-CB_NewCGAAP_DepExp_Yr1'!Q41-L41) -> 179804.5488
A42: 1850 | B42: Line Transformers | C42: 230 | D42: Overhead Transformers | E42: 1775195.71 | F42: 35 | G42: 0.02857142857 | H42: =IF(F42=0,+'App.2-CB_NewCGAAP_DepExp_Yr1'!Q42,+'App.2-CB_NewCGAAP_DepExp_Yr1'!Q42+((E42*0.5)/F42)) -> 555618.2137 | I42: 548494.64 | J42: 7123.573692 | K42: 50719.87743 | L42: 0 | M42: =IF(ISERROR(+K42+'App.2-CB_NewCGAAP_DepExp_Yr1'!Q42-L42), 0, +K42+'App.2-CB_NewCGAAP_DepExp_Yr1'!Q42-L42) -> 580978.1524
A43: 1855 | B43: Services (Overhead & Underground) | C43: 160 | D43: UG Secondary Services | E43: 1090174.54 | F43: 30 | G43: 0.03333333333 | H43: =IF(F43=0,+'App.2-CB_NewCGAAP_DepExp_Yr1'!Q43,+'App.2-CB_NewCGAAP_DepExp_Yr1'!Q43+((E43*0.5)/F43)) -> 392322.92 | I43: 391350.76 | J43: 972.1599749 | K43: 36339.15133 | L43: 0 | M43: =IF(ISERROR(+K43+'App.2-CB_NewCGAAP_DepExp_Yr1'!Q43-L43), 0, +K43+'App.2-CB_NewCGAAP_DepExp_Yr1'!Q43-L43) -> 410492.4956
A44: 1855 | B44: Services (Overhead & Underground) | C44: 240 | D44: OH Secondary Services | E44: 1197192.34 | F44: 60 | G44: 0.01666666667 | H44: =IF(F44=0,+'App.2-CB_NewCGAAP_DepExp_Yr1'!Q44,+'App.2-CB_NewCGAAP_DepExp_Yr1'!Q44+((E44*0.5)/F44)) -> 152232.765 | I44: 149430.96 | J44: 2801.805037 | K44: 19953.20567 | L44: 0 | M44: =IF(ISERROR(+K44+'App.2-CB_NewCGAAP_DepExp_Yr1'!Q44-L44), 0, +K44+'App.2-CB_NewCGAAP_DepExp_Yr1'!Q44-L44) -> 162209.3679
A45: 1860 | B45: Meters | C45: 600 | D45: Regular Meters | E45: 13490.5 | F45: 30 | G45: 0.03333333333 | H45: =IF(F45=0,+'App.2-CB_NewCGAAP_DepExp_Yr1'!Q45,+'App.2-CB_NewCGAAP_DepExp_Yr1'!Q45+((E45*0.5)/F45)) -> 97390.61183 | I45: 97203.25 | J45: 187.3618337 | K45: 449.6833333 | L45: 16739.225 | M45: =IF(ISERROR(+K45+'App.2-CB_NewCGAAP_DepExp_Yr1'!Q45-L45), 0, +K45+'App.2-CB_NewCGAAP_DepExp_Yr1'!Q45-L45) -> 80876.2285
A46: 1860 | B46: Meters (Smart Meters) | C46: 601 | D46: Smart Meters | E46: 786979.71 | F46: 15 | G46: 0.06666666667 | H46: =IF(F46=0,+'App.2-CB_NewCGAAP_DepExp_Yr1'!Q46,+'App.2-CB_NewCGAAP_DepExp_Yr1'!Q46+((E46*0.5)/F46)) -> 1248269.539 | I46: 1242189.91 | J46: 6079.629428 | K46: 52465.314 | L46: 0 | M46: =IF(ISERROR(+K46+'App.2-CB_NewCGAAP_DepExp_Yr1'!Q46-L46), 0, +K46+'App.2-CB_NewCGAAP_DepExp_Yr1'!Q46-L46) -> 1274502.196
A47: 1860 | B47: Meters (Smart Meters) | C47: 602 | D47: CT's and PT's | E47: 154537.84 | F47: 30 | G47: 0.03333333333 | H47: =IF(F47=0,+'App.2-CB_NewCGAAP_DepExp_Yr1'!Q47,+'App.2-CB_NewCGAAP_DepExp_Yr1'!Q47+((E47*0.5)/F47)) -> 83332.2498 | I47: 83099.25 | J47: 232.9998043 | K47: 5151.261333 | L47: 1708.325 | M47: =IF(ISERROR(+K47+'App.2-CB_NewCGAAP_DepExp_Yr1'!Q47-L47), 0, +K47+'App.2-CB_NewCGAAP_DepExp_Yr1'!Q47-L47) -> 84199.55547
A48: 1908 | B48: Buildings & Fixtures | C48: 350 | D48: Buildings - Civil | E48: 339570.01 | F48: 65 | G48: 0.01538461538 | H48: =IF(F48=0,+'App.2-CB_NewCGAAP_DepExp_Yr1'!Q48,+'App.2-CB_NewCGAAP_DepExp_Yr1'!Q48+((E48*0.5)/F48)) -> 117661.59 | I48: 118970.59 | J48: -1308.999952 | K48: 5224.154 | L48: 0 | M48: =IF(ISERROR(+K48+'App.2-CB_NewCGAAP_DepExp_Yr1'!Q48-L48), 0, +K48+'App.2-CB_NewCGAAP_DepExp_Yr1'!Q48-L48) -> 120273.667
A49: 1908 | B49: Buildings & Fixtures | C49: 351 | D49: Buildings - Roof | E49: 0 | F49: 25 | G49: 0.04 | H49: =IF(F49=0,+'App.2-CB_NewCGAAP_DepExp_Yr1'!Q49,+'App.2-CB_NewCGAAP_DepExp_Yr1'!Q49+((E49*0.5)/F49)) -> 44485.7358 | I49: 44485.74 | J49: -0.004201869277 | K49: 0 | L49: 0 | M49: =IF(ISERROR(+K49+'App.2-CB_NewCGAAP_DepExp_Yr1'!Q49-L49), 0, +K49+'App.2-CB_NewCGAAP_DepExp_Yr1'!Q49-L49) -> 44485.7358
A50: 1908 | B50: Buildings & Fixtures | C50: 352 | D50: Buildings - Parking | E50: 140550.15 | F50: 30 | G50: 0.03333333333 | H50: =IF(F50=0,+'App.2-CB_NewCGAAP_DepExp_Yr1'!Q50,+'App.2-CB_NewCGAAP_DepExp_Yr1'!Q50+((E50*0.5)/F50)) -> 32164.92914 | I50: 34808.01 | J50: -2643.080857 | K50: 4685.005 | L50: 0 | M50: =IF(ISERROR(+K50+'App.2-CB_NewCGAAP_DepExp_Yr1'!Q50-L50), 0, +K50+'App.2-CB_NewCGAAP_DepExp_Yr1'!Q50-L50) -> 34507.43164
A51: 1908 | B51: Buildings & Fixtures | C51: 353 | D51: Buildings - Fences | E51: 0 | F51: 60 | G51: 0.01666666667 | H51: =IF(F51=0,+'App.2-CB_NewCGAAP_DepExp_Yr1'!Q51,+'App.2-CB_NewCGAAP_DepExp_Yr1'!Q51+((E51*0.5)/F51)) -> 472.9109091 | I51: 472.91 | J51: 0.0009090909087 | K51: 0 | L51: 0 | M51: =IF(ISERROR(+K51+'App.2-CB_NewCGAAP_DepExp_Yr1'!Q51-L51), 0, +K51+'App.2-CB_NewCGAAP_DepExp_Yr1'!Q51-L51) -> 472.9109091
A52: 1908 | B52: Buildings & Fixtures | C52: 354 | D52: Electronic/Mechanical Systems | E52: 125266.23 | F52: 12 | G52: 0.08333333333 | H52: =IF(F52=0,+'App.2-CB_NewCGAAP_DepExp_Yr1'!Q52,+'App.2-CB_NewCGAAP_DepExp_Yr1'!Q52+((E52*0.5)/F52)) -> 292394.3359 | I52: 295179.02 | J52: -2784.684092 | K52: 10438.8525 | L52: 3421.31875 | M52: =IF(ISERROR(+K52+'App.2-CB_NewCGAAP_DepExp_Yr1'!Q52-L52), 0, +K52+'App.2-CB_NewCGAAP_DepExp_Yr1'!Q52-L52) -> 294192.4434
A53: 1908 | B53: Buildings & Fixtures | C53: 355 | D53: Electric / Mechanical Systems | E53: 517743.27 | F53: 30 | G53: 0.03333333333 | H53: =IF(F53=0,+'App.2-CB_NewCGAAP_DepExp_Yr1'!Q53,+'App.2-CB_NewCGAAP_DepExp_Yr1'!Q53+((E53*0.5)/F53)) -> 400801.2678 | I53: 398440.01 | J53: 2361.257777 | K53: 17258.109 | L53: 0 | M53: =IF(ISERROR(+K53+'App.2-CB_NewCGAAP_DepExp_Yr1'!Q53-L53), 0, +K53+'App.2-CB_NewCGAAP_DepExp_Yr1'!Q53-L53) -> 409430.3223
A54: 1908 | B54: Buildings & Fixtures | C54: 356 | D54: Buildings - Improvements | E54: 0 | F54: 15 | G54: 0.06666666667 | H54: =IF(F54=0,+'App.2-CB_NewCGAAP_DepExp_Yr1'!Q54,+'App.2-CB_NewCGAAP_DepExp_Yr1'!Q54+((E54*0.5)/F54)) -> 0 | I54: 0 | J54: 0 | K54: 0 | L54: 0 | M54: =IF(ISERROR(+K54+'App.2-CB_NewCGAAP_DepExp_Yr1'!Q54-L54), 0, +K54+'App.2-CB_NewCGAAP_DepExp_Yr1'!Q54-L54) -> 0
A55: 1915 | B55: Office Furniture & Equipment | C55: 700 | D55: Office Furn & Equip | E55: 121040.92 | F55: 5 | G55: 0.2 | H55: =IF(F55=0,+'App.2-CB_NewCGAAP_DepExp_Yr1'!Q55,+'App.2-CB_NewCGAAP_DepExp_Yr1'!Q55+((E55*0.5)/F55)) -> 132404.1116 | I55: 129718.64 | J55: 2685.471561 | K55: 24208.184 | L55: 26696.63422 | M55: =IF(ISERROR(+K55+'App.2-CB_NewCGAAP_DepExp_Yr1'!Q55-L55), 0, +K55+'App.2-CB_NewCGAAP_DepExp_Yr1'!Q55-L55) -> 117811.5693
A56: 1920 | B56: Computer Equipment - Hardware | C56: 710 | D56: Computer Equip-Hardware | E56: 464181.36 | F56: 3 | G56: 0.3333333333 | H56: =IF(F56=0,+'App.2-CB_NewCGAAP_DepExp_Yr1'!Q56,+'App.2-CB_NewCGAAP_DepExp_Yr1'!Q56+((E56*0.5)/F56)) -> 1003752.97 | I56: 975771.34 | J56: 27981.63016 | K56: 154727.12 | L56: 218065.1195 | M56: =IF(ISERROR(+K56+'App.2-CB_NewCGAAP_DepExp_Yr1'!Q56-L56), 0, +K56+'App.2-CB_NewCGAAP_DepExp_Yr1'!Q56-L56) -> 863051.4106
A57: 1930 | B57: Transportation Equipment | C57: 730 | D57: Transportation-Cars, Vans | E57: 163649.69 | F57: 8 | G57: 0.125 | H57: =IF(F57=0,+'App.2-CB_NewCGAAP_DepExp_Yr1'!Q57,+'App.2-CB_NewCGAAP_DepExp_Yr1'!Q57+((E57*0.5)/F57)) -> 297697.4339 | I57: 294327.96 | J57: 3369.473949 | K57: 20456.21125 | L57: 0 | M57: =IF(ISERROR(+K57+'App.2-CB_NewCGAAP_DepExp_Yr1'!Q57-L57), 0, +K57+'App.2-CB_NewCGAAP_DepExp_Yr1'!Q57-L57) -> 307925.5396
A58: 1930 | B58: Transportation Equipment | C58: 740 | D58: Transportation-Large Vehicles | E58: 522391.78 | F58: 12 | G58: 0.08333333333 | H58: =IF(F58=0,+'App.2-CB_NewCGAAP_DepExp_Yr1'!Q58,+'App.2-CB_NewCGAAP_DepExp_Yr1'!Q58+((E58*0.5)/F58)) -> 392331.5755 | I58: 381477.9 | J58: 10853.67551 | K58: 43532.64833 | L58: 0 | M58: =IF(ISERROR(+K58+'App.2-CB_NewCGAAP_DepExp_Yr1'!Q58-L58), 0, +K58+'App.2-CB_NewCGAAP_DepExp_Yr1'!Q58-L58) -> 414097.8997
A59: 1930 | B59: Transportation Equipment | C59: 750 | D59: Trailers | E59: 0 | F59: 10 | G59: 0.1 | H59: =IF(F59=0,+'App.2-CB_NewCGAAP_DepExp_Yr1'!Q59,+'App.2-CB_NewCGAAP_DepExp_Yr1'!Q59+((E59*0.5)/F59)) -> 29816.0508 | I59: 29816.07 | J59: -0.01920252143 | K59: 0 | L59: 0 | M59: =IF(ISERROR(+K59+'App.2-CB_NewCGAAP_DepExp_Yr1'!Q59-L59), 0, +K59+'App.2-CB_NewCGAAP_DepExp_Yr1'!Q59-L59) -> 29816.0508
A60: 1935 | B60: Stores Equipment | C60: 760 | D60: Stores Equipment | E60: 3348.27 | F60: 8 | G60: 0.125 | H60: =IF(F60=0,+'App.2-CB_NewCGAAP_DepExp_Yr1'!Q60,+'App.2-CB_NewCGAAP_DepExp_Yr1'!Q60+((E60*0.5)/F60)) -> 6408.472612 | I60: 6493.32 | J60: -84.84738778 | K60: 418.53375 | L60: 584.7875 | M60: =IF(ISERROR(+K60+'App.2-CB_NewCGAAP_DepExp_Yr1'!Q60-L60), 0, +K60+'App.2-CB_NewCGAAP_DepExp_Yr1'!Q60-L60) -> 6032.951987
A61: 1940 | B61: Tools, Shop & Garage Equipment | C61: 770 | D61: Tools,Shop & Garage Equi | E61: 133093.97 | F61: 8 | G61: 0.125 | H61: =IF(F61=0,+'App.2-CB_NewCGAAP_DepExp_Yr1'!Q61,+'App.2-CB_NewCGAAP_DepExp_Yr1'!Q61+((E61*0.5)/F61)) -> 126614.1259 | I61: 126202.06 | J61: 412.0659045 | K61: 16636.74625 | L61: 15803.77494 | M61: =IF(ISERROR(+K61+'App.2-CB_NewCGAAP_DepExp_Yr1'!Q61-L61), 0, +K61+'App.2-CB_NewCGAAP_DepExp_Yr1'!Q61-L61) -> 119128.7241
A62: 1945 | B62: Measurement & Testing Equipment | C62: 780 | D62: Measurement & Test Equip | E62: 82862.29 | F62: 8 | G62: 0.125 | H62: =IF(F62=0,+'App.2-CB_NewCGAAP_DepExp_Yr1'!Q62,+'App.2-CB_NewCGAAP_DepExp_Yr1'!Q62+((E62*0.5)/F62)) -> 20370.92191 | I62: 17163.82 | J62: 3207.101909 | K62: 10357.78625 | L62: 353.8843478 | M62: =IF(ISERROR(+K62+'App.2-CB_NewCGAAP_DepExp_Yr1'!Q62-L62), 0, +K62+'App.2-CB_NewCGAAP_DepExp_Yr1'!Q62-L62) -> 25195.93069
A63: 1950 | B63: Power Operated Equipment | C63: 790 | D63: Power Operated Equipment | E63: 100000 | F63: 8 | G63: 0.125 | H63: =IF(F63=0,+'App.2-CB_NewCGAAP_DepExp_Yr1'!Q63,+'App.2-CB_NewCGAAP_DepExp_Yr1'!Q63+((E63*0.5)/F63)) -> 113538.0364 | I63: 109351.59 | J63: 4186.446396 | K63: 12500 | L63: 517.8265714 | M63: =IF(ISERROR(+K63+'App.2-CB_NewCGAAP_DepExp_Yr1'!Q63-L63), 0, +K63+'App.2-CB_NewCGAAP_DepExp_Yr1'!Q63-L63) -> 119270.2098
A64: 1955 | B64: Communications Equipment | C64: 330 | D64: Communication Towers | E64: 0 | F64: 35 | G64: 0.02857142857 | H64: =IF(F64=0,+'App.2-CB_NewCGAAP_DepExp_Yr1'!Q64,+'App.2-CB_NewCGAAP_DepExp_Yr1'!Q64+((E64*0.5)/F64)) -> 20139.25077 | I64: 20139.26 | J64: -0.009233102617 | K64: 0 | L64: 0 | M64: =IF(ISERROR(+K64+'App.2-CB_NewCGAAP_DepExp_Yr1'!Q64-L64), 0, +K64+'App.2-CB_NewCGAAP_DepExp_Yr1'!Q64-L64) -> 20139.25077
A65: 1955 | B65: Communications Equipment | C65: 331 | D65: Communication -wireless | E65: 64381.17 | F65: 15 | G65: 0.06666666667 | H65: =IF(F65=0,+'App.2-CB_NewCGAAP_DepExp_Yr1'!Q65,+'App.2-CB_NewCGAAP_DepExp_Yr1'!Q65+((E65*0.5)/F65)) -> 203659.0324 | I65: 201870.66 | J65: 1788.37241 | K65: 4292.078 | L65: 0 | M65: =IF(ISERROR(+K65+'App.2-CB_NewCGAAP_DepExp_Yr1'!Q65-L65), 0, +K65+'App.2-CB_NewCGAAP_DepExp_Yr1'!Q65-L65) -> 205805.0714
A66: 1955 | B66: Communications Equipment | C66: 332 | D66: Communication -equipment | E66: 172311.86 | F66: 8 | G66: 0.125 | H66: =IF(F66=0,+'App.2-CB_NewCGAAP_DepExp_Yr1'!Q66,+'App.2-CB_NewCGAAP_DepExp_Yr1'!Q66+((E66*0.5)/F66)) -> 10769.49125 | I66: 8538.43 | J66: 2231.06125 | K66: 21538.9825 | L66: 0 | M66: =IF(ISERROR(+K66+'App.2-CB_NewCGAAP_DepExp_Yr1'!Q66-L66), 0, +K66+'App.2-CB_NewCGAAP_DepExp_Yr1'!Q66-L66) -> 21538.9825
A67: 1960 | B67: Miscellaneous Equipment | C67: 795 | D67: Miscellaneous Equipment | E67: 0 | F67: 8 | G67: 0.125 | H67: =IF(F67=0,+'App.2-CB_NewCGAAP_DepExp_Yr1'!Q67,+'App.2-CB_NewCGAAP_DepExp_Yr1'!Q67+((E67*0.5)/F67)) -> 0 | I67: 0 | J67: 0 | K67: 0 | L67: 0 | M67: =IF(ISERROR(+K67+'App.2-CB_NewCGAAP_DepExp_Yr1'!Q67-L67), 0, +K67+'App.2-CB_NewCGAAP_DepExp_Yr1'!Q67-L67) -> 0
A68: 1980 | B68: System Supervisor Equipment | C68: 320 | D68: Scada RTU's | E68: 169436.92 | F68: 20 | G68: 0.05 | H68: =IF(F68=0,+'App.2-CB_NewCGAAP_DepExp_Yr1'!Q68,+'App.2-CB_NewCGAAP_DepExp_Yr1'!Q68+((E68*0.5)/F68)) -> 78174.79459 | I68: 75272.18 | J68: 2902.614595 | K68: 8471.846 | L68: 0 | M68: =IF(ISERROR(+K68+'App.2-CB_NewCGAAP_DepExp_Yr1'!Q68-L68), 0, +K68+'App.2-CB_NewCGAAP_DepExp_Yr1'!Q68-L68) -> 82410.71759
A69: 1980 | B69: System Supervisor Equipment | C69: 321 | D69: Scada Master Station | E69: 115140.46 | F69: 10 | G69: 0.1 | H69: =IF(F69=0,+'App.2-CB_NewCGAAP_DepExp_Yr1'!Q69,+'App.2-CB_NewCGAAP_DepExp_Yr1'!Q69+((E69*0.5)/F69)) -> 65351.93324 | I69: 62066.04 | J69: 3285.893238 | K69: 11514.046 | L69: 0 | M69: =IF(ISERROR(+K69+'App.2-CB_NewCGAAP_DepExp_Yr1'!Q69-L69), 0, +K69+'App.2-CB_NewCGAAP_DepExp_Yr1'!Q69-L69) -> 71108.95624
A70: 1995 | B70: Contributions & Grants | C70: 1995 | D70: Contribution & Grants Credit | E70: 0 | F70: 40 | G70: 0.025 | H70: =IF(F70=0,+'App.2-CB_NewCGAAP_DepExp_Yr1'!Q70,+'App.2-CB_NewCGAAP_DepExp_Yr1'!Q70+((E70*0.5)/F70)) -> -899701.1716 | I70: -899701.21 | J70: 0.03839808586 | K70: 0 | L70: 0 | M70: =IF(ISERROR(+K70+'App.2-CB_NewCGAAP_DepExp_Yr1'!Q70-L70), 0, +K70+'App.2-CB_NewCGAAP_DepExp_Yr1'!Q70-L70) -> -899701.1716
A71: 2440 | B71: Deferred Revenue | C71: 1996 | D71: Deferred Revenue | E71: -1870692.02 | F71: 40 | G71: 0.025 | H71: =IF(F71=0,+'App.2-CB_NewCGAAP_DepExp_Yr1'!Q71,+'App.2-CB_NewCGAAP_DepExp_Yr1'!Q71+((E71*0.5)/F71)) -> -23383.65025 | I71: -20810.84 | J71: -2572.81025 | K71: -46767.3005 | L71: 0 | M71: =IF(ISERROR(+K71+'App.2-CB_NewCGAAP_DepExp_Yr1'!Q71-L71), 0, +K71+'App.2-CB_NewCGAAP_DepExp_Yr1'!Q71-L71) -> -46767.3005
B72: Total | E72: =SUM(E20:E71) -> 24651127.27 | H72: =SUM(H20:H71) -> 17696431.46 | I72: 17423638.88 | J72: 272792.5808 | K72: 1719291.252 | L72: 1621235.569 | M72: 16934841.52
A74: Actual depreciation expense on additions is calculated based on when the asset is put into service. London Hydro does not apply half-year depreciation expense on actual additions in the year. This is the reason for the variance in the above schedule.
A77: Notes:
A78: 1 | B78: Board policy of the "half-year" rule - the applicant must ensure that additions in the year attract a half-year depreciation expense in the first year. Deviations from this standard practice must be supported in the application.
A79: 2 | B79: The applicant must provide an explanation of material variances in evidence.
A80: 3 | B80: This column refers to the calculated full year depreciation but excludes the depreciation expense on assets fully depreciated during the year. This column is used for the purpose of calculating depreciation expense in the following year on the next worksheet.
A82: General: | B82: Applicants must provide a breakdown of depreciation and amortization expense in the above format for all relevant accounts. Asset Retirement Obligations (AROs), depreciation and accretion expense should be disclosed separately consistent with the Notes of historical Audited Financial Statements.

Sheet App.2-CD_DepExp_Yr3
L1: File Number: | M1: =EBNUMBER -> EB-2016-0091
L2: Exhibit:
L3: Tab:
L4: Schedule:
L5: Page:
K7: 2016-08-26 | L7: Date: | M7: 2016-08-26
A9: Appendix 2-CD
A10: Depreciation and Amortization Expense
A11: MIFRS (Year 3)
A13: Select the set of appendices that apply | L13: Year Reflected in Schedule Below | M13: Accounting Standard
A14: 2012 Set of Appendices (2-CA to 2-CG) | C14: Assumes the applicant made capitalization and depreciation expense accounting policy changes under CGAAP effective January 1, 2012 and has adopted IFRS for financial reporting purposes effective January 1, 2015. Assumes that the applicant is reflecting these changes in a rebasing application for the first time. | L14: 2014 | M14: Revised CGAAP
A15: 2013 Set of Appendices (2-CA to 2-CF) | C15: Assumes the applicant made capitalization and depreciation expense accounting policy changes under CGAAP effective January 1, 2013 and has adopted IFRS for financial reporting purposes effective January 1, 2015. Assumes that the applicant is reflecting these changes in a rebasing application for the first time. | L15: 2015 | M15: MIFRS
A18: Account | B18: Description | C18: Subsidiary | D18: Subsidiary Description | E18: Additions | F18: Years (new additions only) | G18: Depreciation Rate on New Additions | H18: Current Year Depreciation Expense1 | I18: Depreciation Expense per Apppendix 2-BA Fixed Assets, Column J (l) | J18: Variance 2 | K18: Depreciation Expense on Current Full Year Additions | L18: Less Depreciation Expense on Assets Fully Depreciated During the Year (o) | M18: Current Full Year Depreciation 3
E19: (d) | F19: (f) | G19: (g) = 1 / (f) | H19: (h) = Prior Full Year Deprecation + ((d)*0.5)/(f) | J19: (m) = (h) - (l) | K19: (n)=((d))/(f) | M19: (p) = Prior Full Year Depreciation + (n) - (o)
A20: 1611 | B20: Computer Software (Formally known as Account 1925) | C20: 720 | D20: Computer Equip-Software | E20: 4210967.72 | F20: 5 | G20: =IF(F20=0,0,1/F20) -> 0.2 | H20: =IF(F20=0,+'App.2-CC_DepExp_Yr2'!M20,+'App.2-CC_DepExp_Yr2'!M20+((E20*0.5)/F20)) -> 4812226.446 | I20: 4625389.39 | J20: =IF(ISERROR(+H20-I20), 0, +H20-I20) -> 186837.0557 | K20: =IF(F20=0,0,+(E20)/F20) -> 842193.544 | L20: 563584.1856 | M20: =IF(ISERROR(+K20+'App.2-CC_DepExp_Yr2'!M20-L20), 0, +K20+'App.2-CC_DepExp_Yr2'!M20-L20) -> 4669739.032
A21: 1611 | B21: Computer Software (Formally known as Account 1925) | C21: 721 | D21: Computer Equip-Software - 3 yr | E21: 784435.62 | F21: 3 | G21: 0.3333333333 | H21: =IF(F21=0,+'App.2-CC_DepExp_Yr2'!M21,+'App.2-CC_DepExp_Yr2'!M21+((E21*0.5)/F21)) -> 458220.3889 | I21: 351397.76 | J21: 106822.6289 | K21: =IF(F21=0,0,+(E21)/F21) -> 261478.54 | L21: 82491.02183 | M21: =IF(ISERROR(+K21+'App.2-CC_DepExp_Yr2'!M21-L21), 0, +K21+'App.2-CC_DepExp_Yr2'!M21-L21) -> 506468.6371
A22: 1612 | B22: Land Rights (Formally known as Account 1906) | C22: 410 | D22: Land Rights | E22: 31245.05 | F22: 25 | G22: =IF(F22=0,0,1/F22) -> 0.04 | H22: =IF(F22=0,+'App.2-CC_DepExp_Yr2'!M22,+'App.2-CC_DepExp_Yr2'!M22+((E22*0.5)/F22)) -> 18090.00625 | I22: 17569.29 | J22: =IF(ISERROR(+H22-I22), 0, +H22-I22) -> 520.7162543 | K22: =IF(F22=0,0,+(E22)/F22) -> 1249.802 | L22: 0 | M22: =IF(ISERROR(+K22+'App.2-CC_DepExp_Yr2'!M22-L22), 0, +K22+'App.2-CC_DepExp_Yr2'!M22-L22) -> 18714.90725
A23: 1805 | B23: Land | C23: 1800 | D23: Land | E23: 0 | F23: 0 | G23: 0 | H23: =IF(F23=0,+'App.2-CC_DepExp_Yr2'!M23,+'App.2-CC_DepExp_Yr2'!M23+((E23*0.5)/F23)) -> 0 | I23: 0 | J23: 0 | K23: 0 | L23: 0 | M23: =IF(ISERROR(+K23+'App.2-CC_DepExp_Yr2'!M23-L23), 0, +K23+'App.2-CC_DepExp_Yr2'!M23-L23) -> 0
A24: 1808 | B24: Buildings | C24: 340 | D24: SS Building Overall | E24: 0 | F24: 75 | G24: 0.01333333333 | H24: =IF(F24=0,+'App.2-CC_DepExp_Yr2'!M24,+'App.2-CC_DepExp_Yr2'!M24+((E24*0.5)/F24)) -> 5775.439424 | I24: 5775.43 | J24: 0.00942439456 | K24: 0 | L24: 0 | M24: =IF(ISERROR(+K24+'App.2-CC_DepExp_Yr2'!M24-L24), 0, +K24+'App.2-CC_DepExp_Yr2'!M24-L24) -> 5775.439424
A25: 1808 | B25: Buildings | C25: 341 | D25: SS Roof | E25: 0 | F25: 30 | G25: 0.03333333333 | H25: =IF(F25=0,+'App.2-CC_DepExp_Yr2'!M25,+'App.2-CC_DepExp_Yr2'!M25+((E25*0.5)/F25)) -> 5317.859368 | I25: 5317.87 | J25: -0.01063199614 | K25: 0 | L25: 0 | M25: =IF(ISERROR(+K25+'App.2-CC_DepExp_Yr2'!M25-L25), 0, +K25+'App.2-CC_DepExp_Yr2'!M25-L25) -> 5317.859368
A26: 1820 | B26: Distribution Station Equipment <50 kV | C26: 310 | D26: Distr Stn Equip | E26: 130215.11 | F26: 45 | G26: 0.02222222222 | H26: =IF(F26=0,+'App.2-CC_DepExp_Yr2'!M26,+'App.2-CC_DepExp_Yr2'!M26+((E26*0.5)/F26)) -> 243792.1929 | I26: 243334.96 | J26: 457.2328581 | K26: 2893.669111 | L26: 0 | M26: =IF(ISERROR(+K26+'App.2-CC_DepExp_Yr2'!M26-L26), 0, +K26+'App.2-CC_DepExp_Yr2'!M26-L26) -> 245239.0274
A27: 1820 | B27: Distribution Station Equipment <50 kV | C27: 311 | D27: Battery Banks & Charges | E27: 12194.76 | F27: 15 | G27: 0.06666666667 | H27: =IF(F27=0,+'App.2-CC_DepExp_Yr2'!M27,+'App.2-CC_DepExp_Yr2'!M27+((E27*0.5)/F27)) -> 16874.41105 | I27: 16738.92 | J27: 135.4910544 | K27: 812.984 | L27: 2000.060952 | M27: =IF(ISERROR(+K27+'App.2-CC_DepExp_Yr2'!M27-L27), 0, +K27+'App.2-CC_DepExp_Yr2'!M27-L27) -> 15280.8421
A28: 1820 | B28: Distribution Station Equipment <50 kV | C28: 312 | D28: Digital Relays | E28: 24380.74 | F28: 20 | G28: 0.05 | H28: =IF(F28=0,+'App.2-CC_DepExp_Yr2'!M28,+'App.2-CC_DepExp_Yr2'!M28+((E28*0.5)/F28)) -> 19958.65804 | I28: 20060.25 | J28: -101.5919604 | K28: 1219.037 | L28: 0 | M28: =IF(ISERROR(+K28+'App.2-CC_DepExp_Yr2'!M28-L28), 0, +K28+'App.2-CC_DepExp_Yr2'!M28-L28) -> 20568.17654
A29: 1610 | B29: Intangible - wholesale meter | C29: 313 | D29: Intangible - wholesale meter | E29: 0 | F29: 30 | G29: 0.03333333333 | H29: =IF(F29=0,+'App.2-CC_DepExp_Yr2'!M29,+'App.2-CC_DepExp_Yr2'!M29+((E29*0.5)/F29)) -> 43095.89719 | I29: 43095.89 | J29: 0.007193643942 | K29: 0 | L29: 0 | M29: =IF(ISERROR(+K29+'App.2-CC_DepExp_Yr2'!M29-L29), 0, +K29+'App.2-CC_DepExp_Yr2'!M29-L29) -> 43095.89719
A30: 1830 | B30: Poles, Towers & Fixtures | C30: 210 | D30: Poles, and Fixtures | E30: 1462624.22 | F30: 45 | G30: 0.02222222222 | H30: =IF(F30=0,+'App.2-CC_DepExp_Yr2'!M30,+'App.2-CC_DepExp_Yr2'!M30+((E30*0.5)/F30)) -> 646558.6273 | I30: 637345.97 | J30: 9212.657263 | K30: 32502.76044 | L30: 0 | M30: =IF(ISERROR(+K30+'App.2-CC_DepExp_Yr2'!M30-L30), 0, +K30+'App.2-CC_DepExp_Yr2'!M30-L30) -> 662810.0075
A31: 1835 | B31: Overhead Conductors & Devices | C31: 220 | D31: OH Primary Conductor | E31: 2462827.91 | F31: 50 | G31: 0.02 | H31: =IF(F31=0,+'App.2-CC_DepExp_Yr2'!M31,+'App.2-CC_DepExp_Yr2'!M31+((E31*0.5)/F31)) -> 712767.7595 | I31: 702627.74 | J31: 10140.01954 | K31: 49256.5582 | L31: 0 | M31: =IF(ISERROR(+K31+'App.2-CC_DepExp_Yr2'!M31-L31), 0, +K31+'App.2-CC_DepExp_Yr2'!M31-L31) -> 737396.0386
A32: 1835 | B32: Overhead Conductors & Devices | C32: 221 | D32: Switches & Reclosers | E32: 264460.94 | F32: 45 | G32: 0.02222222222 | H32: =IF(F32=0,+'App.2-CC_DepExp_Yr2'!M32,+'App.2-CC_DepExp_Yr2'!M32+((E32*0.5)/F32)) -> 194395.3686 | I32: 192445.48 | J32: 1949.888559 | K32: 5876.909778 | L32: 0 | M32: =IF(ISERROR(+K32+'App.2-CC_DepExp_Yr2'!M32-L32), 0, +K32+'App.2-CC_DepExp_Yr2'!M32-L32) -> 197333.8234
A33: 1840 | B33: Underground Conduit | C33: 110 | D33: Vaults & Manholes | E33: 4855642.01 | F33: 60 | G33: 0.01666666667 | H33: =IF(F33=0,+'App.2-CC_DepExp_Yr2'!M33,+'App.2-CC_DepExp_Yr2'!M33+((E33*0.5)/F33)) -> 547216.9224 | I33: 530149.23 | J33: 17067.69244 | K33: 80927.36683 | L33: 0 | M33: =IF(ISERROR(+K33+'App.2-CC_DepExp_Yr2'!M33-L33), 0, +K33+'App.2-CC_DepExp_Yr2'!M33-L33) -> 587680.6059
A34: 1840 | B34: Underground Conduit | C34: 111 | D34: Vault & Manhole Roofs | E34: 237944.14 | F34: 30 | G34: 0.03333333333 | H34: =IF(F34=0,+'App.2-CC_DepExp_Yr2'!M34,+'App.2-CC_DepExp_Yr2'!M34+((E34*0.5)/F34)) -> 67663.38859 | I34: 65510.66 | J34: 2152.728586 | K34: 7931.471333 | L34: 0 | M34: =IF(ISERROR(+K34+'App.2-CC_DepExp_Yr2'!M34-L34), 0, +K34+'App.2-CC_DepExp_Yr2'!M34-L34) -> 71629.12425
A35: 1845 | B35: Underground Conductors & Devices | C35: 120 | D35: Direct Buried Cable | E35: 813.09 | F35: 25 | G35: 0.04 | H35: =IF(F35=0,+'App.2-CC_DepExp_Yr2'!M35,+'App.2-CC_DepExp_Yr2'!M35+((E35*0.5)/F35)) -> 2872146.131 | I35: 2872461.51 | J35: -315.3792 | K35: 32.5236 | L35: 267397.4333 | M35: =IF(ISERROR(+K35+'App.2-CC_DepExp_Yr2'!M35-L35), 0, +K35+'App.2-CC_DepExp_Yr2'!M35-L35) -> 2604764.959
A36: 1845 | B36: Underground Conductors & Devices | C36: 130 | D36: TRXLPE Cable - in duct | E36: 4637057.42 | F36: 40 | G36: 0.025 | H36: =IF(F36=0,+'App.2-CC_DepExp_Yr2'!M36,+'App.2-CC_DepExp_Yr2'!M36+((E36*0.5)/F36)) -> 414198.0712 | I36: 396882.12 | J36: 17315.95125 | K36: 115926.4355 | L36: 0 | M36: =IF(ISERROR(+K36+'App.2-CC_DepExp_Yr2'!M36-L36), 0, +K36+'App.2-CC_DepExp_Yr2'!M36-L36) -> 472161.289
A37: 1845 | B37: Underground Conductors & Devices | C37: 131 | D37: SF6 & Vacuum Switchgear | E37: 277734.18 | F37: 30 | G37: 0.03333333333 | H37: =IF(F37=0,+'App.2-CC_DepExp_Yr2'!M37,+'App.2-CC_DepExp_Yr2'!M37+((E37*0.5)/F37)) -> 82545.99597 | I37: 81714.91 | J37: 831.085973 | K37: 9257.806 | L37: 0 | M37: =IF(ISERROR(+K37+'App.2-CC_DepExp_Yr2'!M37-L37), 0, +K37+'App.2-CC_DepExp_Yr2'!M37-L37) -> 87174.89897
A38: 1845 | B38: Underground Conductors & Devices | C38: 132 | D38: PILC Primary Cable | E38: 94011.66 | F38: 30 | G38: 0.03333333333 | H38: =IF(F38=0,+'App.2-CC_DepExp_Yr2'!M38,+'App.2-CC_DepExp_Yr2'!M38+((E38*0.5)/F38)) -> 118259.9449 | I38: 117699.67 | J38: 560.2749097 | K38: 3133.722 | L38: 0 | M38: =IF(ISERROR(+K38+'App.2-CC_DepExp_Yr2'!M38-L38), 0, +K38+'App.2-CC_DepExp_Yr2'!M38-L38) -> 119826.8059
A39: 1845 | B39: Underground Conductors & Devices | C39: 133 | D39: Air Insulated Switchgear | E39: 0 | F39: 25 | G39: 0.04 | H39: =IF(F39=0,+'App.2-CC_DepExp_Yr2'!M39,+'App.2-CC_DepExp_Yr2'!M39+((E39*0.5)/F39)) -> 34066.8211 | I39: 34066.84 | J39: -0.01890415495 | K39: 0 | L39: 2478.243333 | M39: =IF(ISERROR(+K39+'App.2-CC_DepExp_Yr2'!M39-L39), 0, +K39+'App.2-CC_DepExp_Yr2'!M39-L39) -> 31588.57776
A40: 1850 | B40: Line Transformers | C40: 150 | D40: Pad Mount Transformers | E40: 3974014.07 | F40: 35 | G40: 0.02857142857 | H40: =IF(F40=0,+'App.2-CC_DepExp_Yr2'!M40,+'App.2-CC_DepExp_Yr2'!M40+((E40*0.5)/F40)) -> 1252499.534 | I40: 1236225.09 | J40: 16274.44363 | K40: 113543.2591 | L40: 0 | M40: =IF(ISERROR(+K40+'App.2-CC_DepExp_Yr2'!M40-L40), 0, +K40+'App.2-CC_DepExp_Yr2'!M40-L40) -> 1309271.163
A41: 1850 | B41: Line Transformers | C41: 151 | D41: Network Transformers | E41: 201128.32 | F41: 35 | G41: 0.02857142857 | H41: =IF(F41=0,+'App.2-CC_DepExp_Yr2'!M41,+'App.2-CC_DepExp_Yr2'!M41+((E41*0.5)/F41)) -> 182677.8105 | I41: 180853.81 | J41: 1824.000501 | K41: 5746.523429 | L41: 0 | M41: =IF(ISERROR(+K41+'App.2-CC_DepExp_Yr2'!M41-L41), 0, +K41+'App.2-CC_DepExp_Yr2'!M41-L41) -> 185551.0722
A42: 1850 | B42: Line Transformers | C42: 230 | D42: Overhead Transformers | E42: 1504332.44 | F42: 35 | G42: 0.02857142857 | H42: =IF(F42=0,+'App.2-CC_DepExp_Yr2'!M42,+'App.2-CC_DepExp_Yr2'!M42+((E42*0.5)/F42)) -> 602468.6158 | I42: 591293.94 | J42: 11174.67583 | K42: 42980.92686 | L42: 0 | M42: =IF(ISERROR(+K42+'App.2-CC_DepExp_Yr2'!M42-L42), 0, +K42+'App.2-CC_DepExp_Yr2'!M42-L42) -> 623959.0793
A43: 1855 | B43: Services (Overhead & Underground) | C43: 160 | D43: UG Secondary Services | E43: 1285307.79 | F43: 30 | G43: 0.03333333333 | H43: =IF(F43=0,+'App.2-CC_DepExp_Yr2'!M43,+'App.2-CC_DepExp_Yr2'!M43+((E43*0.5)/F43)) -> 431914.2921 | I43: 423747.24 | J43: 8167.052142 | K43: 42843.593 | L43: 0 | M43: =IF(ISERROR(+K43+'App.2-CC_DepExp_Yr2'!M43-L43), 0, +K43+'App.2-CC_DepExp_Yr2'!M43-L43) -> 453336.0886
A44: 1855 | B44: Services (Overhead & Underground) | C44: 240 | D44: OH Secondary Services | E44: 1165610.78 | F44: 60 | G44: 0.01666666667 | H44: =IF(F44=0,+'App.2-CC_DepExp_Yr2'!M44,+'App.2-CC_DepExp_Yr2'!M44+((E44*0.5)/F44)) -> 171922.791 | I44: 167199.81 | J44: 4722.981037 | K44: 19426.84633 | L44: 0 | M44: =IF(ISERROR(+K44+'App.2-CC_DepExp_Yr2'!M44-L44), 0, +K44+'App.2-CC_DepExp_Yr2'!M44-L44) -> 181636.2142
A45: 1860 | B45: Meters | C45: 600 | D45: Regular Meters | E45: 45.52 | F45: 30 | G45: 0.03333333333 | H45: =IF(F45=0,+'App.2-CC_DepExp_Yr2'!M45,+'App.2-CC_DepExp_Yr2'!M45+((E45*0.5)/F45)) -> 80876.98717 | I45: 80877.09 | J45: -0.1028329442 | K45: 1.517333333 | L45: 0 | M45: =IF(ISERROR(+K45+'App.2-CC_DepExp_Yr2'!M45-L45), 0, +K45+'App.2-CC_DepExp_Yr2'!M45-L45) -> 80877.74583
A46: 1860 | B46: Meters (Smart Meters) | C46: 601 | D46: Smart Meters | E46: 1012292.55 | F46: 15 | G46: 0.06666666667 | H46: =IF(F46=0,+'App.2-CC_DepExp_Yr2'!M46,+'App.2-CC_DepExp_Yr2'!M46+((E46*0.5)/F46)) -> 1308245.281 | I46: 1303876.61 | J46: 4368.671428 | K46: 67486.17 | L46: 0 | M46: =IF(ISERROR(+K46+'App.2-CC_DepExp_Yr2'!M46-L46), 0, +K46+'App.2-CC_DepExp_Yr2'!M46-L46) -> 1341988.366
A47: 1860 | B47: Meters (Smart Meters) | C47: 602 | D47: CT's and PT's | E47: 286900.3 | F47: 30 | G47: 0.03333333333 | H47: =IF(F47=0,+'App.2-CC_DepExp_Yr2'!M47,+'App.2-CC_DepExp_Yr2'!M47+((E47*0.5)/F47)) -> 88981.22714 | I47: 88181.29 | J47: 799.9371376 | K47: 9563.343333 | L47: 0 | M47: =IF(ISERROR(+K47+'App.2-CC_DepExp_Yr2'!M47-L47), 0, +K47+'App.2-CC_DepExp_Yr2'!M47-L47) -> 93762.8988
A48: 1908 | B48: Buildings & Fixtures | C48: 350 | D48: Buildings - Civil | E48: 0 | F48: 65 | G48: 0.01538461538 | H48: =IF(F48=0,+'App.2-CC_DepExp_Yr2'!M48,+'App.2-CC_DepExp_Yr2'!M48+((E48*0.5)/F48)) -> 120273.667 | I48: 120319.74 | J48: -46.07295204 | K48: 0 | L48: 0 | M48: =IF(ISERROR(+K48+'App.2-CC_DepExp_Yr2'!M48-L48), 0, +K48+'App.2-CC_DepExp_Yr2'!M48-L48) -> 120273.667
A49: 1908 | B49: Buildings & Fixtures | C49: 351 | D49: Buildings - Roof | E49: 0 | F49: 25 | G49: 0.04 | H49: =IF(F49=0,+'App.2-CC_DepExp_Yr2'!M49,+'App.2-CC_DepExp_Yr2'!M49+((E49*0.5)/F49)) -> 44485.7358 | I49: 44485.73 | J49: 0.005798130725 | K49: 0 | L49: 0 | M49: =IF(ISERROR(+K49+'App.2-CC_DepExp_Yr2'!M49-L49), 0, +K49+'App.2-CC_DepExp_Yr2'!M49-L49) -> 44485.7358
A50: 1908 | B50: Buildings & Fixtures | C50: 352 | D50: Buildings - Parking | E50: 0 | F50: 30 | G50: 0.03333333333 | H50: =IF(F50=0,+'App.2-CC_DepExp_Yr2'!M50,+'App.2-CC_DepExp_Yr2'!M50+((E50*0.5)/F50)) -> 34507.43164 | I50: 34808.02 | J50: -300.5883574 | K50: 0 | L50: 0 | M50: =IF(ISERROR(+K50+'App.2-CC_DepExp_Yr2'!M50-L50), 0, +K50+'App.2-CC_DepExp_Yr2'!M50-L50) -> 34507.43164
A51: 1908 | B51: Buildings & Fixtures | C51: 353 | D51: Buildings - Fences | E51: 0 | F51: 60 | G51: 0.01666666667 | H51: =IF(F51=0,+'App.2-CC_DepExp_Yr2'!M51,+'App.2-CC_DepExp_Yr2'!M51+((E51*0.5)/F51)) -> 472.9109091 | I51: 472.91 | J51: 0.0009090909089 | K51: 0 | L51: 0 | M51: =IF(ISERROR(+K51+'App.2-CC_DepExp_Yr2'!M51-L51), 0, +K51+'App.2-CC_DepExp_Yr2'!M51-L51) -> 472.9109091
A52: 1908 | B52: Buildings & Fixtures | C52: 354 | D52: Electronic/Mechanical Systems | E52: 213730.84 | F52: 12 | G52: 0.08333333333 | H52: =IF(F52=0,+'App.2-CC_DepExp_Yr2'!M52,+'App.2-CC_DepExp_Yr2'!M52+((E52*0.5)/F52)) -> 303097.8951 | I52: 302436.18 | J52: 661.7150744 | K52: 17810.90333 | L52: 6842.6375 | M52: =IF(ISERROR(+K52+'App.2-CC_DepExp_Yr2'!M52-L52), 0, +K52+'App.2-CC_DepExp_Yr2'!M52-L52) -> 305160.7092
A53: 1908 | B53: Buildings & Fixtures | C53: 355 | D53: Electric / Mechanical Systems | E53: 459585.51 | F53: 30 | G53: 0.03333333333 | H53: =IF(F53=0,+'App.2-CC_DepExp_Yr2'!M53,+'App.2-CC_DepExp_Yr2'!M53+((E53*0.5)/F53)) -> 417090.0808 | I53: 416546.31 | J53: 543.770777 | K53: 15319.517 | L53: 0 | M53: =IF(ISERROR(+K53+'App.2-CC_DepExp_Yr2'!M53-L53), 0, +K53+'App.2-CC_DepExp_Yr2'!M53-L53) -> 424749.8393
A54: 1908 | B54: Buildings & Fixtures | C54: 356 | D54: Buildings - Improvements | E54: 0 | F54: 15 | G54: 0.06666666667 | H54: =IF(F54=0,+'App.2-CC_DepExp_Yr2'!M54,+'App.2-CC_DepExp_Yr2'!M54+((E54*0.5)/F54)) -> 0 | I54: 0 | J54: 0 | K54: 0 | L54: 0 | M54: =IF(ISERROR(+K54+'App.2-CC_DepExp_Yr2'!M54-L54), 0, +K54+'App.2-CC_DepExp_Yr2'!M54-L54) -> 0
A55: 1915 | B55: Office Furniture & Equipment | C55: 700 | D55: Office Furn & Equip | E55: 79805.08 | F55: 5 | G55: 0.2 | H55: =IF(F55=0,+'App.2-CC_DepExp_Yr2'!M55,+'App.2-CC_DepExp_Yr2'!M55+((E55*0.5)/F55)) -> 125792.0773 | I55: 122831.65 | J55: 2960.427337 | K55: 15961.016 | L55: 37066.99595 | M55: =IF(ISERROR(+K55+'App.2-CC_DepExp_Yr2'!M55-L55), 0, +K55+'App.2-CC_DepExp_Yr2'!M55-L55) -> 96705.58939
A56: 1920 | B56: Computer Equipment - Hardware | C56: 710 | D56: Computer Equip-Hardware | E56: 631316.59 | F56: 3 | G56: 0.3333333333 | H56: =IF(F56=0,+'App.2-CC_DepExp_Yr2'!M56,+'App.2-CC_DepExp_Yr2'!M56+((E56*0.5)/F56)) -> 968270.8423 | I56: 959361.6 | J56: 8909.242309 | K56: 210438.8633 | L56: 379327.1312 | M56: =IF(ISERROR(+K56+'App.2-CC_DepExp_Yr2'!M56-L56), 0, +K56+'App.2-CC_DepExp_Yr2'!M56-L56) -> 694163.1428
A57: 1930 | B57: Transportation Equipment | C57: 730 | D57: Transportation-Cars, Vans | E57: 0 | F57: 8 | G57: 0.125 | H57: =IF(F57=0,+'App.2-CC_DepExp_Yr2'!M57,+'App.2-CC_DepExp_Yr2'!M57+((E57*0.5)/F57)) -> 307925.5396 | I57: 301797.56 | J57: 6127.979574 | K57: 0 | L57: 11489.39748 | M57: =IF(ISERROR(+K57+'App.2-CC_DepExp_Yr2'!M57-L57), 0, +K57+'App.2-CC_DepExp_Yr2'!M57-L57) -> 296436.1421
A58: 1930 | B58: Transportation Equipment | C58: 740 | D58: Transportation-Large Vehicles | E58: 1135874.75 | F58: 12 | G58: 0.08333333333 | H58: =IF(F58=0,+'App.2-CC_DepExp_Yr2'!M58,+'App.2-CC_DepExp_Yr2'!M58+((E58*0.5)/F58)) -> 461426.0143 | I58: 422741.11 | J58: 38684.90426 | K58: 94656.22917 | L58: 0 | M58: =IF(ISERROR(+K58+'App.2-CC_DepExp_Yr2'!M58-L58), 0, +K58+'App.2-CC_DepExp_Yr2'!M58-L58) -> 508754.1288
A59: 1930 | B59: Transportation Equipment | C59: 750 | D59: Trailers | E59: 14351 | F59: 10 | G59: 0.1 | H59: =IF(F59=0,+'App.2-CC_DepExp_Yr2'!M59,+'App.2-CC_DepExp_Yr2'!M59+((E59*0.5)/F59)) -> 30533.6008 | I59: 29935.62 | J59: 597.9807975 | K59: 1435.1 | L59: 0 | M59: =IF(ISERROR(+K59+'App.2-CC_DepExp_Yr2'!M59-L59), 0, +K59+'App.2-CC_DepExp_Yr2'!M59-L59) -> 31251.1508
A60: 1935 | B60: Stores Equipment | C60: 760 | D60: Stores Equipment | E60: 0 | F60: 8 | G60: 0.125 | H60: =IF(F60=0,+'App.2-CC_DepExp_Yr2'!M60,+'App.2-CC_DepExp_Yr2'!M60+((E60*0.5)/F60)) -> 6032.951987 | I60: 6032.96 | J60: -0.008012776188 | K60: 0 | L60: 3603.896168 | M60: =IF(ISERROR(+K60+'App.2-CC_DepExp_Yr2'!M60-L60), 0, +K60+'App.2-CC_DepExp_Yr2'!M60-L60) -> 2429.055819
A61: 1940 | B61: Tools, Shop & Garage Equipment | C61: 770 | D61: Tools,Shop & Garage Equi | E61: 89981.02 | F61: 8 | G61: 0.125 | H61: =IF(F61=0,+'App.2-CC_DepExp_Yr2'!M61,+'App.2-CC_DepExp_Yr2'!M61+((E61*0.5)/F61)) -> 124752.5378 | I61: 122990.27 | J61: 1762.267837 | K61: 11247.6275 | L61: 13920.41478 | M61: =IF(ISERROR(+K61+'App.2-CC_DepExp_Yr2'!M61-L61), 0, +K61+'App.2-CC_DepExp_Yr2'!M61-L61) -> 116455.9368
A62: 1945 | B62: Measurement & Testing Equipment | C62: 780 | D62: Measurement & Test Equip | E62: 316420.59 | F62: 8 | G62: 0.125 | H62: =IF(F62=0,+'App.2-CC_DepExp_Yr2'!M62,+'App.2-CC_DepExp_Yr2'!M62+((E62*0.5)/F62)) -> 44972.21756 | I62: 33574.44 | J62: 11397.77756 | K62: 39552.57375 | L62: 129.1423404 | M62: =IF(ISERROR(+K62+'App.2-CC_DepExp_Yr2'!M62-L62), 0, +K62+'App.2-CC_DepExp_Yr2'!M62-L62) -> 64619.3621
A63: 1950 | B63: Power Operated Equipment | C63: 790 | D63: Power Operated Equipment | E63: 147000 | F63: 8 | G63: 0.125 | H63: =IF(F63=0,+'App.2-CC_DepExp_Yr2'!M63,+'App.2-CC_DepExp_Yr2'!M63+((E63*0.5)/F63)) -> 128457.7098 | I63: 110777.69 | J63: 17680.01982 | K63: 18375 | L63: 11739.64808 | M63: =IF(ISERROR(+K63+'App.2-CC_DepExp_Yr2'!M63-L63), 0, +K63+'App.2-CC_DepExp_Yr2'!M63-L63) -> 125905.5617
A64: 1955 | B64: Communications Equipment | C64: 330 | D64: Communication Towers | E64: 0 | F64: 35 | G64: 0.02857142857 | H64: =IF(F64=0,+'App.2-CC_DepExp_Yr2'!M64,+'App.2-CC_DepExp_Yr2'!M64+((E64*0.5)/F64)) -> 20139.25077 | I64: 20139.26 | J64: -0.009233102617 | K64: 0 | L64: 0 | M64: =IF(ISERROR(+K64+'App.2-CC_DepExp_Yr2'!M64-L64), 0, +K64+'App.2-CC_DepExp_Yr2'!M64-L64) -> 20139.25077
A65: 1955 | B65: Communications Equipment | C65: 331 | D65: Communication -wireless | E65: 69190.16 | F65: 15 | G65: 0.06666666667 | H65: =IF(F65=0,+'App.2-CC_DepExp_Yr2'!M65,+'App.2-CC_DepExp_Yr2'!M65+((E65*0.5)/F65)) -> 208111.4101 | I65: 206189.47 | J65: 1921.940077 | K65: 4612.677333 | L65: 0 | M65: =IF(ISERROR(+K65+'App.2-CC_DepExp_Yr2'!M65-L65), 0, +K65+'App.2-CC_DepExp_Yr2'!M65-L65) -> 210417.7487
A66: 1955 | B66: Communications Equipment | C66: 332 | D66: Communication -equipment | E66: 2203.96 | F66: 8 | G66: 0.125 | H66: =IF(F66=0,+'App.2-CC_DepExp_Yr2'!M66,+'App.2-CC_DepExp_Yr2'!M66+((E66*0.5)/F66)) -> 21676.73 | I66: 21656.55 | J66: 20.18 | K66: 275.495 | L66: 0 | M66: =IF(ISERROR(+K66+'App.2-CC_DepExp_Yr2'!M66-L66), 0, +K66+'App.2-CC_DepExp_Yr2'!M66-L66) -> 21814.4775
A67: 1960 | B67: Miscellaneous Equipment | C67: 795 | D67: Miscellaneous Equipment | E67: 4039 | F67: 8 | G67: 0.125 | H67: =IF(F67=0,+'App.2-CC_DepExp_Yr2'!M67,+'App.2-CC_DepExp_Yr2'!M67+((E67*0.5)/F67)) -> 252.4375 | I67: 42.07 | J67: 210.3675 | K67: 504.875 | L67: 0 | M67: =IF(ISERROR(+K67+'App.2-CC_DepExp_Yr2'!M67-L67), 0, +K67+'App.2-CC_DepExp_Yr2'!M67-L67) -> 504.875
A68: 1980 | B68: System Supervisor Equipment | C68: 320 | D68: Scada RTU's | E68: 944751.5 | F68: 20 | G68: 0.05 | H68: =IF(F68=0,+'App.2-CC_DepExp_Yr2'!M68,+'App.2-CC_DepExp_Yr2'!M68+((E68*0.5)/F68)) -> 106029.5051 | I68: 91274.85 | J68: 14754.65509 | K68: 47237.575 | L68: 0 | M68: =IF(ISERROR(+K68+'App.2-CC_DepExp_Yr2'!M68-L68), 0, +K68+'App.2-CC_DepExp_Yr2'!M68-L68) -> 129648.2926
A69: 1980 | B69: System Supervisor Equipment | C69: 321 | D69: Scada Master Station | E69: 1407.77 | F69: 10 | G69: 0.1 | H69: =IF(F69=0,+'App.2-CC_DepExp_Yr2'!M69,+'App.2-CC_DepExp_Yr2'!M69+((E69*0.5)/F69)) -> 71179.34474 | I69: 71120.68 | J69: 58.66473807 | K69: 140.777 | L69: 393.971815 | M69: =IF(ISERROR(+K69+'App.2-CC_DepExp_Yr2'!M69-L69), 0, +K69+'App.2-CC_DepExp_Yr2'!M69-L69) -> 70855.76142
A70: 1995 | B70: Contributions & Grants | C70: 1995 | D70: Contribution & Grants Credit | E70: 0 | F70: 40 | G70: 0.025 | H70: =IF(F70=0,+'App.2-CC_DepExp_Yr2'!M70,+'App.2-CC_DepExp_Yr2'!M70+((E70*0.5)/F70)) -> -899701.1716 | I70: -899701.23 | J70: 0.058398086 | K70: 0 | L70: 0 | M70: =IF(ISERROR(+K70+'App.2-CC_DepExp_Yr2'!M70-L70), 0, +K70+'App.2-CC_DepExp_Yr2'!M70-L70) -> -899701.1716
A71: 2440 | B71: Deferred Revenue | C71: 1996 | D71: Deferred Revenue | E71: -3788551.42 | F71: 40 | G71: 0.025 | H71: =IF(F71=0,+'App.2-CC_DepExp_Yr2'!M71,+'App.2-CC_DepExp_Yr2'!M71+((E71*0.5)/F71)) -> -94124.19325 | I71: -78720.5 | J71: -15403.69325 | K71: -94713.7855 | L71: 0 | M71: =IF(ISERROR(+K71+'App.2-CC_DepExp_Yr2'!M71-L71), 0, +K71+'App.2-CC_DepExp_Yr2'!M71-L71) -> -141481.086
B72: Total | E72: =SUM(E20:E71) -> 29237292.69 | H72: =SUM(H20:H71) -> 17984411.39 | I72: 17492951.71 | J72: 491459.6842 | K72: 2099139.753 | L72: 1382464.18 | M72: 17651517.09
B73: Depreciation exp. adj. from gain or loss on the retirement of assets (pool of like assets) (under MIFRS)
B74: Total Depreciation Expense | H74: =+H73+H72 -> 17984411.39
B76: Actual depreciation expense on additions is calculated based on when the asset is put into service. London Hydro does not apply half-year depreciation expense on actual additions in the year. This is the reason for the variance in the above schedule.
A79: Notes:
A80: 1 | B80: Board policy of the "half-year" rule - the applicant must ensure that additions in the year attract a half-year depreciation expense in the first year. Deviations from this standard practice must be supported in the application.
A81: 2 | B81: The applicant must provide an explanation of material variances in evidence.
A82: 3 | B82: This column refers to the calculated full year depreciation but excludes the depreciation expense on assets fully depreciated during the year. This column is used for the purpose of calculating depreciation expense in the following year on the next worksheet.
A84: General: | B84: Applicants must provide a breakdown of depreciation and amortization expense in the above format for all relevant accounts. Asset Retirement Obligations (AROs), depreciation and accretion expense should be disclosed separately consistent with the Notes of historical Audited Financial Statements.

Sheet App.2-CE_DepExp_Yr4
L1: File Number: | M1: =EBNUMBER -> EB-2016-0091
L2: Exhibit:
L3: Tab:
L4: Schedule:
L5: Page:
K7: 2016-08-26 | L7: Date: | M7: 2016-08-26
A9: Appendix 2-CE
A10: Depreciation and Amortization Expense
A11: MIFRS (Year 4)
A13: Select the set of appendices that apply | L13: Year Reflected in Schedule Below | M13: Accounting Standard
A14: 2012 Set of Appendices (2-CA to 2-CG) | C14: Assumes the applicant made capitalization and depreciation expense accounting policy changes under CGAAP effective January 1, 2012 and has adopted IFRS for financial reporting purposes effective January 1, 2015. Assumes that the applicant is reflecting these changes in a rebasing application for the first time. | L14: 2015 | M14: MIFRS
A15: 2013 Set of Appendices (2-CA to 2-CF) | C15: Assumes the applicant made capitalization and depreciation expense accounting policy changes under CGAAP effective January 1, 2013 and has adopted IFRS for financial reporting purposes effective January 1, 2015. Assumes that the applicant is reflecting these changes in a rebasing application for the first time. | L15: 2016 | M15: MIFRS
A18: Account | B18: Description | C18: Subsidiary | D18: Subsidiary Description | E18: Additions | F18: Years (new additions only) | G18: Depreciation Rate on New Additions | H18: Current Year Depreciation Expense1 | I18: Depreciation Expense per Appendix 2-BA Fixed Assets, Column J (l) | J18: Variance 2 | K18: Depreciation Expense on Current Full Year Additions | L18: Less Depreciation Expense on Assets Fully Depreciated During the Year (o) | M18: Current Full Year Depreciation 3
E19: (d) | F19: (f) | G19: (g) = 1 / (f) | H19: (h)=Prior Full Year Depreciation + ((d)*0.5)/(f) | J19: (m) = (h) - (l) | K19: (n)=((d))/(f) | M19: (p) = Prior Full Year Depreciation + (n) - (o)
A20: 1611 | B20: Computer Software (Formally known as Account 1925) | C20: 720 | D20: Computer Equip-Software | E20: 4759726.22 | F20: 5 | G20: =IF(F20=0,0,1/F20) -> 0.2 | H20: =IF(F20=0,'App.2-CD_DepExp_Yr3'!M20,+'App.2-CD_DepExp_Yr3'!M20+((E20*0.5)/F20)) -> 5145711.654 | I20: 4916398.73 | J20: =IF(ISERROR(+H20-I20), 0, +H20-I20) -> 229312.9241 | K20: =IF(F20=0,0,+(E20)/F20) -> 951945.244 | L20: 1596018.72 | M20: =IF(ISERROR(+K20+'App.2-CD_DepExp_Yr3'!M20-L20), 0, +K20+'App.2-CD_DepExp_Yr3'!M20-L20) -> 4025665.556
A21: 1611 | B21: Computer Software (Formally known as Account 1925) | C21: 721 | D21: Computer Equip-Software - 3 yr | E21: 58528.62 | F21: 3 | G21: 0.3333333333 | H21: =IF(F21=0,'App.2-CD_DepExp_Yr3'!M21,+'App.2-CD_DepExp_Yr3'!M21+((E21*0.5)/F21)) -> 516223.4071 | I21: 513295.47 | J21: 2927.937115 | K21: =IF(F21=0,0,+(E21)/F21) -> 19509.54 | L21: 104789.1359 | M21: =IF(ISERROR(+K21+'App.2-CD_DepExp_Yr3'!M21-L21), 0, +K21+'App.2-CD_DepExp_Yr3'!M21-L21) -> 421189.0412
A22: 1612 | B22: Land Rights (Formally known as Account 1906) | C22: 410 | D22: Land Rights | E22: 14000.89 | F22: 25 | G22: =IF(F22=0,0,1/F22) -> 0.04 | H22: =IF(F22=0,'App.2-CD_DepExp_Yr3'!M22,+'App.2-CD_DepExp_Yr3'!M22+((E22*0.5)/F22)) -> 18994.92505 | I22: 18909.11 | J22: =IF(ISERROR(+H22-I22), 0, +H22-I22) -> 85.81505434 | K22: =IF(F22=0,0,+(E22)/F22) -> 560.0356 | L22: 0 | M22: =IF(ISERROR(+K22+'App.2-CD_DepExp_Yr3'!M22-L22), 0, +K22+'App.2-CD_DepExp_Yr3'!M22-L22) -> 19274.94285
A23: 1805 | B23: Land | C23: 1800 | D23: Land | E23: 0 | F23: 0 | G23: 0 | H23: =IF(F23=0,'App.2-CD_DepExp_Yr3'!M23,+'App.2-CD_DepExp_Yr3'!M23+((E23*0.5)/F23)) -> 0 | I23: 0 | J23: 0 | K23: 0 | L23: 0 | M23: =IF(ISERROR(+K23+'App.2-CD_DepExp_Yr3'!M23-L23), 0, +K23+'App.2-CD_DepExp_Yr3'!M23-L23) -> 0
A24: 1808 | B24: Buildings | C24: 340 | D24: SS Building Overall | E24: 4651.65 | F24: 75 | G24: 0.01333333333 | H24: =IF(F24=0,'App.2-CD_DepExp_Yr3'!M24,+'App.2-CD_DepExp_Yr3'!M24+((E24*0.5)/F24)) -> 5806.450424 | I24: 5811.59 | J24: -5.139575605 | K24: 62.022 | L24: 0 | M24: =IF(ISERROR(+K24+'App.2-CD_DepExp_Yr3'!M24-L24), 0, +K24+'App.2-CD_DepExp_Yr3'!M24-L24) -> 5837.461424
A25: 1808 | B25: Buildings | C25: 341 | D25: SS Roof | E25: 0 | F25: 30 | G25: 0.03333333333 | H25: =IF(F25=0,'App.2-CD_DepExp_Yr3'!M25,+'App.2-CD_DepExp_Yr3'!M25+((E25*0.5)/F25)) -> 5317.859368 | I25: 5317.84 | J25: 0.01936800386 | K25: 0 | L25: 0 | M25: =IF(ISERROR(+K25+'App.2-CD_DepExp_Yr3'!M25-L25), 0, +K25+'App.2-CD_DepExp_Yr3'!M25-L25) -> 5317.859368
A26: 1820 | B26: Distribution Station Equipment <50 kV | C26: 310 | D26: Distr Stn Equip | E26: 147512.35 | F26: 45 | G26: 0.02222222222 | H26: =IF(F26=0,'App.2-CD_DepExp_Yr3'!M26,+'App.2-CD_DepExp_Yr3'!M26+((E26*0.5)/F26)) -> 246878.0535 | I26: 247467.61 | J26: -589.5564752 | K26: 3278.052222 | L26: 0 | M26: =IF(ISERROR(+K26+'App.2-CD_DepExp_Yr3'!M26-L26), 0, +K26+'App.2-CD_DepExp_Yr3'!M26-L26) -> 248517.0796
A27: 1820 | B27: Distribution Station Equipment <50 kV | C27: 311 | D27: Battery Banks & Charges | E27: 0 | F27: 15 | G27: 0.06666666667 | H27: =IF(F27=0,'App.2-CD_DepExp_Yr3'!M27,+'App.2-CD_DepExp_Yr3'!M27+((E27*0.5)/F27)) -> 15280.8421 | I27: 15280.82 | J27: 0.02210203668 | K27: 0 | L27: 45.70881356 | M27: =IF(ISERROR(+K27+'App.2-CD_DepExp_Yr3'!M27-L27), 0, +K27+'App.2-CD_DepExp_Yr3'!M27-L27) -> 15235.13329
A28: 1820 | B28: Distribution Station Equipment <50 kV | C28: 312 | D28: Digital Relays | E28: 43240.74 | F28: 20 | G28: 0.05 | H28: =IF(F28=0,'App.2-CD_DepExp_Yr3'!M28,+'App.2-CD_DepExp_Yr3'!M28+((E28*0.5)/F28)) -> 21649.19504 | I28: 20748.33 | J28: 900.8650396 | K28: 2162.037 | L28: 0 | M28: =IF(ISERROR(+K28+'App.2-CD_DepExp_Yr3'!M28-L28), 0, +K28+'App.2-CD_DepExp_Yr3'!M28-L28) -> 22730.21354
A29: 1610 | B29: Intangible - wholesale meter | C29: 313 | D29: Intangible - wholesale meter | E29: 0 | F29: 30 | G29: 0.03333333333 | H29: =IF(F29=0,'App.2-CD_DepExp_Yr3'!M29,+'App.2-CD_DepExp_Yr3'!M29+((E29*0.5)/F29)) -> 43095.89719 | I29: 43095.9 | J29: -0.00280635606 | K29: 0 | L29: 0 | M29: =IF(ISERROR(+K29+'App.2-CD_DepExp_Yr3'!M29-L29), 0, +K29+'App.2-CD_DepExp_Yr3'!M29-L29) -> 43095.89719
A30: 1830 | B30: Poles, Towers & Fixtures | C30: 210 | D30: Poles, and Fixtures | E30: 2096642.65 | F30: 45 | G30: 0.02222222222 | H30: =IF(F30=0,'App.2-CD_DepExp_Yr3'!M30,+'App.2-CD_DepExp_Yr3'!M30+((E30*0.5)/F30)) -> 686106.0369 | I30: 684998.58 | J30: 1107.45693 | K30: 46592.05889 | L30: 0 | M30: =IF(ISERROR(+K30+'App.2-CD_DepExp_Yr3'!M30-L30), 0, +K30+'App.2-CD_DepExp_Yr3'!M30-L30) -> 709402.0664
A31: 1835 | B31: Overhead Conductors & Devices | C31: 220 | D31: OH Primary Conductor | E31: 2489797.89 | F31: 50 | G31: 0.02 | H31: =IF(F31=0,'App.2-CD_DepExp_Yr3'!M31,+'App.2-CD_DepExp_Yr3'!M31+((E31*0.5)/F31)) -> 762294.0175 | I31: 760729.2 | J31: 1564.81754 | K31: 49795.9578 | L31: 0 | M31: =IF(ISERROR(+K31+'App.2-CD_DepExp_Yr3'!M31-L31), 0, +K31+'App.2-CD_DepExp_Yr3'!M31-L31) -> 787191.9964
A32: 1835 | B32: Overhead Conductors & Devices | C32: 221 | D32: Switches & Reclosers | E32: 622675.99 | F32: 45 | G32: 0.02222222222 | H32: =IF(F32=0,'App.2-CD_DepExp_Yr3'!M32,+'App.2-CD_DepExp_Yr3'!M32+((E32*0.5)/F32)) -> 204252.4456 | I32: 202636.62 | J32: 1615.825559 | K32: 13837.24422 | L32: 0 | M32: =IF(ISERROR(+K32+'App.2-CD_DepExp_Yr3'!M32-L32), 0, +K32+'App.2-CD_DepExp_Yr3'!M32-L32) -> 211171.0677
A33: 1840 | B33: Underground Conduit | C33: 110 | D33: Vaults & Manholes | E33: 5293951.8 | F33: 60 | G33: 0.01666666667 | H33: =IF(F33=0,'App.2-CD_DepExp_Yr3'!M33,+'App.2-CD_DepExp_Yr3'!M33+((E33*0.5)/F33)) -> 631796.8709 | I33: 620995.97 | J33: 10800.90086 | K33: 88232.53 | L33: 0 | M33: =IF(ISERROR(+K33+'App.2-CD_DepExp_Yr3'!M33-L33), 0, +K33+'App.2-CD_DepExp_Yr3'!M33-L33) -> 675913.1359
A34: 1840 | B34: Underground Conduit | C34: 111 | D34: Vault & Manhole Roofs | E34: 332606.83 | F34: 30 | G34: 0.03333333333 | H34: =IF(F34=0,'App.2-CD_DepExp_Yr3'!M34,+'App.2-CD_DepExp_Yr3'!M34+((E34*0.5)/F34)) -> 77172.57142 | I34: 76411.65 | J34: 760.9214193 | K34: 11086.89433 | L34: 0 | M34: =IF(ISERROR(+K34+'App.2-CD_DepExp_Yr3'!M34-L34), 0, +K34+'App.2-CD_DepExp_Yr3'!M34-L34) -> 82716.01859
A35: 1845 | B35: Underground Conductors & Devices | C35: 120 | D35: Direct Buried Cable | E35: -182.36 | F35: 25 | G35: 0.04 | H35: =IF(F35=0,'App.2-CD_DepExp_Yr3'!M35,+'App.2-CD_DepExp_Yr3'!M35+((E35*0.5)/F35)) -> 2604761.312 | I35: 2604757.86 | J35: 3.452066667 | K35: -7.2944 | L35: 144425.6275 | M35: =IF(ISERROR(+K35+'App.2-CD_DepExp_Yr3'!M35-L35), 0, +K35+'App.2-CD_DepExp_Yr3'!M35-L35) -> 2460332.037
A36: 1845 | B36: Underground Conductors & Devices | C36: 130 | D36: TRXLPE Cable - in duct | E36: 5090324.06 | F36: 40 | G36: 0.025 | H36: =IF(F36=0,'App.2-CD_DepExp_Yr3'!M36,+'App.2-CD_DepExp_Yr3'!M36+((E36*0.5)/F36)) -> 535790.3397 | I36: 530325.33 | J36: 5465.00975 | K36: 127258.1015 | L36: 0 | M36: =IF(ISERROR(+K36+'App.2-CD_DepExp_Yr3'!M36-L36), 0, +K36+'App.2-CD_DepExp_Yr3'!M36-L36) -> 599419.3905
A37: 1845 | B37: Underground Conductors & Devices | C37: 131 | D37: SF6 & Vacuum Switchgear | E37: 480599.71 | F37: 30 | G37: 0.03333333333 | H37: =IF(F37=0,'App.2-CD_DepExp_Yr3'!M37,+'App.2-CD_DepExp_Yr3'!M37+((E37*0.5)/F37)) -> 95184.89414 | I37: 93324.45 | J37: 1860.44414 | K37: 16019.99033 | L37: 90 | M37: =IF(ISERROR(+K37+'App.2-CD_DepExp_Yr3'!M37-L37), 0, +K37+'App.2-CD_DepExp_Yr3'!M37-L37) -> 103104.8893
A38: 1845 | B38: Underground Conductors & Devices | C38: 132 | D38: PILC Primary Cable | E38: 174124.57 | F38: 30 | G38: 0.03333333333 | H38: =IF(F38=0,'App.2-CD_DepExp_Yr3'!M38,+'App.2-CD_DepExp_Yr3'!M38+((E38*0.5)/F38)) -> 122728.8821 | I38: 122071.74 | J38: 657.1420763 | K38: 5804.152333 | L38: 0 | M38: =IF(ISERROR(+K38+'App.2-CD_DepExp_Yr3'!M38-L38), 0, +K38+'App.2-CD_DepExp_Yr3'!M38-L38) -> 125630.9582
A39: 1845 | B39: Underground Conductors & Devices | C39: 133 | D39: Air Insulated Switchgear | E39: 3454.45 | F39: 25 | G39: 0.04 | H39: =IF(F39=0,'App.2-CD_DepExp_Yr3'!M39,+'App.2-CD_DepExp_Yr3'!M39+((E39*0.5)/F39)) -> 31657.66676 | I39: 31634.65 | J39: 23.01676251 | K39: 138.178 | L39: 3645.965 | M39: =IF(ISERROR(+K39+'App.2-CD_DepExp_Yr3'!M39-L39), 0, +K39+'App.2-CD_DepExp_Yr3'!M39-L39) -> 28080.79076
A40: 1850 | B40: Line Transformers | C40: 150 | D40: Pad Mount Transformers | E40: 2831278.55 | F40: 35 | G40: 0.02857142857 | H40: =IF(F40=0,'App.2-CD_DepExp_Yr3'!M40,+'App.2-CD_DepExp_Yr3'!M40+((E40*0.5)/F40)) -> 1349718 | I40: 1336013.48 | J40: 13704.51963 | K40: 80893.67286 | L40: 195 | M40: =IF(ISERROR(+K40+'App.2-CD_DepExp_Yr3'!M40-L40), 0, +K40+'App.2-CD_DepExp_Yr3'!M40-L40) -> 1389969.836
A41: 1850 | B41: Line Transformers | C41: 151 | D41: Network Transformers | E41: 53165.29 | F41: 35 | G41: 0.02857142857 | H41: =IF(F41=0,'App.2-CD_DepExp_Yr3'!M41,+'App.2-CD_DepExp_Yr3'!M41+((E41*0.5)/F41)) -> 186310.5764 | I41: 186156.15 | J41: 154.4263582 | K41: 1519.008286 | L41: 0 | M41: =IF(ISERROR(+K41+'App.2-CD_DepExp_Yr3'!M41-L41), 0, +K41+'App.2-CD_DepExp_Yr3'!M41-L41) -> 187070.0805
A42: 1850 | B42: Line Transformers | C42: 230 | D42: Overhead Transformers | E42: 1583661.49 | F42: 35 | G42: 0.02857142857 | H42: =IF(F42=0,'App.2-CD_DepExp_Yr3'!M42,+'App.2-CD_DepExp_Yr3'!M42+((E42*0.5)/F42)) -> 646582.8148 | I42: 645026.24 | J42: 1556.574835 | K42: 45247.47114 | L42: 0 | M42: =IF(ISERROR(+K42+'App.2-CD_DepExp_Yr3'!M42-L42), 0, +K42+'App.2-CD_DepExp_Yr3'!M42-L42) -> 669206.5504
A43: 1855 | B43: Services (Overhead & Underground) | C43: 160 | D43: UG Secondary Services | E43: 1398174.01 | F43: 30 | G43: 0.03333333333 | H43: =IF(F43=0,'App.2-CD_DepExp_Yr3'!M43,+'App.2-CD_DepExp_Yr3'!M43+((E43*0.5)/F43)) -> 476638.9888 | I43: 469867.81 | J43: 6771.178808 | K43: 46605.80033 | L43: 0 | M43: =IF(ISERROR(+K43+'App.2-CD_DepExp_Yr3'!M43-L43), 0, +K43+'App.2-CD_DepExp_Yr3'!M43-L43) -> 499941.889
A44: 1855 | B44: Services (Overhead & Underground) | C44: 240 | D44: OH Secondary Services | E44: 1741014 | F44: 60 | G44: 0.01666666667 | H44: =IF(F44=0,'App.2-CD_DepExp_Yr3'!M44,+'App.2-CD_DepExp_Yr3'!M44+((E44*0.5)/F44)) -> 196144.6642 | I44: 195413.43 | J44: 731.2342032 | K44: 29016.9 | L44: 0 | M44: =IF(ISERROR(+K44+'App.2-CD_DepExp_Yr3'!M44-L44), 0, +K44+'App.2-CD_DepExp_Yr3'!M44-L44) -> 210653.1142
A45: 1860 | B45: Meters | C45: 600 | D45: Regular Meters | E45: 12.23 | F45: 30 | G45: 0.03333333333 | H45: =IF(F45=0,'App.2-CD_DepExp_Yr3'!M45,+'App.2-CD_DepExp_Yr3'!M45+((E45*0.5)/F45)) -> 80877.94967 | I45: 80877.74 | J45: 0.2096670558 | K45: 0.4076666667 | L45: 0 | M45: =IF(ISERROR(+K45+'App.2-CD_DepExp_Yr3'!M45-L45), 0, +K45+'App.2-CD_DepExp_Yr3'!M45-L45) -> 80878.1535
A46: 1860 | B46: Meters (Smart Meters) | C46: 601 | D46: Smart Meters | E46: 1249110.32 | F46: 15 | G46: 0.06666666667 | H46: =IF(F46=0,'App.2-CD_DepExp_Yr3'!M46,+'App.2-CD_DepExp_Yr3'!M46+((E46*0.5)/F46)) -> 1383625.377 | I46: 1373857.04 | J46: 9768.337095 | K46: 83274.02133 | L46: 0 | M46: =IF(ISERROR(+K46+'App.2-CD_DepExp_Yr3'!M46-L46), 0, +K46+'App.2-CD_DepExp_Yr3'!M46-L46) -> 1425262.388
A47: 1860 | B47: Meters (Smart Meters) | C47: 602 | D47: CT's and PT's | E47: 399420.65 | F47: 30 | G47: 0.03333333333 | H47: =IF(F47=0,'App.2-CD_DepExp_Yr3'!M47,+'App.2-CD_DepExp_Yr3'!M47+((E47*0.5)/F47)) -> 100419.9096 | I47: 100961.44 | J47: -541.5303624 | K47: 13314.02167 | L47: 0 | M47: =IF(ISERROR(+K47+'App.2-CD_DepExp_Yr3'!M47-L47), 0, +K47+'App.2-CD_DepExp_Yr3'!M47-L47) -> 107076.9205
A48: 1908 | B48: Buildings & Fixtures | C48: 350 | D48: Buildings - Civil | E48: 393743.5 | F48: 65 | G48: 0.01538461538 | H48: =IF(F48=0,'App.2-CD_DepExp_Yr3'!M48,+'App.2-CD_DepExp_Yr3'!M48+((E48*0.5)/F48)) -> 123302.4632 | I48: 122891.33 | J48: 411.1332018 | K48: 6057.592308 | L48: 0 | M48: =IF(ISERROR(+K48+'App.2-CD_DepExp_Yr3'!M48-L48), 0, +K48+'App.2-CD_DepExp_Yr3'!M48-L48) -> 126331.2594
A49: 1908 | B49: Buildings & Fixtures | C49: 351 | D49: Buildings - Roof | E49: 0 | F49: 25 | G49: 0.04 | H49: =IF(F49=0,'App.2-CD_DepExp_Yr3'!M49,+'App.2-CD_DepExp_Yr3'!M49+((E49*0.5)/F49)) -> 44485.7358 | I49: 44485.74 | J49: -0.004201869277 | K49: 0 | L49: 0 | M49: =IF(ISERROR(+K49+'App.2-CD_DepExp_Yr3'!M49-L49), 0, +K49+'App.2-CD_DepExp_Yr3'!M49-L49) -> 44485.7358
A50: 1908 | B50: Buildings & Fixtures | C50: 352 | D50: Buildings - Parking | E50: 65521.17 | F50: 30 | G50: 0.03333333333 | H50: =IF(F50=0,'App.2-CD_DepExp_Yr3'!M50,+'App.2-CD_DepExp_Yr3'!M50+((E50*0.5)/F50)) -> 35599.45114 | I50: 35536.02 | J50: 63.43114257 | K50: 2184.039 | L50: 0 | M50: =IF(ISERROR(+K50+'App.2-CD_DepExp_Yr3'!M50-L50), 0, +K50+'App.2-CD_DepExp_Yr3'!M50-L50) -> 36691.47064
A51: 1908 | B51: Buildings & Fixtures | C51: 353 | D51: Buildings - Fences | E51: 0 | F51: 60 | G51: 0.01666666667 | H51: =IF(F51=0,'App.2-CD_DepExp_Yr3'!M51,+'App.2-CD_DepExp_Yr3'!M51+((E51*0.5)/F51)) -> 472.9109091 | I51: 472.91 | J51: 0.0009090909089 | K51: 0 | L51: 0 | M51: =IF(ISERROR(+K51+'App.2-CD_DepExp_Yr3'!M51-L51), 0, +K51+'App.2-CD_DepExp_Yr3'!M51-L51) -> 472.9109091
A52: 1908 | B52: Buildings & Fixtures | C52: 354 | D52: Electronic/Mechanical Systems | E52: 341435.33 | F52: 12 | G52: 0.08333333333 | H52: =IF(F52=0,'App.2-CD_DepExp_Yr3'!M52,+'App.2-CD_DepExp_Yr3'!M52+((E52*0.5)/F52)) -> 319387.1813 | I52: 311127.67 | J52: 8259.511324 | K52: 28452.94417 | L52: 0 | M52: =IF(ISERROR(+K52+'App.2-CD_DepExp_Yr3'!M52-L52), 0, +K52+'App.2-CD_DepExp_Yr3'!M52-L52) -> 333613.6534
A53: 1908 | B53: Buildings & Fixtures | C53: 355 | D53: Electric / Mechanical Systems | E53: 400760.1 | F53: 30 | G53: 0.03333333333 | H53: =IF(F53=0,'App.2-CD_DepExp_Yr3'!M53,+'App.2-CD_DepExp_Yr3'!M53+((E53*0.5)/F53)) -> 431429.1743 | I53: 429213.14 | J53: 2216.034277 | K53: 13358.67 | L53: 247267.715 | M53: =IF(ISERROR(+K53+'App.2-CD_DepExp_Yr3'!M53-L53), 0, +K53+'App.2-CD_DepExp_Yr3'!M53-L53) -> 190840.7943
A54: 1908 | B54: Buildings & Fixtures | C54: 356 | D54: Buildings - Improvements | E54: 244189.26 | F54: 15 | G54: 0.06666666667 | H54: =IF(F54=0,'App.2-CD_DepExp_Yr3'!M54,+'App.2-CD_DepExp_Yr3'!M54+((E54*0.5)/F54)) -> 8139.642 | I54: 4897.19 | J54: 3242.452 | K54: 16279.284 | L54: 0 | M54: =IF(ISERROR(+K54+'App.2-CD_DepExp_Yr3'!M54-L54), 0, +K54+'App.2-CD_DepExp_Yr3'!M54-L54) -> 16279.284
A55: 1915 | B55: Office Furniture & Equipment | C55: 700 | D55: Office Furn & Equip | E55: 264806.16 | F55: 5 | G55: 0.2 | H55: =IF(F55=0,'App.2-CD_DepExp_Yr3'!M55,+'App.2-CD_DepExp_Yr3'!M55+((E55*0.5)/F55)) -> 123186.2054 | I55: 112469.35 | J55: 10716.85539 | K55: 52961.232 | L55: 28167.19598 | M55: =IF(ISERROR(+K55+'App.2-CD_DepExp_Yr3'!M55-L55), 0, +K55+'App.2-CD_DepExp_Yr3'!M55-L55) -> 121499.6254
A56: 1920 | B56: Computer Equipment - Hardware | C56: 710 | D56: Computer Equip-Hardware | E56: 639870.23 | F56: 3 | G56: 0.3333333333 | H56: =IF(F56=0,'App.2-CD_DepExp_Yr3'!M56,+'App.2-CD_DepExp_Yr3'!M56+((E56*0.5)/F56)) -> 800808.1811 | I56: 802027.34 | J56: -1219.158887 | K56: 213290.0767 | L56: 378379.0894 | M56: =IF(ISERROR(+K56+'App.2-CD_DepExp_Yr3'!M56-L56), 0, +K56+'App.2-CD_DepExp_Yr3'!M56-L56) -> 529074.13
A57: 1930 | B57: Transportation Equipment | C57: 730 | D57: Transportation-Cars, Vans | E57: 432015.18 | F57: 8 | G57: 0.125 | H57: =IF(F57=0,'App.2-CD_DepExp_Yr3'!M57,+'App.2-CD_DepExp_Yr3'!M57+((E57*0.5)/F57)) -> 323437.0908 | I57: 306575.53 | J57: 16861.56085 | K57: 54001.8975 | L57: 55443.81548 | M57: =IF(ISERROR(+K57+'App.2-CD_DepExp_Yr3'!M57-L57), 0, +K57+'App.2-CD_DepExp_Yr3'!M57-L57) -> 294994.2241
A58: 1930 | B58: Transportation Equipment | C58: 740 | D58: Transportation-Large Vehicles | E58: 534841 | F58: 12 | G58: 0.08333333333 | H58: =IF(F58=0,'App.2-CD_DepExp_Yr3'!M58,+'App.2-CD_DepExp_Yr3'!M58+((E58*0.5)/F58)) -> 531039.1705 | I58: 518679.17 | J58: 12360.00051 | K58: 44570.08333 | L58: 0 | M58: =IF(ISERROR(+K58+'App.2-CD_DepExp_Yr3'!M58-L58), 0, +K58+'App.2-CD_DepExp_Yr3'!M58-L58) -> 553324.2122
A59: 1930 | B59: Transportation Equipment | C59: 750 | D59: Trailers | E59: 35147 | F59: 10 | G59: 0.1 | H59: =IF(F59=0,'App.2-CD_DepExp_Yr3'!M59,+'App.2-CD_DepExp_Yr3'!M59+((E59*0.5)/F59)) -> 33008.5008 | I59: 31544.06 | J59: 1464.440797 | K59: 3514.7 | L59: 0 | M59: =IF(ISERROR(+K59+'App.2-CD_DepExp_Yr3'!M59-L59), 0, +K59+'App.2-CD_DepExp_Yr3'!M59-L59) -> 34765.8508
A60: 1935 | B60: Stores Equipment | C60: 760 | D60: Stores Equipment | E60: 135718.25 | F60: 8 | G60: 0.125 | H60: =IF(F60=0,'App.2-CD_DepExp_Yr3'!M60,+'App.2-CD_DepExp_Yr3'!M60+((E60*0.5)/F60)) -> 10911.44644 | I60: 4373.95 | J60: 6537.496444 | K60: 16964.78125 | L60: 1120.172338 | M60: =IF(ISERROR(+K60+'App.2-CD_DepExp_Yr3'!M60-L60), 0, +K60+'App.2-CD_DepExp_Yr3'!M60-L60) -> 18273.66473
A61: 1940 | B61: Tools, Shop & Garage Equipment | C61: 770 | D61: Tools,Shop & Garage Equi | E61: 114265.73 | F61: 8 | G61: 0.125 | H61: =IF(F61=0,'App.2-CD_DepExp_Yr3'!M61,+'App.2-CD_DepExp_Yr3'!M61+((E61*0.5)/F61)) -> 123597.5449 | I61: 121447.01 | J61: 2150.534935 | K61: 14283.21625 | L61: 20033.50162 | M61: =IF(ISERROR(+K61+'App.2-CD_DepExp_Yr3'!M61-L61), 0, +K61+'App.2-CD_DepExp_Yr3'!M61-L61) -> 110705.6514
A62: 1945 | B62: Measurement & Testing Equipment | C62: 780 | D62: Measurement & Test Equip | E62: 278335.49 | F62: 8 | G62: 0.125 | H62: =IF(F62=0,'App.2-CD_DepExp_Yr3'!M62,+'App.2-CD_DepExp_Yr3'!M62+((E62*0.5)/F62)) -> 82015.33022 | I62: 74497.28 | J62: 7518.050221 | K62: 34791.93625 | L62: 1420.565745 | M62: =IF(ISERROR(+K62+'App.2-CD_DepExp_Yr3'!M62-L62), 0, +K62+'App.2-CD_DepExp_Yr3'!M62-L62) -> 97990.7326
A63: 1950 | B63: Power Operated Equipment | C63: 790 | D63: Power Operated Equipment | E63: -3500 | F63: 8 | G63: 0.125 | H63: =IF(F63=0,'App.2-CD_DepExp_Yr3'!M63,+'App.2-CD_DepExp_Yr3'!M63+((E63*0.5)/F63)) -> 125686.8117 | I63: 121286.9 | J63: 4399.911742 | K63: -437.5 | L63: 11189.86815 | M63: =IF(ISERROR(+K63+'App.2-CD_DepExp_Yr3'!M63-L63), 0, +K63+'App.2-CD_DepExp_Yr3'!M63-L63) -> 114278.1936
A64: 1955 | B64: Communications Equipment | C64: 330 | D64: Communication Towers | E64: 0 | F64: 35 | G64: 0.02857142857 | H64: =IF(F64=0,'App.2-CD_DepExp_Yr3'!M64,+'App.2-CD_DepExp_Yr3'!M64+((E64*0.5)/F64)) -> 20139.25077 | I64: 20139.26 | J64: -0.009233102617 | K64: 0 | L64: 0 | M64: =IF(ISERROR(+K64+'App.2-CD_DepExp_Yr3'!M64-L64), 0, +K64+'App.2-CD_DepExp_Yr3'!M64-L64) -> 20139.25077
A65: 1955 | B65: Communications Equipment | C65: 331 | D65: Communication -wireless | E65: 0 | F65: 15 | G65: 0.06666666667 | H65: =IF(F65=0,'App.2-CD_DepExp_Yr3'!M65,+'App.2-CD_DepExp_Yr3'!M65+((E65*0.5)/F65)) -> 210417.7487 | I65: 210417.75 | J65: -0.001256818068 | K65: 0 | L65: 0 | M65: =IF(ISERROR(+K65+'App.2-CD_DepExp_Yr3'!M65-L65), 0, +K65+'App.2-CD_DepExp_Yr3'!M65-L65) -> 210417.7487
A66: 1955 | B66: Communications Equipment | C66: 332 | D66: Communication -equipment | E66: 4522.17 | F66: 8 | G66: 0.125 | H66: =IF(F66=0,'App.2-CD_DepExp_Yr3'!M66,+'App.2-CD_DepExp_Yr3'!M66+((E66*0.5)/F66)) -> 22097.11312 | I66: 22072.38 | J66: 24.733125 | K66: 565.27125 | L66: 0 | M66: =IF(ISERROR(+K66+'App.2-CD_DepExp_Yr3'!M66-L66), 0, +K66+'App.2-CD_DepExp_Yr3'!M66-L66) -> 22379.74875
A67: 1960 | B67: Miscellaneous Equipment | C67: 795 | D67: Miscellaneous Equipment | E67: 0 | F67: 8 | G67: 0.125 | H67: =IF(F67=0,'App.2-CD_DepExp_Yr3'!M67,+'App.2-CD_DepExp_Yr3'!M67+((E67*0.5)/F67)) -> 504.875 | I67: 504.88 | J67: -0.005 | K67: 0 | L67: 0 | M67: =IF(ISERROR(+K67+'App.2-CD_DepExp_Yr3'!M67-L67), 0, +K67+'App.2-CD_DepExp_Yr3'!M67-L67) -> 504.875
A68: 1980 | B68: System Supervisor Equipment | C68: 320 | D68: Scada RTU's | E68: 642621.07 | F68: 20 | G68: 0.05 | H68: =IF(F68=0,'App.2-CD_DepExp_Yr3'!M68,+'App.2-CD_DepExp_Yr3'!M68+((E68*0.5)/F68)) -> 145713.8193 | I68: 142186.59 | J68: 3527.229345 | K68: 32131.0535 | L68: 0 | M68: =IF(ISERROR(+K68+'App.2-CD_DepExp_Yr3'!M68-L68), 0, +K68+'App.2-CD_DepExp_Yr3'!M68-L68) -> 161779.3461
A69: 1980 | B69: System Supervisor Equipment | C69: 321 | D69: Scada Master Station | E69: 18815.57 | F69: 10 | G69: 0.1 | H69: =IF(F69=0,'App.2-CD_DepExp_Yr3'!M69,+'App.2-CD_DepExp_Yr3'!M69+((E69*0.5)/F69)) -> 71796.53992 | I69: 71012.57 | J69: 783.9699231 | K69: 1881.557 | L69: 983.2836387 | M69: =IF(ISERROR(+K69+'App.2-CD_DepExp_Yr3'!M69-L69), 0, +K69+'App.2-CD_DepExp_Yr3'!M69-L69) -> 71754.03478
A70: 1995 | B70: Contributions & Grants | C70: 1995 | D70: Contribution & Grants Credit | E70: 0 | F70: 40 | G70: 0.025 | H70: =IF(F70=0,'App.2-CD_DepExp_Yr3'!M70,+'App.2-CD_DepExp_Yr3'!M70+((E70*0.5)/F70)) -> -899701.1716 | I70: -899701.19 | J70: 0.01839808596 | K70: 0 | L70: 0 | M70: =IF(ISERROR(+K70+'App.2-CD_DepExp_Yr3'!M70-L70), 0, +K70+'App.2-CD_DepExp_Yr3'!M70-L70) -> -899701.1716
A71: 2440 | B71: Deferred Revenue | C71: 1996 | D71: Deferred Revenue | E71: -3313476.96 | F71: 40 | G71: 0.025 | H71: =IF(F71=0,'App.2-CD_DepExp_Yr3'!M71,+'App.2-CD_DepExp_Yr3'!M71+((E71*0.5)/F71)) -> -182899.548 | I71: -172619.73 | J71: -10279.818 | K71: -82836.924 | L71: 0 | M71: =IF(ISERROR(+K71+'App.2-CD_DepExp_Yr3'!M71-L71), 0, +K71+'App.2-CD_DepExp_Yr3'!M71-L71) -> -224318.01
B72: Total | E72: =SUM(E20:E71) -> 32097122.85 | H72: =SUM(H20:H71) -> 18695597.07 | I72: 18337921.88 | J72: 357675.1892 | K72: 2088159.958 | L72: 2593215.365 | M72: 17146461.68
B73: Depreciation exp. adj. from gain or loss on the retirement of assets (pool of like assets)
B74: Total Depreciation Expense | H74: =SUM(H72:H73) -> 18695597.07
A78: Notes:
A79: 1 | B79: Board policy of the "half-year" rule - the applicant must ensure that additions in the year attract a half-year depreciation expense in the first year. Deviations from this standard practice must be supported in the application.
A80: 2 | B80: The applicant must provide an explanation of material variances in evidence.
A81: 3 | B81: This column refers to the calculated full year depreciation but excludes the depreciation expense on assets fully depreciated during the year. This column is used for the purpose of calculating depreciation expense in the following year on the next worksheet.
A83: General: | B83: Applicants must provide a breakdown of depreciation and amortization expense in the above format for all relevant accounts. Asset Retirement Obligations (AROs), depreciation and accretion expense should be disclosed separately consistent with the Notes of historical Audited Financial Statements.

Sheet App.2-CF_DepExp_Yr5
M1: File Number: | N1: =EBNUMBER -> EB-2016-0091
M2: Exhibit:
M3: Tab:
M4: Schedule:
M5: Page:
K7: 2016-08-26 | M7: Date: | N7: 2016-08-26
A9: Appendix 2-CF
A10: Depreciation and Amortization Expense
A11: MIFRS (Year 5)
A13: Select the set of appendices that apply | M13: Year Reflected in Schedule Below | N13: Accounting Standard
A14: 2012 Set of Appendices (2-CA to 2-CG) | C14: Assumes the applicant made capitalization and depreciation expense accounting policy changes under CGAAP effective January 1, 2012 and has adopted IFRS for financial reporting purposes effective January 1, 2015. Assumes that the applicant is reflecting these changes in a rebasing application for the first time. | M14: 2016 | N14: MIFRS
A15: 2013 Set of Appendices (2-CA to 2-CF) | C15: Assumes the applicant made capitalization and depreciation expense accounting policy changes under CGAAP effective January 1, 2013 and has adopted IFRS for financial reporting purposes effective January 1, 2015. Assumes that the applicant is reflecting these changes in a rebasing application for the first time. | M15: 2017 | N15: MIFRS
A18: Account | B18: Description | C18: Subsidiary | D18: Subsidiary Description | E18: Additions | F18: Years (new additions only) | G18: Depreciation Rate on New Additions | H18: Full Year Depreciation on Regulatory Assets Transferred Jan 1, 2017 | I18: Current Depreciation Expense1 | J18: Depreciation Expense per Appendix 2-BA Fixed Assets, Column J (l) | K18: Variance 2 | L18: Depreciation Expense on Current Full Year Additions | M18: Less Depreciation Expense on Assets Fully Depreciated During the Year (o) | N18: Current Full Year Depreciation 3
E19: (d) | F19: (f) | G19: (g) = 1 / (f) | H19: (p) | I19: (h)= Prior Full Year Depreciation + ((d)*0.5)/(f) + (p) | K19: (m) = (h) - (l) | L19: (n)=((d))/(f) | N19: (p) = Prior Full Year Depreciation + (n) - (o)
A20: 1611 | B20: Computer Software (Formally known as Account 1925) | C20: 720 | D20: Computer Equip-Software | E20: 3264200 | F20: 5 | G20: =IF(F20=0,0,1/F20) -> 0.2 | H20: 78060.74 | I20: =IF(F20=0,'App.2-CE_DepExp_Yr4'!M20,+'App.2-CE_DepExp_Yr4'!M20+((E20*0.5)/F20))+H20 -> 4430146.296 | J20: 4427250 | K20: =IF(ISERROR(+I20-J20), 0, +I20-J20) -> 2896.295958 | L20: =IF(F20=0,0,+(E20)/F20) -> 652840 | N20: =IF(ISERROR(+L20+'App.2-CE_DepExp_Yr4'!M20-M20), 0, +'App.2-CE_DepExp_Yr4'!M20-M20) -> 4025665.556
A21: 1611 | B21: Computer Software (Formally known as Account 1925) | C21: 721 | D21: Computer Equip-Software - 3 yr | E21: 387800 | F21: 3 | G21: 0.3333333333 | H21: 0 | I21: =IF(F21=0,'App.2-CE_DepExp_Yr4'!M21,+'App.2-CE_DepExp_Yr4'!M21+((E21*0.5)/F21))+H21 -> 485822.3745 | J21: 485822 | K21: =IF(ISERROR(+I21-J21), 0, +I21-J21) -> 0.3745303777 | L21: =IF(F21=0,0,+(E21)/F21) -> 129266.6667 | N21: =IF(ISERROR(+L21+'App.2-CE_DepExp_Yr4'!M21-M21), 0, +'App.2-CE_DepExp_Yr4'!M21-M21) -> 421189.0412
A22: 1612 | B22: Land Rights (Formally known as Account 1906) | C22: 410 | D22: Land Rights | E22: 0 | F22: 25 | G22: =IF(F22=0,0,1/F22) -> 0.04 | H22: 0 | I22: =IF(F22=0,'App.2-CE_DepExp_Yr4'!M22,+'App.2-CE_DepExp_Yr4'!M22+((E22*0.5)/F22))+H22 -> 19274.94285 | J22: 19275 | K22: =IF(ISERROR(+I22-J22), 0, +I22-J22) -> -0.05714566427 | L22: =IF(F22=0,0,+(E22)/F22) -> 0 | N22: =IF(ISERROR(+L22+'App.2-CE_DepExp_Yr4'!M22-M22), 0, +'App.2-CE_DepExp_Yr4'!M22-M22) -> 19274.94285
A23: 1805 | B23: Land | C23: 1800 | D23: Land | E23: 0 | F23: 0 | G23: 0 | H23: 0 | I23: =IF(F23=0,'App.2-CE_DepExp_Yr4'!M23,+'App.2-CE_DepExp_Yr4'!M23+((E23*0.5)/F23))+H23 -> 0 | J23: 0 | K23: 0 | L23: 0 | N23: =IF(ISERROR(+L23+'App.2-CE_DepExp_Yr4'!M23-M23), 0, +'App.2-CE_DepExp_Yr4'!M23-M23) -> 0
A24: 1808 | B24: Buildings | C24: 340 | D24: SS Building Overall | E24: 42000 | F24: 75 | G24: 0.01333333333 | H24: 0 | I24: =IF(F24=0,'App.2-CE_DepExp_Yr4'!M24,+'App.2-CE_DepExp_Yr4'!M24+((E24*0.5)/F24))+H24 -> 6117.461424 | J24: 6117 | K24: 0.4614243946 | L24: 560 | N24: =IF(ISERROR(+L24+'App.2-CE_DepExp_Yr4'!M24-M24), 0, +'App.2-CE_DepExp_Yr4'!M24-M24) -> 5837.461424
A25: 1808 | B25: Buildings | C25: 341 | D25: SS Roof | E25: 0 | F25: 30 | G25: 0.03333333333 | H25: 0 | I25: =IF(F25=0,'App.2-CE_DepExp_Yr4'!M25,+'App.2-CE_DepExp_Yr4'!M25+((E25*0.5)/F25))+H25 -> 5317.859368 | J25: 5318 | K25: -0.1406319961 | L25: 0 | N25: =IF(ISERROR(+L25+'App.2-CE_DepExp_Yr4'!M25-M25), 0, +'App.2-CE_DepExp_Yr4'!M25-M25) -> 5317.859368
A26: 1820 | B26: Distribution Station Equipment <50 kV | C26: 310 | D26: Distr Stn Equip | E26: 83000 | F26: 45 | G26: 0.02222222222 | H26: 0 | I26: =IF(F26=0,'App.2-CE_DepExp_Yr4'!M26,+'App.2-CE_DepExp_Yr4'!M26+((E26*0.5)/F26))+H26 -> 249439.3019 | J26: 249491 | K26: -51.69814187 | L26: 1844.444444 | N26: =IF(ISERROR(+L26+'App.2-CE_DepExp_Yr4'!M26-M26), 0, +'App.2-CE_DepExp_Yr4'!M26-M26) -> 248517.0796
A27: 1820 | B27: Distribution Station Equipment <50 kV | C27: 311 | D27: Battery Banks & Charges | E27: 5000 | F27: 15 | G27: 0.06666666667 | H27: 0 | I27: =IF(F27=0,'App.2-CE_DepExp_Yr4'!M27,+'App.2-CE_DepExp_Yr4'!M27+((E27*0.5)/F27))+H27 -> 15401.79996 | J27: 15402 | K27: -0.200044856 | L27: 333.3333333 | N27: =IF(ISERROR(+L27+'App.2-CE_DepExp_Yr4'!M27-M27), 0, +'App.2-CE_DepExp_Yr4'!M27-M27) -> 15235.13329
A28: 1820 | B28: Distribution Station Equipment <50 kV | C28: 312 | D28: Digital Relays | E28: 26200 | F28: 20 | G28: 0.05 | H28: 0 | I28: =IF(F28=0,'App.2-CE_DepExp_Yr4'!M28,+'App.2-CE_DepExp_Yr4'!M28+((E28*0.5)/F28))+H28 -> 23385.21354 | J28: 23385 | K28: 0.2135395774 | L28: 1310 | N28: =IF(ISERROR(+L28+'App.2-CE_DepExp_Yr4'!M28-M28), 0, +'App.2-CE_DepExp_Yr4'!M28-M28) -> 22730.21354
A29: 1610 | B29: Intangible - wholesale meter | C29: 313 | D29: Intangible - wholesale meter | E29: 0 | F29: 30 | G29: 0.03333333333 | H29: 0 | I29: =IF(F29=0,'App.2-CE_DepExp_Yr4'!M29,+'App.2-CE_DepExp_Yr4'!M29+((E29*0.5)/F29))+H29 -> 43095.89719 | J29: 43096 | K29: -0.1028063561 | L29: 0 | N29: =IF(ISERROR(+L29+'App.2-CE_DepExp_Yr4'!M29-M29), 0, +'App.2-CE_DepExp_Yr4'!M29-M29) -> 43095.89719
A30: 1830 | B30: Poles, Towers & Fixtures | C30: 210 | D30: Poles, and Fixtures | E30: 2186200 | F30: 45 | G30: 0.02222222222 | H30: 0 | I30: =IF(F30=0,'App.2-CE_DepExp_Yr4'!M30,+'App.2-CE_DepExp_Yr4'!M30+((E30*0.5)/F30))+H30 -> 733693.1775 | J30: 733703 | K30: -9.822514786 | L30: 48582.22222 | N30: =IF(ISERROR(+L30+'App.2-CE_DepExp_Yr4'!M30-M30), 0, +'App.2-CE_DepExp_Yr4'!M30-M30) -> 709402.0664
A31: 1835 | B31: Overhead Conductors & Devices | C31: 220 | D31: OH Primary Conductor | E31: 2811100 | F31: 50 | G31: 0.02 | H31: 0 | I31: =IF(F31=0,'App.2-CE_DepExp_Yr4'!M31,+'App.2-CE_DepExp_Yr4'!M31+((E31*0.5)/F31))+H31 -> 815302.9964 | J31: 815331 | K31: -28.00355974 | L31: 56222 | N31: =IF(ISERROR(+L31+'App.2-CE_DepExp_Yr4'!M31-M31), 0, +'App.2-CE_DepExp_Yr4'!M31-M31) -> 787191.9964
A32: 1835 | B32: Overhead Conductors & Devices | C32: 221 | D32: Switches & Reclosers | E32: 688500 | F32: 45 | G32: 0.02222222222 | H32: 0 | I32: =IF(F32=0,'App.2-CE_DepExp_Yr4'!M32,+'App.2-CE_DepExp_Yr4'!M32+((E32*0.5)/F32))+H32 -> 218821.0677 | J32: 218823 | K32: -1.932330228 | L32: 15300 | N32: =IF(ISERROR(+L32+'App.2-CE_DepExp_Yr4'!M32-M32), 0, +'App.2-CE_DepExp_Yr4'!M32-M32) -> 211171.0677
A33: 1840 | B33: Underground Conduit | C33: 110 | D33: Vaults & Manholes | E33: 3927200 | F33: 60 | G33: 0.01666666667 | H33: 0 | I33: =IF(F33=0,'App.2-CE_DepExp_Yr4'!M33,+'App.2-CE_DepExp_Yr4'!M33+((E33*0.5)/F33))+H33 -> 708639.8025 | J33: 708666 | K33: -26.19747239 | L33: 65453.33333 | N33: =IF(ISERROR(+L33+'App.2-CE_DepExp_Yr4'!M33-M33), 0, +'App.2-CE_DepExp_Yr4'!M33-M33) -> 675913.1359
A34: 1840 | B34: Underground Conduit | C34: 111 | D34: Vault & Manhole Roofs | E34: 382300 | F34: 30 | G34: 0.03333333333 | H34: 0 | I34: =IF(F34=0,'App.2-CE_DepExp_Yr4'!M34,+'App.2-CE_DepExp_Yr4'!M34+((E34*0.5)/F34))+H34 -> 89087.68525 | J34: 89102 | K34: -14.31474734 | L34: 12743.33333 | N34: =IF(ISERROR(+L34+'App.2-CE_DepExp_Yr4'!M34-M34), 0, +'App.2-CE_DepExp_Yr4'!M34-M34) -> 82716.01859
A35: 1845 | B35: Underground Conductors & Devices | C35: 120 | D35: Direct Buried Cable | E35: 315300 | F35: 25 | G35: 0.04 | H35: 0 | I35: =IF(F35=0,'App.2-CE_DepExp_Yr4'!M35,+'App.2-CE_DepExp_Yr4'!M35+((E35*0.5)/F35))+H35 -> 2466638.037 | J35: 2466638 | K35: 0.0373666673 | L35: 12612 | N35: =IF(ISERROR(+L35+'App.2-CE_DepExp_Yr4'!M35-M35), 0, +'App.2-CE_DepExp_Yr4'!M35-M35) -> 2460332.037
A36: 1845 | B36: Underground Conductors & Devices | C36: 130 | D36: TRXLPE Cable - in duct | E36: 4395500 | F36: 40 | G36: 0.025 | H36: 0 | I36: =IF(F36=0,'App.2-CE_DepExp_Yr4'!M36,+'App.2-CE_DepExp_Yr4'!M36+((E36*0.5)/F36))+H36 -> 654363.1405 | J36: 654519 | K36: -155.8595 | L36: 109887.5 | N36: =IF(ISERROR(+L36+'App.2-CE_DepExp_Yr4'!M36-M36), 0, +'App.2-CE_DepExp_Yr4'!M36-M36) -> 599419.3905
A37: 1845 | B37: Underground Conductors & Devices | C37: 131 | D37: SF6 & Vacuum Switchgear | E37: 137300 | F37: 30 | G37: 0.03333333333 | H37: 0 | I37: =IF(F37=0,'App.2-CE_DepExp_Yr4'!M37,+'App.2-CE_DepExp_Yr4'!M37+((E37*0.5)/F37))+H37 -> 105393.2226 | J37: 105393 | K37: 0.2226396712 | L37: 4576.666667 | N37: =IF(ISERROR(+L37+'App.2-CE_DepExp_Yr4'!M37-M37), 0, +'App.2-CE_DepExp_Yr4'!M37-M37) -> 103104.8893
A38: 1845 | B38: Underground Conductors & Devices | C38: 132 | D38: PILC Primary Cable | E38: 666300 | F38: 30 | G38: 0.03333333333 | H38: 0 | I38: =IF(F38=0,'App.2-CE_DepExp_Yr4'!M38,+'App.2-CE_DepExp_Yr4'!M38+((E38*0.5)/F38))+H38 -> 136735.9582 | J38: 136736 | K38: -0.04175700806 | L38: 22210 | N38: =IF(ISERROR(+L38+'App.2-CE_DepExp_Yr4'!M38-M38), 0, +'App.2-CE_DepExp_Yr4'!M38-M38) -> 125630.9582
A39: 1845 | B39: Underground Conductors & Devices | C39: 133 | D39: Air Insulated Switchgear | E39: 0 | F39: 25 | G39: 0.04 | H39: 0 | I39: =IF(F39=0,'App.2-CE_DepExp_Yr4'!M39,+'App.2-CE_DepExp_Yr4'!M39+((E39*0.5)/F39))+H39 -> 28080.79076 | J39: 28081 | K39: -0.2092374883 | L39: 0 | N39: =IF(ISERROR(+L39+'App.2-CE_DepExp_Yr4'!M39-M39), 0, +'App.2-CE_DepExp_Yr4'!M39-M39) -> 28080.79076
A40: 1850 | B40: Line Transformers | C40: 150 | D40: Pad Mount Transformers | E40: 2272500 | F40: 35 | G40: 0.02857142857 | H40: 0 | I40: =IF(F40=0,'App.2-CE_DepExp_Yr4'!M40,+'App.2-CE_DepExp_Yr4'!M40+((E40*0.5)/F40))+H40 -> 1422434.122 | J40: 1422434 | K40: 0.121770815 | L40: 64928.57143 | N40: =IF(ISERROR(+L40+'App.2-CE_DepExp_Yr4'!M40-M40), 0, +'App.2-CE_DepExp_Yr4'!M40-M40) -> 1389969.836
A41: 1850 | B41: Line Transformers | C41: 151 | D41: Network Transformers | E41: 163100 | F41: 35 | G41: 0.02857142857 | H41: 0 | I41: =IF(F41=0,'App.2-CE_DepExp_Yr4'!M41,+'App.2-CE_DepExp_Yr4'!M41+((E41*0.5)/F41))+H41 -> 189400.0805 | J41: 189409 | K41: -8.919498969 | L41: 4660 | N41: =IF(ISERROR(+L41+'App.2-CE_DepExp_Yr4'!M41-M41), 0, +'App.2-CE_DepExp_Yr4'!M41-M41) -> 187070.0805
A42: 1850 | B42: Line Transformers | C42: 230 | D42: Overhead Transformers | E42: 1826400 | F42: 35 | G42: 0.02857142857 | H42: 3800 | I42: =IF(F42=0,'App.2-CE_DepExp_Yr4'!M42,+'App.2-CE_DepExp_Yr4'!M42+((E42*0.5)/F42))+H42 -> 699097.979 | J42: 699627 | K42: -529.0210224 | L42: 52182.85714 | N42: =IF(ISERROR(+L42+'App.2-CE_DepExp_Yr4'!M42-M42), 0, +'App.2-CE_DepExp_Yr4'!M42-M42) -> 669206.5504
A43: 1855 | B43: Services (Overhead & Underground) | C43: 160 | D43: UG Secondary Services | E43: 858000 | F43: 30 | G43: 0.03333333333 | H43: 0 | I43: =IF(F43=0,'App.2-CE_DepExp_Yr4'!M43,+'App.2-CE_DepExp_Yr4'!M43+((E43*0.5)/F43))+H43 -> 514241.889 | J43: 514271 | K43: -29.11102515 | L43: 28600 | N43: =IF(ISERROR(+L43+'App.2-CE_DepExp_Yr4'!M43-M43), 0, +'App.2-CE_DepExp_Yr4'!M43-M43) -> 499941.889
A44: 1855 | B44: Services (Overhead & Underground) | C44: 240 | D44: OH Secondary Services | E44: 733100 | F44: 60 | G44: 0.01666666667 | H44: 0 | I44: =IF(F44=0,'App.2-CE_DepExp_Yr4'!M44,+'App.2-CE_DepExp_Yr4'!M44+((E44*0.5)/F44))+H44 -> 216762.2809 | J44: 216764 | K44: -1.719130155 | L44: 12218.33333 | N44: =IF(ISERROR(+L44+'App.2-CE_DepExp_Yr4'!M44-M44), 0, +'App.2-CE_DepExp_Yr4'!M44-M44) -> 210653.1142
A45: 1860 | B45: Meters | C45: 600 | D45: Regular Meters | E45: 0 | F45: 30 | G45: 0.03333333333 | H45: 0 | I45: =IF(F45=0,'App.2-CE_DepExp_Yr4'!M45,+'App.2-CE_DepExp_Yr4'!M45+((E45*0.5)/F45))+H45 -> 80878.1535 | J45: 80878 | K45: 0.1535003891 | L45: 0 | N45: =IF(ISERROR(+L45+'App.2-CE_DepExp_Yr4'!M45-M45), 0, +'App.2-CE_DepExp_Yr4'!M45-M45) -> 80878.1535
A46: 1860 | B46: Meters (Smart Meters) | C46: 601 | D46: Smart Meters | E46: 889800 | F46: 15 | G46: 0.06666666667 | H46: 0 | I46: =IF(F46=0,'App.2-CE_DepExp_Yr4'!M46,+'App.2-CE_DepExp_Yr4'!M46+((E46*0.5)/F46))+H46 -> 1454922.388 | J46: 1453571 | K46: 1351.387761 | L46: 59320 | N46: =IF(ISERROR(+L46+'App.2-CE_DepExp_Yr4'!M46-M46), 0, +'App.2-CE_DepExp_Yr4'!M46-M46) -> 1425262.388
A47: 1860 | B47: Meters (Smart Meters) | C47: 602 | D47: CT's and PT's | E47: 218700 | F47: 30 | G47: 0.03333333333 | H47: 0 | I47: =IF(F47=0,'App.2-CE_DepExp_Yr4'!M47,+'App.2-CE_DepExp_Yr4'!M47+((E47*0.5)/F47))+H47 -> 110721.9205 | J47: 110722 | K47: -0.07952907016 | L47: 7290 | N47: =IF(ISERROR(+L47+'App.2-CE_DepExp_Yr4'!M47-M47), 0, +'App.2-CE_DepExp_Yr4'!M47-M47) -> 107076.9205
A48: 1908 | B48: Buildings & Fixtures | C48: 350 | D48: Buildings - Civil | E48: 146000 | F48: 65 | G48: 0.01538461538 | H48: 0 | I48: =IF(F48=0,'App.2-CE_DepExp_Yr4'!M48,+'App.2-CE_DepExp_Yr4'!M48+((E48*0.5)/F48))+H48 -> 127454.3363 | J48: 127500 | K48: -45.66372127 | L48: 2246.153846 | N48: =IF(ISERROR(+L48+'App.2-CE_DepExp_Yr4'!M48-M48), 0, +'App.2-CE_DepExp_Yr4'!M48-M48) -> 126331.2594
A49: 1908 | B49: Buildings & Fixtures | C49: 351 | D49: Buildings - Roof | E49: 0 | F49: 25 | G49: 0.04 | H49: 0 | I49: =IF(F49=0,'App.2-CE_DepExp_Yr4'!M49,+'App.2-CE_DepExp_Yr4'!M49+((E49*0.5)/F49))+H49 -> 44485.7358 | J49: 44486 | K49: -0.2642018693 | L49: 0 | N49: =IF(ISERROR(+L49+'App.2-CE_DepExp_Yr4'!M49-M49), 0, +'App.2-CE_DepExp_Yr4'!M49-M49) -> 44485.7358
A50: 1908 | B50: Buildings & Fixtures | C50: 352 | D50: Buildings - Parking | E50: 322400 | F50: 30 | G50: 0.03333333333 | H50: 0 | I50: =IF(F50=0,'App.2-CE_DepExp_Yr4'!M50,+'App.2-CE_DepExp_Yr4'!M50+((E50*0.5)/F50))+H50 -> 42064.80398 | J50: 42365 | K50: -300.1960241 | L50: 10746.66667 | N50: =IF(ISERROR(+L50+'App.2-CE_DepExp_Yr4'!M50-M50), 0, +'App.2-CE_DepExp_Yr4'!M50-M50) -> 36691.47064
A51: 1908 | B51: Buildings & Fixtures | C51: 353 | D51: Buildings - Fences | E51: 0 | F51: 60 | G51: 0.01666666667 | H51: 0 | I51: =IF(F51=0,'App.2-CE_DepExp_Yr4'!M51,+'App.2-CE_DepExp_Yr4'!M51+((E51*0.5)/F51))+H51 -> 472.9109091 | J51: 473 | K51: -0.08909090909 | L51: 0 | N51: =IF(ISERROR(+L51+'App.2-CE_DepExp_Yr4'!M51-M51), 0, +'App.2-CE_DepExp_Yr4'!M51-M51) -> 472.9109091
A52: 1908 | B52: Buildings & Fixtures | C52: 354 | D52: Electronic/Mechanical Systems | E52: 127000 | F52: 12 | G52: 0.08333333333 | H52: 0 | I52: =IF(F52=0,'App.2-CE_DepExp_Yr4'!M52,+'App.2-CE_DepExp_Yr4'!M52+((E52*0.5)/F52))+H52 -> 338905.3201 | J52: 340282 | K52: -1376.679926 | L52: 10583.33333 | N52: =IF(ISERROR(+L52+'App.2-CE_DepExp_Yr4'!M52-M52), 0, +'App.2-CE_DepExp_Yr4'!M52-M52) -> 333613.6534
A53: 1908 | B53: Buildings & Fixtures | C53: 355 | D53: Electric / Mechanical Systems | E53: 247000 | F53: 30 | G53: 0.03333333333 | H53: 0 | I53: =IF(F53=0,'App.2-CE_DepExp_Yr4'!M53,+'App.2-CE_DepExp_Yr4'!M53+((E53*0.5)/F53))+H53 -> 194957.4609 | J53: 194978 | K53: -20.53905629 | L53: 8233.333333 | N53: =IF(ISERROR(+L53+'App.2-CE_DepExp_Yr4'!M53-M53), 0, +'App.2-CE_DepExp_Yr4'!M53-M53) -> 190840.7943
A54: 1908 | B54: Buildings & Fixtures | C54: 356 | D54: Buildings - Improvements | E54: 25000 | F54: 15 | G54: 0.06666666667 | H54: 0 | I54: =IF(F54=0,'App.2-CE_DepExp_Yr4'!M54,+'App.2-CE_DepExp_Yr4'!M54+((E54*0.5)/F54))+H54 -> 17112.61733 | J54: 17112 | K54: 0.6173333333 | L54: 1666.666667 | N54: =IF(ISERROR(+L54+'App.2-CE_DepExp_Yr4'!M54-M54), 0, +'App.2-CE_DepExp_Yr4'!M54-M54) -> 16279.284
A55: 1915 | B55: Office Furniture & Equipment | C55: 700 | D55: Office Furn & Equip | E55: 196400 | F55: 5 | G55: 0.2 | H55: 0 | I55: =IF(F55=0,'App.2-CE_DepExp_Yr4'!M55,+'App.2-CE_DepExp_Yr4'!M55+((E55*0.5)/F55))+H55 -> 141139.6254 | J55: 141140 | K55: -0.3745986935 | L55: 39280 | N55: =IF(ISERROR(+L55+'App.2-CE_DepExp_Yr4'!M55-M55), 0, +'App.2-CE_DepExp_Yr4'!M55-M55) -> 121499.6254
A56: 1920 | B56: Computer Equipment - Hardware | C56: 710 | D56: Computer Equip-Hardware | E56: 295100 | F56: 3 | G56: 0.3333333333 | H56: 0 | I56: =IF(F56=0,'App.2-CE_DepExp_Yr4'!M56,+'App.2-CE_DepExp_Yr4'!M56+((E56*0.5)/F56))+H56 -> 578257.4634 | J56: 578257 | K56: 0.4633780787 | L56: 98366.66667 | N56: =IF(ISERROR(+L56+'App.2-CE_DepExp_Yr4'!M56-M56), 0, +'App.2-CE_DepExp_Yr4'!M56-M56) -> 529074.13
A57: 1930 | B57: Transportation Equipment | C57: 730 | D57: Transportation-Cars, Vans | E57: 278000 | F57: 8 | G57: 0.125 | H57: 0 | I57: =IF(F57=0,'App.2-CE_DepExp_Yr4'!M57,+'App.2-CE_DepExp_Yr4'!M57+((E57*0.5)/F57))+H57 -> 312369.2241 | J57: 312369 | K57: 0.2241144881 | L57: 34750 | N57: =IF(ISERROR(+L57+'App.2-CE_DepExp_Yr4'!M57-M57), 0, +'App.2-CE_DepExp_Yr4'!M57-M57) -> 294994.2241
A58: 1930 | B58: Transportation Equipment | C58: 740 | D58: Transportation-Large Vehicles | E58: 571900 | F58: 12 | G58: 0.08333333333 | H58: 0 | I58: =IF(F58=0,'App.2-CE_DepExp_Yr4'!M58,+'App.2-CE_DepExp_Yr4'!M58+((E58*0.5)/F58))+H58 -> 577153.3788 | J58: 577153 | K58: 0.3788443841 | L58: 47658.33333 | N58: =IF(ISERROR(+L58+'App.2-CE_DepExp_Yr4'!M58-M58), 0, +'App.2-CE_DepExp_Yr4'!M58-M58) -> 553324.2122
A59: 1930 | B59: Transportation Equipment | C59: 750 | D59: Trailers | E59: 71000 | F59: 10 | G59: 0.1 | H59: 0 | I59: =IF(F59=0,'App.2-CE_DepExp_Yr4'!M59,+'App.2-CE_DepExp_Yr4'!M59+((E59*0.5)/F59))+H59 -> 38315.8508 | J59: 38316 | K59: -0.1492025214 | L59: 7100 | N59: =IF(ISERROR(+L59+'App.2-CE_DepExp_Yr4'!M59-M59), 0, +'App.2-CE_DepExp_Yr4'!M59-M59) -> 34765.8508
A60: 1935 | B60: Stores Equipment | C60: 760 | D60: Stores Equipment | E60: 15000 | F60: 8 | G60: 0.125 | H60: 0 | I60: =IF(F60=0,'App.2-CE_DepExp_Yr4'!M60,+'App.2-CE_DepExp_Yr4'!M60+((E60*0.5)/F60))+H60 -> 19211.16473 | J60: 19212 | K60: -0.835269103 | L60: 1875 | N60: =IF(ISERROR(+L60+'App.2-CE_DepExp_Yr4'!M60-M60), 0, +'App.2-CE_DepExp_Yr4'!M60-M60) -> 18273.66473
A61: 1940 | B61: Tools, Shop & Garage Equipment | C61: 770 | D61: Tools,Shop & Garage Equi | E61: 154100 | F61: 8 | G61: 0.125 | H61: 0 | I61: =IF(F61=0,'App.2-CE_DepExp_Yr4'!M61,+'App.2-CE_DepExp_Yr4'!M61+((E61*0.5)/F61))+H61 -> 120336.9014 | J61: 120337 | K61: -0.09855883673 | L61: 19262.5 | N61: =IF(ISERROR(+L61+'App.2-CE_DepExp_Yr4'!M61-M61), 0, +'App.2-CE_DepExp_Yr4'!M61-M61) -> 110705.6514
A62: 1945 | B62: Measurement & Testing Equipment | C62: 780 | D62: Measurement & Test Equip | E62: 150000 | F62: 8 | G62: 0.125 | H62: 0 | I62: =IF(F62=0,'App.2-CE_DepExp_Yr4'!M62,+'App.2-CE_DepExp_Yr4'!M62+((E62*0.5)/F62))+H62 -> 107365.7326 | J62: 107373 | K62: -7.267398816 | L62: 18750 | N62: =IF(ISERROR(+L62+'App.2-CE_DepExp_Yr4'!M62-M62), 0, +'App.2-CE_DepExp_Yr4'!M62-M62) -> 97990.7326
A63: 1950 | B63: Power Operated Equipment | C63: 790 | D63: Power Operated Equipment | E63: 175000 | F63: 8 | G63: 0.125 | H63: 0 | I63: =IF(F63=0,'App.2-CE_DepExp_Yr4'!M63,+'App.2-CE_DepExp_Yr4'!M63+((E63*0.5)/F63))+H63 -> 125215.6936 | J63: 125212 | K63: 3.693589262 | L63: 21875 | N63: =IF(ISERROR(+L63+'App.2-CE_DepExp_Yr4'!M63-M63), 0, +'App.2-CE_DepExp_Yr4'!M63-M63) -> 114278.1936
A64: 1955 | B64: Communications Equipment | C64: 330 | D64: Communication Towers | E64: 312500 | F64: 35 | G64: 0.02857142857 | H64: 0 | I64: =IF(F64=0,'App.2-CE_DepExp_Yr4'!M64,+'App.2-CE_DepExp_Yr4'!M64+((E64*0.5)/F64))+H64 -> 24603.53648 | J64: 24603 | K64: 0.5364811831 | L64: 8928.571429 | N64: =IF(ISERROR(+L64+'App.2-CE_DepExp_Yr4'!M64-M64), 0, +'App.2-CE_DepExp_Yr4'!M64-M64) -> 20139.25077
A65: 1955 | B65: Communications Equipment | C65: 331 | D65: Communication -wireless | E65: 384800 | F65: 15 | G65: 0.06666666667 | H65: 0 | I65: =IF(F65=0,'App.2-CE_DepExp_Yr4'!M65,+'App.2-CE_DepExp_Yr4'!M65+((E65*0.5)/F65))+H65 -> 223244.4154 | J65: 223245 | K65: -0.5845901514 | L65: 25653.33333 | N65: =IF(ISERROR(+L65+'App.2-CE_DepExp_Yr4'!M65-M65), 0, +'App.2-CE_DepExp_Yr4'!M65-M65) -> 210417.7487
A66: 1955 | B66: Communications Equipment | C66: 332 | D66: Communication -equipment | E66: 50000 | F66: 8 | G66: 0.125 | H66: 0 | I66: =IF(F66=0,'App.2-CE_DepExp_Yr4'!M66,+'App.2-CE_DepExp_Yr4'!M66+((E66*0.5)/F66))+H66 -> 25504.74875 | J66: 25505 | K66: -0.25125 | L66: 6250 | N66: =IF(ISERROR(+L66+'App.2-CE_DepExp_Yr4'!M66-M66), 0, +'App.2-CE_DepExp_Yr4'!M66-M66) -> 22379.74875
A67: 1960 | B67: Miscellaneous Equipment | C67: 795 | D67: Miscellaneous Equipment | E67: 0 | F67: 8 | G67: 0.125 | H67: 0 | I67: =IF(F67=0,'App.2-CE_DepExp_Yr4'!M67,+'App.2-CE_DepExp_Yr4'!M67+((E67*0.5)/F67))+H67 -> 504.875 | J67: 505 | K67: -0.125 | L67: 0 | N67: =IF(ISERROR(+L67+'App.2-CE_DepExp_Yr4'!M67-M67), 0, +'App.2-CE_DepExp_Yr4'!M67-M67) -> 504.875
A68: 1980 | B68: System Supervisor Equipment | C68: 320 | D68: Scada RTU's | E68: 130800 | F68: 20 | G68: 0.05 | H68: 0 | I68: =IF(F68=0,'App.2-CE_DepExp_Yr4'!M68,+'App.2-CE_DepExp_Yr4'!M68+((E68*0.5)/F68))+H68 -> 165049.3461 | J68: 165068 | K68: -18.65390537 | L68: 6540 | N68: =IF(ISERROR(+L68+'App.2-CE_DepExp_Yr4'!M68-M68), 0, +'App.2-CE_DepExp_Yr4'!M68-M68) -> 161779.3461
A69: 1980 | B69: System Supervisor Equipment | C69: 321 | D69: Scada Master Station | E69: 168800 | F69: 10 | G69: 0.1 | H69: 0 | I69: =IF(F69=0,'App.2-CE_DepExp_Yr4'!M69,+'App.2-CE_DepExp_Yr4'!M69+((E69*0.5)/F69))+H69 -> 80194.03478 | J69: 80194 | K69: 0.03478431441 | L69: 16880 | N69: =IF(ISERROR(+L69+'App.2-CE_DepExp_Yr4'!M69-M69), 0, +'App.2-CE_DepExp_Yr4'!M69-M69) -> 71754.03478
A70: 1995 | B70: Contributions & Grants | C70: 1995 | D70: Contribution & Grants Credit | E70: 0 | F70: 40 | G70: 0.025 | H70: 0 | I70: =IF(F70=0,'App.2-CE_DepExp_Yr4'!M70,+'App.2-CE_DepExp_Yr4'!M70+((E70*0.5)/F70))+H70 -> -899701.1716 | J70: -899701 | K70: -0.1716019141 | L70: 0 | N70: =IF(ISERROR(+L70+'App.2-CE_DepExp_Yr4'!M70-M70), 0, +'App.2-CE_DepExp_Yr4'!M70-M70) -> -899701.1716
A71: 2440 | B71: Deferred Revenue | C71: 1996 | D71: Deferred Revenue | E71: -3101000 | F71: 40 | G71: 0.025 | H71: 0 | I71: =IF(F71=0,'App.2-CE_DepExp_Yr4'!M71,+'App.2-CE_DepExp_Yr4'!M71+((E71*0.5)/F71))+H71 -> -263080.51 | J71: -263081 | K71: 0.49 | L71: -77525 | N71: =IF(ISERROR(+L71+'App.2-CE_DepExp_Yr4'!M71-M71), 0, +'App.2-CE_DepExp_Yr4'!M71-M71) -> -224318.01
B72: Total | E72: =SUM(E20:E71) -> 26999300 | H72: =SUM(H20:H71) -> 81860.74 | I72: 18064353.33 | J72: 18062727 | K72: 1626.333525 | L72: 1672061.821 | M72: 0 | N72: 17146461.68
B73: Depreciation exp. adj. from gain or loss on the retirement of assets (pool of like assets)
B74: Total Depreciation Expense | I74: =SUM(I72:I73) -> 18064353.33
A78: Notes:
A79: 1 | B79: Board policy of the "half-year" rule - the applicant must ensure that additions in the year attract a half-year depreciation expense in the first year. Deviations from this standard practice must be supported in the application.
A80: 2 | B80: The applicant must provide an explanation of material variances in evidence.
A81: 3 | B81: This column refers to the calculated full year depreciation but excludes the depreciation expense on assets fully depreciated during the year. This column is used for the purpose of calculating depreciation expense in the following year on the next worksheet.
A83: General: | B83: Applicants must provide a breakdown of depreciation and amortization expense in the above format for all relevant accounts. Asset Retirement Obligations (AROs), depreciation and accretion expense should be disclosed separately consistent with the Notes of historical Audited Financial Statements.

Sheet App.2-CG_DepExp_Yr6
J1: File Number: | K1: =EBNUMBER -> EB-2016-0091
J2: Exhibit:
J3: Tab:
J4: Schedule:
J5: Page:
J7: Date: | K7: 2016-08-26
A9: Appendix 2-CG
A10: Depreciation and Amortization Expense
A11: MIFRS (Year 6)
A13: Select the set of appendices that apply | J13: Year Reflected in Schedule Below | K13: Accounting Standard
A14: 2012 Set of Appendices (2-CA to 2-CG) | C14: Assumes the applicant made capitalization and depreciation expense accounting policy changes under CGAAP effective January 1, 2012 and has adopted IFRS for financial reporting purposes effective January 1, 2015. Assumes that the applicant is reflecting these changes in a rebasing application for the first time. | J14: 2017 | K14: MIFRS
A15: N/A | B15: 2013 Set of Appendices | C15: Not applicable as the test year depreciation is already calculated in Appendix 2-CF. Note that this appendix is not to be used even though depreciation expense calculations will flow through from previous years to this appendix. | J15: N/A | K15: N/A
A18: Account | B18: Description | C18: Additions | D18: Years (new additions only) | E18: Depreciation Rate on New Additions | F18: Current Depreciation Expense1 | G18: Depreciation Expense per Appendix 2-BA Fixed Assets, Column J (l) | H18: Variance 2
C19: (d) | D19: (f) | E19: (g) = 1 / (f) | F19: (h)= Prior Full Year Depreciation + ((d)*0.5)/(f) | H19: (m) = (h) - (l)
A20: 1611 | B20: Computer Software (Formally known as Account 1925) | E20: =IF(D20=0,0,1/D20) -> 0 | F20: =IF(D20=0,'App.2-CF_DepExp_Yr5'!N20,+'App.2-CF_DepExp_Yr5'!N20+((C20*0.5)/D20)) -> 4025665.556 | H20: =IF(ISERROR(+F20-G20), 0, +F20-G20) -> 4025665.556
A21: 1611 | B21: Computer Software (Formally known as Account 1925) | E21: 0 | F21: =IF(D21=0,'App.2-CF_DepExp_Yr5'!N21,+'App.2-CF_DepExp_Yr5'!N21+((C21*0.5)/D21)) -> 421189.0412 | H21: 421189.0412
A22: 1612 | B22: Land Rights (Formally known as Account 1906) | E22: 0 | F22: =IF(D22=0,'App.2-CF_DepExp_Yr5'!N22,+'App.2-CF_DepExp_Yr5'!N22+((C22*0.5)/D22)) -> 19274.94285 | H22: 19274.94285
A23: 1805 | B23: Land | E23: =IF(D23=0,0,1/D23) -> 0 | F23: =IF(D23=0,'App.2-CF_DepExp_Yr5'!N23,+'App.2-CF_DepExp_Yr5'!N23+((C23*0.5)/D23)) -> 0 | H23: =IF(ISERROR(+F23-G23), 0, +F23-G23) -> 0
A24: 1808 | B24: Buildings | E24: 0 | F24: =IF(D24=0,'App.2-CF_DepExp_Yr5'!N24,+'App.2-CF_DepExp_Yr5'!N24+((C24*0.5)/D24)) -> 5837.461424 | H24: 5837.461424
A25: 1808 | B25: Buildings | E25: 0 | F25: =IF(D25=0,'App.2-CF_DepExp_Yr5'!N25,+'App.2-CF_DepExp_Yr5'!N25+((C25*0.5)/D25)) -> 5317.859368 | H25: 5317.859368
A26: 1820 | B26: Distribution Station Equipment <50 kV | E26: 0 | F26: =IF(D26=0,'App.2-CF_DepExp_Yr5'!N26,+'App.2-CF_DepExp_Yr5'!N26+((C26*0.5)/D26)) -> 248517.0796 | H26: 248517.0796
A27: 1820 | B27: Distribution Station Equipment <50 kV | E27: 0 | F27: =IF(D27=0,'App.2-CF_DepExp_Yr5'!N27,+'App.2-CF_DepExp_Yr5'!N27+((C27*0.5)/D27)) -> 15235.13329 | H27: 15235.13329
A28: 1820 | B28: Distribution Station Equipment <50 kV | E28: 0 | F28: =IF(D28=0,'App.2-CF_DepExp_Yr5'!N28,+'App.2-CF_DepExp_Yr5'!N28+((C28*0.5)/D28)) -> 22730.21354 | H28: 22730.21354
A29: 1610 | B29: Intangible - wholesale meter | E29: 0 | F29: =IF(D29=0,'App.2-CF_DepExp_Yr5'!N29,+'App.2-CF_DepExp_Yr5'!N29+((C29*0.5)/D29)) -> 43095.89719 | H29: 43095.89719
A30: 1830 | B30: Poles, Towers & Fixtures | E30: 0 | F30: =IF(D30=0,'App.2-CF_DepExp_Yr5'!N30,+'App.2-CF_DepExp_Yr5'!N30+((C30*0.5)/D30)) -> 709402.0664 | H30: 709402.0664
A31: 1835 | B31: Overhead Conductors & Devices | E31: 0 | F31: =IF(D31=0,'App.2-CF_DepExp_Yr5'!N31,+'App.2-CF_DepExp_Yr5'!N31+((C31*0.5)/D31)) -> 787191.9964 | H31: 787191.9964
A32: 1835 | B32: Overhead Conductors & Devices | E32: 0 | F32: =IF(D32=0,'App.2-CF_DepExp_Yr5'!N32,+'App.2-CF_DepExp_Yr5'!N32+((C32*0.5)/D32)) -> 211171.0677 | H32: 211171.0677
A33: 1840 | B33: Underground Conduit | E33: 0 | F33: =IF(D33=0,'App.2-CF_DepExp_Yr5'!N33,+'App.2-CF_DepExp_Yr5'!N33+((C33*0.5)/D33)) -> 675913.1359 | H33: 675913.1359
A34: 1840 | B34: Underground Conduit | E34: 0 | F34: =IF(D34=0,'App.2-CF_DepExp_Yr5'!N34,+'App.2-CF_DepExp_Yr5'!N34+((C34*0.5)/D34)) -> 82716.01859 | H34: 82716.01859
A35: 1845 | B35: Underground Conductors & Devices | E35: 0 | F35: =IF(D35=0,'App.2-CF_DepExp_Yr5'!N35,+'App.2-CF_DepExp_Yr5'!N35+((C35*0.5)/D35)) -> 2460332.037 | H35: 2460332.037
A36: 1845 | B36: Underground Conductors & Devices | E36: 0 | F36: =IF(D36=0,'App.2-CF_DepExp_Yr5'!N36,+'App.2-CF_DepExp_Yr5'!N36+((C36*0.5)/D36)) -> 599419.3905 | H36: 599419.3905
A37: 1845 | B37: Underground Conductors & Devices | E37: 0 | F37: =IF(D37=0,'App.2-CF_DepExp_Yr5'!N37,+'App.2-CF_DepExp_Yr5'!N37+((C37*0.5)/D37)) -> 103104.8893 | H37: 103104.8893
A38: 1845 | B38: Underground Conductors & Devices | E38: 0 | F38: =IF(D38=0,'App.2-CF_DepExp_Yr5'!N38,+'App.2-CF_DepExp_Yr5'!N38+((C38*0.5)/D38)) -> 125630.9582 | H38: 125630.9582
A39: 1845 | B39: Underground Conductors & Devices | E39: 0 | F39: =IF(D39=0,'App.2-CF_DepExp_Yr5'!N39,+'App.2-CF_DepExp_Yr5'!N39+((C39*0.5)/D39)) -> 28080.79076 | H39: 28080.79076
A40: 1850 | B40: Line Transformers | E40: 0 | F40: =IF(D40=0,'App.2-CF_DepExp_Yr5'!N40,+'App.2-CF_DepExp_Yr5'!N40+((C40*0.5)/D40)) -> 1389969.836 | H40: 1389969.836
A41: 1850 | B41: Line Transformers | E41: 0 | F41: =IF(D41=0,'App.2-CF_DepExp_Yr5'!N41,+'App.2-CF_DepExp_Yr5'!N41+((C41*0.5)/D41)) -> 187070.0805 | H41: 187070.0805
A42: 1850 | B42: Line Transformers | E42: 0 | F42: =IF(D42=0,'App.2-CF_DepExp_Yr5'!N42,+'App.2-CF_DepExp_Yr5'!N42+((C42*0.5)/D42)) -> 669206.5504 | H42: 669206.5504
A43: 1855 | B43: Services (Overhead & Underground) | E43: 0 | F43: =IF(D43=0,'App.2-CF_DepExp_Yr5'!N43,+'App.2-CF_DepExp_Yr5'!N43+((C43*0.5)/D43)) -> 499941.889 | H43: 499941.889
A44: 1855 | B44: Services (Overhead & Underground) | E44: 0 | F44: =IF(D44=0,'App.2-CF_DepExp_Yr5'!N44,+'App.2-CF_DepExp_Yr5'!N44+((C44*0.5)/D44)) -> 210653.1142 | H44: 210653.1142
A45: 1860 | B45: Meters | E45: 0 | F45: =IF(D45=0,'App.2-CF_DepExp_Yr5'!N45,+'App.2-CF_DepExp_Yr5'!N45+((C45*0.5)/D45)) -> 80878.1535 | H45: 80878.1535
A46: 1860 | B46: Meters (Smart Meters) | E46: 0 | F46: =IF(D46=0,'App.2-CF_DepExp_Yr5'!N46,+'App.2-CF_DepExp_Yr5'!N46+((C46*0.5)/D46)) -> 1425262.388 | H46: 1425262.388
A47: 1860 | B47: Meters (Smart Meters) | E47: 0 | F47: =IF(D47=0,'App.2-CF_DepExp_Yr5'!N47,+'App.2-CF_DepExp_Yr5'!N47+((C47*0.5)/D47)) -> 107076.9205 | H47: 107076.9205
A48: 1908 | B48: Buildings & Fixtures | E48: 0 | F48: =IF(D48=0,'App.2-CF_DepExp_Yr5'!N48,+'App.2-CF_DepExp_Yr5'!N48+((C48*0.5)/D48)) -> 126331.2594 | H48: 126331.2594
A49: 1908 | B49: Buildings & Fixtures | E49: 0 | F49: =IF(D49=0,'App.2-CF_DepExp_Yr5'!N49,+'App.2-CF_DepExp_Yr5'!N49+((C49*0.5)/D49)) -> 44485.7358 | H49: 44485.7358
A50: 1908 | B50: Buildings & Fixtures | E50: 0 | F50: =IF(D50=0,'App.2-CF_DepExp_Yr5'!N50,+'App.2-CF_DepExp_Yr5'!N50+((C50*0.5)/D50)) -> 36691.47064 | H50: 36691.47064
A51: 1908 | B51: Buildings & Fixtures | E51: 0 | F51: =IF(D51=0,'App.2-CF_DepExp_Yr5'!N51,+'App.2-CF_DepExp_Yr5'!N51+((C51*0.5)/D51)) -> 472.9109091 | H51: 472.9109091
A52: 1908 | B52: Buildings & Fixtures | E52: 0 | F52: =IF(D52=0,'App.2-CF_DepExp_Yr5'!N52,+'App.2-CF_DepExp_Yr5'!N52+((C52*0.5)/D52)) -> 333613.6534 | H52: 333613.6534
A53: 1908 | B53: Buildings & Fixtures | E53: 0 | F53: =IF(D53=0,'App.2-CF_DepExp_Yr5'!N53,+'App.2-CF_DepExp_Yr5'!N53+((C53*0.5)/D53)) -> 190840.7943 | H53: 190840.7943
A54: 1908 | B54: Buildings & Fixtures | E54: 0 | F54: =IF(D54=0,'App.2-CF_DepExp_Yr5'!N54,+'App.2-CF_DepExp_Yr5'!N54+((C54*0.5)/D54)) -> 16279.284 | H54: 16279.284
A55: 1915 | B55: Office Furniture & Equipment | E55: 0 | F55: =IF(D55=0,'App.2-CF_DepExp_Yr5'!N55,+'App.2-CF_DepExp_Yr5'!N55+((C55*0.5)/D55)) -> 121499.6254 | H55: 121499.6254
A56: 1920 | B56: Computer Equipment - Hardware | E56: 0 | F56: =IF(D56=0,'App.2-CF_DepExp_Yr5'!N56,+'App.2-CF_DepExp_Yr5'!N56+((C56*0.5)/D56)) -> 529074.13 | H56: 529074.13
A57: 1930 | B57: Transportation Equipment | E57: 0 | F57: =IF(D57=0,'App.2-CF_DepExp_Yr5'!N57,+'App.2-CF_DepExp_Yr5'!N57+((C57*0.5)/D57)) -> 294994.2241 | H57: 294994.2241
A58: 1930 | B58: Transportation Equipment | E58: 0 | F58: =IF(D58=0,'App.2-CF_DepExp_Yr5'!N58,+'App.2-CF_DepExp_Yr5'!N58+((C58*0.5)/D58)) -> 553324.2122 | H58: 553324.2122
A59: 1930 | B59: Transportation Equipment | E59: 0 | F59: =IF(D59=0,'App.2-CF_DepExp_Yr5'!N59,+'App.2-CF_DepExp_Yr5'!N59+((C59*0.5)/D59)) -> 34765.8508 | H59: 34765.8508
A60: 1935 | B60: Stores Equipment | E60: 0 | F60: =IF(D60=0,'App.2-CF_DepExp_Yr5'!N60,+'App.2-CF_DepExp_Yr5'!N60+((C60*0.5)/D60)) -> 18273.66473 | H60: 18273.66473
A61: 1940 | B61: Tools, Shop & Garage Equipment | E61: 0 | F61: =IF(D61=0,'App.2-CF_DepExp_Yr5'!N61,+'App.2-CF_DepExp_Yr5'!N61+((C61*0.5)/D61)) -> 110705.6514 | H61: 110705.6514
A62: 1945 | B62: Measurement & Testing Equipment | E62: 0 | F62: =IF(D62=0,'App.2-CF_DepExp_Yr5'!N62,+'App.2-CF_DepExp_Yr5'!N62+((C62*0.5)/D62)) -> 97990.7326 | H62: 97990.7326
A63: 1950 | B63: Power Operated Equipment | E63: 0 | F63: =IF(D63=0,'App.2-CF_DepExp_Yr5'!N63,+'App.2-CF_DepExp_Yr5'!N63+((C63*0.5)/D63)) -> 114278.1936 | H63: 114278.1936
A64: 1955 | B64: Communications Equipment | E64: 0 | F64: =IF(D64=0,'App.2-CF_DepExp_Yr5'!N64,+'App.2-CF_DepExp_Yr5'!N64+((C64*0.5)/D64)) -> 20139.25077 | H64: 20139.25077
A65: 1955 | B65: Communications Equipment | E65: 0 | F65: =IF(D65=0,'App.2-CF_DepExp_Yr5'!N65,+'App.2-CF_DepExp_Yr5'!N65+((C65*0.5)/D65)) -> 210417.7487 | H65: 210417.7487
A66: 1955 | B66: Communications Equipment | E66: 0 | F66: =IF(D66=0,'App.2-CF_DepExp_Yr5'!N66,+'App.2-CF_DepExp_Yr5'!N66+((C66*0.5)/D66)) -> 22379.74875 | H66: 22379.74875
A67: 1960 | B67: Miscellaneous Equipment | E67: 0 | F67: =IF(D67=0,'App.2-CF_DepExp_Yr5'!N67,+'App.2-CF_DepExp_Yr5'!N67+((C67*0.5)/D67)) -> 504.875 | H67: 504.875
A68: 1980 | B68: System Supervisor Equipment | E68: 0 | F68: =IF(D68=0,'App.2-CF_DepExp_Yr5'!N68,+'App.2-CF_DepExp_Yr5'!N68+((C68*0.5)/D68)) -> 161779.3461 | H68: 161779.3461
A69: 1980 | B69: System Supervisor Equipment | E69: 0 | F69: =IF(D69=0,'App.2-CF_DepExp_Yr5'!N69,+'App.2-CF_DepExp_Yr5'!N69+((C69*0.5)/D69)) -> 71754.03478 | H69: 71754.03478
A70: 1995 | B70: Contributions & Grants | E70: 0 | F70: =IF(D70=0,'App.2-CF_DepExp_Yr5'!N70,+'App.2-CF_DepExp_Yr5'!N70+((C70*0.5)/D70)) -> -899701.1716 | H70: -899701.1716
A71: 2440 | B71: Deferred Revenue | E71: 0 | F71: =IF(D71=0,'App.2-CF_DepExp_Yr5'!N71,+'App.2-CF_DepExp_Yr5'!N71+((C71*0.5)/D71)) -> -224318.01 | H71: -224318.01
B72: Total | C72: =SUM(C20:C71) -> 0 | F72: =SUM(F20:F71) -> 17146461.68 | G72: =SUM(G20:G71) -> 0 | H72: =SUM(H20:H71) -> 17146461.68
B73: Depreciation exp. adj. from gain or loss on the retirement of assets (pool of like assets)
B74: Total Depreciation Expense | F74: =SUM(F72:F73) -> 17146461.68
A75: Notes:
A76: 1 | B76: Board policy of the "half-year" rule - the applicant must ensure that additions in the year attract a half-year depreciation expense in the first year. Deviations from this standard practice must be supported in the application.
A77: 2 | B77: The applicant must provide an explanation of material variances in evidence.
A80: General: | B80: Applicants must provide a breakdown of depreciation and amortization expense in the above format for all relevant accounts. Asset Retirement Obligations (AROs), depreciation and accretion expense should be disclosed separately consistent with the Notes of historical Audited Financial Statements.
A83: Not applicable to London Hydro.

Sheet App.2-CH_DepExp
K1: File Number: | L1: =EBNUMBER -> EB-2016-0091
K2: Exhibit:
K3: Tab:
K4: Schedule:
K5: Page:
K7: Date: | L7: 2016-08-26
A9: Appendix 2-CH1
A10: Depreciation and Amortization Expense
A11: Revised CGAAP or MIFRS
A13: Assumes the applicant changed capitalization and depreciation policies and reflected these changes in a prior rebasing application
D15: Accounting Standard
D16: Year
A18: Account | B18: Description | C18: Opening Regulatory Gross PP&E as at Jan. 1 | D18: Less Fully Depreciated | E18: Net for Depreciation | F18: Additions | G18: Total for Depreciation 2 | H18: Years | I18: Depreciation Rate | J18: Current Year Depreciation Expense | K18: Depreciation Expense per Appendix 2-BA Fixed Assets, Column J (l) | L18: Variance 3
C19: (a) | D19: (b) | E19: (c) | F19: (d) | G19: (e) = (c) + ½ x (d) | H19: (f) | I19: (g) = 1 / (f) | J19: (h) = (e) / (f) | L19: (m) = (h) - (l)
A20: 1611 | B20: Computer Software (Formally known as Account 1925) | E20: =C20-D20 -> 0 | G20: =E20+0.5*F20 -> 0 | I20: =IF(H20=0,0,1/H20) -> 0 | J20: =IF(H20=0,0,G20/H20) -> 0 | L20: =IF(ISERROR(+J20-K20), 0, +J20-K20) -> 0
A21: 1612 | B21: Land Rights (Formally known as Account 1906) | E21: =C21-D21 -> 0 | G21: =E21+0.5*F21 -> 0 | I21: 0 | J21: 0 | L21: 0
A22: 1805 | B22: Land | E22: 0 | G22: 0 | I22: 0 | J22: 0 | L22: 0
A23: 1808 | B23: Buildings | E23: 0 | G23: 0 | I23: 0 | J23: 0 | L23: 0
A24: 1810 | B24: Leasehold Improvements | E24: 0 | G24: 0 | I24: 0 | J24: 0 | L24: 0
A25: 1815 | B25: Transformer Station Equipment >50 kV | E25: 0 | G25: 0 | I25: 0 | J25: 0 | L25: 0
A26: 1820 | B26: Distribution Station Equipment <50 kV | E26: 0 | G26: 0 | I26: 0 | J26: 0 | L26: 0
A27: 1825 | B27: Storage Battery Equipment | E27: 0 | G27: 0 | I27: 0 | J27: 0 | L27: 0
A28: 1830 | B28: Poles, Towers & Fixtures | E28: 0 | G28: 0 | I28: 0 | J28: 0 | L28: 0
A29: 1835 | B29: Overhead Conductors & Devices | E29: 0 | G29: 0 | I29: 0 | J29: 0 | L29: 0
A30: 1840 | B30: Underground Conduit | E30: 0 | G30: 0 | I30: 0 | J30: 0 | L30: 0
A31: 1845 | B31: Underground Conductors & Devices | E31: 0 | G31: 0 | I31: 0 | J31: 0 | L31: 0
A32: 1850 | B32: Line Transformers | E32: 0 | G32: 0 | I32: 0 | J32: 0 | L32: 0
A33: 1855 | B33: Services (Overhead & Underground) | E33: 0 | G33: 0 | I33: 0 | J33: 0 | L33: 0
A34: 1860 | B34: Meters | E34: 0 | G34: 0 | I34: 0 | J34: 0 | L34: 0
A35: 1860 | B35: Meters (Smart Meters) | E35: 0 | G35: 0 | I35: 0 | J35: 0 | L35: 0
A36: 1905 | B36: Land | E36: 0 | G36: 0 | I36: 0 | J36: 0 | L36: 0
A37: 1908 | B37: Buildings & Fixtures | E37: 0 | G37: 0 | I37: 0 | J37: 0 | L37: 0
A38: 1910 | B38: Leasehold Improvements | E38: 0 | G38: 0 | I38: 0 | J38: 0 | L38: 0
A39: 1915 | B39: Office Furniture & Equipment (10 years) | E39: 0 | G39: 0 | I39: 0 | J39: 0 | L39: 0
A40: 1915 | B40: Office Furniture & Equipment (5 years) | E40: 0 | G40: 0 | I40: 0 | J40: 0 | L40: 0
A41: 1920 | B41: Computer Equipment - Hardware | E41: 0 | G41: 0 | I41: 0 | J41: 0 | L41: 0
A42: 1920 | B42: Computer Equip.-Hardware(Post Mar. 22/04) | E42: 0 | G42: 0 | I42: 0 | J42: 0 | L42: 0
A43: 1920 | B43: Computer Equip.-Hardware(Post Mar. 19/07) | E43: 0 | G43: 0 | I43: 0 | J43: 0 | L43: 0
A44: 1930 | B44: Transportation Equipment | E44: 0 | G44: 0 | I44: 0 | J44: 0 | L44: 0
A45: 1935 | B45: Stores Equipment | E45: 0 | G45: 0 | I45: 0 | J45: 0 | L45: 0
A46: 1940 | B46: Tools, Shop & Garage Equipment | E46: 0 | G46: 0 | I46: 0 | J46: 0 | L46: 0
A47: 1945 | B47: Measurement & Testing Equipment | E47: 0 | G47: 0 | I47: 0 | J47: 0 | L47: 0
A48: 1950 | B48: Power Operated Equipment | E48: 0 | G48: 0 | I48: 0 | J48: 0 | L48: 0
A49: 1955 | B49: Communications Equipment | E49: 0 | G49: 0 | I49: 0 | J49: 0 | L49: 0
A50: 1955 | B50: Communication Equipment (Smart Meters) | E50: 0 | G50: 0 | I50: 0 | J50: 0 | L50: 0
A51: 1960 | B51: Miscellaneous Equipment | E51: 0 | G51: 0 | I51: 0 | J51: 0 | L51: 0
A52: 1970 | B52: Load Management Controls - Customer Premises | E52: 0 | G52: 0 | I52: 0 | J52: 0 | L52: 0
A53: 1975 | B53: Load Management Controls Utility Premises | E53: 0 | G53: 0 | I53: 0 | J53: 0 | L53: 0
A54: 1980 | B54: System Supervisor Equipment | E54: 0 | G54: 0 | I54: 0 | J54: 0 | L54: 0
A55: 1985 | B55: Miscellaneous Fixed Assets | E55: 0 | G55: 0 | I55: 0 | J55: 0 | L55: 0
A56: 1990 | B56: Other Tangible Property | E56: 0 | G56: 0 | I56: 0 | J56: 0 | L56: 0
A57: 1995 | B57: Contributions & Grants | E57: 0 | G57: 0 | I57: 0 | J57: 0 | L57: 0
B58: Total | C58: =SUM(C20:C57) -> 0 | D58: =SUM(D20:D57) -> 0 | E58: =SUM(E20:E57) -> 0 | F58: =SUM(F20:F57) -> 0 | G58: =SUM(G20:G57) -> 0 | J58: =SUM(J20:J57) -> 0 | K58: =SUM(K20:K57) -> 0 | L58: =SUM(L20:L57) -> 0
B59: Depreciation exp. adj. from gain or loss on the retirement of assets (pool of like assets) (under MIFRS)
B60: Total Depreciation Expense | J60: =SUM(J58:J59) -> 0
A62: Notes:
A64: 1 | B64: The appendix should be submitted for the Test Year, Bridge Year and all relevant historical years. At a minimum , the applicant must provide data for the earlier of: 1) all historical years back to its last rebasing; or 2) at least three years of historical actuals, in addition to Bridge Year and Test Year forecasts.
A66: 2 | B66: Board policy of the "half-year" rule - the applicant must ensure that additions in the year attract a half-year depreciation expense in the first year. Deviations from this standard practice must be supported in the application.
A67: 3 | B67: The applicant must provide an explanation of material variances in evidence.
A69: General | B69: Applicants must provide a breakdown of depreciation and amortization expense in the above format for all relevant accounts. Asset Retirement Obligations (AROs), depreciation and accretion expense should be disclosed separately consistent with the Notes of historical Audited Financial Statements.

Sheet App.2-D_Overhead
F1: File Number: | G1: =EBNUMBER -> EB-2016-0091
F2: Exhibit:
F3: Tab:
F4: Schedule:
F5: Page:
F7: Date: | G7: 2016-08-26
A9: Appendix 2-D
A10: Overhead Expense
A12: Applicants are to provide a breakdown of OM&A before capitalization in the below table. OM&A before capitalization may be broken down by cost center, program, drivers or another format best suited to focus on capitalized vs. uncapitalized OM&A.
A14: OM&A Before Capitalization
B15: =F15-4 -> 2013 | C15: =F15-3 -> 2014 | D15: =F15-2 -> 2015 | E15: =F15-1 -> 2016 | F15: =TestYear -> 2017
B16: Historical Year | C16: Historical Year | D16: Historical Year | E16: Bridge Year | F16: Test Year
A17: Asset management | B17: 4354815.84 | C17: 4763961.43 | D17: 5243635.51 | E17: 5474762.81 | F17: 5923000
A18: Operations and maintenance | B18: 14126669.32 | C18: 14068948.56 | D18: 14867923.91 | E18: 15534889.12 | F18: 15963000
A19: Metering and data management | B19: 3094768.77 | C19: 3288005.23 | D19: 3518402.2 | E19: 3847189.5 | F19: 4227800
A20: Information Technology | B20: 4854271.43 | C20: 5584736.28 | D20: 5809513.71 | E20: 6214855.92 | F20: 6889200
A21: Customer service and collections | B21: 1785879.96 | C21: 2267352.09 | D21: 2493732.75 | E21: 2595805.44 | F21: 2715200
A22: Corporate communications | B22: 619830.67 | C22: 770846.84 | D22: 852431.24 | E22: 938266.14 | F22: 936000
A23: Human resources, health and safety | B23: 1210740.68 | C23: 1320502.22 | D23: 1541246.73 | E23: 1582467.28 | F23: 1713500
A24: Facilities and environmental services | B24: 3045421.39 | C24: 3358138.96 | D24: 3296080.71 | E24: 3342322.54 | F24: 3432600
A25: Corporate services | B25: 4430402.16 | C25: 4822068.99 | D25: 4488154.01 | E25: 4837122.74 | F25: 5415300
A26: Locate services | B26: 824684.78 | C26: 969944.46 | D26: 893412.63 | E26: 957684.43 | F26: 917700
A27: Fleet services (gross expenditures) | B27: 3502151.86 | C27: 3603419.94 | D27: 3691669.83 | E27: 3972315.82 | F27: 4349000
A28: Materials management (gross expenditures) | B28: 962367.11 | C28: 1037860.37 | D28: 1094717.77 | E28: 1044398.8 | F28: 1103760
A29: Fleet and materials management cost allocations | B29: -2635421.04 | C29: -2693822.83 | D29: -2793128.89 | E29: -2918618.46 | F29: -3172200
A31: Total OM&A Before Capitalization (B) | B31: =SUM(B17:B30) -> 40176582.93 | C31: =SUM(C17:C30) -> 43161962.54 | D31: 44997792.11 | E31: 47423462.08 | F31: 50413860
A33: Applicants are to provide a breakdown of capitalized OM&A in the below table. Capitalized OM&A may be broken down using the categories listed in the table below if possible. Otherwise, applicants are to provide its own break down of capitalized OM&A.
A35: Capitalized OM&A | G35: Directly | H35: Explanation for Change in Overhead Capitalized
B36: =F36-4 -> 2013 | C36: =F36-3 -> 2014 | D36: =F36-2 -> 2015 | E36: =F36-1 -> 2016 | F36: =TestYear -> 2017 | G36: Attributable?
B37: Historical Year | C37: Historical Year | D37: Historical Year | E37: Bridge Year | F37: Test Year | G37: (Yes/No)
A38: Asset management | B38: 1166242.6 | C38: 1175984.41 | D38: 1259191.37 | E38: 1454420.13 | F38: 1802500 | G38: Y | H38: No changes.
A39: Operations and maintenance | B39: 4936984.58 | C39: 5232940.91 | D39: 5261154.34 | E39: 5551366.46 | F39: 6071500 | G39: Y | H39: No changes.
A40: Metering and data management | B40: 179525.07 | C40: 240731.3 | D40: 342646.84 | E40: 464572.91 | F40: 547000 | G40: Y | H40: No changes.
A41: Information Technology | B41: 872905.67 | C41: 1081414.6 | D41: 1385518.79 | E41: 1328280.64 | F41: 2000800 | G41: Y | H41: No changes.
A42: Customer service and collections | B42: 134156.78 | C42: 240837.97 | D42: 142194.38 | E42: 128719.99 | F42: 280500 | G42: Y | H42: No changes.
A43: Corporate communications | B43: 48331.67 | C43: 46105.97 | D43: 0 | E43: 0 | F43: 0 | G43: Y | H43: No changes.
A44: Human resources, health and safety | B44: 0 | C44: 0 | D44: 4853.74 | E44: 20651.92 | F44: 0 | G44: Y | H44: No changes.
A45: Facilities and environmental services | B45: 0 | C45: 0 | D45: 0 | E45: 0 | F45: 0
A46: Corporate services | B46: 3336.18 | C46: 2846.15 | D46: 0 | E46: 674.21 | F46: 0 | G46: Y | H46: No changes.
A47: Locate services | B47: 0 | C47: 204.9 | D47: 0 | E47: 0 | F47: 0 | G47: Y | H47: No changes.
A48: Fleet services (gross expenditures) | B48: 1223117.3 | C48: 1284652.19 | D48: 1270085.06 | E48: 1422959.12 | F48: 1571900 | G48: Y | H48: No changes.
A49: Materials management (gross expenditures) | B49: 260677.48 | C49: 234777.05 | D49: 233497.06 | E49: 248826.7 | F49: 258960 | G49: Y | H49: No changes.
A51: Total Capitalized OM&A (A) | B51: =SUM(B38:B50) -> 8825277.33 | C51: =SUM(C38:C50) -> 9540495.45 | D51: =SUM(D38:D50) -> 9899141.58 | E51: =SUM(E38:E50) -> 10620472.08 | F51: =SUM(F38:F50) -> 12533160
A53: % of Capitalized OM&A (=A/B) | B53: =IF(ISERROR(B51/B31),"0%",B51/B31) -> 0.2196622183 | C53: =IF(ISERROR(C51/C31),"0%",C51/C31) -> 0.2210394266 | D53: =IF(ISERROR(D51/D31),"0%",D51/D31) -> 0.2199917177 | E53: =IF(ISERROR(E51/E31),"0%",E51/E31) -> 0.2239497416 | F53: =IF(ISERROR(F51/F31),"0%",F51/F31) -> 0.248605443

Sheet App.2-EA_Account 1575 (2015)
H1: File Number: | I1: =EBNUMBER -> EB-2016-0091
H2: Exhibit:
H3: Tab:
H4: Schedule:
H5: Page:
H7: Date: | I7: 2016-08-26
A9: Appendix 2-EA
A10: Account 1575 - IFRS-CGAAP Transitional PP&E Amounts
A11: 2015 Adopters of IFRS for Financial Reporting Purposes
A13: For applicants that adopted IFRS on January 1, 2015 for financial reporting purposes
B17: =RebaseYear &" Rebasing Year" -> 2013 Rebasing Year | C17: =TestYear-3 -> 2014 | D17: =TestYear-2 -> 2015 | E17: =CONCATENATE(TestYear-1," Bridge Year") -> 2016 Bridge Year | F17: =CONCATENATE(TestYear," Rebasing Year") -> 2017 Rebasing Year
A18: Reporting Basis | B18: CGAAP | C18: CGAAP | D18: CGAAP | E18: MIFRS | F18: MIFRS
B19: Forecast | C19: Actual | D19: Actual | E19: Forecast | F19: Forecast
D20: $ | E20: $
A21: PP&E Values under CGAAP
A22: Opening net PP&E - Note 1 | D22: =+C25 -> 0 | E22: =+D25 -> 0
A23: Net Additions - Note 4
A24: Net Depreciation (amounts should be negative) - Note 4
A25: Closing net PP&E (1) | C25: =C22+C23+C24 -> 0 | D25: =SUM(D22:D24) -> 0 | E25: =SUM(E22:E24) -> 0
A27: PP&E Values under MIFRS (Starts from 2014, the transition year)
A28: Opening net PP&E - Note 1 | D28: =+C31 -> 0 | E28: =+D31 -> 0
A29: Net Additions - Note 4
A30: Net Depreciation (amounts should be negative) - Note 4
A31: Closing net PP&E (2) | C31: =SUM(C28:C30) -> 0 | D31: =SUM(D28:D30) -> 0 | E31: =SUM(E28:E30) -> 0
A33: Difference in Closing net PP&E, former CGAAP vs. revised CGAAP | C33: =C25-C31 -> 0 | D33: =D25-D31 -> 0 | E33: =E25-E31 -> 0
A36: Effect on Deferral and Variance Account Rate Riders
A37: Closing balance in Account 1576 | F37: =IF(ISERROR(E33), 0, E33) -> 0 | H37: WACC
A38: Return on Rate Base Associated with Account 1576 balance at WACC - Note 2 | F38: =E33*I37*I38 -> 0 | G38: # of years of rate rider disposition period
A39: Amount included in Deferral and Variance Account Rate Rider Calculation | F39: =F37+F38 -> 0
A41: Notes:
A42: 1 For an applicant that adopted IFRS on January 1, 2015, the PP&E values as of January 1, 2014 under both CGAAP and MIFRS should be the same.
A43: 2 Return on rate base associated with deferred balance is calculated as:
A44: the deferral account closing balance as of 2016 x WACC X # of years of rate rider disposition period
A45: * Please note that the calculation should be adjusted once WACC is updated and finalized in the rate application.
A46: 3 The PP&E deferral account is cleared by including the total balance in the deferral and variance account rate rider calculation.
A47: 4 Net additions are additions net of disposals; Net depreciation is additions to depreciation net of disposals.

Sheet App.2-EB_Account 1576 (2012)
J1: File Number: | K1: =EBNUMBER -> EB-2016-0091
J2: Exhibit:
J3: Tab:
J4: Schedule:
J5: Page:
J7: Date: | K7: 2016-08-26
A9: Appendix 2-EB
A10: Account 1576 - Accounting Changes under CGAAP
A11: 2012 Changes in Accounting Policies under CGAAP
A13: For applicants with a balance in Account 1576 and made capitalization and depreciation expense accounting policy changes under CGAAP effective January 1, 2012
B17: 2011 Rebasing Year | C17: 2012 | D17: 2013 | E17: 2014 | F17: 2015 | G17: 2016 | H17: 2017 Rebasing Year
A18: Reporting Basis | B18: CGAAP | C18: CGAAP | D18: CGAAP | E18: CGAAP | F18: MIFRS - Note 5 | G18: MIFRS | H18: MIFRS
B19: Forecast | C19: Actual | D19: Actual | E19: Actual | F19: Actual | G19: Forecast | H19: Forecast
C20: $ | D20: $ | E20: $ | G20: $
A21: PP&E Values under former CGAAP
A22: Opening net PP&E - Note 1 | D22: =+C25 -> 0 | E22: =+D25 -> 0 | F22: =+D25 -> 0 | G22: =+E25 -> 0
A23: Net Additions - Note 4
A24: Net Depreciation (amounts should be negative) - Note 4
A25: Closing net PP&E (1) | C25: =C22+C23+C24 -> 0 | D25: =D22+D23+D24 -> 0 | E25: =E22+E23+E24 -> 0 | F25: =F22+F23+F24 -> 0 | G25: =G22+G23+G24 -> 0
A27: PP&E Values under revised CGAAP (Starts from 2012)
A28: Opening net PP&E - Note 1 | D28: =+C31 -> 0 | E28: =+D31 -> 0 | F28: =+D31 -> 0 | G28: =+E31 -> 0
A29: Net Additions - Note 4
A30: Net Depreciation (amounts should be negative) - Note 4
A31: Closing net PP&E (2) | C31: =SUM(C28:C30) -> 0 | D31: =SUM(D28:D30) -> 0 | E31: =SUM(E28:E30) -> 0 | F31: =SUM(F28:F30) -> 0 | G31: =SUM(G28:G30) -> 0
A33: Difference in Closing net PP&E, former CGAAP vs. revised CGAAP | C33: =C25-C31 -> 0 | D33: =D25-D31 -> 0 | E33: =E25-E31 -> 0 | F33: =F25-F31 -> 0 | G33: =G25-G31 -> 0
A36: Effect on Deferral and Variance Account Rate Riders
A37: Closing balance in Account 1576 | H37: =IF(ISERROR(G33), 0, G33) -> 0 | J37: WACC
A38: Return on Rate Base Associated with Account 1576 balance at WACC - Note 2 | H38: =G33*K37*K38 -> 0 | I38: # of years of rate rider disposition period
A39: Amount included in Deferral and Variance Account Rate Rider Calculation | H39: =H37+H38 -> 0
A41: Notes:
A42: 1 For an applicant that made the capitalization and depreciation expense accounting policy changes on January 1, 2012, the PP&E values as of January 1, 2012 under both former CGAAP and revised CGAAP should be the same.
A43: 2 Return on rate base associated with Account 1576 balance is calculated as:
A44: the variance account ending balance as of 2016 x WACC X # of years of rate rider disposition period
A45: * Please note that the calculation should be adjusted once WACC is updated and finalized in the rate application.
A46: 3 Account 1576 is cleared by including the total balance in the deferral and variance account rate rider calculation.
A47: 4 Net additions are additions net of disposals; Net depreciation is additions to depreciation net of disposals.
A48: 5 Differences due to the adoption of MIFRS are to be shown separately in Account 1575 in Appendix 2-EA as Accounts 1575 and 1576 cannot be used interchangably.

Sheet App.2-EC_Account 1576 (2013)
I1: File Number: | J1: =EBNUMBER -> EB-2016-0091
I2: Exhibit:
I3: Tab:
I4: Schedule:
I5: Page:
I7: Date: | J7: 2016-08-26
A9: Appendix 2-EC
A10: Account 1576 - Accounting Changes under CGAAP
A11: 2013 Changes in Accounting Policies under CGAAP
A13: For applicants with a balance in Account 1576 and made capitalization and depreciation expense accounting policy changes under CGAAP effective January 1, 2013
B17: 2012 Rebasing Year | C17: 2013 | D17: 2014 | E17: 2015 | F17: 2016 | G17: 2017 Rebasing Year
A18: Reporting Basis | B18: CGAAP | C18: CGAAP | D18: CGAAP | E18: MIFRS - Note 5 | F18: MIFRS | G18: MIFRS
B19: Actual | C19: Actual | D19: Actual | E19: Actual | F19: Forecast | G19: Forecast
C20: $ | D20: $ | F20: $
A21: PP&E Values under former CGAAP
A22: Opening net PP&E - Note 1 | D22: =+C25 -> 0 | E22: =+D25 -> 0 | F22: =+D25 -> 0
A23: Net Additions - Note 4
A24: Net Depreciation (amounts should be negative) - Note 4
A25: Closing net PP&E (1) | C25: =C22+C23+C24 -> 0 | D25: =D22+D23+D24 -> 0 | E25: =E22+E23+E24 -> 0 | F25: =F22+F23+F24 -> 0
A27: PP&E Values under revised CGAAP (Starts from 2012)
A28: Opening net PP&E - Note 1 | D28: =+C31 -> 0 | E28: =+D31 -> 0 | F28: =+D31 -> 0
A29: Net Additions - Note 4
A30: Net Depreciation (amounts should be negative) - Note 4
A31: Closing net PP&E (2) | C31: =SUM(C28:C30) -> 0 | D31: =SUM(D28:D30) -> 0 | E31: =SUM(E28:E30) -> 0 | F31: =SUM(F28:F30) -> 0
A33: Difference in Closing net PP&E, former CGAAP vs. revised CGAAP | C33: =C25-C31 -> 0 | D33: =D25-D31 -> 0 | E33: =E25-E31 -> 0 | F33: =F25-F31 -> 0
A36: Effect on Deferral and Variance Account Rate Riders
A37: Closing balance in Account 1576 | G37: =IF(ISERROR(F33), 0, F33) -> 0 | I37: WACC
A38: Return on Rate Base Associated with Account 1576 balance at WACC - Note 2 | G38: =F33*J37*J38 -> 0 | H38: # of years of rate rider disposition period
A39: Amount included in Deferral and Variance Account Rate Rider Calculation | G39: =G37+G38 -> 0
A41: Notes:
A42: 1 For an applicant that made the capitalization and depreciation expense accounting policy changes on January 1, 2013, the PP&E values as of January 1, 2013 under both former CGAAP and revised CGAAP should be the same.
A43: 2 Return on rate base associated with Account 1576 balance is calculated as:
A44: the variance account ending balance as of 2016 x WACC X # of years of rate rider disposition period
A45: * Please note that the calculation should be adjusted once WACC is updated and finalized in the rate application.
A46: 3 Account 1576 is cleared by including the total balance in the deferral and variance account rate rider calculation.
A47: 4 Net additions are additions net of disposals; Net depreciation is additions to depreciation net of disposals.
A48: 5 Differences due to the adoption of MIFRS are to be shown separately in Account 1575 in Appendix 2-EA as Accounts 1575 and 1576 cannot be used interchangably.

Sheet App.2-FA Proposed REG Invest.
J1: File Number: | K1: =EBNUMBER -> EB-2016-0091
J2: Exhibit: | K2: 2
J3: Tab: | K3: 2
J4: Schedule: | K4: 44
J5: Page:
J7: Date: | K7: 2016-08-26
A9: Appendix 2-FA
A10: Renewable Generation Connection Investment Summary (past investments or over the future rate setting period)
A12: Enter the details of the Renewable Generation Connection projects as described in the appropriate section of the Filing Requirements.
A13: All costs entered on this page will be transferred to the appropriate cells in the appendices that follow.
A14: For Part A, Renewable Enabling Improvements (REI), these amounts will be transferred to Appendix 2 - FB
A15: For Part B, Expansions, these amounts will be transferred to Appendix 2 - FC
A17: If there are more than five projects proposed to be in-service in a certain year, please amend the tables below and ensure that the formulae for the Total Amounts in any given rate year are updated.
A18: Based on the current methodology and allocation, amounts allocated represent 6% for REI Connection Investments and 17% for Expansion Investments. (EB-2009-0349, 6-10-2010, p. 15, note 9)
A20: There are two scenarios described below. Separate sets of spreadsheets (2-FA, 2-FB, 2-FC) should be submited for each scenario as required.
A21: Scenario 1: Past Investments with No Recovery. The distributor has made investments in the past (during the IRM Years), but has not received approval for these projects and therefore did not receive
A22: revenue from the IESO under Regulation 330/09 and did not receive ratepayer revenue for the direct benefit portion of the investment.
A23: The WCA percentage, debt percentages, interest rates, kWh, tax rates, amortization period, CCA Class and percentage should correspond to the distributor's last Cost of Service approval.
A24: The Direct Benefit portion of the calculated Revenue Requirement for each year should be summed and can be applied for recovery from the distributor's ratepayers through a rate rider.
A25: The Provincial Recovery portion of the calculated Revenue Requirement for each year should be summed and can be applied for recovery from the IESO through a separate order.
A27: Scenario 2: Investments in the Test Year and Beyond. Distributor plans to make investments in 2017 and/or beyond. These investments should be added to 2-FA in the appropriate year.
A28: The WCA percentage, debt percentages, interest rates, kWh, tax rates, amortization period, CCA Class and percentage should correspond to the distributor's current application.
A30: Part A | G30: Test Year
A31: REI Investments (Direct Benefit at 6%) | C31: =D31-1 -> 2013 | D31: =E31-1 -> 2014 | E31: =F31-1 -> 2015 | F31: =G31-1 -> 2016 | G31: =TestYear -> 2017 | H31: =G31+1 -> 2018 | I31: =H31+1 -> 2019 | J31: =I31+1 -> 2020 | K31: =J31+1 -> 2021
A32: Project 1
A33: Name: REI Connection Project
A34: Capital Costs | C34: 0 | D34: 0 | E34: 0 | F34: 0 | G34: 0 | H34: 0 | I34: 0 | J34: 0 | K34: 0
A35: OM&A (Start-Up) | C35: 0 | D35: 0 | E35: 0 | F35: 0 | G35: 0 | H35: 0 | I35: 0 | J35: 0 | K35: 0
A36: OM&A (Ongoing) | C36: 0 | D36: 0 | E36: 0 | F36: 0 | G36: 0 | H36: 0 | I36: 0 | J36: 0 | K36: 0
A38: Project 2
A39: Name: REI Connection Project
A40: Capital Costs | C40: 0 | D40: 0 | E40: 0 | F40: 0 | G40: 0 | H40: 0 | I40: 0 | J40: 0 | K40: 0
A41: OM&A (Start-Up) | C41: 0 | D41: 0 | E41: 0 | F41: 0 | G41: 0 | H41: 0 | I41: 0 | J41: 0 | K41: 0
A42: OM&A (Ongoing) | C42: 0 | D42: 0 | E42: 0 | F42: 0 | G42: 0 | H42: 0 | I42: 0 | J42: 0 | K42: 0
A44: Project 3
A45: Name: REI Connection Project
A46: Capital Costs | C46: 0 | D46: 0 | E46: 0 | F46: 0 | G46: 0 | H46: 0 | I46: 0 | J46: 0 | K46: 0
A47: OM&A (Start-Up) | C47: 0 | D47: 0 | E47: 0 | F47: 0 | G47: 0 | H47: 0 | I47: 0 | J47: 0 | K47: 0
A48: OM&A (Ongoing) | C48: 0 | D48: 0 | E48: 0 | F48: 0 | G48: 0 | H48: 0 | I48: 0 | J48: 0 | K48: 0
A50: Project 4
A51: Name: REI Connection Project
A52: Capital Costs | C52: 0 | D52: 0 | E52: 0 | F52: 0 | G52: 0 | H52: 0 | I52: 0 | J52: 0 | K52: 0
A53: OM&A (Start-Up) | C53: 0 | D53: 0 | E53: 0 | F53: 0 | G53: 0 | H53: 0 | I53: 0 | J53: 0 | K53: 0
A54: OM&A (Ongoing) | C54: 0 | D54: 0 | E54: 0 | F54: 0 | G54: 0 | H54: 0 | I54: 0 | J54: 0 | K54: 0
A56: Project 5
A57: Name: REI Connection Project
A58: Capital Costs | C58: 0 | D58: 0 | E58: 0 | F58: 0 | G58: 0 | H58: 0 | I58: 0 | J58: 0 | K58: 0
A59: OM&A (Start-Up) | C59: 0 | D59: 0 | E59: 0 | F59: 0 | G59: 0 | H59: 0 | I59: 0 | J59: 0 | K59: 0
A60: OM&A (Ongoing) | C60: 0 | D60: 0 | E60: 0 | F60: 0 | G60: 0 | H60: 0 | I60: 0 | J60: 0 | K60: 0
A62: Total Capital Costs | C62: =SUM(C58,C52,C46,C40,C34) -> 0 | D62: 0 | E62: 0 | F62: 0 | G62: =SUM(G58,G52,G46,G40,G34) -> 0 | H62: =SUM(H58,H52,H46,H40,H34) -> 0 | I62: 0 | J62: 0 | K62: 0
A63: Total OM&A (Start-Up) | C63: 0 | D63: 0 | E63: 0 | F63: 0 | G63: =SUM(G59,G53,G47,G41,G35) -> 0 | H63: 0 | I63: 0 | J63: 0 | K63: 0
A64: Total OM&A (Ongoing) | C64: 0 | D64: 0 | E64: 0 | F64: 0 | G64: =SUM(G60,G54,G48,G42,G36) -> 0 | H64: 0 | I64: 0 | J64: 0 | K64: 0
A67: Part B | G67: Test Year
A68: Expansion Investments (Direct Benefit at 17%) | C68: =D68-1 -> 2013 | D68: =E68-1 -> 2014 | E68: =F68-1 -> 2015 | F68: =G68-1 -> 2016 | G68: =TestYear -> 2017 | H68: =G68+1 -> 2018 | I68: =H68+1 -> 2019 | J68: 2020 | K68: 2021
A69: Project 1
A70: Name: Expansion Connection Project
A71: Capital Costs | C71: 0 | D71: 0 | E71: 0 | F71: 0 | G71: 0 | H71: 0 | I71: 0 | J71: 0 | K71: 0
A72: OM&A (Start-Up) | C72: 0 | D72: 0 | E72: 0 | F72: 0 | G72: 0 | H72: 0 | I72: 0 | J72: 0 | K72: 0
A73: OM&A (Ongoing) | C73: 0 | D73: 0 | E73: 0 | F73: 0 | G73: 0 | H73: 0 | I73: 0 | J73: 0 | K73: 0
A75: Project 2
A76: Name: Expansion Connection Project
A77: Capital Costs | C77: 0 | D77: 0 | E77: 0 | F77: 0 | G77: 0 | H77: 0 | I77: 0 | J77: 0 | K77: 0
A78: OM&A (Start-Up) | C78: 0 | D78: 0 | E78: 0 | F78: 0 | G78: 0 | H78: 0 | I78: 0 | J78: 0 | K78: 0
A79: OM&A (Ongoing) | C79: 0 | D79: 0 | E79: 0 | F79: 0 | G79: 0 | H79: 0 | I79: 0 | J79: 0 | K79: 0
A81: Project 3
A82: Name: Expansion Connection Project
A83: Capital Costs | C83: 0 | D83: 0 | E83: 0 | F83: 0 | G83: 0 | H83: 0 | I83: 0 | J83: 0 | K83: 0
A84: OM&A (Start-Up) | C84: 0 | D84: 0 | E84: 0 | F84: 0 | G84: 0 | H84: 0 | I84: 0 | J84: 0 | K84: 0
A85: OM&A (Ongoing) | C85: 0 | D85: 0 | E85: 0 | F85: 0 | G85: 0 | H85: 0 | I85: 0 | J85: 0 | K85: 0
A87: Project 4
A88: Name: Expansion Connection Project
A89: Capital Costs | C89: 0 | D89: 0 | E89: 0 | F89: 0 | G89: 0 | H89: 0 | I89: 0 | J89: 0 | K89: 0
A90: OM&A (Start-Up) | C90: 0 | D90: 0 | E90: 0 | F90: 0 | G90: 0 | H90: 0 | I90: 0 | J90: 0 | K90: 0
A91: OM&A (Ongoing) | C91: 0 | D91: 0 | E91: 0 | F91: 0 | G91: 0 | H91: 0 | I91: 0 | J91: 0 | K91: 0
A93: Project 5
A94: Name: Expansion Connection Project
A95: Capital Costs | C95: 0 | D95: 0 | E95: 0 | F95: 0 | G95: 0 | H95: 0 | I95: 0 | J95: 0 | K95: 0
A96: OM&A (Start-Up) | C96: 0 | D96: 0 | E96: 0 | F96: 0 | G96: 0 | H96: 0 | I96: 0 | J96: 0 | K96: 0
A97: OM&A (Ongoing) | C97: 0 | D97: 0 | E97: 0 | F97: 0 | G97: 0 | H97: 0 | I97: 0 | J97: 0 | K97: 0
A99: Total Capital Costs | C99: =SUM(C95,C89,C83,C77,C71) -> 0 | D99: 0 | E99: 0 | F99: 0 | G99: =SUM(G95,G89,G83,G77,G71) -> 0 | H99: =SUM(H95,H89,H83,H77,H71) -> 0 | I99: 0 | J99: 0 | K99: 0
A100: Total OM&A (Start-Up) | C100: 0 | D100: 0 | E100: 0 | F100: 0 | G100: =SUM(G96,G90,G84,G78,G72) -> 0 | H100: 0 | I100: 0 | J100: 0 | K100: 0
A101: Total OM&A (Ongoing) | C101: 0 | D101: 0 | E101: 0 | F101: 0 | G101: =SUM(G97,G91,G85,G79,G73) -> 0 | H101: 0 | I101: 0 | J101: 0 | K101: 0

Sheet App.2-FB Calc of REG Improvemnt
N1: File Number: | O1: =EBNUMBER -> EB-2016-0091
N2: Exhibit: | O2: 2
N3: Tab: | O3: 2
N4: Schedule: | O4: 45
N5: Page:
N7: Date: | O7: 2016-08-26
A9: Appendix 2-FB
A10: Calculation of Renewable Generation Connection Direct Benefits/Provincial Amount: Renewable Enabling Improvement Investments
A12: This table will calculate the distributor/provincial shares of the investments entered in Part A of Appendix 2-FA.
A13: Enter values in green shaded cells: WCA percentage, debt percentages, interest rates, kWh, tax rates, amortization period, CCA Class and percentage.
A14: For historical investments, enter these variables for your last cost of service test year. For 2017 and beyond, enter variables as in the application.
A15: Rate Riders are not calculated for the Test Year as these assets and costs are already in the distributor's rate base/revenue requirement.
C17: =F17-1 -> 2013 | F17: =I17-1 -> 2014 | I17: =L17-1 -> 2015 | L17: =BridgeYear -> 2016 | O17: =CONCATENATE(TestYear," Test Year") -> 2017 Test Year | R17: =TestYear+1 -> 2018 | U17: =R17+1 -> 2019 | V17: 2016 | X17: =U17+1 -> 2020 | AA17: =X17+1 -> 2021
D18: Direct Benefit | E18: Provincial | G18: Direct Benefit | H18: Provincial | J18: Direct Benefit | K18: Provincial | M18: Direct Benefit | N18: Provincial | P18: Direct Benefit | Q18: Provincial | S18: Direct Benefit | T18: Provincial | V18: Direct Benefit | W18: Provincial | Y18: Direct Benefit | Z18: Provincial | AB18: Direct Benefit | AC18: Provincial
C19: Total | D19: 0.06 | E19: 0.94 | F19: Total | G19: 0.06 | H19: 0.94 | I19: Total | J19: 0.06 | K19: 0.94 | L19: Total | M19: 0.06 | N19: 0.94 | O19: Total | P19: 0.06 | Q19: 0.94 | R19: Total | S19: 0.06 | T19: 0.94 | U19: Total | V19: 0.06 | W19: 0.94 | X19: Total | Y19: 0.06 | Z19: 0.94 | AA19: Total | AB19: 0.06 | AC19: 0.94
A20: Net Fixed Assets (average) | C20: =D82 -> 0 | D20: =C20*D19 -> 0 | E20: =C20*E19 -> 0 | F20: =E82 -> 0 | G20: =F20*G19 -> 0 | H20: =F20*H19 -> 0 | I20: =F82 -> 0 | J20: =I20*J19 -> 0 | K20: =I20*K19 -> 0 | L20: =G82 -> 0 | M20: =L20*M19 -> 0 | N20: =L20*N19 -> 0 | O20: =H82 -> 0 | P20: =O20*P19 -> 0 | Q20: =O20*Q19 -> 0 | R20: =I82 -> 0 | S20: =R20*S19 -> 0 | T20: =R20*T19 -> 0 | U20: =J82 -> 0 | V20: =U20*V19 -> 0 | W20: =U20*W19 -> 0 | X20: =K82 -> 0 | Y20: =X20*Y19 -> 0 | Z20: =X20*Z19 -> 0 | AA20: =L82 -> 0 | AB20: =AA20*AB19 -> 0 | AC20: =AA20*AC19 -> 0
A21: Incremental OM&A (on-going, N/A for Provincial Recovery) | C21: ='App.2-FA Proposed REG Invest.'!C64 -> 0 | D21: =C21 -> 0 | F21: ='App.2-FA Proposed REG Invest.'!D64 -> 0 | G21: =F21 -> 0 | I21: ='App.2-FA Proposed REG Invest.'!E64 -> 0 | J21: =I21 -> 0 | L21: ='App.2-FA Proposed REG Invest.'!F64 -> 0 | M21: =L21 -> 0 | O21: ='App.2-FA Proposed REG Invest.'!G64 -> 0 | P21: =O21 -> 0 | R21: ='App.2-FA Proposed REG Invest.'!H64 -> 0 | S21: =R21 -> 0 | U21: ='App.2-FA Proposed REG Invest.'!I64 -> 0 | V21: =U21 -> 0 | X21: ='App.2-FA Proposed REG Invest.'!J64 -> 0 | Y21: =X21 -> 0 | AA21: ='App.2-FA Proposed REG Invest.'!K64 -> 0 | AB21: =AA21 -> 0
A22: Incremental OM&A (start-up, applicable for Provincial Recovery) | C22: ='App.2-FA Proposed REG Invest.'!C63 -> 0 | D22: =C22*D19 -> 0 | E22: =C22*E19 -> 0 | F22: ='App.2-FA Proposed REG Invest.'!D63 -> 0 | G22: =F22*G19 -> 0 | H22: =F22*H19 -> 0 | I22: ='App.2-FA Proposed REG Invest.'!E63 -> 0 | J22: =I22*J19 -> 0 | K22: =I22*K19 -> 0 | L22: ='App.2-FA Proposed REG Invest.'!F63 -> 0 | M22: =L22*M19 -> 0 | N22: =L22*N19 -> 0 | O22: ='App.2-FA Proposed REG Invest.'!G63 -> 0 | P22: =O22*P19 -> 0 | Q22: =O22*Q19 -> 0 | R22: ='App.2-FA Proposed REG Invest.'!H63 -> 0 | S22: =R22*S19 -> 0 | T22: =R22*T19 -> 0 | U22: ='App.2-FA Proposed REG Invest.'!I63 -> 0 | V22: =U22*V19 -> 0 | W22: =U22*W19 -> 0 | X22: ='App.2-FA Proposed REG Invest.'!J63 -> 0 | Y22: =X22*Y19 -> 0 | Z22: =X22*Z19 -> 0 | AA22: ='App.2-FA Proposed REG Invest.'!K63 -> 0 | AB22: =AA22*AB19 -> 0 | AC22: =AA22*AC19 -> 0
A23: WCA | D23: =(D21+D22)*$B$23 -> 0 | E23: =E22*$B$23 -> 0 | G23: =(G21+G22)*$B$23 -> 0 | H23: =H22*$B$23 -> 0 | J23: =(J21+J22)*$B$23 -> 0 | K23: =K22*$B$23 -> 0 | M23: =(M21+M22)*$B$23 -> 0 | N23: =N22*$B$23 -> 0 | P23: =(P21+P22)*$B$23 -> 0 | Q23: =Q22*$B$23 -> 0 | S23: =(S21+S22)*$B$23 -> 0 | T23: =T22*$B$23 -> 0 | V23: =(V21+V22)*$B$23 -> 0 | W23: =W22*$B$23 -> 0 | Y23: =(Y21+Y22)*$B$23 -> 0 | Z23: =Z22*$B$23 -> 0 | AB23: =(AB21+AB22)*$B$23 -> 0 | AC23: =AC22*$B$23 -> 0
A24: Rate Base | D24: =SUM(D20+D23) -> 0 | E24: =SUM(E20+E23) -> 0 | G24: =SUM(G20+G23) -> 0 | H24: =SUM(H20+H23) -> 0 | J24: =SUM(J20+J23) -> 0 | K24: =SUM(K20+K23) -> 0 | M24: =SUM(M20+M23) -> 0 | N24: =SUM(N20+N23) -> 0 | P24: =SUM(P20+P23) -> 0 | Q24: =SUM(Q20+Q23) -> 0 | S24: =SUM(S20+S23) -> 0 | T24: =SUM(T20+T23) -> 0 | V24: =SUM(V20+V23) -> 0 | W24: =SUM(W20+W23) -> 0 | Y24: =SUM(Y20+Y23) -> 0 | Z24: =SUM(Z20+Z23) -> 0 | AB24: =SUM(AB20+AB23) -> 0 | AC24: =SUM(AC20+AC23) -> 0
A27: Deemed ST Debt | D27: =D24*$B$27 -> 0 | E27: =E24*$B$27 -> 0 | G27: =G24*$B$27 -> 0 | H27: =H24*$B$27 -> 0 | J27: =J24*$B$27 -> 0 | K27: =K24*$B$27 -> 0 | M27: =M24*$B$27 -> 0 | N27: =N24*$B$27 -> 0 | P27: =P24*$B$27 -> 0 | Q27: =Q24*$B$27 -> 0 | S27: =S24*$B$27 -> 0 | T27: =T24*$B$27 -> 0 | V27: =V24*$B$27 -> 0 | W27: =W24*$B$27 -> 0 | Y27: =Y24*$B$27 -> 0 | Z27: =Z24*$B$27 -> 0 | AB27: =AB24*$B$27 -> 0 | AC27: =AC24*$B$27 -> 0
A28: Deemed LT Debt | D28: =D24*$B$28 -> 0 | E28: =E24*$B$28 -> 0 | G28: =G24*$B$28 -> 0 | H28: =H24*$B$28 -> 0 | J28: =J24*$B$28 -> 0 | K28: =K24*$B$28 -> 0 | M28: =M24*$B$28 -> 0 | N28: =N24*$B$28 -> 0 | P28: =P24*$B$28 -> 0 | Q28: =Q24*$B$28 -> 0 | S28: =S24*$B$28 -> 0 | T28: =T24*$B$28 -> 0 | V28: =V24*$B$28 -> 0 | W28: =W24*$B$28 -> 0 | Y28: =Y24*$B$28 -> 0 | Z28: =Z24*$B$28 -> 0 | AB28: =AB24*$B$28 -> 0 | AC28: =AC24*$B$28 -> 0
A29: Deemed Equity | D29: =D24*$B$29 -> 0 | E29: =E24*$B$29 -> 0 | G29: =G24*$B$29 -> 0 | H29: =H24*$B$29 -> 0 | J29: =J24*$B$29 -> 0 | K29: =K24*$B$29 -> 0 | M29: =M24*$B$29 -> 0 | N29: =N24*$B$29 -> 0 | P29: =P24*$B$29 -> 0 | Q29: =Q24*$B$29 -> 0 | S29: =S24*$B$29 -> 0 | T29: =T24*$B$29 -> 0 | V29: =V24*$B$29 -> 0 | W29: =W24*$B$29 -> 0 | Y29: =Y24*$B$29 -> 0 | Z29: =Z24*$B$29 -> 0 | AB29: =AB24*$B$29 -> 0 | AC29: =AC24*$B$29 -> 0
A31: ST Interest | D31: =D27*$B31 -> 0 | E31: =E27*$B31 -> 0 | G31: =G27*$B31 -> 0 | H31: =H27*$B31 -> 0 | J31: =J27*$B31 -> 0 | K31: =K27*$B31 -> 0 | M31: =M27*$B31 -> 0 | N31: =N27*$B31 -> 0 | P31: =P27*$B31 -> 0 | Q31: =Q27*$B31 -> 0 | S31: =S27*$B31 -> 0 | T31: =T27*$B31 -> 0 | V31: =V27*$B31 -> 0 | W31: =W27*$B31 -> 0 | Y31: =Y27*$B31 -> 0 | Z31: =Z27*$B31 -> 0 | AB31: =AB27*$B31 -> 0 | AC31: =AC27*$B31 -> 0
A32: LT Interest | D32: =D28*$B32 -> 0 | E32: 0 | G32: =G28*$B32 -> 0 | H32: 0 | J32: =J28*$B32 -> 0 | K32: 0 | M32: =M28*$B32 -> 0 | N32: 0 | P32: =P28*$B32 -> 0 | Q32: 0 | S32: =S28*$B32 -> 0 | T32: 0 | V32: =V28*$B32 -> 0 | W32: 0 | Y32: =Y28*$B32 -> 0 | Z32: 0 | AB32: =AB28*$B32 -> 0 | AC32: 0
A33: ROE | D33: 0 | E33: 0 | G33: 0 | H33: 0 | J33: 0 | K33: 0 | M33: 0 | N33: 0 | P33: 0 | Q33: 0 | S33: 0 | T33: 0 | V33: 0 | W33: 0 | Y33: 0 | Z33: 0 | AB33: 0 | AC33: 0
A34: Cost of Capital Total | D34: =SUM(D31:D33) -> 0 | E34: =SUM(E31:E33) -> 0 | G34: =SUM(G31:G33) -> 0 | H34: =SUM(H31:H33) -> 0 | J34: =SUM(J31:J33) -> 0 | K34: =SUM(K31:K33) -> 0 | M34: =SUM(M31:M33) -> 0 | N34: =SUM(N31:N33) -> 0 | P34: =SUM(P31:P33) -> 0 | Q34: =SUM(Q31:Q33) -> 0 | S34: =SUM(S31:S33) -> 0 | T34: =SUM(T31:T33) -> 0 | V34: =SUM(V31:V33) -> 0 | W34: =SUM(W31:W33) -> 0 | Y34: =SUM(Y31:Y33) -> 0 | Z34: =SUM(Z31:Z33) -> 0 | AB34: =SUM(AB31:AB33) -> 0 | AC34: =SUM(AC31:AC33) -> 0
A36: OM&A | D36: =D21+D22 -> 0 | E36: =E22 -> 0 | G36: =G21+G22 -> 0 | H36: =H22 -> 0 | J36: =J21+J22 -> 0 | K36: =K22 -> 0 | M36: =M21+M22 -> 0 | N36: =N22 -> 0 | P36: =P21+P22 -> 0 | Q36: =Q22 -> 0 | S36: =S21+S22 -> 0 | T36: =T22 -> 0 | V36: =V21+V22 -> 0 | W36: =W22 -> 0 | Y36: =Y21+Y22 -> 0 | Z36: =Z22 -> 0 | AB36: =AB21+AB22 -> 0 | AC36: =AC22 -> 0
A37: Amortization | C37: =D77 -> 0 | D37: =C37*D$19 -> 0 | E37: =C37*E$19 -> 0 | F37: =E77 -> 0 | G37: =F37*G$19 -> 0 | H37: =F37*H$19 -> 0 | I37: =F77 -> 0 | J37: =I37*J$19 -> 0 | K37: =I37*K$19 -> 0 | L37: =G77 -> 0 | M37: =L37*M$19 -> 0 | N37: =L37*N$19 -> 0 | O37: =H77 -> 0 | P37: =O37*P$19 -> 0 | Q37: =O37*Q$19 -> 0 | R37: =I76+I77 -> 0 | S37: =R37*S$19 -> 0 | T37: =R37*T$19 -> 0 | U37: =J76+J77 -> 0 | V37: =U37*V$19 -> 0 | W37: =U37*W$19 -> 0 | X37: =K76+K77 -> 0 | Y37: =X37*Y$19 -> 0 | Z37: =X37*Z$19 -> 0 | AA37: =L76+L77 -> 0 | AB37: =AA37*AB$19 -> 0 | AC37: =AA37*AC$19 -> 0
A38: Grossed-up PILs | D38: =D65 -> 0 | E38: =E65 -> 0 | G38: =G65 -> 0 | H38: =H65 -> 0 | J38: =J65 -> 0 | K38: =K65 -> 0 | M38: =M65 -> 0 | N38: =N65 -> 0 | P38: =P65 -> 0 | Q38: =Q65 -> 0 | S38: =S65 -> 0 | T38: =T65 -> 0 | V38: =V65 -> 0 | W38: =W65 -> 0 | Y38: =Y65 -> 0 | Z38: =Z65 -> 0 | AB38: =AB65 -> 0 | AC38: =AC65 -> 0
A40: Revenue Requirement | D40: =SUM(D34:D38) -> 0 | E40: =SUM(E34:E38) -> 0 | G40: =SUM(G34:G38) -> 0 | H40: =SUM(H34:H38) -> 0 | J40: =SUM(J34:J38) -> 0 | K40: =SUM(K34:K38) -> 0 | M40: =SUM(M34:M38) -> 0 | N40: =SUM(N34:N38) -> 0 | P40: =SUM(P34:P38) -> 0 | Q40: =SUM(Q34:Q38) -> 0 | S40: =SUM(S34:S38) -> 0 | T40: =SUM(T34:T38) -> 0 | V40: =SUM(V34:V38) -> 0 | W40: =SUM(W34:W38) -> 0 | Y40: =SUM(Y34:Y38) -> 0 | Z40: =SUM(Z34:Z38) -> 0 | AB40: =SUM(AB34:AB38) -> 0 | AC40: =SUM(AC34:AC38) -> 0
A43: Provincial Rate Protection | E43: =E40 -> 0 | H43: =H40 -> 0 | K43: =K40 -> 0 | N43: =N40 -> 0 | Q43: =Q40 -> 0 | T43: =T40 -> 0 | W43: =W40 -> 0 | Z43: =Z40 -> 0 | AC43: =AC40 -> 0
A45: Monthly Amount Paid by IESO | E45: =E43/12 -> 0 | H45: =H43/12 -> 0 | K45: =K43/12 -> 0 | N45: =N43/12 -> 0 | Q45: =Q43/12 -> 0 | T45: =T43/12 -> 0 | W45: =W43/12 -> 0 | Z45: =Z43/12 -> 0 | AC45: =AC43/12 -> 0
A47: Note 1: The difference between the actual costs of approved eligible investments and revenue received from the IESO should be recorded in a variance account. The Board may provide
A48: regulatory accounting guidance regarding a variance account either in an individual proceeding or on a generic basis.
A49: Note 2: For the 2016 Test Year, Costs and Revenues of the Direct Benefit are to be included in the test year applicant Rate Base and Revenues.
A51: PILs Calculation
D52: =C17 -> 2013 | G52: =F17 -> 2014 | J52: =I17 -> 2015 | M52: =L17 -> 2016 | P52: =O17 -> 2017 Test Year | S52: =R17 -> 2018 | V52: =U17 -> 2019 | Y52: =X17 -> 2020 | AB52: =AA17 -> 2021
A53: Income Tax | D53: Direct Benefit | E53: Provincial | G53: Direct Benefit | H53: Provincial | J53: Direct Benefit | K53: Provincial | M53: Direct Benefit | N53: Provincial | P53: Direct Benefit | Q53: Provincial | S53: Direct Benefit | T53: Provincial | V53: Direct Benefit | W53: Provincial | Y53: Direct Benefit | Z53: Provincial | AB53: Direct Benefit | AC53: Provincial
X54: Total | AA54: Total
A55: Net Income - ROE on Rate Base | D55: =D33 -> 0 | E55: =E33 -> 0 | G55: =G33 -> 0 | H55: =H33 -> 0 | J55: =J33 -> 0 | K55: =K33 -> 0 | M55: =M33 -> 0 | N55: =N33 -> 0 | P55: =P33 -> 0 | Q55: =Q33 -> 0 | S55: =S33 -> 0 | T55: =T33 -> 0 | V55: =V33 -> 0 | W55: =W33 -> 0 | Y55: =Y33 -> 0 | Z55: =Z33 -> 0 | AB55: =AB33 -> 0 | AC55: =AC33 -> 0
A56: Amortization (6% DB and 94% P) | D56: =D37 -> 0 | E56: =E37 -> 0 | G56: =G37 -> 0 | H56: =H37 -> 0 | J56: =J37 -> 0 | K56: =K37 -> 0 | M56: =M37 -> 0 | N56: =N37 -> 0 | P56: =P37 -> 0 | Q56: =Q37 -> 0 | S56: =S37 -> 0 | T56: =T37 -> 0 | V56: =V37 -> 0 | W56: =W37 -> 0 | Y56: =Y37 -> 0 | Z56: =Z37 -> 0 | AB56: =AB37 -> 0 | AC56: =AC37 -> 0
A57: CCA (6% DB and 94% P) | D57: =-D94*D$19 -> 0 | E57: =-D94*E$19 -> 0 | G57: =-E94*G19 -> 0 | H57: =-E94*H$19 -> 0 | J57: =-F94*J$19 -> 0 | K57: =-F94*K$19 -> 0 | M57: =-G94*M$19 -> 0 | N57: =-G94*N$19 -> 0 | P57: =-H94*P$19 -> 0 | Q57: =-H94*Q$19 -> 0 | S57: =-I94*S$19 -> 0 | T57: =-I94*T$19 -> 0 | V57: =-J94*V$19 -> 0 | W57: =-J94*W$19 -> 0 | Y57: =-K94*Y$19 -> 0 | Z57: =-K94*Z$19 -> 0 | AB57: =-L94*AB$19 -> 0 | AC57: =-L94*AC$19 -> 0
A58: Taxable income | D58: =SUM(D55:D57) -> 0 | E58: =SUM(E55:E57) -> 0 | G58: =SUM(G55:G57) -> 0 | H58: =SUM(H55:H57) -> 0 | J58: =SUM(J55:J57) -> 0 | K58: =SUM(K55:K57) -> 0 | M58: =SUM(M55:M57) -> 0 | N58: =SUM(N55:N57) -> 0 | P58: =SUM(P55:P57) -> 0 | Q58: =SUM(Q55:Q57) -> 0 | S58: =SUM(S55:S57) -> 0 | T58: =SUM(T55:T57) -> 0 | V58: =SUM(V55:V57) -> 0 | W58: =SUM(W55:W57) -> 0 | Y58: =SUM(Y55:Y57) -> 0 | Z58: =SUM(Z55:Z57) -> 0 | AB58: =SUM(AB55:AB57) -> 0 | AC58: =SUM(AC55:AC57) -> 0
A60: Tax Rate (to be entered)
A62: Income Taxes Payable | D62: =D58*D60 -> 0 | E62: =E58*E60 -> 0 | G62: =G58*G60 -> 0 | H62: =H58*H60 -> 0 | J62: =J58*J60 -> 0 | K62: =K58*K60 -> 0 | M62: =M58*M60 -> 0 | N62: =N58*N60 -> 0 | P62: =P58*P60 -> 0 | Q62: =Q58*Q60 -> 0 | S62: =S58*S60 -> 0 | T62: =T58*T60 -> 0 | V62: =V58*V60 -> 0 | W62: =W58*W60 -> 0 | Y62: =Y58*Y60 -> 0 | Z62: =Z58*Z60 -> 0 | AB62: =AB58*AB60 -> 0 | AC62: =AC58*AC60 -> 0
A63: Gross Up
A64: Income Taxes Payable | D64: =D62/(1-D60) -> 0 | E64: =E62/(1-E60) -> 0 | G64: =G62/(1-G60) -> 0 | H64: =H62/(1-H60) -> 0 | J64: =J62/(1-J60) -> 0 | K64: =K62/(1-K60) -> 0 | M64: =M62/(1-M60) -> 0 | N64: =N62/(1-N60) -> 0 | P64: =P62/(1-P60) -> 0 | Q64: =Q62/(1-Q60) -> 0 | S64: =S62/(1-S60) -> 0 | T64: =T62/(1-T60) -> 0 | V64: =V62/(1-V60) -> 0 | W64: =W62/(1-W60) -> 0 | Y64: =Y62/(1-Y60) -> 0 | Z64: =Z62/(1-Z60) -> 0 | AB64: =AB62/(1-AB60) -> 0 | AC64: =AC62/(1-AC60) -> 0
A65: Grossed Up PILs | D65: =SUM(D64:D64) -> 0 | E65: =SUM(E64:E64) -> 0 | G65: =SUM(G64:G64) -> 0 | H65: =SUM(H64:H64) -> 0 | J65: =SUM(J64:J64) -> 0 | K65: =SUM(K64:K64) -> 0 | M65: =SUM(M64:M64) -> 0 | N65: =SUM(N64:N64) -> 0 | P65: =SUM(P64:P64) -> 0 | Q65: =SUM(Q64:Q64) -> 0 | S65: =SUM(S64:S64) -> 0 | T65: =SUM(T64:T64) -> 0 | V65: =SUM(V64:V64) -> 0 | W65: =SUM(W64:W64) -> 0 | Y65: =SUM(Y64:Y64) -> 0 | Z65: =SUM(Z64:Z64) -> 0 | AB65: =SUM(AB64:AB64) -> 0 | AC65: =SUM(AC64:AC64) -> 0
D68: =E68-1 -> 2013 | E68: =F68-1 -> 2014 | F68: =G68-1 -> 2015 | G68: =H68-1 -> 2016 | H68: =TestYear -> 2017 | I68: =H68+1 -> 2018 | J68: =I68+1 -> 2019 | K68: =J68+1 -> 2020 | L68: =K68+1 -> 2021
A69: Net Fixed Assets
B70: Enter applicable amortization in years: | C70: 25
A71: Opening Gross Fixed Assets | E71: =D73 -> 0 | F71: 0 | G71: 0 | H71: 0 | I71: =H73 -> 0 | J71: =I73 -> 0 | K71: =J73 -> 0 | L71: =K73 -> 0
A72: Gross Capital Additions | D72: ='App.2-FA Proposed REG Invest.'!C62 -> 0 | E72: ='App.2-FA Proposed REG Invest.'!D62 -> 0 | F72: ='App.2-FA Proposed REG Invest.'!E62 -> 0 | G72: ='App.2-FA Proposed REG Invest.'!F62 -> 0 | H72: ='App.2-FA Proposed REG Invest.'!G62 -> 0 | I72: ='App.2-FA Proposed REG Invest.'!H62 -> 0 | J72: ='App.2-FA Proposed REG Invest.'!I62 -> 0 | K72: ='App.2-FA Proposed REG Invest.'!J62 -> 0 | L72: ='App.2-FA Proposed REG Invest.'!K62 -> 0
A73: Closing Gross Fixed Assets | D73: =SUM(D71:D72) -> 0 | E73: 0 | F73: 0 | G73: 0 | H73: =SUM(H71:H72) -> 0 | I73: =SUM(I71:I72) -> 0 | J73: 0 | K73: 0 | L73: 0
A75: Opening Accumulated Amortization | E75: =+D78 -> 0 | F75: =E78 -> 0 | G75: 0 | H75: 0 | I75: 0 | J75: 0 | K75: 0 | L75: 0
A76: Current Year Amortization (before additions) | D76: =IF(ISERROR(D71/$C$70), 0, D71/$C$70) -> 0 | E76: 0 | F76: 0 | G76: 0 | H76: 0 | I76: =IF(ISERROR(I71/$C$70), 0, I71/$C$70) -> 0 | J76: =IF(ISERROR(J71/$C$70), 0, J71/$C$70) -> 0 | K76: =IF(ISERROR(K71/$C$70), 0, K71/$C$70) -> 0 | L76: =IF(ISERROR(L71/$C$70), 0, L71/$C$70) -> 0
A77: Additions (half year) | D77: =D72/$C$70/2 -> 0 | E77: =E72/$C$70/2 -> 0 | F77: =F72/$C$70/2 -> 0 | G77: 0 | H77: =H72/$C$70/2 -> 0 | I77: =I72/C70/2 -> 0 | J77: =J72/C70/2 -> 0 | K77: =K72/C70/2 -> 0 | L77: =L72/C70/2 -> 0
A78: Closing Accumulated Amortization | D78: =SUM(D75+D76+D77) -> 0 | E78: =SUM(E75+E76+E77) -> 0 | F78: =SUM(F75+F76+F77) -> 0 | G78: =SUM(G75+G76+G77) -> 0 | H78: =SUM(H75+H76+H77) -> 0 | I78: =SUM(I75:I77) -> 0 | J78: =SUM(J75:J77) -> 0 | K78: =SUM(K75:K77) -> 0 | L78: =SUM(L75:L77) -> 0
A80: Opening Net Fixed Assets | D80: =D71-D75 -> 0 | E80: 0 | F80: =F71-F75 -> 0 | G80: 0 | H80: =H71-H75 -> 0 | I80: =H81 -> 0 | J80: =I81 -> 0 | K80: =J81 -> 0 | L80: =K81 -> 0
A81: Closing Net Fixed Assets | D81: =D73-D78 -> 0 | E81: =E73-E78 -> 0 | F81: 0 | G81: 0 | H81: =H73-H78 -> 0 | I81: =I73-I78 -> 0 | J81: =J73-J78 -> 0 | K81: =K73-K78 -> 0 | L81: =L73-L78 -> 0
A82: Average Net Fixed Assets | D82: =SUM(D80:D81)/2 -> 0 | E82: 0 | F82: 0 | G82: 0 | H82: =SUM(H80:H81)/2 -> 0 | I82: =SUM(I80:I81)/2 -> 0 | J82: =SUM(J80:J81)/2 -> 0 | K82: =SUM(K80:K81)/2 -> 0 | L82: =SUM(L80:L81)/2 -> 0
A84: UCC for PILs Calculation
D85: =D68 -> 2013 | E85: =E68 -> 2014 | F85: 2015 | G85: 2016 | H85: 2017 | I85: 2018 | J85: 2019 | K85: 2020 | L85: 2021
A87: Opening UCC | E87: =D95 -> 0 | F87: 0 | G87: 0 | H87: 0 | I87: 0 | J87: 0 | K87: 0 | L87: 0
A88: Capital Additions (from Appendix 2-FA) | D88: =D72 -> 0 | E88: 0 | F88: 0 | G88: 0 | H88: =H72 -> 0 | I88: =I72 -> 0 | J88: 0 | K88: 0 | L88: 0
A89: UCC Before Half Year Rule | D89: =SUM(D87:D88) -> 0 | E89: 0 | F89: 0 | G89: 0 | H89: =SUM(H87:H88) -> 0 | I89: =SUM(I87:I88) -> 0 | J89: =SUM(J87:J88) -> 0 | K89: =SUM(K87:K88) -> 0 | L89: =SUM(L87:L88) -> 0
A90: Half Year Rule (1/2 Additions - Disposals) | D90: =D88/2 -> 0 | E90: 0 | F90: 0 | G90: 0 | H90: =H88/2 -> 0 | I90: =I88/2 -> 0 | J90: =J88/2 -> 0 | K90: =K88/2 -> 0 | L90: =L88/2 -> 0
A91: Reduced UCC | D91: =D89-D90 -> 0 | E91: 0 | F91: 0 | G91: 0 | H91: =H89-H90 -> 0 | I91: =I89-I90 -> 0 | J91: =J89-J90 -> 0 | K91: =K89-K90 -> 0 | L91: =L89-L90 -> 0
A92: CCA Rate Class (to be entered) | C92: 47 | D92: =C92 -> 47 | E92: =D92 -> 47 | F92: 47 | G92: 47 | H92: 47 | I92: 47 | J92: 47 | K92: 47 | L92: 47
A93: CCA Rate (to be entered) | C93: 0.08 | D93: =C93 -> 0.08 | E93: 0.08 | F93: 0.08 | G93: 0.08 | H93: 0.08 | I93: 0.08 | J93: 0.08 | K93: 0.08 | L93: 0.08
A94: CCA | D94: =D91*D93 -> 0 | E94: 0 | F94: 0 | G94: 0 | H94: =H91*H93 -> 0 | I94: =I91*I93 -> 0 | J94: 0 | K94: 0 | L94: =L91*L93 -> 0
A95: Closing UCC | D95: =D89-D94 -> 0 | E95: 0 | F95: 0 | G95: 0 | H95: =H89-H94 -> 0 | I95: =I89-I94 -> 0 | J95: =J89-J94 -> 0 | K95: =K89-K94 -> 0 | L95: =L89-L94 -> 0

Sheet App.2-FC Calc of REG Expansion
N1: File Number: | O1: =EBNUMBER -> EB-2016-0091
N2: Exhibit: | O2: 2
N3: Tab: | O3: 2
N4: Schedule: | O4: 46
N5: Page:
N7: Date: | O7: 2016-08-26
A9: Appendix 2-FC
A10: Calculation of Renewable Generation Connection Direct Benefits/Provincial Amount: Renewable Expansion Investments
A12: This table will calculate the distributor/provincial shares of the investments entered in Part B of Appendix 2-FA.
A13: Enter values in green shaded cells: WCA percentage, debt percentages, interest rates, kWh, tax rates, amortization period, CCA Class and percentage.
A14: For historical investments, enter these variables for your last cost of service test year. For 2016 and beyond, enter variables as in the application.
A15: Rate Riders are not calculated for the Test Year as these assets and costs are already in the distributor's rate base.
D18: =G18-1 -> 2013 | G18: =J18-1 -> 2014 | J18: =M18-1 -> 2015 | M18: =BridgeYear -> 2016 | P18: =CONCATENATE(TestYear," Test Year") -> 2017 Test Year | S18: =TestYear+1 -> 2018 | T18: 2016 | V18: =S18+1 -> 2019 | Y18: =V18+1 -> 2020 | AB18: =Y18+1 -> 2021
E19: Direct Benefit | F19: Provincial | H19: Direct Benefit | I19: Provincial | K19: Direct Benefit | L19: Provincial | N19: Direct Benefit | O19: Provincial | Q19: Direct Benefit | R19: Provincial | T19: Direct Benefit | U19: Provincial | W19: Direct Benefit | X19: Provincial | Z19: Direct Benefit | AA19: Provincial | AC19: Direct Benefit | AD19: Provincial
D20: Total | E20: 0.17 | F20: 0.83 | G20: Total | H20: 0.17 | I20: 0.83 | J20: Total | K20: 0.17 | L20: 0.83 | M20: Total | N20: 0.17 | O20: 0.83 | P20: Total | Q20: 0.17 | R20: 0.83 | S20: Total | T20: 0.17 | U20: 0.83 | V20: Total | W20: 0.17 | X20: 0.83 | Y20: Total | Z20: 0.17 | AA20: 0.83 | AB20: Total | AC20: 0.17 | AD20: 0.83
A21: Net Fixed Assets (average) | D21: =D82 -> 0 | E21: =D21*E20 -> 0 | F21: =D21*F20 -> 0 | G21: =E82 -> 0 | H21: =G21*H20 -> 0 | I21: =G21*I20 -> 0 | J21: =F82 -> 0 | K21: =J21*K20 -> 0 | L21: =J21*L20 -> 0 | M21: =G82 -> 0 | N21: =M21*N20 -> 0 | O21: =M21*O20 -> 0 | P21: =H82 -> 0 | Q21: =P21*Q20 -> 0 | R21: =P21*R20 -> 0 | S21: =I82 -> 0 | T21: =S21*T20 -> 0 | U21: =S21*U20 -> 0 | V21: =J82 -> 0 | W21: =V21*W20 -> 0 | X21: =V21*X20 -> 0 | Y21: =K82 -> 0 | Z21: =Y21*Z20 -> 0 | AA21: =Y21*AA20 -> 0 | AB21: =L82 -> 0 | AC21: =AB21*AC20 -> 0 | AD21: =AB21*AD20 -> 0
A22: Incremental OM&A (on-going, N/A for Provincial Recovery) | D22: ='App.2-FA Proposed REG Invest.'!C101 -> 0 | E22: =D22 -> 0 | G22: ='App.2-FA Proposed REG Invest.'!D$101 -> 0 | H22: =G22 -> 0 | J22: ='App.2-FA Proposed REG Invest.'!E$101 -> 0 | K22: =J22 -> 0 | M22: ='App.2-FA Proposed REG Invest.'!F$101 -> 0 | N22: =M22 -> 0 | P22: ='App.2-FA Proposed REG Invest.'!G$101 -> 0 | Q22: =P22 -> 0 | S22: ='App.2-FA Proposed REG Invest.'!H$101 -> 0 | T22: =S22 -> 0 | V22: ='App.2-FA Proposed REG Invest.'!I$101 -> 0 | W22: =V22 -> 0 | Y22: ='App.2-FA Proposed REG Invest.'!J$101 -> 0 | Z22: =Y22 -> 0 | AB22: ='App.2-FA Proposed REG Invest.'!K$101 -> 0 | AC22: =AB22 -> 0
A23: Incremental OM&A (start-up, applicable for Provincial Recovery) | D23: ='App.2-FA Proposed REG Invest.'!C100 -> 0 | E23: =D23*E20 -> 0 | F23: =D23*F20 -> 0 | G23: ='App.2-FA Proposed REG Invest.'!D$100 -> 0 | H23: =G23*H20 -> 0 | I23: =G23*I20 -> 0 | J23: ='App.2-FA Proposed REG Invest.'!E$100 -> 0 | K23: =J23*K20 -> 0 | L23: =J23*L20 -> 0 | M23: ='App.2-FA Proposed REG Invest.'!F$100 -> 0 | N23: =M23*N20 -> 0 | O23: =M23*O20 -> 0 | P23: ='App.2-FA Proposed REG Invest.'!G$100 -> 0 | Q23: =P23*Q20 -> 0 | R23: =P23*R20 -> 0 | S23: ='App.2-FA Proposed REG Invest.'!H$100 -> 0 | T23: =S23*T20 -> 0 | U23: =S23*U20 -> 0 | V23: ='App.2-FA Proposed REG Invest.'!I$100 -> 0 | W23: =V23*W20 -> 0 | X23: =V23*X20 -> 0 | Y23: ='App.2-FA Proposed REG Invest.'!J$100 -> 0 | Z23: =Y23*Z20 -> 0 | AA23: =Y23*AA20 -> 0 | AB23: ='App.2-FA Proposed REG Invest.'!K$100 -> 0 | AC23: =AB23*AC20 -> 0 | AD23: =AB23*AD20 -> 0
A24: WCA | E24: =(E22+E23)*$B$24 -> 0 | F24: =F23*$B$24 -> 0 | H24: =(H22+H23)*$B$24 -> 0 | I24: =I23*$B$24 -> 0 | K24: =(K22+K23)*$B$24 -> 0 | L24: =L23*$B$24 -> 0 | N24: =(N22+N23)*$B$24 -> 0 | O24: =O23*$B$24 -> 0 | Q24: =(Q22+Q23)*$B$24 -> 0 | R24: =R23*$B$24 -> 0 | T24: =(T22+T23)*$B$24 -> 0 | U24: =U23*$B$24 -> 0 | W24: =(W22+W23)*$B$24 -> 0 | X24: =X23*$B$24 -> 0 | Z24: =(Z22+Z23)*$B$24 -> 0 | AA24: =AA23*$B$24 -> 0 | AC24: =(AC22+AC23)*$B$24 -> 0 | AD24: =AD23*$B$24 -> 0
A25: Rate Base | E25: =SUM(E21+E24) -> 0 | F25: =SUM(F21+F24) -> 0 | H25: =SUM(H21+H24) -> 0 | I25: =SUM(I21+I24) -> 0 | K25: =SUM(K21+K24) -> 0 | L25: =SUM(L21+L24) -> 0 | N25: =SUM(N21+N24) -> 0 | O25: =SUM(O21+O24) -> 0 | Q25: =SUM(Q21+Q24) -> 0 | R25: =SUM(R21+R24) -> 0 | T25: =SUM(T21+T24) -> 0 | U25: =SUM(U21+U24) -> 0 | W25: =SUM(W21+W24) -> 0 | X25: =SUM(X21+X24) -> 0 | Z25: =SUM(Z21+Z24) -> 0 | AA25: =SUM(AA21+AA24) -> 0 | AC25: =SUM(AC21+AC24) -> 0 | AD25: =SUM(AD21+AD24) -> 0
A28: Deemed ST Debt | E28: =E25*$B$28 -> 0 | F28: =F25*$B$28 -> 0 | H28: =H25*$B$28 -> 0 | I28: =I25*$B$28 -> 0 | K28: =K25*$B$28 -> 0 | L28: =L25*$B$28 -> 0 | N28: =N25*$B$28 -> 0 | O28: =O25*$B$28 -> 0 | Q28: =Q25*$B$28 -> 0 | R28: =R25*$B$28 -> 0 | T28: =T25*$B$28 -> 0 | U28: =U25*$B$28 -> 0 | W28: =W25*$B$28 -> 0 | X28: =X25*$B$28 -> 0 | Z28: =Z25*$B$28 -> 0 | AA28: =AA25*$B$28 -> 0 | AC28: =AC25*$B$28 -> 0 | AD28: =AD25*$B$28 -> 0
A29: Deemed LT Debt | E29: =E25*$B$29 -> 0 | F29: =F25*$B$29 -> 0 | H29: =H25*$B$29 -> 0 | I29: =I25*$B$29 -> 0 | K29: =K25*$B$29 -> 0 | L29: =L25*$B$29 -> 0 | N29: =N25*$B$29 -> 0 | O29: =O25*$B$29 -> 0 | Q29: =Q25*$B$29 -> 0 | R29: =R25*$B$29 -> 0 | T29: =T25*$B$29 -> 0 | U29: =U25*$B$29 -> 0 | W29: =W25*$B$29 -> 0 | X29: =X25*$B$29 -> 0 | Z29: =Z25*$B$29 -> 0 | AA29: =AA25*$B$29 -> 0 | AC29: =AC25*$B$29 -> 0 | AD29: =AD25*$B$29 -> 0
A30: Deemed Equity | E30: =E25*$B$30 -> 0 | F30: =F25*$B$30 -> 0 | H30: =H25*$B$30 -> 0 | I30: =I25*$B$30 -> 0 | K30: =K25*$B$30 -> 0 | L30: =L25*$B$30 -> 0 | N30: =N25*$B$30 -> 0 | O30: =O25*$B$30 -> 0 | Q30: =Q25*$B$30 -> 0 | R30: =R25*$B$30 -> 0 | T30: =T25*$B$30 -> 0 | U30: =U25*$B$30 -> 0 | W30: =W25*$B$30 -> 0 | X30: =X25*$B$30 -> 0 | Z30: =Z25*$B$30 -> 0 | AA30: =AA25*$B$30 -> 0 | AC30: =AC25*$B$30 -> 0 | AD30: =AD25*$B$30 -> 0
A32: ST Interest | E32: =E28*$B$32 -> 0 | F32: =F28*$B$32 -> 0 | H32: =H28*$B$32 -> 0 | I32: =I28*$B$32 -> 0 | K32: =K28*$B$32 -> 0 | L32: =L28*$B$32 -> 0 | N32: =N28*$B$32 -> 0 | O32: =O28*$B$32 -> 0 | Q32: =Q28*$B$32 -> 0 | R32: =R28*$B$32 -> 0 | T32: =T28*$B$32 -> 0 | U32: =U28*$B$32 -> 0 | W32: =W28*$B$32 -> 0 | X32: =X28*$B$32 -> 0 | Z32: =Z28*$B$32 -> 0 | AA32: =AA28*$B$32 -> 0 | AC32: =AC28*$B$32 -> 0 | AD32: =AD28*$B$32 -> 0
A33: LT Interest | E33: =E29*$B$33 -> 0 | F33: =F29*$B$33 -> 0 | H33: =H29*$B$33 -> 0 | I33: =I29*$B$33 -> 0 | K33: =K29*$B$33 -> 0 | L33: =L29*$B$33 -> 0 | N33: =N29*$B$33 -> 0 | O33: =O29*$B$33 -> 0 | Q33: =Q29*$B$33 -> 0 | R33: =R29*$B$33 -> 0 | T33: =T29*$B$33 -> 0 | U33: =U29*$B$33 -> 0 | W33: =W29*$B$33 -> 0 | X33: =X29*$B$33 -> 0 | Z33: =Z29*$B$33 -> 0 | AA33: =AA29*$B$33 -> 0 | AC33: =AC29*$B$33 -> 0 | AD33: =AD29*$B$33 -> 0
A34: ROE | E34: =E30*$B$34 -> 0 | F34: =F30*$B$34 -> 0 | H34: =H30*$B$34 -> 0 | I34: =I30*$B$34 -> 0 | K34: =K30*$B$34 -> 0 | L34: =L30*$B$34 -> 0 | N34: =N30*$B$34 -> 0 | O34: =O30*$B$34 -> 0 | Q34: =Q30*$B$34 -> 0 | R34: =R30*$B$34 -> 0 | T34: =T30*$B$34 -> 0 | U34: =U30*$B$34 -> 0 | W34: =W30*$B$34 -> 0 | X34: =X30*$B$34 -> 0 | Z34: =Z30*$B$34 -> 0 | AA34: =AA30*$B$34 -> 0 | AC34: =AC30*$B$34 -> 0 | AD34: =AD30*$B$34 -> 0
A35: Cost of Capital Total | E35: =SUM(E32:E34) -> 0 | F35: =SUM(F32:F34) -> 0 | H35: =SUM(H32:H34) -> 0 | I35: =SUM(I32:I34) -> 0 | K35: =SUM(K32:K34) -> 0 | L35: =SUM(L32:L34) -> 0 | N35: =SUM(N32:N34) -> 0 | O35: =SUM(O32:O34) -> 0 | Q35: =SUM(Q32:Q34) -> 0 | R35: =SUM(R32:R34) -> 0 | T35: =SUM(T32:T34) -> 0 | U35: =SUM(U32:U34) -> 0 | W35: =SUM(W32:W34) -> 0 | X35: =SUM(X32:X34) -> 0 | Z35: =SUM(Z32:Z34) -> 0 | AA35: =SUM(AA32:AA34) -> 0 | AC35: =SUM(AC32:AC34) -> 0 | AD35: =SUM(AD32:AD34) -> 0
A37: OM&A | E37: =E22+E23 -> 0 | F37: =F23 -> 0 | H37: =H22+H23 -> 0 | I37: =I23 -> 0 | K37: =K22+K23 -> 0 | L37: =L23 -> 0 | N37: =N22+N23 -> 0 | O37: =O23 -> 0 | Q37: =Q22+Q23 -> 0 | R37: =R23 -> 0 | T37: =T22+T23 -> 0 | U37: =U23 -> 0 | W37: =W22+W23 -> 0 | X37: =X23 -> 0 | Z37: =Z22+Z23 -> 0 | AA37: =AA23 -> 0 | AC37: =AC22+AC23 -> 0 | AD37: =AD23 -> 0
A38: Amortization | D38: =D78 -> 0 | E38: =D38*E$20 -> 0 | F38: =D38*F$20 -> 0 | G38: =E78 -> 0 | H38: =G38*H$20 -> 0 | I38: =G38*I$20 -> 0 | J38: =F78 -> 0 | K38: =J38*K$20 -> 0 | L38: =J38*L$20 -> 0 | M38: =G78 -> 0 | N38: =M38*N$20 -> 0 | O38: =M38*O$20 -> 0 | P38: =H76+H77 -> 0 | Q38: =P38*Q$20 -> 0 | R38: =P38*R$20 -> 0 | S38: =I76+I77 -> 0 | T38: =S38*T$20 -> 0 | U38: =S38*U$20 -> 0 | V38: =J76+J77 -> 0 | W38: =V38*W$20 -> 0 | X38: =V38*X$20 -> 0 | Y38: =K76+K77 -> 0 | Z38: =Y38*Z$20 -> 0 | AA38: =Y38*AA$20 -> 0 | AB38: =L76+L77 -> 0 | AC38: =AB38*AC$20 -> 0 | AD38: =AB38*AD$20 -> 0
A39: Grossed-up PILs | E39: =E66 -> 0 | F39: =F66 -> 0 | H39: =H66 -> 0 | I39: =I66 -> 0 | K39: =K66 -> 0 | L39: =L66 -> 0 | N39: =N66 -> 0 | O39: =O66 -> 0 | Q39: =Q66 -> 0 | R39: =R66 -> 0 | T39: =T66 -> 0 | U39: =U66 -> 0 | W39: =W66 -> 0 | X39: =X66 -> 0 | Z39: =Z66 -> 0 | AA39: =AA66 -> 0 | AC39: =AC66 -> 0 | AD39: =AD66 -> 0
A41: Revenue Requirement | E41: =SUM(E35:E39) -> 0 | F41: =SUM(F35:F39) -> 0 | H41: =SUM(H35:H39) -> 0 | I41: =SUM(I35:I39) -> 0 | K41: =SUM(K35:K39) -> 0 | L41: =SUM(L35:L39) -> 0 | N41: =SUM(N35:N39) -> 0 | O41: =SUM(O35:O39) -> 0 | Q41: =SUM(Q35:Q39) -> 0 | R41: =SUM(R35:R39) -> 0 | T41: =SUM(T35:T39) -> 0 | U41: =SUM(U35:U39) -> 0 | W41: =SUM(W35:W39) -> 0 | X41: =SUM(X35:X39) -> 0 | Z41: =SUM(Z35:Z39) -> 0 | AA41: =SUM(AA35:AA39) -> 0 | AC41: =SUM(AC35:AC39) -> 0 | AD41: =SUM(AD35:AD39) -> 0
A44: Provincial Rate Protection | F44: =F41 -> 0 | I44: =I41 -> 0 | L44: =L41 -> 0 | O44: =O41 -> 0 | R44: =R41 -> 0 | U44: =U41 -> 0 | X44: =X41 -> 0 | AA44: =AA41 -> 0 | AD44: =AD41 -> 0
A46: Monthly Amount Paid by IESO | F46: =F44/12 -> 0 | I46: =I44/12 -> 0 | L46: =L44/12 -> 0 | O46: =O44/12 -> 0 | R46: =R44/12 -> 0 | U46: =U44/12 -> 0 | X46: =X44/12 -> 0 | AA46: =AA44/12 -> 0 | AD46: =AD44/12 -> 0
A48: Note 1: The difference between the actual costs of approved eligible investments and revenue received from the IESO should be recorded in a variance account. The Board may provide
A49: regulatory accounting guidance regarding a variance account either in an individual proceeding or on a generic basis.
A50: Note 2: For the 2016 Test Year, Costs and Revenues of the Direct Benefit are to be included in the test year applicant Rate Base and Revenues.
A52: PILs Calculation
E53: =D18 -> 2013 | H53: =G18 -> 2014 | K53: =J18 -> 2015 | N53: =M18 -> 2016 | Q53: =P18 -> 2017 Test Year | T53: =S18 -> 2018 | W53: =V18 -> 2019 | Z53: =Y18 -> 2020 | AC53: =AB18 -> 2021
A54: Income Tax | E54: Direct Benefit | F54: Provincial | H54: Direct Benefit | I54: Provincial | K54: Direct Benefit | L54: Provincial | N54: Direct Benefit | O54: Provincial | Q54: Direct Benefit | R54: Provincial | T54: Direct Benefit | U54: Provincial | W54: Direct Benefit | X54: Provincial | Z54: Direct Benefit | AA54: Provincial | AC54: Direct Benefit | AD54: Provincial
V55: Total | Y55: Total | AB55: Total
A56: Net Income - ROE on Rate Base | E56: =E34 -> 0 | F56: =F34 -> 0 | H56: =H34 -> 0 | I56: =I34 -> 0 | K56: =K34 -> 0 | L56: =L34 -> 0 | N56: =N34 -> 0 | O56: =O34 -> 0 | Q56: =Q34 -> 0 | R56: =R34 -> 0 | T56: =T34 -> 0 | U56: =U34 -> 0 | W56: =W34 -> 0 | X56: =X34 -> 0 | Z56: =Z34 -> 0 | AA56: =AA34 -> 0 | AC56: =AC34 -> 0 | AD56: =AD34 -> 0
A57: Amortization (17% DB and 83% P) | E57: =E38 -> 0 | F57: =F38 -> 0 | H57: =H38 -> 0 | I57: =I38 -> 0 | K57: =K38 -> 0 | L57: =L38 -> 0 | N57: =N38 -> 0 | O57: =O38 -> 0 | Q57: =Q38 -> 0 | R57: =R38 -> 0 | T57: =T38 -> 0 | U57: =U38 -> 0 | W57: =W38 -> 0 | X57: =X38 -> 0 | Z57: =Z38 -> 0 | AA57: =AA38 -> 0 | AC57: =AC38 -> 0 | AD57: =AD38 -> 0
A58: CCA (17% DB and 83% P) | E58: =-D94*E$20 -> 0 | F58: =-D94*F$20 -> 0 | H58: =-E94*H$20 -> 0 | I58: =-E94*I$20 -> 0 | K58: =-F94*K$20 -> 0 | L58: =-F94*L$20 -> 0 | N58: =-G94*N$20 -> 0 | O58: =-G94*O$20 -> 0 | Q58: =-H94*Q$20 -> 0 | R58: =-H94*R$20 -> 0 | T58: =-I94*T$20 -> 0 | U58: =-I94*U$20 -> 0 | W58: =-J94*W$20 -> 0 | X58: =-J94*X$20 -> 0 | Z58: =-K94*Z$20 -> 0 | AA58: =-K94*AA$20 -> 0 | AC58: =-L94*AC$20 -> 0 | AD58: =-L94*AD$20 -> 0
A59: Taxable income | E59: =SUM(E56:E58) -> 0 | F59: =SUM(F56:F58) -> 0 | H59: =SUM(H56:H58) -> 0 | I59: =SUM(I56:I58) -> 0 | K59: =SUM(K56:K58) -> 0 | L59: =SUM(L56:L58) -> 0 | N59: =SUM(N56:N58) -> 0 | O59: =SUM(O56:O58) -> 0 | Q59: =SUM(Q56:Q58) -> 0 | R59: =SUM(R56:R58) -> 0 | T59: =SUM(T56:T58) -> 0 | U59: =SUM(U56:U58) -> 0 | W59: =SUM(W56:W58) -> 0 | X59: =SUM(X56:X58) -> 0 | Z59: =SUM(Z56:Z58) -> 0 | AA59: =SUM(AA56:AA58) -> 0 | AC59: =SUM(AC56:AC58) -> 0 | AD59: =SUM(AD56:AD58) -> 0
A61: Tax Rate (to be entered)
A63: Income Taxes Payable | E63: =E59*E61 -> 0 | F63: =F59*F61 -> 0 | H63: =H59*H61 -> 0 | I63: =I59*I61 -> 0 | K63: =K59*K61 -> 0 | L63: =L59*L61 -> 0 | N63: =N59*N61 -> 0 | O63: =O59*O61 -> 0 | Q63: =Q59*Q61 -> 0 | R63: =R59*R61 -> 0 | T63: =T59*T61 -> 0 | U63: =U59*U61 -> 0 | W63: =W59*W61 -> 0 | X63: =X59*X61 -> 0 | Z63: =Z59*Z61 -> 0 | AA63: =AA59*AA61 -> 0 | AC63: =AC59*AC61 -> 0 | AD63: =AD59*AD61 -> 0
A64: Gross Up
A65: Income Taxes Payable | E65: =E63/(1-E61) -> 0 | F65: =F63/(1-F61) -> 0 | H65: =H63/(1-H61) -> 0 | I65: =I63/(1-I61) -> 0 | K65: =K63/(1-K61) -> 0 | L65: =L63/(1-L61) -> 0 | N65: =N63/(1-N61) -> 0 | O65: =O63/(1-O61) -> 0 | Q65: =Q63/(1-Q61) -> 0 | R65: =R63/(1-R61) -> 0 | T65: =T63/(1-T61) -> 0 | U65: =U63/(1-U61) -> 0 | W65: =W63/(1-W61) -> 0 | X65: =X63/(1-X61) -> 0 | Z65: =Z63/(1-Z61) -> 0 | AA65: =AA63/(1-AA61) -> 0 | AC65: =AC63/(1-AC61) -> 0 | AD65: =AD63/(1-AD61) -> 0
A66: Grossed Up PILs | E66: =SUM(E65:E65) -> 0 | F66: =SUM(F65:F65) -> 0 | H66: =SUM(H65:H65) -> 0 | I66: =SUM(I65:I65) -> 0 | K66: =SUM(K65:K65) -> 0 | L66: =SUM(L65:L65) -> 0 | N66: =SUM(N65:N65) -> 0 | O66: =SUM(O65:O65) -> 0 | Q66: =SUM(Q65:Q65) -> 0 | R66: =SUM(R65:R65) -> 0 | T66: =SUM(T65:T65) -> 0 | U66: =SUM(U65:U65) -> 0 | W66: =SUM(W65:W65) -> 0 | X66: =SUM(X65:X65) -> 0 | Z66: =SUM(Z65:Z65) -> 0 | AA66: =SUM(AA65:AA65) -> 0 | AC66: =SUM(AC65:AC65) -> 0 | AD66: =SUM(AD65:AD65) -> 0
A69: Net Fixed Assets | D69: 2011 | E69: 2012 | F69: 2013 | G69: 2014 | H69: 2015 | I69: 2016 | J69: 2017 | K69: 2018 | L69: 2019
B70: Enter applicable amortization in years: | C70: 25
A71: Opening Gross Fixed Assets | E71: =D73 -> 0 | F71: 0 | G71: 0 | H71: 0 | I71: 0 | J71: 0 | K71: 0 | L71: 0
A72: Gross Capital Additions | D72: ='App.2-FA Proposed REG Invest.'!C99 -> 0 | E72: ='App.2-FA Proposed REG Invest.'!D99 -> 0 | F72: ='App.2-FA Proposed REG Invest.'!E99 -> 0 | G72: ='App.2-FA Proposed REG Invest.'!F99 -> 0 | H72: ='App.2-FA Proposed REG Invest.'!G99 -> 0 | I72: ='App.2-FA Proposed REG Invest.'!H99 -> 0 | J72: ='App.2-FA Proposed REG Invest.'!I99 -> 0 | K72: ='App.2-FA Proposed REG Invest.'!J99 -> 0 | L72: ='App.2-FA Proposed REG Invest.'!K99 -> 0
A73: Closing Gross Fixed Assets | D73: =SUM(D71:D72) -> 0 | E73: 0 | F73: 0 | G73: 0 | H73: 0 | I73: 0 | J73: 0 | K73: 0 | L73: 0
A75: Opening Accumulated Amortization | E75: =+D78 -> 0 | F75: =E78 -> 0 | G75: 0 | H75: =G78 -> 0 | I75: =H78 -> 0 | J75: =I78 -> 0 | K75: =J78 -> 0 | L75: =K78 -> 0
A76: Current Year Amortization (before additions) | E76: =IF(ISERROR(E71/$C$70), 0, E71/$C$70) -> 0 | F76: 0 | G76: 0 | H76: =H71/$C$70 -> 0 | I76: =I71/$C$70 -> 0 | J76: =J71/$C$70 -> 0 | K76: =K71/$C$70 -> 0 | L76: =L71/$C$70 -> 0
A77: Additions (half year) | D77: =D72/C70/2 -> 0 | E77: =E72/C70/2 -> 0 | F77: =F72/C70/2 -> 0 | G77: =G72/C70/2 -> 0 | H77: =H72/C70/2 -> 0 | I77: =I72/C70/2 -> 0 | J77: =J72/C70/2 -> 0 | K77: =K72/C70/2 -> 0 | L77: =L72/C70/2 -> 0
A78: Closing Accumulated Amortization | D78: =SUM(D75+D77) -> 0 | E78: =SUM(E75:E77) -> 0 | F78: 0 | G78: 0 | H78: 0 | I78: 0 | J78: 0 | K78: 0 | L78: 0
A80: Opening Net Fixed Assets | D80: =D71-D75 -> 0 | E80: =E71-E75 -> 0 | F80: =F71-F75 -> 0 | G80: =G71-G75 -> 0 | H80: =G81 -> 0 | I80: =H81 -> 0 | J80: =I81 -> 0 | K80: =J81 -> 0 | L80: =K81 -> 0
A81: Closing Net Fixed Assets | D81: =D73-D78 -> 0 | E81: 0 | F81: 0 | G81: 0 | H81: 0 | I81: 0 | J81: 0 | K81: 0 | L81: 0
A82: Average Net Fixed Assets | D82: =SUM(D80:D81)/2 -> 0 | E82: 0 | F82: 0 | G82: 0 | H82: 0 | I82: 0 | J82: 0 | K82: 0 | L82: 0
A84: UCC for PILs Calculation
D85: 2014 | E85: 2014 | F85: 2014 | G85: 2014 | H85: 2015 | I85: 2016 | J85: 2017 | K85: 2018 | L85: 2019
A87: Opening UCC | E87: =D95 -> 0 | F87: 0 | G87: 0 | H87: 0 | I87: 0 | J87: 0 | K87: 0 | L87: 0
A88: Capital Additions (from Appendix 2-FA) | D88: =D72 -> 0 | E88: 0 | F88: 0 | G88: 0 | H88: 0 | I88: 0 | J88: 0 | K88: 0 | L88: 0
A89: UCC Before Half Year Rule | D89: =SUM(D87:D88) -> 0 | E89: 0 | F89: 0 | G89: 0 | H89: 0 | I89: 0 | J89: 0 | K89: 0 | L89: 0
A90: Half Year Rule (1/2 Additions - Disposals) | D90: =D88/2 -> 0 | E90: 0 | F90: 0 | G90: 0 | H90: 0 | I90: 0 | J90: 0 | K90: 0 | L90: 0
A91: Reduced UCC | D91: =D89-D90 -> 0 | E91: 0 | F91: 0 | G91: 0 | H91: 0 | I91: 0 | J91: 0 | K91: 0 | L91: 0
A92: CCA Rate Class (to be entered) | C92: 47 | D92: =$C$92 -> 47 | E92: =$C$92 -> 47 | F92: 47 | G92: 47 | H92: 47 | I92: 47 | J92: 47 | K92: 47 | L92: 47
A93: CCA Rate (to be entered) | C93: 0.08 | D93: =$C$93 -> 0.08 | E93: =$C$93 -> 0.08 | F93: 0.08 | G93: 0.08 | H93: 0.08 | I93: 0.08 | J93: 0.08 | K93: 0.08 | L93: 0.08
A94: CCA | D94: =D91*D$93 -> 0 | E94: =E91*E$93 -> 0 | F94: =F91*F$93 -> 0 | G94: =G91*G$93 -> 0 | H94: =H91*H$93 -> 0 | I94: 0 | J94: 0 | K94: 0 | L94: 0
A95: Closing UCC | D95: =D89-D94 -> 0 | E95: 0 | F95: 0 | G95: 0 | H95: 0 | I95: 0 | J95: 0 | K95: 0 | L95: 0

Sheet App.2-G SQI
M1: File Number: | O1: =EBNUMBER -> EB-2016-0091
M2: Exhibit: | O2: 2
M3: Tab: | O3: 3
M4: Schedule: | O4: 1
M5: Page:
M7: Date: | O7: 2016-08-26
A9: Appendix 2-G
A10: Service Reliability and Quality Indicators
A11: 2011 - 2015
A13: Service Reliability
A15: Index | B15: Including outages caused by loss of supply | G15: Excluding outages caused by loss of supply | L15: Excluding Major Event Days
B16: =TestYear-6 -> 2011 | C16: =TestYear-5 -> 2012 | D16: =TestYear-4 -> 2013 | E16: =TestYear-3 -> 2014 | F16: =TestYear-2 -> 2015 | G16: =B16 -> 2011 | H16: 2012 | I16: 2013 | J16: 2014 | K16: 2015 | L16: 2011 | M16: 2012 | N16: 2013 | O16: 2014 | P16: 2015
A17: SAIDI | B17: 1.86 | C17: 0.9 | D17: 1.02 | E17: 1.11 | F17: 1.06 | G17: 1.67 | H17: 0.89 | I17: 0.99 | J17: 0.98 | K17: 1.04 | L17: 1.86 | M17: 0.9 | N17: 0.853 | O17: 1.11 | P17: 0.95
A18: SAIFI | B18: 2.36 | C18: 1.42 | D18: 1.38 | E18: 1.62 | F18: 1.37 | G18: 2.14 | H18: 1.3 | I18: 1.24 | J18: 1.21 | K18: 1.22 | L18: 2.36 | M18: 1.42 | N18: 1.227 | O18: 1.62 | P18: 1.22
A20: 5 Year Historical Average
A21: SAIDI | F21: =IF(ISERROR(AVERAGE(B17:F17)), "", AVERAGE(B17:F17)) -> 1.19 | K21: =IF(ISERROR(AVERAGE(G17:K17)), "", AVERAGE(G17:K17)) -> 1.114 | P21: =IF(ISERROR(AVERAGE(L17:P17)), "", AVERAGE(L17:P17)) -> 1.1346
A22: SAIFI | F22: =IF(ISERROR(AVERAGE(B18:F18)), "", AVERAGE(B18:F18)) -> 1.63 | K22: =IF(ISERROR(AVERAGE(G18:K18)), "", AVERAGE(G18:K18)) -> 1.422 | P22: =IF(ISERROR(AVERAGE(L18:P18)), "", AVERAGE(L18:P18)) -> 1.5694
A24: SAIDI = System Average Interruption Duration Index
A25: SAIFI = System Average Interruption Frequency Index
A27: Service Quality
A29: Indicator | E29: OEB Minimum Standard | G29: =B16 -> 2011 | H29: =C16 -> 2012 | I29: =D16 -> 2013 | J29: =E16 -> 2014 | K29: =F16 -> 2015
A30: Low Voltage Connections | E30: 0.9 | G30: 0.976 | H30: 0.968 | I30: 0.999 | J30: 1 | K30: 0.976
A31: High Voltage Connections | E31: 0.9 | G31: 1 | H31: 1 | I31: 1 | J31: n/a | K31: 1
A32: Telephone Accessibility | E32: 0.65 | G32: 0.673 | H32: 0.683 | I32: 0.671 | J32: 0.659 | K32: 0.68
A33: Appointments Met | E33: 0.9 | G33: 0.995 | H33: 0.999 | I33: 0.999 | J33: 0.993 | K33: 1
A34: Written Response to Enquires | E34: 0.8 | G34: 1 | H34: 1 | I34: 1 | J34: 1 | K34: 1
A35: Emergency Urban Response | E35: 0.8 | G35: 1 | H35: 0.992 | I35: 0.981 | J35: 0.991 | K35: 1
A36: Emergency Rural Response | E36: 0.8 | G36: n/a | H36: n/a | I36: n/a | J36: n/a | K36: n/a
A37: Telephone Call Abandon Rate | E37: 0.1 | G37: 0.021 | H37: 0.021 | I37: 0.024 | J37: 0.032 | K37: 0.026
A38: Appointment Scheduling | E38: 0.9 | G38: 0.934 | H38: 0.975 | I38: 0.967 | J38: 0.953 | K38: 0.986
A39: Rescheduling a Missed Appointment | E39: 1 | G39: 1 | H39: 1 | I39: 1 | J39: 1 | K39: n/a
A40: Reconnection Performance Standard | E40: 0.85 | G40: 0.962 | H40: 0.983 | I40: 0.986 | J40: 0.991 | K40: 0.991

Sheet App.2-H_Other_Oper_Rev
G1: File Number: | H1: =EBNUMBER -> EB-2016-0091
G2: Exhibit: | H2: 3
G3: Tab: | H3: 3
G4: Schedule: | H4: 1
G5: Page:
G7: Date: | H7: 2016-08-26
A9: Appendix 2-H
A10: Other Operating Revenue
A12: USoA # | B12: USoA Description | C12: =F13-2 & " Actual" -> 2013 Actual | D12: =F13-1 & " Actual" -> 2014 Actual | E12: =F13 & " Actual" & CHAR(178) -> 2015 Actual² | F12: ="Actual Year" & CHAR(178) -> Actual Year² | G12: ="Bridge Year" & CHAR(178) -> Bridge Year² | H12: Test Year
C13: =D13-1 -> 2013 | D13: =E13-1 -> 2014 | E13: =F13 -> 2015 | F13: =G13-1 -> 2015 | G13: =BridgeYear -> 2016 | H13: =TestYear -> 2017
B14: Reporting Basis
A15: 4235 | B15: Miscellaneous Service Revenues | C15: 813798.43 | D15: 1094367.27 | E15: 1094367.27 | F15: 813958.28 | G15: 885900 | H15: 904900
A16: 4225 | B16: Late Payment Charges | C16: 1454009.28 | D16: 1739022.29 | E16: 1739022.29 | F16: 1815608.57 | G16: 1932000 | H16: 1967000
A17: 4082 | B17: Retail Services Revenues | C17: 119352.8 | D17: 104397.8 | E17: 104397.8 | F17: 92211.5 | G17: 82000 | H17: 73000
A18: 4084 | B18: Service Transaction Requests (STR) Revenues | C18: 4180 | D18: 2744.5 | E18: 2744.5 | F18: 2950.5 | G18: 3000 | H18: 3000
A19: 4086 | B19: SSS Administration Revenue | C19: 422537.08 | D19: 433330.27 | E19: 433330.27 | F19: 439506.49 | G19: 448000 | H19: 455000
A20: 4210 | B20: Rent from Electric Property | C20: 487212.82 | D20: 508751.16 | E20: 508751.16 | F20: 520595.1 | G20: 571200 | H20: 584200
A21: 4245 | B21: Government and Other Assistance Directly Credited to Income | C21: 0 | D21: 0 | E21: 20810.84 | F21: 78720.5 | G21: 167569 | H21: 263081
A22: 4330 | B22: Costs and Expenses of Merchandising, Jobbing, Etc. | C22: 2030.62 | D22: -498.08 | E22: -498.08 | F22: 78253.69 | G22: 25000 | H22: 30000
A23: 4355 | B23: Gain on Disposition of Utility and Other Property | C23: 174516.29 | D23: 171937.55 | E23: 171937.55 | F23: 161676.34 | G23: 144000 | H23: 147000
A24: 4390 | B24: Miscellaneous Non-Operating Income | C24: 499888.72 | D24: 536878.41 | E24: 536878.41 | F24: 326329.89 | G24: 411574 | H24: 418600
A25: 4405 | B25: Interest and Dividend Income | C25: 187678.25 | D25: 145544.73 | E25: 145544.73 | F25: 184099.51 | G25: 165471.26 | H25: 161544.51
A27: Specific Service Charges | C27: =C15 -> 813798.43 | D27: =D15 -> 1094367.27 | E27: 1094367.27 | F27: 813958.28 | G27: 885900 | H27: 904900
A28: Late Payment Charges | C28: =C16 -> 1454009.28 | D28: =D16 -> 1739022.29 | E28: 1739022.29 | F28: 1815608.57 | G28: 1932000 | H28: 1967000
A29: Other Operating Revenues | C29: =C17+C18+C19+C20+C21 -> 1033282.7 | D29: =D17+D18+D19+D20+D21 -> 1049223.73 | E29: 1070034.57 | F29: 1133984.09 | G29: 1271769 | H29: 1378281
A30: Other Income or Deductions | C30: =C22+C23+C24+C25 -> 864113.88 | D30: =D22+D23+D24+D25 -> 853862.61 | E30: 853862.61 | F30: 750359.43 | G30: 746045.26 | H30: 757144.51
A31: Total | C31: =SUM(C27:C30) -> 4165204.29 | D31: 4736475.9 | E31: 4757286.74 | F31: 4513910.37 | G31: 4835714.26 | H31: 5007325.51
A33: Description | C33: Account(s)
A34: Specific Service Charges: | C34: 4235
A35: Late Payment Charges: | C35: 4225
